Workbook

Sheet Game
B1: Facing | AI1: North | AJ1: 1
B2: South | AI2: South | AJ2: 2
AI3: East | AJ3: 3
AI4: West | AJ4: 4
AJ8: 4 | AK8: 3 | AL8: 2 | AM8: 1 | AN8: 0 | AO8: -1 | AP8: -2 | AQ8: -3 | AR8: -4
AJ9: =Calc.Left-4 -> -2 | AK9: =AJ9+1 -> -1 | AL9: =AK9+1 -> 0 | AM9: 1 | AN9: 2 | AO9: 3 | AP9: 4 | AQ9: 5 | AR9: 6
AI10: =Calc.Top-4 -> -4 | AJ10: =IFERROR(INDEX(MazeMatrix,$AI10,AJ$9),1) -> 1 | AK10: =IFERROR(INDEX(MazeMatrix,$AI10,AK$9),1) -> 1 | AL10: 1 | AM10: 1 | AN10: 1 | AO10: 1 | AP10: 1 | AQ10: 1 | AR10: 1
AI11: =AI10+1 -> -3 | AJ11: 1 | AK11: 1 | AL11: 1 | AM11: 1 | AN11: 1 | AO11: 1 | AP11: 1 | AQ11: 1 | AR11: 1
AI12: =AI11+1 -> -2 | AJ12: 1 | AK12: 1 | AL12: 1 | AM12: 1 | AN12: 1 | AO12: 1 | AP12: 1 | AQ12: 1 | AR12: 1
V13: MAP | AI13: -1 | AJ13: 1 | AK13: 1 | AL13: 1 | AM13: 1 | AN13: 1 | AO13: 1 | AP13: 1 | AQ13: 1 | AR13: 1
AI14: 0 | AJ14: 1 | AK14: 1 | AL14: 1 | AM14: 1 | AN14: 0 | AO14: 1 | AP14: 1 | AQ14: 1 | AR14: 1
AI15: 1 | AJ15: 1 | AK15: 1 | AL15: 1 | AM15: 1 | AN15: 0 | AO15: 1 | AP15: 1 | AQ15: 1 | AR15: 1
AI16: 2 | AJ16: 1 | AK16: 1 | AL16: 0 | AM16: 1 | AN16: 0 | AO16: 0 | AP16: 0 | AQ16: 0 | AR16: 0
AI17: 3 | AJ17: 1 | AK17: 1 | AL17: 1 | AM17: 1 | AN17: 1 | AO17: 1 | AP17: 1 | AQ17: 1 | AR17: 1
AI18: 4 | AJ18: 1 | AK18: 1 | AL18: 1 | AM18: 1 | AN18: 1 | AO18: 1 | AP18: 1 | AQ18: 1 | AR18: 1
AJ20: =IFERROR(SQRT(($AI10-Calc.Top)^2+(AJ$9-Calc.Left)^2)*AJ10,-1) -> 5.656854249 | AK20: =IFERROR(SQRT(ABS($AI10-Calc.Top)^2+ABS(AK$9-Calc.Left)^2)*AK10,-1) -> 5 | AL20: 4.472135955 | AM20: 4.123105626 | AN20: 4 | AO20: 4.123105626 | AP20: 4.472135955 | AQ20: 5 | AR20: 5.656854249
AJ21: =IFERROR(SQRT(ABS($AI11-Calc.Top)^2+ABS(AJ$9-Calc.Left)^2)*AJ11,-1) -> 5 | AK21: 4.242640687 | AL21: 3.605551275 | AM21: 3.16227766 | AN21: 3 | AO21: 3.16227766 | AP21: 3.605551275 | AQ21: 4.242640687 | AR21: 5
AJ22: 4.472135955 | AK22: 3.605551275 | AL22: 2.828427125 | AM22: 2.236067977 | AN22: 2 | AO22: 2.236067977 | AP22: 2.828427125 | AQ22: 3.605551275 | AR22: 4.472135955
AJ23: 4.123105626 | AK23: 3.16227766 | AL23: 2.236067977 | AM23: 1.414213562 | AN23: 1 | AO23: 1.414213562 | AP23: 2.236067977 | AQ23: 3.16227766 | AR23: 4.123105626
AJ24: 4 | AK24: 3 | AL24: 2 | AM24: 1 | AN24: 0 | AO24: 1 | AP24: 2 | AQ24: 3 | AR24: 4
AJ25: 4.123105626 | AK25: 3.16227766 | AL25: 2.236067977 | AM25: 1.414213562 | AN25: 0 | AO25: 1.414213562 | AP25: 2.236067977 | AQ25: 3.16227766 | AR25: 4.123105626
AJ26: 4.472135955 | AK26: 3.605551275 | AL26: 0 | AM26: 2.236067977 | AN26: 0 | AO26: 0 | AP26: 0 | AQ26: 0 | AR26: 0
AJ27: 5 | AK27: 4.242640687 | AL27: 3.605551275 | AM27: 3.16227766 | AN27: 3 | AO27: 3.16227766 | AP27: 3.605551275 | AQ27: 4.242640687 | AR27: 5
AJ28: 5.656854249 | AK28: 5 | AL28: 4.472135955 | AM28: 4.123105626 | AN28: 4 | AO28: 4.123105626 | AP28: 4.472135955 | AQ28: 5 | AR28: 5.656854249

Sheet Map (hidden)
D3: 1 | E3: 2 | F3: 3 | G3: 4 | H3: 5 | I3: 6 | J3: 7 | K3: 8 | L3: 9 | M3: 10 | N3: 11 | O3: 12 | P3: 13 | Q3: 14 | R3: 15 | S3: 16 | T3: 17 | U3: 18 | V3: 19 | W3: 20 | X3: 21 | Y3: 22 | Z3: 23 | AA3: 24 | AB3: 25 | AC3: 26 | AD3: 27 | AE3: 28 | AF3: 29 | AG3: 30
C4: 1 | D4: =IFERROR(IF(SQRT((D$3-Calc.Left)^2+($C4-Calc.Top)^2)<12, (INDEX(MazeMatrix,$C4,D$3)*2)+SQRT((D$3-Calc.Left)^2+($C4-Calc.Top)^2), SQRT((D$3-Calc.Left)^2+($C4-Calc.Top)^2)),"X") -> 3.414213562 | E4: 1 | F4: 3.414213562 | G4: 4.236067977 | H4: 5.16227766 | I4: 6.123105626 | J4: 7.099019514 | K4: 8.08276253 | L4: 9.071067812 | M4: 10.06225775 | N4: =IFERROR(IF(SQRT((N$3-Calc.Left)^2+($C4-Calc.Top)^2)<12, (INDEX(MazeMatrix,$C4,N$3)*2)+SQRT((N$3-Calc.Left)^2+($C4-Calc.Top)^2), SQRT((N$3-Calc.Left)^2+($C4-Calc.Top)^2)),"X") -> 11.05538514 | O4: 12.04987562 | P4: 13.04536102 | Q4: 12.04159458 | R4: 13.03840481 | S4: 14.03566885 | T4: 15.03329638 | U4: 16.03121954 | V4: 17.02938637 | W4: 18.02775638 | X4: =IFERROR(IF(SQRT((X$3-Calc.Left)^2+($C4-Calc.Top)^2)<12, (INDEX(MazeMatrix,$C4,X$3)*2)+SQRT((X$3-Calc.Left)^2+($C4-Calc.Top)^2), SQRT((X$3-Calc.Left)^2+($C4-Calc.Top)^2)),"X") -> 19.02629759 | Y4: 20.02498439 | Z4: 21.02379604 | AA4: 22.02271555 | AB4: 23.02172887 | AC4: 24.0208243 | AD4: 25.01999201 | AE4: 26.01922366 | AF4: 27.01851217 | AG4: 28.01785145
C5: 2 | D5: 4.236067977 | E5: 2 | F5: 2.236067977 | G5: 2.828427125 | H5: 3.605551275 | I5: 4.472135955 | J5: 5.385164807 | K5: 6.32455532 | L5: 7.280109889 | M5: 8.246211251 | N5: 9.219544457 | O5: 10.19803903 | P5: 11.18033989 | Q5: 12.16552506 | R5: 13.15294644 | S5: 14.14213562 | T5: 15.13274595 | U5: 16.1245155 | V5: 17.11724277 | W5: 18.11077028 | X5: 19.10497317 | Y5: 20.09975124 | Z5: 21.09502311 | AA5: 22.09072203 | AB5: 23.08679276 | AC5: 24.08318916 | AD5: 25.07987241 | AE5: 26.07680962 | AF5: 27.07397274 | AG5: 28.0713377
C6: 3 | D6: 5.16227766 | E6: 5 | F6: 5.16227766 | G6: 5.605551275 | H6: 6.242640687 | I6: 7 | J6: 7.830951895 | K6: 8.708203932 | L6: 9.615773106 | M6: 10.54400375 | N6: 9.486832981 | O6: 12.44030651 | P6: 13.40175425 | Q6: 12.36931688 | R6: 13.34166406 | S6: 14.31782106 | T6: 15.29705854 | U6: 16.2788206 | V6: 17.2626765 | W6: 18.24828759 | X6: 19.23538406 | Y6: 20.22374842 | Z6: 21.21320344 | AA6: 22.20360331 | AB6: 23.19482701 | AC6: 24.18677324 | AD6: 25.17935662 | AE6: 26.17250466 | AF6: 27.16615541 | AG6: 28.16025568
C7: 4 | D7: 6.123105626 | E7: 6 | F7: 6.123105626 | G7: 6.472135955 | H7: 7 | I7: 7.656854249 | J7: 8.403124237 | K7: 9.211102551 | L7: 10.06225775 | M7: 10.94427191 | N7: 9.848857802 | O7: 12.77032961 | P7: 13.70469991 | Q7: 12.64911064 | R7: 13.60147051 | S7: 14.56021978 | T7: 15.5241747 | U7: 16.4924225 | V7: 17.4642492 | W7: 18.43908891 | X7: 19.41648784 | Y7: 20.39607805 | Z7: 21.37755833 | AA7: 22.36067977 | AB7: 23.34523506 | AC7: 24.33105012 | AD7: 25.3179778 | AE7: 26.30589288 | AF7: 27.29468813 | AG7: 28.28427125
C8: 5 | D8: 7.099019514 | E8: 5 | F8: 5.099019514 | G8: 5.385164807 | H8: 5.830951895 | I8: 6.403124237 | J8: 7.071067812 | K8: 7.810249676 | L8: 8.602325267 | M8: 9.433981132 | N8: 10.29563014 | O8: 11.18033989 | P8: 12.08304597 | Q8: 13 | R8: 13.92838828 | S8: 14.86606875 | T8: 15.8113883 | U8: 16.76305461 | V8: 17.72004515 | W8: 18.68154169 | X8: 19.6468827 | Y8: 20.61552813 | Z8: 21.58703314 | AA8: 22.56102835 | AB8: 23.53720459 | AC8: 24.51530134 | AD8: 25.49509757 | AE8: 26.47640459 | AF8: 27.45906044 | AG8: 28.44292531
C9: 6 | D9: 8.08276253 | E9: 6 | F9: 8.08276253 | G9: 8.32455532 | H9: 8.708203932 | I9: 9.211102551 | J9: 9.810249676 | K9: 10.48528137 | L9: 11.21954446 | M9: 12 | N9: 10.81665383 | O9: 13.66190379 | P9: 12.52996409 | Q9: 13.41640786 | R9: 14.31782106 | S9: 15.23154621 | T9: 16.15549442 | U9: 17.08800749 | V9: 18.02775638 | W9: 18.97366596 | X9: 19.92485885 | Y9: 20.88061302 | Z9: 21.84032967 | AA9: 22.8035085 | AB9: 23.76972865 | AC9: 24.73863375 | AD9: 25.70992026 | AE9: 26.68332813 | AF9: 27.65863337 | AG9: 28.63564213
C10: 7 | D10: 9.071067812 | E10: 7 | F10: 9.071067812 | G10: 9.280109889 | H10: 9.615773106 | I10: 10.06225775 | J10: 10.60232527 | K10: 11.21954446 | L10: 11.89949494 | M10: 12.63014581 | N10: 11.40175425 | O10: 12.20655562 | P10: 13.03840481 | Q10: 13.89244399 | R10: 14.76482306 | S10: 15.65247584 | T10: 16.55294536 | U10: 17.4642492 | V10: 18.38477631 | W10: 19.31320792 | X10: 20.24845673 | Y10: 21.1896201 | Z10: 22.13594362 | AA10: 23.08679276 | AB10: 24.04163056 | AC10: 25 | AD10: 25.96150997 | AE10: 26.92582404 | AF10: 27.89265136 | AG10: 28.86173938
C11: 8 | D11: 10.06225775 | E11: 8 | F11: 8.062257748 | G11: 8.246211251 | H11: 8.544003745 | I11: 8.94427191 | J11: 9.433981132 | K11: 10 | L11: 10.63014581 | M11: 11.3137085 | N11: 12.04159458 | O11: 12.80624847 | P11: 13.60147051 | Q11: 14.4222051 | R11: 15.26433752 | S11: 16.1245155 | T11: 17 | U11: 17.88854382 | V11: 18.78829423 | W11: 19.6977156 | X11: 20.61552813 | Y11: 21.54065923 | Z11: 22.47220505 | AA11: 23.40939982 | AB11: 24.35159132 | AC11: 25.29822128 | AD11: 26.2488095 | AE11: 27.20294102 | AF11: 28.16025568 | AG11: 29.12043956
C12: 9 | D12: 11.05538514 | E12: 11 | F12: 11.05538514 | G12: 11.21954446 | H12: 11.48683298 | I12: 11.8488578 | J12: 12.29563014 | K12: 10.81665383 | L12: 13.40175425 | M12: 12.04159458 | N12: 12.72792206 | O12: 13.45362405 | P12: 14.2126704 | Q12: 15 | R12: 15.8113883 | S12: 16.64331698 | T12: 17.49285568 | U12: 18.35755975 | V12: 19.23538406 | W12: 20.1246118 | X12: 21.02379604 | Y12: 21.9317122 | Z12: 22.84731932 | AA12: 23.76972865 | AB12: 24.69817807 | AC12: 25.63201124 | AD12: 26.57066051 | AE12: 27.51363298 | AF12: 28.46049894 | AG12: 29.41088234
C13: 10 | D13: 12.04987562 | E13: 12 | F13: 12.04987562 | G13: 12.19803903 | H13: 12.44030651 | I13: 12.77032961 | J13: 13.18033989 | K13: 11.66190379 | L13: 12.20655562 | M13: 12.80624847 | N13: 13.45362405 | O13: 14.14213562 | P13: 14.86606875 | Q13: 15.62049935 | R13: 16.40121947 | S13: 17.20465053 | T13: 18.02775638 | U13: 18.86796226 | V13: 19.72308292 | W13: 20.59126028 | X13: 21.47091055 | Y13: 22.36067977 | Z13: 23.2594067 | AA13: 24.16609195 | AB13: 25.07987241 | AC13: 26 | AD13: 26.92582404 | AE13: 27.85677655 | AF13: 28.7923601 | AG13: 29.73213749
C14: 11 | D14: =IFERROR(IF(SQRT((D$3-Calc.Left)^2+($C14-Calc.Top)^2)<12, (INDEX(MazeMatrix,$C14,D$3)*2)+SQRT((D$3-Calc.Left)^2+($C14-Calc.Top)^2), SQRT((D$3-Calc.Left)^2+($C14-Calc.Top)^2)),"X") -> 13.04536102 | E14: 11 | F14: 11.04536102 | G14: 11.18033989 | H14: 11.40175425 | I14: 13.70469991 | J14: 12.08304597 | K14: 12.52996409 | L14: 13.03840481 | M14: 13.60147051 | N14: =IFERROR(IF(SQRT((N$3-Calc.Left)^2+($C14-Calc.Top)^2)<12, (INDEX(MazeMatrix,$C14,N$3)*2)+SQRT((N$3-Calc.Left)^2+($C14-Calc.Top)^2), SQRT((N$3-Calc.Left)^2+($C14-Calc.Top)^2)),"X") -> 14.2126704 | O14: 14.86606875 | P14: 15.55634919 | Q14: 16.2788206 | R14: 17.02938637 | S14: 17.80449381 | T14: 18.60107524 | U14: 19.41648784 | V14: 20.24845673 | W14: 21.09502311 | X14: =IFERROR(IF(SQRT((X$3-Calc.Left)^2+($C14-Calc.Top)^2)<12, (INDEX(MazeMatrix,$C14,X$3)*2)+SQRT((X$3-Calc.Left)^2+($C14-Calc.Top)^2), SQRT((X$3-Calc.Left)^2+($C14-Calc.Top)^2)),"X") -> 21.9544984 | Y14: 22.82542442 | Z14: 23.70653918 | AA14: 24.59674775 | AB14: 25.49509757 | AC14: 26.40075756 | AD14: 27.31300057 | AE14: 28.23118843 | AF14: 29.15475947 | AG14: 30.08321791
C15: 12 | D15: 12.04159458 | E15: 12 | F15: 12.04159458 | G15: 12.16552506 | H15: 12.36931688 | I15: 12.64911064 | J15: 13 | K15: 13.41640786 | L15: 13.89244399 | M15: 14.4222051 | N15: 15 | O15: 15.62049935 | P15: 16.2788206 | Q15: 16.97056275 | R15: 17.69180601 | S15: 18.43908891 | T15: 19.20937271 | U15: 20 | V15: 20.80865205 | W15: 21.63330765 | X15: 22.47220505 | Y15: 23.32380758 | Z15: 24.18677324 | AA15: 25.05992817 | AB15: 25.94224354 | AC15: 26.83281573 | AD15: 27.73084925 | AE15: 28.63564213 | AF15: 29.54657341 | AG15: 30.46309242
C16: 13 | D16: 13.03840481 | E16: 13 | F16: 13.03840481 | G16: 13.15294644 | H16: 13.34166406 | I16: 13.60147051 | J16: 13.92838828 | K16: 14.31782106 | L16: 14.76482306 | M16: 15.26433752 | N16: 15.8113883 | O16: 16.40121947 | P16: 17.02938637 | Q16: 17.69180601 | R16: 18.38477631 | S16: 19.10497317 | T16: 19.84943324 | U16: 20.61552813 | V16: 21.40093456 | W16: 22.20360331 | X16: 23.02172887 | Y16: 23.85372088 | Z16: 24.69817807 | AA16: 25.55386468 | AB16: 26.41968963 | AC16: 27.29468813 | AD16: 28.17800561 | AE16: 29.06888371 | AF16: 29.96664813 | AG16: 30.87069808
C17: 14 | D17: 14.03566885 | E17: 14 | F17: 14.03566885 | G17: 14.14213562 | H17: 14.31782106 | I17: 14.56021978 | J17: 14.86606875 | K17: 15.23154621 | L17: 15.65247584 | M17: 16.1245155 | N17: 16.64331698 | O17: 17.20465053 | P17: 17.80449381 | Q17: 18.43908891 | R17: 19.10497317 | S17: 19.79898987 | T17: 20.51828453 | U17: 21.26029163 | V17: 22.02271555 | W17: 22.8035085 | X17: 23.60084744 | Y17: 24.41311123 | Z17: 25.23885893 | AA17: 26.07680962 | AB17: 26.92582404 | AC17: 27.78488798 | AD17: 28.65309756 | AE17: 29.52964612 | AF17: 30.41381265 | AG17: 31.30495168
C18: 15 | D18: 15.03329638 | E18: 15 | F18: 15.03329638 | G18: 15.13274595 | H18: 15.29705854 | I18: 15.5241747 | J18: 15.8113883 | K18: 16.15549442 | L18: 16.55294536 | M18: 17 | N18: 17.49285568 | O18: 18.02775638 | P18: 18.60107524 | Q18: 19.20937271 | R18: 19.84943324 | S18: 20.51828453 | T18: 21.21320344 | U18: 21.9317122 | V18: 22.6715681 | W18: 23.43074903 | X18: 24.20743687 | Y18: 25 | Z18: 25.8069758 | AA18: 26.62705391 | AB18: 27.45906044 | AC18: 28.3019434 | AD18: 29.15475947 | AE18: 30.01666204 | AF18: 30.88689042 | AG18: 31.76476035
C19: 16 | D19: 16.03121954 | E19: 16 | F19: 16.03121954 | G19: 16.1245155 | H19: 16.2788206 | I19: 16.4924225 | J19: 16.76305461 | K19: 17.08800749 | L19: 17.4642492 | M19: 17.88854382 | N19: 18.35755975 | O19: 18.86796226 | P19: 19.41648784 | Q19: 20 | R19: 20.61552813 | S19: 21.26029163 | T19: 21.9317122 | U19: 22.627417 | V19: 23.34523506 | W19: 24.08318916 | X19: 24.8394847 | Y19: 25.61249695 | Z19: 26.40075756 | AA19: 27.20294102 | AB19: 28.01785145 | AC19: 28.8444102 | AD19: 29.68164416 | AE19: 30.52867504 | AF19: 31.38470965 | AG19: 32.24903099
C20: 17 | D20: 17.02938637 | E20: 17 | F20: 17.02938637 | G20: 17.11724277 | H20: 17.2626765 | I20: 17.4642492 | J20: 17.72004515 | K20: 18.02775638 | L20: 18.38477631 | M20: 18.78829423 | N20: 19.23538406 | O20: 19.72308292 | P20: 20.24845673 | Q20: 20.80865205 | R20: 21.40093456 | S20: 22.02271555 | T20: 22.6715681 | U20: 23.34523506 | V20: 24.04163056 | W20: 24.75883681 | X20: 25.49509757 | Y20: 26.2488095 | Z20: 27.01851217 | AA20: 27.80287755 | AB20: 28.60069929 | AC20: 29.41088234 | AD20: 30.23243292 | AE20: 31.06444913 | AF20: 31.90611227 | AG20: 32.75667871
C21: 18 | D21: 18.02775638 | E21: 18 | F21: 18.02775638 | G21: 18.11077028 | H21: 18.24828759 | I21: 18.43908891 | J21: 18.68154169 | K21: 18.97366596 | L21: 19.31320792 | M21: 19.6977156 | N21: 20.1246118 | O21: 20.59126028 | P21: 21.09502311 | Q21: 21.63330765 | R21: 22.20360331 | S21: 22.8035085 | T21: 23.43074903 | U21: 24.08318916 | V21: 24.75883681 | W21: 25.45584412 | X21: 26.17250466 | Y21: 26.90724809 | Z21: 27.65863337 | AA21: 28.42534081 | AB21: 29.20616373 | AC21: 30 | AD21: 30.8058436 | AE21: 31.6227766 | AF21: 32.44996148 | AG21: 33.28663395
C22: 19 | D22: 19.02629759 | E22: 19 | F22: 19.02629759 | G22: 19.10497317 | H22: 19.23538406 | I22: 19.41648784 | J22: 19.6468827 | K22: 19.92485885 | L22: 20.24845673 | M22: 20.61552813 | N22: 21.02379604 | O22: 21.47091055 | P22: 21.9544984 | Q22: 22.47220505 | R22: 23.02172887 | S22: 23.60084744 | T22: 24.20743687 | U22: 24.8394847 | V22: 25.49509757 | W22: 26.17250466 | X22: 26.87005769 | Y22: 27.58622845 | Z22: 28.31960452 | AA22: 29.06888371 | AB22: 29.83286778 | AC22: 30.61045573 | AD22: 31.40063694 | AE22: 32.20248438 | AF22: 33.01514804 | AG22: 33.83784863
C23: 20 | D23: 20.02498439 | E23: 20 | F23: 20.02498439 | G23: 20.09975124 | H23: 20.22374842 | I23: 20.39607805 | J23: 20.61552813 | K23: 20.88061302 | L23: 21.1896201 | M23: 21.54065923 | N23: 21.9317122 | O23: 22.36067977 | P23: 22.82542442 | Q23: 23.32380758 | R23: 23.85372088 | S23: 24.41311123 | T23: 25 | U23: 25.61249695 | V23: 26.2488095 | W23: 26.90724809 | X23: 27.58622845 | Y23: 28.28427125 | Z23: 29 | AA23: 29.73213749 | AB23: 30.47950131 | AC23: 31.2409987 | AD23: 32.01562119 | AE23: 32.80243893 | AF23: 33.60059523 | AG23: 34.40930107
C24: 21 | D24: =IFERROR(IF(SQRT((D$3-Calc.Left)^2+($C24-Calc.Top)^2)<12, (INDEX(MazeMatrix,$C24,D$3)*2)+SQRT((D$3-Calc.Left)^2+($C24-Calc.Top)^2), SQRT((D$3-Calc.Left)^2+($C24-Calc.Top)^2)),"X") -> 21.02379604 | E24: 21 | F24: 21.02379604 | G24: 21.09502311 | H24: 21.21320344 | I24: 21.37755833 | J24: 21.58703314 | K24: 21.84032967 | L24: 22.13594362 | M24: 22.47220505 | N24: =IFERROR(IF(SQRT((N$3-Calc.Left)^2+($C24-Calc.Top)^2)<12, (INDEX(MazeMatrix,$C24,N$3)*2)+SQRT((N$3-Calc.Left)^2+($C24-Calc.Top)^2), SQRT((N$3-Calc.Left)^2+($C24-Calc.Top)^2)),"X") -> 22.84731932 | O24: 23.2594067 | P24: 23.70653918 | Q24: 24.18677324 | R24: 24.69817807 | S24: 25.23885893 | T24: 25.8069758 | U24: 26.40075756 | V24: 27.01851217 | W24: 27.65863337 | X24: =IFERROR(IF(SQRT((X$3-Calc.Left)^2+($C24-Calc.Top)^2)<12, (INDEX(MazeMatrix,$C24,X$3)*2)+SQRT((X$3-Calc.Left)^2+($C24-Calc.Top)^2), SQRT((X$3-Calc.Left)^2+($C24-Calc.Top)^2)),"X") -> 28.31960452 | Y24: 29 | Z24: 29.69848481 | AA24: 30.41381265 | AB24: 31.144823 | AC24: 31.89043744 | AD24: 32.64965543 | AE24: 33.42154993 | AF24: 34.20526275 | AG24: 35
C25: 22 | D25: 22.02271555 | E25: 22 | F25: 22.02271555 | G25: 22.09072203 | H25: 22.20360331 | I25: 22.36067977 | J25: 22.56102835 | K25: 22.8035085 | L25: 23.08679276 | M25: 23.40939982 | N25: 23.76972865 | O25: 24.16609195 | P25: 24.59674775 | Q25: 25.05992817 | R25: 25.55386468 | S25: 26.07680962 | T25: 26.62705391 | U25: 27.20294102 | V25: 27.80287755 | W25: 28.42534081 | X25: 29.06888371 | Y25: 29.73213749 | Z25: 30.41381265 | AA25: 31.11269837 | AB25: 31.82766093 | AC25: 32.55764119 | AD25: 33.30165161 | AE25: 34.05877273 | AF25: 34.82814953 | AG25: 35.60898763
C26: 23 | D26: 23.02172887 | E26: 23 | F26: 23.02172887 | G26: 23.08679276 | H26: 23.19482701 | I26: 23.34523506 | J26: 23.53720459 | K26: 23.76972865 | L26: 24.04163056 | M26: 24.35159132 | N26: 24.69817807 | O26: 25.07987241 | P26: 25.49509757 | Q26: 25.94224354 | R26: 26.41968963 | S26: 26.92582404 | T26: 27.45906044 | U26: 28.01785145 | V26: 28.60069929 | W26: 29.20616373 | X26: 29.83286778 | Y26: 30.47950131 | Z26: 31.144823 | AA26: 31.82766093 | AB26: 32.52691193 | AC26: 33.24154028 | AD26: 33.9705755 | AE26: 34.71310992 | AF26: 35.4682957 | AG26: 36.23534186
C27: 24 | D27: 24.0208243 | E27: 24 | F27: 24.0208243 | G27: 24.08318916 | H27: 24.18677324 | I27: 24.33105012 | J27: 24.51530134 | K27: 24.73863375 | L27: 25 | M27: 25.29822128 | N27: 25.63201124 | O27: 26 | P27: 26.40075756 | Q27: 26.83281573 | R27: 27.29468813 | S27: 27.78488798 | T27: 28.3019434 | U27: 28.8444102 | V27: 29.41088234 | W27: 30 | X27: 30.61045573 | Y27: 31.2409987 | Z27: 31.89043744 | AA27: 32.55764119 | AB27: 33.24154028 | AC27: 33.9411255 | AD27: 34.6554469 | AE27: 35.38361203 | AF27: 36.12478374 | AG27: 36.87817783
C28: 25 | D28: 25.01999201 | E28: 25 | F28: 25.01999201 | G28: 25.07987241 | H28: 25.17935662 | I28: 25.3179778 | J28: 25.49509757 | K28: 25.70992026 | L28: 25.96150997 | M28: 26.2488095 | N28: 26.57066051 | O28: 26.92582404 | P28: 27.31300057 | Q28: 27.73084925 | R28: 28.17800561 | S28: 28.65309756 | T28: 29.15475947 | U28: 29.68164416 | V28: 30.23243292 | W28: 30.8058436 | X28: 31.40063694 | Y28: 32.01562119 | Z28: 32.64965543 | AA28: 33.30165161 | AB28: 33.9705755 | AC28: 34.6554469 | AD28: 35.35533906 | AE28: 36.06937759 | AF28: 36.79673899 | AG28: 37.53664876
C29: 26 | D29: 26.01922366 | E29: 26 | F29: 26.01922366 | G29: 26.07680962 | H29: 26.17250466 | I29: 26.30589288 | J29: 26.47640459 | K29: 26.68332813 | L29: 26.92582404 | M29: 27.20294102 | N29: 27.51363298 | O29: 27.85677655 | P29: 28.23118843 | Q29: 28.63564213 | R29: 29.06888371 | S29: 29.52964612 | T29: 30.01666204 | U29: 30.52867504 | V29: 31.06444913 | W29: 31.6227766 | X29: 32.20248438 | Y29: 32.80243893 | Z29: 33.42154993 | AA29: 34.05877273 | AB29: 34.71310992 | AC29: 35.38361203 | AD29: 36.06937759 | AE29: 36.76955262 | AF29: 37.48332963 | AG29: 38.20994635
C30: 27 | D30: 27.01851217 | E30: 27 | F30: 27.01851217 | G30: 27.07397274 | H30: 27.16615541 | I30: 27.29468813 | J30: 27.45906044 | K30: 27.65863337 | L30: 27.89265136 | M30: 28.16025568 | N30: 28.46049894 | O30: 28.7923601 | P30: 29.15475947 | Q30: 29.54657341 | R30: 29.96664813 | S30: 30.41381265 | T30: 30.88689042 | U30: 31.38470965 | V30: 31.90611227 | W30: 32.44996148 | X30: 33.01514804 | Y30: 33.60059523 | Z30: 34.20526275 | AA30: 34.82814953 | AB30: 35.4682957 | AC30: 36.12478374 | AD30: 36.79673899 | AE30: 37.48332963 | AF30: 38.18376618 | AG30: 38.89730068
C31: 28 | D31: 28.01785145 | E31: 28 | F31: 28.01785145 | G31: 28.0713377 | H31: 28.16025568 | I31: 28.28427125 | J31: 28.44292531 | K31: 28.63564213 | L31: 28.86173938 | M31: 29.12043956 | N31: 29.41088234 | O31: 29.73213749 | P31: 30.08321791 | Q31: 30.46309242 | R31: 30.87069808 | S31: 31.30495168 | T31: 31.76476035 | U31: 32.24903099 | V31: 32.75667871 | W31: 33.28663395 | X31: 33.83784863 | Y31: 34.40930107 | Z31: 35 | AA31: 35.60898763 | AB31: 36.23534186 | AC31: 36.87817783 | AD31: 37.53664876 | AE31: 38.20994635 | AF31: 38.89730068 | AG31: 39.59797975
C32: 29 | D32: 29.01723626 | E32: 29 | F32: 29.01723626 | G32: 29.06888371 | H32: 29.15475947 | I32: 29.27456234 | J32: 29.42787794 | K32: 29.61418579 | L32: 29.83286778 | M32: 30.08321791 | N32: 30.3644529 | O32: 30.6757233 | P32: 31.01612484 | Q32: 31.38470965 | R32: 31.78049716 | S32: 32.20248438 | T32: 32.64965543 | U32: 33.12099032 | V32: 33.61547263 | W32: 34.13209633 | X32: 34.66987165 | Y32: 35.22782991 | Z32: 35.80502758 | AA32: 36.40054945 | AB32: 37.01351105 | AC32: 37.64306045 | AD32: 38.28837944 | AE32: 38.94868419 | AF32: 39.62322551 | AG32: 40.31128874
C33: 30 | D33: 30.01666204 | E33: 30 | F33: 30.01666204 | G33: 30.06659276 | H33: 30.14962686 | I33: 30.2654919 | J33: 30.41381265 | K33: 30.59411708 | L33: 30.8058436 | M33: 31.04834939 | N33: 31.32091953 | O33: 31.6227766 | P33: 31.95309062 | Q33: 32.31098884 | R33: 32.69556545 | S33: 33.10589071 | T33: 33.54101966 | U33: 34 | V33: 34.4818793 | W33: 34.98571137 | X33: 35.51056181 | Y33: 36.05551275 | Z33: 36.61966685 | AA33: 37.20215048 | AB33: 37.80211634 | AC33: 38.41874542 | AD33: 39.05124838 | AE33: 39.69886648 | AF33: 40.36087214 | AG33: 41.03656906

Sheet Maze Edit
B1: 1 | C1: 2 | D1: 3 | E1: 4 | F1: 5 | G1: 6 | H1: 7 | I1: 8 | J1: 9 | K1: 10
A2: 1 | B2: 9 | C2: 5 | D2: 5 | E2: 11 | F2: 5 | G2: 5 | H2: 6 | I2: 7 | J2: 11 | K2: 6
A3: 2 | B3: 7 | C3: 5 | D3: 5 | E3: 14 | F3: 5 | G3: 6 | H3: 13 | I3: 12 | J3: 13 | K3: 8
A4: 3 | B4: 9 | C4: 5 | D4: 11 | E4: 14 | F4: 6 | G4: 9 | H4: 8 | I4: 13 | J4: 14 | K4: 6
A5: 4 | B5: 7 | C5: 6 | D5: 15 | E5: 15 | F5: 13 | G5: 5 | H5: 5 | I5: 8 | J5: 15 | K5: 15
A6: 5 | B6: 9 | C6: 10 | D6: 10 | E6: 14 | F6: 14 | G6: 5 | H6: 5 | I6: 6 | J6: 15 | K6: 15
A7: 6 | B7: 7 | C7: 5 | D7: 5 | E7: 14 | F7: 14 | G7: 5 | H7: 5 | I7: 14 | J7: 10 | K7: 8
A8: 7 | B8: 15 | C8: 7 | D8: 6 | E8: 15 | F8: 13 | G8: 11 | H8: 6 | I8: 15 | J8: 7 | K8: 6
A9: 8 | B9: 15 | C9: 15 | D9: 15 | E9: 13 | F9: 8 | G9: 15 | H9: 9 | I9: 14 | J9: 12 | K9: 15
A10: 9 | B10: 15 | C10: 9 | D10: 12 | E10: 13 | F10: 5 | G10: 10 | H10: 6 | I10: 13 | J10: 12 | K10: 15 | O10: 1 | P10: 2 | Q10: 3 | R10: 4 | S10: 5 | T10: 6 | U10: 7 | V10: 8 | W10: 9 | X10: 10 | Y10: 11 | Z10: 12 | AA10: 13 | AB10: 14 | AC10: 15 | AD10: 16 | AE10: 17 | AF10: 18 | AG10: 19 | AH10: 20 | AI10: 21 | AJ10: 22 | AK10: 23 | AL10: 24 | AM10: 25 | AN10: 26 | AO10: 27 | AP10: 28 | AQ10: 29 | AR10: 30
A11: 10 | B11: 9 | C11: 5 | D11: 8 | E11: 9 | F11: 5 | G11: 5 | H11: 8 | I11: 9 | J11: 10 | K11: 10 | O11: 1 | P11: 1 | Q11: 1 | R11: 2 | S11: 2 | T11: 2 | U11: 3 | V11: 3 | W11: 3 | X11: 4 | Y11: 4 | Z11: 4 | AA11: 5 | AB11: 5 | AC11: 5 | AD11: 6 | AE11: 6 | AF11: 6 | AG11: 7 | AH11: 7 | AI11: 7 | AJ11: 8 | AK11: 8 | AL11: 8 | AM11: 9 | AN11: 9 | AO11: 9 | AP11: 10 | AQ11: 10 | AR11: 10
O12: 1 | R12: 2 | U12: 3 | X12: 4 | AA12: 5 | AD12: 6 | AG12: 7 | AJ12: 8 | AM12: 9 | AP12: 10
A13: Key | O13: 1 | P13: 2 | Q13: 3 | R13: 1 | S13: 2 | T13: 3 | U13: 1 | V13: 2 | W13: 3 | X13: 1 | Y13: 2 | Z13: 3 | AA13: 1 | AB13: 2 | AC13: 3 | AD13: 1 | AE13: 2 | AF13: 3 | AG13: 1 | AH13: 2 | AI13: 3 | AJ13: 1 | AK13: 2 | AL13: 3 | AM13: 1 | AN13: 2 | AO13: 3 | AP13: 1 | AQ13: 2 | AR13: 3
B14: 1 | C14: 1 | D14: 1 | K14: 1 | L14: 1 | M14: 1 | N14: 1 | O14: =IF(AND($K14=Calc.Top, O$10=Calc.Left),"X",INDEX(CHOOSE(INDEX(MazeDef,$L14,O$11),Primitives!$C$2:$E$4,Primitives!$C$6:$E$8,Primitives!$C$10:$E$12,Primitives!$C$14:$E$16,Primitives!$C$18:$E$20,Primitives!$C$22:$E$24,Primitives!$C$26:$E$28,Primitives!$C$30:$E$32,Primitives!$C$34:$E$36,Primitives!$C$38:$E$40,Primitives!$C$42:$E$44,Primitives!$C$46:$E$48,Primitives!$C$50:$E$52,Primitives!$C$54:$E$56,Primitives!$C$58:$E$60),$N14,O$13)) -> 1 | P14: =IF(AND($K14=Calc.Top, P$10=Calc.Left),"X",INDEX(CHOOSE(INDEX(MazeDef,$L14,P$11),Primitives!$C$2:$E$4,Primitives!$C$6:$E$8,Primitives!$C$10:$E$12,Primitives!$C$14:$E$16,Primitives!$C$18:$E$20,Primitives!$C$22:$E$24,Primitives!$C$26:$E$28,Primitives!$C$30:$E$32,Primitives!$C$34:$E$36,Primitives!$C$38:$E$40,Primitives!$C$42:$E$44,Primitives!$C$46:$E$48,Primitives!$C$50:$E$52,Primitives!$C$54:$E$56,Primitives!$C$58:$E$60),$N14,P$13)) -> 0 | Q14: =IF(AND($K14=Calc.Top, Q$10=Calc.Left),"X",INDEX(CHOOSE(INDEX(MazeDef,$L14,Q$11),Primitives!$C$2:$E$4,Primitives!$C$6:$E$8,Primitives!$C$10:$E$12,Primitives!$C$14:$E$16,Primitives!$C$18:$E$20,Primitives!$C$22:$E$24,Primitives!$C$26:$E$28,Primitives!$C$30:$E$32,Primitives!$C$34:$E$36,Primitives!$C$38:$E$40,Primitives!$C$42:$E$44,Primitives!$C$46:$E$48,Primitives!$C$50:$E$52,Primitives!$C$54:$E$56,Primitives!$C$58:$E$60),$N14,Q$13)) -> 1 | R14: =IF(AND($K14=Calc.Top, R$10=Calc.Left),"X",INDEX(CHOOSE(INDEX(MazeDef,$L14,R$11),Primitives!$C$2:$E$4,Primitives!$C$6:$E$8,Primitives!$C$10:$E$12,Primitives!$C$14:$E$16,Primitives!$C$18:$E$20,Primitives!$C$22:$E$24,Primitives!$C$26:$E$28,Primitives!$C$30:$E$32,Primitives!$C$34:$E$36,Primitives!$C$38:$E$40,Primitives!$C$42:$E$44,Primitives!$C$46:$E$48,Primitives!$C$50:$E$52,Primitives!$C$54:$E$56,Primitives!$C$58:$E$60),$N14,R$13)) -> 1 | S14: =IF(AND($K14=Calc.Top, S$10=Calc.Left),"X",INDEX(CHOOSE(INDEX(MazeDef,$L14,S$11),Primitives!$C$2:$E$4,Primitives!$C$6:$E$8,Primitives!$C$10:$E$12,Primitives!$C$14:$E$16,Primitives!$C$18:$E$20,Primitives!$C$22:$E$24,Primitives!$C$26:$E$28,Primitives!$C$30:$E$32,Primitives!$C$34:$E$36,Primitives!$C$38:$E$40,Primitives!$C$42:$E$44,Primitives!$C$46:$E$48,Primitives!$C$50:$E$52,Primitives!$C$54:$E$56,Primitives!$C$58:$E$60),$N14,S$13)) -> 1 | T14: =IF(AND($K14=Calc.Top, T$10=Calc.Left),"X",INDEX(CHOOSE(INDEX(MazeDef,$L14,T$11),Primitives!$C$2:$E$4,Primitives!$C$6:$E$8,Primitives!$C$10:$E$12,Primitives!$C$14:$E$16,Primitives!$C$18:$E$20,Primitives!$C$22:$E$24,Primitives!$C$26:$E$28,Primitives!$C$30:$E$32,Primitives!$C$34:$E$36,Primitives!$C$38:$E$40,Primitives!$C$42:$E$44,Primitives!$C$46:$E$48,Primitives!$C$50:$E$52,Primitives!$C$54:$E$56,Primitives!$C$58:$E$60),$N14,T$13)) -> 1 | U14: =IF(AND($K14=Calc.Top, U$10=Calc.Left),"X",INDEX(CHOOSE(INDEX(MazeDef,$L14,U$11),Primitives!$C$2:$E$4,Primitives!$C$6:$E$8,Primitives!$C$10:$E$12,Primitives!$C$14:$E$16,Primitives!$C$18:$E$20,Primitives!$C$22:$E$24,Primitives!$C$26:$E$28,Primitives!$C$30:$E$32,Primitives!$C$34:$E$36,Primitives!$C$38:$E$40,Primitives!$C$42:$E$44,Primitives!$C$46:$E$48,Primitives!$C$50:$E$52,Primitives!$C$54:$E$56,Primitives!$C$58:$E$60),$N14,U$13)) -> 1 | V14: =IF(AND($K14=Calc.Top, V$10=Calc.Left),"X",INDEX(CHOOSE(INDEX(MazeDef,$L14,V$11),Primitives!$C$2:$E$4,Primitives!$C$6:$E$8,Primitives!$C$10:$E$12,Primitives!$C$14:$E$16,Primitives!$C$18:$E$20,Primitives!$C$22:$E$24,Primitives!$C$26:$E$28,Primitives!$C$30:$E$32,Primitives!$C$34:$E$36,Primitives!$C$38:$E$40,Primitives!$C$42:$E$44,Primitives!$C$46:$E$48,Primitives!$C$50:$E$52,Primitives!$C$54:$E$56,Primitives!$C$58:$E$60),$N14,V$13)) -> 1 | W14: =IF(AND($K14=Calc.Top, W$10=Calc.Left),"X",INDEX(CHOOSE(INDEX(MazeDef,$L14,W$11),Primitives!$C$2:$E$4,Primitives!$C$6:$E$8,Primitives!$C$10:$E$12,Primitives!$C$14:$E$16,Primitives!$C$18:$E$20,Primitives!$C$22:$E$24,Primitives!$C$26:$E$28,Primitives!$C$30:$E$32,Primitives!$C$34:$E$36,Primitives!$C$38:$E$40,Primitives!$C$42:$E$44,Primitives!$C$46:$E$48,Primitives!$C$50:$E$52,Primitives!$C$54:$E$56,Primitives!$C$58:$E$60),$N14,W$13)) -> 1 | X14: =IF(AND($K14=Calc.Top, X$10=Calc.Left),"X",INDEX(CHOOSE(INDEX(MazeDef,$L14,X$11),Primitives!$C$2:$E$4,Primitives!$C$6:$E$8,Primitives!$C$10:$E$12,Primitives!$C$14:$E$16,Primitives!$C$18:$E$20,Primitives!$C$22:$E$24,Primitives!$C$26:$E$28,Primitives!$C$30:$E$32,Primitives!$C$34:$E$36,Primitives!$C$38:$E$40,Primitives!$C$42:$E$44,Primitives!$C$46:$E$48,Primitives!$C$50:$E$52,Primitives!$C$54:$E$56,Primitives!$C$58:$E$60),$N14,X$13)) -> 1 | Y14: =IF(AND($K14=Calc.Top, Y$10=Calc.Left),"X",INDEX(CHOOSE(INDEX(MazeDef,$L14,Y$11),Primitives!$C$2:$E$4,Primitives!$C$6:$E$8,Primitives!$C$10:$E$12,Primitives!$C$14:$E$16,Primitives!$C$18:$E$20,Primitives!$C$22:$E$24,Primitives!$C$26:$E$28,Primitives!$C$30:$E$32,Primitives!$C$34:$E$36,Primitives!$C$38:$E$40,Primitives!$C$42:$E$44,Primitives!$C$46:$E$48,Primitives!$C$50:$E$52,Primitives!$C$54:$E$56,Primitives!$C$58:$E$60),$N14,Y$13)) -> 1 | Z14: =IF(AND($K14=Calc.Top, Z$10=Calc.Left),"X",INDEX(CHOOSE(INDEX(MazeDef,$L14,Z$11),Primitives!$C$2:$E$4,Primitives!$C$6:$E$8,Primitives!$C$10:$E$12,Primitives!$C$14:$E$16,Primitives!$C$18:$E$20,Primitives!$C$22:$E$24,Primitives!$C$26:$E$28,Primitives!$C$30:$E$32,Primitives!$C$34:$E$36,Primitives!$C$38:$E$40,Primitives!$C$42:$E$44,Primitives!$C$46:$E$48,Primitives!$C$50:$E$52,Primitives!$C$54:$E$56,Primitives!$C$58:$E$60),$N14,Z$13)) -> 1 | AA14: =IF(AND($K14=Calc.Top, AA$10=Calc.Left),"X",INDEX(CHOOSE(INDEX(MazeDef,$L14,AA$11),Primitives!$C$2:$E$4,Primitives!$C$6:$E$8,Primitives!$C$10:$E$12,Primitives!$C$14:$E$16,Primitives!$C$18:$E$20,Primitives!$C$22:$E$24,Primitives!$C$26:$E$28,Primitives!$C$30:$E$32,Primitives!$C$34:$E$36,Primitives!$C$38:$E$40,Primitives!$C$42:$E$44,Primitives!$C$46:$E$48,Primitives!$C$50:$E$52,Primitives!$C$54:$E$56,Primitives!$C$58:$E$60),$N14,AA$13)) -> 1 | AB14: =IF(AND($K14=Calc.Top, AB$10=Calc.Left),"X",INDEX(CHOOSE(INDEX(MazeDef,$L14,AB$11),Primitives!$C$2:$E$4,Primitives!$C$6:$E$8,Primitives!$C$10:$E$12,Primitives!$C$14:$E$16,Primitives!$C$18:$E$20,Primitives!$C$22:$E$24,Primitives!$C$26:$E$28,Primitives!$C$30:$E$32,Primitives!$C$34:$E$36,Primitives!$C$38:$E$40,Primitives!$C$42:$E$44,Primitives!$C$46:$E$48,Primitives!$C$50:$E$52,Primitives!$C$54:$E$56,Primitives!$C$58:$E$60),$N14,AB$13)) -> 1 | AC14: =IF(AND($K14=Calc.Top, AC$10=Calc.Left),"X",INDEX(CHOOSE(INDEX(MazeDef,$L14,AC$11),Primitives!$C$2:$E$4,Primitives!$C$6:$E$8,Primitives!$C$10:$E$12,Primitives!$C$14:$E$16,Primitives!$C$18:$E$20,Primitives!$C$22:$E$24,Primitives!$C$26:$E$28,Primitives!$C$30:$E$32,Primitives!$C$34:$E$36,Primitives!$C$38:$E$40,Primitives!$C$42:$E$44,Primitives!$C$46:$E$48,Primitives!$C$50:$E$52,Primitives!$C$54:$E$56,Primitives!$C$58:$E$60),$N14,AC$13)) -> 1 | AD14: =IF(AND($K14=Calc.Top, AD$10=Calc.Left),"X",INDEX(CHOOSE(INDEX(MazeDef,$L14,AD$11),Primitives!$C$2:$E$4,Primitives!$C$6:$E$8,Primitives!$C$10:$E$12,Primitives!$C$14:$E$16,Primitives!$C$18:$E$20,Primitives!$C$22:$E$24,Primitives!$C$26:$E$28,Primitives!$C$30:$E$32,Primitives!$C$34:$E$36,Primitives!$C$38:$E$40,Primitives!$C$42:$E$44,Primitives!$C$46:$E$48,Primitives!$C$50:$E$52,Primitives!$C$54:$E$56,Primitives!$C$58:$E$60),$N14,AD$13)) -> 1 | AE14: =IF(AND($K14=Calc.Top, AE$10=Calc.Left),"X",INDEX(CHOOSE(INDEX(MazeDef,$L14,AE$11),Primitives!$C$2:$E$4,Primitives!$C$6:$E$8,Primitives!$C$10:$E$12,Primitives!$C$14:$E$16,Primitives!$C$18:$E$20,Primitives!$C$22:$E$24,Primitives!$C$26:$E$28,Primitives!$C$30:$E$32,Primitives!$C$34:$E$36,Primitives!$C$38:$E$40,Primitives!$C$42:$E$44,Primitives!$C$46:$E$48,Primitives!$C$50:$E$52,Primitives!$C$54:$E$56,Primitives!$C$58:$E$60),$N14,AE$13)) -> 1 | AF14: =IF(AND($K14=Calc.Top, AF$10=Calc.Left),"X",INDEX(CHOOSE(INDEX(MazeDef,$L14,AF$11),Primitives!$C$2:$E$4,Primitives!$C$6:$E$8,Primitives!$C$10:$E$12,Primitives!$C$14:$E$16,Primitives!$C$18:$E$20,Primitives!$C$22:$E$24,Primitives!$C$26:$E$28,Primitives!$C$30:$E$32,Primitives!$C$34:$E$36,Primitives!$C$38:$E$40,Primitives!$C$42:$E$44,Primitives!$C$46:$E$48,Primitives!$C$50:$E$52,Primitives!$C$54:$E$56,Primitives!$C$58:$E$60),$N14,AF$13)) -> 1 | AG14: =IF(AND($K14=Calc.Top, AG$10=Calc.Left),"X",INDEX(CHOOSE(INDEX(MazeDef,$L14,AG$11),Primitives!$C$2:$E$4,Primitives!$C$6:$E$8,Primitives!$C$10:$E$12,Primitives!$C$14:$E$16,Primitives!$C$18:$E$20,Primitives!$C$22:$E$24,Primitives!$C$26:$E$28,Primitives!$C$30:$E$32,Primitives!$C$34:$E$36,Primitives!$C$38:$E$40,Primitives!$C$42:$E$44,Primitives!$C$46:$E$48,Primitives!$C$50:$E$52,Primitives!$C$54:$E$56,Primitives!$C$58:$E$60),$N14,AG$13)) -> 1 | AH14: =IF(AND($K14=Calc.Top, AH$10=Calc.Left),"X",INDEX(CHOOSE(INDEX(MazeDef,$L14,AH$11),Primitives!$C$2:$E$4,Primitives!$C$6:$E$8,Primitives!$C$10:$E$12,Primitives!$C$14:$E$16,Primitives!$C$18:$E$20,Primitives!$C$22:$E$24,Primitives!$C$26:$E$28,Primitives!$C$30:$E$32,Primitives!$C$34:$E$36,Primitives!$C$38:$E$40,Primitives!$C$42:$E$44,Primitives!$C$46:$E$48,Primitives!$C$50:$E$52,Primitives!$C$54:$E$56,Primitives!$C$58:$E$60),$N14,AH$13)) -> 1 | AI14: =IF(AND($K14=Calc.Top, AI$10=Calc.Left),"X",INDEX(CHOOSE(INDEX(MazeDef,$L14,AI$11),Primitives!$C$2:$E$4,Primitives!$C$6:$E$8,Primitives!$C$10:$E$12,Primitives!$C$14:$E$16,Primitives!$C$18:$E$20,Primitives!$C$22:$E$24,Primitives!$C$26:$E$28,Primitives!$C$30:$E$32,Primitives!$C$34:$E$36,Primitives!$C$38:$E$40,Primitives!$C$42:$E$44,Primitives!$C$46:$E$48,Primitives!$C$50:$E$52,Primitives!$C$54:$E$56,Primitives!$C$58:$E$60),$N14,AI$13)) -> 1 | AJ14: =IF(AND($K14=Calc.Top, AJ$10=Calc.Left),"X",INDEX(CHOOSE(INDEX(MazeDef,$L14,AJ$11),Primitives!$C$2:$E$4,Primitives!$C$6:$E$8,Primitives!$C$10:$E$12,Primitives!$C$14:$E$16,Primitives!$C$18:$E$20,Primitives!$C$22:$E$24,Primitives!$C$26:$E$28,Primitives!$C$30:$E$32,Primitives!$C$34:$E$36,Primitives!$C$38:$E$40,Primitives!$C$42:$E$44,Primitives!$C$46:$E$48,Primitives!$C$50:$E$52,Primitives!$C$54:$E$56,Primitives!$C$58:$E$60),$N14,AJ$13)) -> 1 | AK14: =IF(AND($K14=Calc.Top, AK$10=Calc.Left),"X",INDEX(CHOOSE(INDEX(MazeDef,$L14,AK$11),Primitives!$C$2:$E$4,Primitives!$C$6:$E$8,Primitives!$C$10:$E$12,Primitives!$C$14:$E$16,Primitives!$C$18:$E$20,Primitives!$C$22:$E$24,Primitives!$C$26:$E$28,Primitives!$C$30:$E$32,Primitives!$C$34:$E$36,Primitives!$C$38:$E$40,Primitives!$C$42:$E$44,Primitives!$C$46:$E$48,Primitives!$C$50:$E$52,Primitives!$C$54:$E$56,Primitives!$C$58:$E$60),$N14,AK$13)) -> 1 | AL14: =IF(AND($K14=Calc.Top, AL$10=Calc.Left),"X",INDEX(CHOOSE(INDEX(MazeDef,$L14,AL$11),Primitives!$C$2:$E$4,Primitives!$C$6:$E$8,Primitives!$C$10:$E$12,Primitives!$C$14:$E$16,Primitives!$C$18:$E$20,Primitives!$C$22:$E$24,Primitives!$C$26:$E$28,Primitives!$C$30:$E$32,Primitives!$C$34:$E$36,Primitives!$C$38:$E$40,Primitives!$C$42:$E$44,Primitives!$C$46:$E$48,Primitives!$C$50:$E$52,Primitives!$C$54:$E$56,Primitives!$C$58:$E$60),$N14,AL$13)) -> 1 | AM14: =IF(AND($K14=Calc.Top, AM$10=Calc.Left),"X",INDEX(CHOOSE(INDEX(MazeDef,$L14,AM$11),Primitives!$C$2:$E$4,Primitives!$C$6:$E$8,Primitives!$C$10:$E$12,Primitives!$C$14:$E$16,Primitives!$C$18:$E$20,Primitives!$C$22:$E$24,Primitives!$C$26:$E$28,Primitives!$C$30:$E$32,Primitives!$C$34:$E$36,Primitives!$C$38:$E$40,Primitives!$C$42:$E$44,Primitives!$C$46:$E$48,Primitives!$C$50:$E$52,Primitives!$C$54:$E$56,Primitives!$C$58:$E$60),$N14,AM$13)) -> 1 | AN14: =IF(AND($K14=Calc.Top, AN$10=Calc.Left),"X",INDEX(CHOOSE(INDEX(MazeDef,$L14,AN$11),Primitives!$C$2:$E$4,Primitives!$C$6:$E$8,Primitives!$C$10:$E$12,Primitives!$C$14:$E$16,Primitives!$C$18:$E$20,Primitives!$C$22:$E$24,Primitives!$C$26:$E$28,Primitives!$C$30:$E$32,Primitives!$C$34:$E$36,Primitives!$C$38:$E$40,Primitives!$C$42:$E$44,Primitives!$C$46:$E$48,Primitives!$C$50:$E$52,Primitives!$C$54:$E$56,Primitives!$C$58:$E$60),$N14,AN$13)) -> 1 | AO14: =IF(AND($K14=Calc.Top, AO$10=Calc.Left),"X",INDEX(CHOOSE(INDEX(MazeDef,$L14,AO$11),Primitives!$C$2:$E$4,Primitives!$C$6:$E$8,Primitives!$C$10:$E$12,Primitives!$C$14:$E$16,Primitives!$C$18:$E$20,Primitives!$C$22:$E$24,Primitives!$C$26:$E$28,Primitives!$C$30:$E$32,Primitives!$C$34:$E$36,Primitives!$C$38:$E$40,Primitives!$C$42:$E$44,Primitives!$C$46:$E$48,Primitives!$C$50:$E$52,Primitives!$C$54:$E$56,Primitives!$C$58:$E$60),$N14,AO$13)) -> 1 | AP14: =IF(AND($K14=Calc.Top, AP$10=Calc.Left),"X",INDEX(CHOOSE(INDEX(MazeDef,$L14,AP$11),Primitives!$C$2:$E$4,Primitives!$C$6:$E$8,Primitives!$C$10:$E$12,Primitives!$C$14:$E$16,Primitives!$C$18:$E$20,Primitives!$C$22:$E$24,Primitives!$C$26:$E$28,Primitives!$C$30:$E$32,Primitives!$C$34:$E$36,Primitives!$C$38:$E$40,Primitives!$C$42:$E$44,Primitives!$C$46:$E$48,Primitives!$C$50:$E$52,Primitives!$C$54:$E$56,Primitives!$C$58:$E$60),$N14,AP$13)) -> 1 | AQ14: =IF(AND($K14=Calc.Top, AQ$10=Calc.Left),"X",INDEX(CHOOSE(INDEX(MazeDef,$L14,AQ$11),Primitives!$C$2:$E$4,Primitives!$C$6:$E$8,Primitives!$C$10:$E$12,Primitives!$C$14:$E$16,Primitives!$C$18:$E$20,Primitives!$C$22:$E$24,Primitives!$C$26:$E$28,Primitives!$C$30:$E$32,Primitives!$C$34:$E$36,Primitives!$C$38:$E$40,Primitives!$C$42:$E$44,Primitives!$C$46:$E$48,Primitives!$C$50:$E$52,Primitives!$C$54:$E$56,Primitives!$C$58:$E$60),$N14,AQ$13)) -> 1 | AR14: =IF(AND($K14=Calc.Top, AR$10=Calc.Left),"X",INDEX(CHOOSE(INDEX(MazeDef,$L14,AR$11),Primitives!$C$2:$E$4,Primitives!$C$6:$E$8,Primitives!$C$10:$E$12,Primitives!$C$14:$E$16,Primitives!$C$18:$E$20,Primitives!$C$22:$E$24,Primitives!$C$26:$E$28,Primitives!$C$30:$E$32,Primitives!$C$34:$E$36,Primitives!$C$38:$E$40,Primitives!$C$42:$E$44,Primitives!$C$46:$E$48,Primitives!$C$50:$E$52,Primitives!$C$54:$E$56,Primitives!$C$58:$E$60),$N14,AR$13)) -> 1
A15: 1 | B15: 1 | K15: 2 | L15: 1 | N15: 2 | O15: =IF(AND($K15=Calc.Top, O$10=Calc.Left),"X",INDEX(CHOOSE(INDEX(MazeDef,$L15,O$11),Primitives!$C$2:$E$4,Primitives!$C$6:$E$8,Primitives!$C$10:$E$12,Primitives!$C$14:$E$16,Primitives!$C$18:$E$20,Primitives!$C$22:$E$24,Primitives!$C$26:$E$28,Primitives!$C$30:$E$32,Primitives!$C$34:$E$36,Primitives!$C$38:$E$40,Primitives!$C$42:$E$44,Primitives!$C$46:$E$48,Primitives!$C$50:$E$52,Primitives!$C$54:$E$56,Primitives!$C$58:$E$60),$N15,O$13)) -> 1 | P15: =IF(AND($K15=Calc.Top, P$10=Calc.Left),"X",INDEX(CHOOSE(INDEX(MazeDef,$L15,P$11),Primitives!$C$2:$E$4,Primitives!$C$6:$E$8,Primitives!$C$10:$E$12,Primitives!$C$14:$E$16,Primitives!$C$18:$E$20,Primitives!$C$22:$E$24,Primitives!$C$26:$E$28,Primitives!$C$30:$E$32,Primitives!$C$34:$E$36,Primitives!$C$38:$E$40,Primitives!$C$42:$E$44,Primitives!$C$46:$E$48,Primitives!$C$50:$E$52,Primitives!$C$54:$E$56,Primitives!$C$58:$E$60),$N15,P$13)) -> 0 | Q15: =IF(AND($K15=Calc.Top, Q$10=Calc.Left),"X",INDEX(CHOOSE(INDEX(MazeDef,$L15,Q$11),Primitives!$C$2:$E$4,Primitives!$C$6:$E$8,Primitives!$C$10:$E$12,Primitives!$C$14:$E$16,Primitives!$C$18:$E$20,Primitives!$C$22:$E$24,Primitives!$C$26:$E$28,Primitives!$C$30:$E$32,Primitives!$C$34:$E$36,Primitives!$C$38:$E$40,Primitives!$C$42:$E$44,Primitives!$C$46:$E$48,Primitives!$C$50:$E$52,Primitives!$C$54:$E$56,Primitives!$C$58:$E$60),$N15,Q$13)) -> 0 | R15: =IF(AND($K15=Calc.Top, R$10=Calc.Left),"X",INDEX(CHOOSE(INDEX(MazeDef,$L15,R$11),Primitives!$C$2:$E$4,Primitives!$C$6:$E$8,Primitives!$C$10:$E$12,Primitives!$C$14:$E$16,Primitives!$C$18:$E$20,Primitives!$C$22:$E$24,Primitives!$C$26:$E$28,Primitives!$C$30:$E$32,Primitives!$C$34:$E$36,Primitives!$C$38:$E$40,Primitives!$C$42:$E$44,Primitives!$C$46:$E$48,Primitives!$C$50:$E$52,Primitives!$C$54:$E$56,Primitives!$C$58:$E$60),$N15,R$13)) -> 0 | S15: =IF(AND($K15=Calc.Top, S$10=Calc.Left),"X",INDEX(CHOOSE(INDEX(MazeDef,$L15,S$11),Primitives!$C$2:$E$4,Primitives!$C$6:$E$8,Primitives!$C$10:$E$12,Primitives!$C$14:$E$16,Primitives!$C$18:$E$20,Primitives!$C$22:$E$24,Primitives!$C$26:$E$28,Primitives!$C$30:$E$32,Primitives!$C$34:$E$36,Primitives!$C$38:$E$40,Primitives!$C$42:$E$44,Primitives!$C$46:$E$48,Primitives!$C$50:$E$52,Primitives!$C$54:$E$56,Primitives!$C$58:$E$60),$N15,S$13)) -> 0 | T15: =IF(AND($K15=Calc.Top, T$10=Calc.Left),"X",INDEX(CHOOSE(INDEX(MazeDef,$L15,T$11),Primitives!$C$2:$E$4,Primitives!$C$6:$E$8,Primitives!$C$10:$E$12,Primitives!$C$14:$E$16,Primitives!$C$18:$E$20,Primitives!$C$22:$E$24,Primitives!$C$26:$E$28,Primitives!$C$30:$E$32,Primitives!$C$34:$E$36,Primitives!$C$38:$E$40,Primitives!$C$42:$E$44,Primitives!$C$46:$E$48,Primitives!$C$50:$E$52,Primitives!$C$54:$E$56,Primitives!$C$58:$E$60),$N15,T$13)) -> 0 | U15: =IF(AND($K15=Calc.Top, U$10=Calc.Left),"X",INDEX(CHOOSE(INDEX(MazeDef,$L15,U$11),Primitives!$C$2:$E$4,Primitives!$C$6:$E$8,Primitives!$C$10:$E$12,Primitives!$C$14:$E$16,Primitives!$C$18:$E$20,Primitives!$C$22:$E$24,Primitives!$C$26:$E$28,Primitives!$C$30:$E$32,Primitives!$C$34:$E$36,Primitives!$C$38:$E$40,Primitives!$C$42:$E$44,Primitives!$C$46:$E$48,Primitives!$C$50:$E$52,Primitives!$C$54:$E$56,Primitives!$C$58:$E$60),$N15,U$13)) -> 0 | V15: =IF(AND($K15=Calc.Top, V$10=Calc.Left),"X",INDEX(CHOOSE(INDEX(MazeDef,$L15,V$11),Primitives!$C$2:$E$4,Primitives!$C$6:$E$8,Primitives!$C$10:$E$12,Primitives!$C$14:$E$16,Primitives!$C$18:$E$20,Primitives!$C$22:$E$24,Primitives!$C$26:$E$28,Primitives!$C$30:$E$32,Primitives!$C$34:$E$36,Primitives!$C$38:$E$40,Primitives!$C$42:$E$44,Primitives!$C$46:$E$48,Primitives!$C$50:$E$52,Primitives!$C$54:$E$56,Primitives!$C$58:$E$60),$N15,V$13)) -> 0 | W15: =IF(AND($K15=Calc.Top, W$10=Calc.Left),"X",INDEX(CHOOSE(INDEX(MazeDef,$L15,W$11),Primitives!$C$2:$E$4,Primitives!$C$6:$E$8,Primitives!$C$10:$E$12,Primitives!$C$14:$E$16,Primitives!$C$18:$E$20,Primitives!$C$22:$E$24,Primitives!$C$26:$E$28,Primitives!$C$30:$E$32,Primitives!$C$34:$E$36,Primitives!$C$38:$E$40,Primitives!$C$42:$E$44,Primitives!$C$46:$E$48,Primitives!$C$50:$E$52,Primitives!$C$54:$E$56,Primitives!$C$58:$E$60),$N15,W$13)) -> 0 | X15: =IF(AND($K15=Calc.Top, X$10=Calc.Left),"X",INDEX(CHOOSE(INDEX(MazeDef,$L15,X$11),Primitives!$C$2:$E$4,Primitives!$C$6:$E$8,Primitives!$C$10:$E$12,Primitives!$C$14:$E$16,Primitives!$C$18:$E$20,Primitives!$C$22:$E$24,Primitives!$C$26:$E$28,Primitives!$C$30:$E$32,Primitives!$C$34:$E$36,Primitives!$C$38:$E$40,Primitives!$C$42:$E$44,Primitives!$C$46:$E$48,Primitives!$C$50:$E$52,Primitives!$C$54:$E$56,Primitives!$C$58:$E$60),$N15,X$13)) -> 0 | Y15: =IF(AND($K15=Calc.Top, Y$10=Calc.Left),"X",INDEX(CHOOSE(INDEX(MazeDef,$L15,Y$11),Primitives!$C$2:$E$4,Primitives!$C$6:$E$8,Primitives!$C$10:$E$12,Primitives!$C$14:$E$16,Primitives!$C$18:$E$20,Primitives!$C$22:$E$24,Primitives!$C$26:$E$28,Primitives!$C$30:$E$32,Primitives!$C$34:$E$36,Primitives!$C$38:$E$40,Primitives!$C$42:$E$44,Primitives!$C$46:$E$48,Primitives!$C$50:$E$52,Primitives!$C$54:$E$56,Primitives!$C$58:$E$60),$N15,Y$13)) -> 0 | Z15: =IF(AND($K15=Calc.Top, Z$10=Calc.Left),"X",INDEX(CHOOSE(INDEX(MazeDef,$L15,Z$11),Primitives!$C$2:$E$4,Primitives!$C$6:$E$8,Primitives!$C$10:$E$12,Primitives!$C$14:$E$16,Primitives!$C$18:$E$20,Primitives!$C$22:$E$24,Primitives!$C$26:$E$28,Primitives!$C$30:$E$32,Primitives!$C$34:$E$36,Primitives!$C$38:$E$40,Primitives!$C$42:$E$44,Primitives!$C$46:$E$48,Primitives!$C$50:$E$52,Primitives!$C$54:$E$56,Primitives!$C$58:$E$60),$N15,Z$13)) -> 0 | AA15: =IF(AND($K15=Calc.Top, AA$10=Calc.Left),"X",INDEX(CHOOSE(INDEX(MazeDef,$L15,AA$11),Primitives!$C$2:$E$4,Primitives!$C$6:$E$8,Primitives!$C$10:$E$12,Primitives!$C$14:$E$16,Primitives!$C$18:$E$20,Primitives!$C$22:$E$24,Primitives!$C$26:$E$28,Primitives!$C$30:$E$32,Primitives!$C$34:$E$36,Primitives!$C$38:$E$40,Primitives!$C$42:$E$44,Primitives!$C$46:$E$48,Primitives!$C$50:$E$52,Primitives!$C$54:$E$56,Primitives!$C$58:$E$60),$N15,AA$13)) -> 0 | AB15: =IF(AND($K15=Calc.Top, AB$10=Calc.Left),"X",INDEX(CHOOSE(INDEX(MazeDef,$L15,AB$11),Primitives!$C$2:$E$4,Primitives!$C$6:$E$8,Primitives!$C$10:$E$12,Primitives!$C$14:$E$16,Primitives!$C$18:$E$20,Primitives!$C$22:$E$24,Primitives!$C$26:$E$28,Primitives!$C$30:$E$32,Primitives!$C$34:$E$36,Primitives!$C$38:$E$40,Primitives!$C$42:$E$44,Primitives!$C$46:$E$48,Primitives!$C$50:$E$52,Primitives!$C$54:$E$56,Primitives!$C$58:$E$60),$N15,AB$13)) -> 0 | AC15: =IF(AND($K15=Calc.Top, AC$10=Calc.Left),"X",INDEX(CHOOSE(INDEX(MazeDef,$L15,AC$11),Primitives!$C$2:$E$4,Primitives!$C$6:$E$8,Primitives!$C$10:$E$12,Primitives!$C$14:$E$16,Primitives!$C$18:$E$20,Primitives!$C$22:$E$24,Primitives!$C$26:$E$28,Primitives!$C$30:$E$32,Primitives!$C$34:$E$36,Primitives!$C$38:$E$40,Primitives!$C$42:$E$44,Primitives!$C$46:$E$48,Primitives!$C$50:$E$52,Primitives!$C$54:$E$56,Primitives!$C$58:$E$60),$N15,AC$13)) -> 0 | AD15: =IF(AND($K15=Calc.Top, AD$10=Calc.Left),"X",INDEX(CHOOSE(INDEX(MazeDef,$L15,AD$11),Primitives!$C$2:$E$4,Primitives!$C$6:$E$8,Primitives!$C$10:$E$12,Primitives!$C$14:$E$16,Primitives!$C$18:$E$20,Primitives!$C$22:$E$24,Primitives!$C$26:$E$28,Primitives!$C$30:$E$32,Primitives!$C$34:$E$36,Primitives!$C$38:$E$40,Primitives!$C$42:$E$44,Primitives!$C$46:$E$48,Primitives!$C$50:$E$52,Primitives!$C$54:$E$56,Primitives!$C$58:$E$60),$N15,AD$13)) -> 0 | AE15: =IF(AND($K15=Calc.Top, AE$10=Calc.Left),"X",INDEX(CHOOSE(INDEX(MazeDef,$L15,AE$11),Primitives!$C$2:$E$4,Primitives!$C$6:$E$8,Primitives!$C$10:$E$12,Primitives!$C$14:$E$16,Primitives!$C$18:$E$20,Primitives!$C$22:$E$24,Primitives!$C$26:$E$28,Primitives!$C$30:$E$32,Primitives!$C$34:$E$36,Primitives!$C$38:$E$40,Primitives!$C$42:$E$44,Primitives!$C$46:$E$48,Primitives!$C$50:$E$52,Primitives!$C$54:$E$56,Primitives!$C$58:$E$60),$N15,AE$13)) -> 0 | AF15: =IF(AND($K15=Calc.Top, AF$10=Calc.Left),"X",INDEX(CHOOSE(INDEX(MazeDef,$L15,AF$11),Primitives!$C$2:$E$4,Primitives!$C$6:$E$8,Primitives!$C$10:$E$12,Primitives!$C$14:$E$16,Primitives!$C$18:$E$20,Primitives!$C$22:$E$24,Primitives!$C$26:$E$28,Primitives!$C$30:$E$32,Primitives!$C$34:$E$36,Primitives!$C$38:$E$40,Primitives!$C$42:$E$44,Primitives!$C$46:$E$48,Primitives!$C$50:$E$52,Primitives!$C$54:$E$56,Primitives!$C$58:$E$60),$N15,AF$13)) -> 0 | AG15: =IF(AND($K15=Calc.Top, AG$10=Calc.Left),"X",INDEX(CHOOSE(INDEX(MazeDef,$L15,AG$11),Primitives!$C$2:$E$4,Primitives!$C$6:$E$8,Primitives!$C$10:$E$12,Primitives!$C$14:$E$16,Primitives!$C$18:$E$20,Primitives!$C$22:$E$24,Primitives!$C$26:$E$28,Primitives!$C$30:$E$32,Primitives!$C$34:$E$36,Primitives!$C$38:$E$40,Primitives!$C$42:$E$44,Primitives!$C$46:$E$48,Primitives!$C$50:$E$52,Primitives!$C$54:$E$56,Primitives!$C$58:$E$60),$N15,AG$13)) -> 0 | AH15: =IF(AND($K15=Calc.Top, AH$10=Calc.Left),"X",INDEX(CHOOSE(INDEX(MazeDef,$L15,AH$11),Primitives!$C$2:$E$4,Primitives!$C$6:$E$8,Primitives!$C$10:$E$12,Primitives!$C$14:$E$16,Primitives!$C$18:$E$20,Primitives!$C$22:$E$24,Primitives!$C$26:$E$28,Primitives!$C$30:$E$32,Primitives!$C$34:$E$36,Primitives!$C$38:$E$40,Primitives!$C$42:$E$44,Primitives!$C$46:$E$48,Primitives!$C$50:$E$52,Primitives!$C$54:$E$56,Primitives!$C$58:$E$60),$N15,AH$13)) -> 0 | AI15: =IF(AND($K15=Calc.Top, AI$10=Calc.Left),"X",INDEX(CHOOSE(INDEX(MazeDef,$L15,AI$11),Primitives!$C$2:$E$4,Primitives!$C$6:$E$8,Primitives!$C$10:$E$12,Primitives!$C$14:$E$16,Primitives!$C$18:$E$20,Primitives!$C$22:$E$24,Primitives!$C$26:$E$28,Primitives!$C$30:$E$32,Primitives!$C$34:$E$36,Primitives!$C$38:$E$40,Primitives!$C$42:$E$44,Primitives!$C$46:$E$48,Primitives!$C$50:$E$52,Primitives!$C$54:$E$56,Primitives!$C$58:$E$60),$N15,AI$13)) -> 1 | AJ15: =IF(AND($K15=Calc.Top, AJ$10=Calc.Left),"X",INDEX(CHOOSE(INDEX(MazeDef,$L15,AJ$11),Primitives!$C$2:$E$4,Primitives!$C$6:$E$8,Primitives!$C$10:$E$12,Primitives!$C$14:$E$16,Primitives!$C$18:$E$20,Primitives!$C$22:$E$24,Primitives!$C$26:$E$28,Primitives!$C$30:$E$32,Primitives!$C$34:$E$36,Primitives!$C$38:$E$40,Primitives!$C$42:$E$44,Primitives!$C$46:$E$48,Primitives!$C$50:$E$52,Primitives!$C$54:$E$56,Primitives!$C$58:$E$60),$N15,AJ$13)) -> 1 | AK15: =IF(AND($K15=Calc.Top, AK$10=Calc.Left),"X",INDEX(CHOOSE(INDEX(MazeDef,$L15,AK$11),Primitives!$C$2:$E$4,Primitives!$C$6:$E$8,Primitives!$C$10:$E$12,Primitives!$C$14:$E$16,Primitives!$C$18:$E$20,Primitives!$C$22:$E$24,Primitives!$C$26:$E$28,Primitives!$C$30:$E$32,Primitives!$C$34:$E$36,Primitives!$C$38:$E$40,Primitives!$C$42:$E$44,Primitives!$C$46:$E$48,Primitives!$C$50:$E$52,Primitives!$C$54:$E$56,Primitives!$C$58:$E$60),$N15,AK$13)) -> 0 | AL15: =IF(AND($K15=Calc.Top, AL$10=Calc.Left),"X",INDEX(CHOOSE(INDEX(MazeDef,$L15,AL$11),Primitives!$C$2:$E$4,Primitives!$C$6:$E$8,Primitives!$C$10:$E$12,Primitives!$C$14:$E$16,Primitives!$C$18:$E$20,Primitives!$C$22:$E$24,Primitives!$C$26:$E$28,Primitives!$C$30:$E$32,Primitives!$C$34:$E$36,Primitives!$C$38:$E$40,Primitives!$C$42:$E$44,Primitives!$C$46:$E$48,Primitives!$C$50:$E$52,Primitives!$C$54:$E$56,Primitives!$C$58:$E$60),$N15,AL$13)) -> 0 | AM15: =IF(AND($K15=Calc.Top, AM$10=Calc.Left),"X",INDEX(CHOOSE(INDEX(MazeDef,$L15,AM$11),Primitives!$C$2:$E$4,Primitives!$C$6:$E$8,Primitives!$C$10:$E$12,Primitives!$C$14:$E$16,Primitives!$C$18:$E$20,Primitives!$C$22:$E$24,Primitives!$C$26:$E$28,Primitives!$C$30:$E$32,Primitives!$C$34:$E$36,Primitives!$C$38:$E$40,Primitives!$C$42:$E$44,Primitives!$C$46:$E$48,Primitives!$C$50:$E$52,Primitives!$C$54:$E$56,Primitives!$C$58:$E$60),$N15,AM$13)) -> 0 | AN15: =IF(AND($K15=Calc.Top, AN$10=Calc.Left),"X",INDEX(CHOOSE(INDEX(MazeDef,$L15,AN$11),Primitives!$C$2:$E$4,Primitives!$C$6:$E$8,Primitives!$C$10:$E$12,Primitives!$C$14:$E$16,Primitives!$C$18:$E$20,Primitives!$C$22:$E$24,Primitives!$C$26:$E$28,Primitives!$C$30:$E$32,Primitives!$C$34:$E$36,Primitives!$C$38:$E$40,Primitives!$C$42:$E$44,Primitives!$C$46:$E$48,Primitives!$C$50:$E$52,Primitives!$C$54:$E$56,Primitives!$C$58:$E$60),$N15,AN$13)) -> 0 | AO15: =IF(AND($K15=Calc.Top, AO$10=Calc.Left),"X",INDEX(CHOOSE(INDEX(MazeDef,$L15,AO$11),Primitives!$C$2:$E$4,Primitives!$C$6:$E$8,Primitives!$C$10:$E$12,Primitives!$C$14:$E$16,Primitives!$C$18:$E$20,Primitives!$C$22:$E$24,Primitives!$C$26:$E$28,Primitives!$C$30:$E$32,Primitives!$C$34:$E$36,Primitives!$C$38:$E$40,Primitives!$C$42:$E$44,Primitives!$C$46:$E$48,Primitives!$C$50:$E$52,Primitives!$C$54:$E$56,Primitives!$C$58:$E$60),$N15,AO$13)) -> 0 | AP15: =IF(AND($K15=Calc.Top, AP$10=Calc.Left),"X",INDEX(CHOOSE(INDEX(MazeDef,$L15,AP$11),Primitives!$C$2:$E$4,Primitives!$C$6:$E$8,Primitives!$C$10:$E$12,Primitives!$C$14:$E$16,Primitives!$C$18:$E$20,Primitives!$C$22:$E$24,Primitives!$C$26:$E$28,Primitives!$C$30:$E$32,Primitives!$C$34:$E$36,Primitives!$C$38:$E$40,Primitives!$C$42:$E$44,Primitives!$C$46:$E$48,Primitives!$C$50:$E$52,Primitives!$C$54:$E$56,Primitives!$C$58:$E$60),$N15,AP$13)) -> 0 | AQ15: =IF(AND($K15=Calc.Top, AQ$10=Calc.Left),"X",INDEX(CHOOSE(INDEX(MazeDef,$L15,AQ$11),Primitives!$C$2:$E$4,Primitives!$C$6:$E$8,Primitives!$C$10:$E$12,Primitives!$C$14:$E$16,Primitives!$C$18:$E$20,Primitives!$C$22:$E$24,Primitives!$C$26:$E$28,Primitives!$C$30:$E$32,Primitives!$C$34:$E$36,Primitives!$C$38:$E$40,Primitives!$C$42:$E$44,Primitives!$C$46:$E$48,Primitives!$C$50:$E$52,Primitives!$C$54:$E$56,Primitives!$C$58:$E$60),$N15,AQ$13)) -> 0 | AR15: =IF(AND($K15=Calc.Top, AR$10=Calc.Left),"X",INDEX(CHOOSE(INDEX(MazeDef,$L15,AR$11),Primitives!$C$2:$E$4,Primitives!$C$6:$E$8,Primitives!$C$10:$E$12,Primitives!$C$14:$E$16,Primitives!$C$18:$E$20,Primitives!$C$22:$E$24,Primitives!$C$26:$E$28,Primitives!$C$30:$E$32,Primitives!$C$34:$E$36,Primitives!$C$38:$E$40,Primitives!$C$42:$E$44,Primitives!$C$46:$E$48,Primitives!$C$50:$E$52,Primitives!$C$54:$E$56,Primitives!$C$58:$E$60),$N15,AR$13)) -> 1
B16: 1 | C16: 1 | D16: 1 | K16: 3 | L16: 1 | N16: 3 | O16: =IF(AND($K16=Calc.Top, O$10=Calc.Left),"X",INDEX(CHOOSE(INDEX(MazeDef,$L16,O$11),Primitives!$C$2:$E$4,Primitives!$C$6:$E$8,Primitives!$C$10:$E$12,Primitives!$C$14:$E$16,Primitives!$C$18:$E$20,Primitives!$C$22:$E$24,Primitives!$C$26:$E$28,Primitives!$C$30:$E$32,Primitives!$C$34:$E$36,Primitives!$C$38:$E$40,Primitives!$C$42:$E$44,Primitives!$C$46:$E$48,Primitives!$C$50:$E$52,Primitives!$C$54:$E$56,Primitives!$C$58:$E$60),$N16,O$13)) -> 1 | P16: =IF(AND($K16=Calc.Top, P$10=Calc.Left),"X",INDEX(CHOOSE(INDEX(MazeDef,$L16,P$11),Primitives!$C$2:$E$4,Primitives!$C$6:$E$8,Primitives!$C$10:$E$12,Primitives!$C$14:$E$16,Primitives!$C$18:$E$20,Primitives!$C$22:$E$24,Primitives!$C$26:$E$28,Primitives!$C$30:$E$32,Primitives!$C$34:$E$36,Primitives!$C$38:$E$40,Primitives!$C$42:$E$44,Primitives!$C$46:$E$48,Primitives!$C$50:$E$52,Primitives!$C$54:$E$56,Primitives!$C$58:$E$60),$N16,P$13)) -> 1 | Q16: =IF(AND($K16=Calc.Top, Q$10=Calc.Left),"X",INDEX(CHOOSE(INDEX(MazeDef,$L16,Q$11),Primitives!$C$2:$E$4,Primitives!$C$6:$E$8,Primitives!$C$10:$E$12,Primitives!$C$14:$E$16,Primitives!$C$18:$E$20,Primitives!$C$22:$E$24,Primitives!$C$26:$E$28,Primitives!$C$30:$E$32,Primitives!$C$34:$E$36,Primitives!$C$38:$E$40,Primitives!$C$42:$E$44,Primitives!$C$46:$E$48,Primitives!$C$50:$E$52,Primitives!$C$54:$E$56,Primitives!$C$58:$E$60),$N16,Q$13)) -> 1 | R16: =IF(AND($K16=Calc.Top, R$10=Calc.Left),"X",INDEX(CHOOSE(INDEX(MazeDef,$L16,R$11),Primitives!$C$2:$E$4,Primitives!$C$6:$E$8,Primitives!$C$10:$E$12,Primitives!$C$14:$E$16,Primitives!$C$18:$E$20,Primitives!$C$22:$E$24,Primitives!$C$26:$E$28,Primitives!$C$30:$E$32,Primitives!$C$34:$E$36,Primitives!$C$38:$E$40,Primitives!$C$42:$E$44,Primitives!$C$46:$E$48,Primitives!$C$50:$E$52,Primitives!$C$54:$E$56,Primitives!$C$58:$E$60),$N16,R$13)) -> 1 | S16: =IF(AND($K16=Calc.Top, S$10=Calc.Left),"X",INDEX(CHOOSE(INDEX(MazeDef,$L16,S$11),Primitives!$C$2:$E$4,Primitives!$C$6:$E$8,Primitives!$C$10:$E$12,Primitives!$C$14:$E$16,Primitives!$C$18:$E$20,Primitives!$C$22:$E$24,Primitives!$C$26:$E$28,Primitives!$C$30:$E$32,Primitives!$C$34:$E$36,Primitives!$C$38:$E$40,Primitives!$C$42:$E$44,Primitives!$C$46:$E$48,Primitives!$C$50:$E$52,Primitives!$C$54:$E$56,Primitives!$C$58:$E$60),$N16,S$13)) -> 1 | T16: =IF(AND($K16=Calc.Top, T$10=Calc.Left),"X",INDEX(CHOOSE(INDEX(MazeDef,$L16,T$11),Primitives!$C$2:$E$4,Primitives!$C$6:$E$8,Primitives!$C$10:$E$12,Primitives!$C$14:$E$16,Primitives!$C$18:$E$20,Primitives!$C$22:$E$24,Primitives!$C$26:$E$28,Primitives!$C$30:$E$32,Primitives!$C$34:$E$36,Primitives!$C$38:$E$40,Primitives!$C$42:$E$44,Primitives!$C$46:$E$48,Primitives!$C$50:$E$52,Primitives!$C$54:$E$56,Primitives!$C$58:$E$60),$N16,T$13)) -> 1 | U16: =IF(AND($K16=Calc.Top, U$10=Calc.Left),"X",INDEX(CHOOSE(INDEX(MazeDef,$L16,U$11),Primitives!$C$2:$E$4,Primitives!$C$6:$E$8,Primitives!$C$10:$E$12,Primitives!$C$14:$E$16,Primitives!$C$18:$E$20,Primitives!$C$22:$E$24,Primitives!$C$26:$E$28,Primitives!$C$30:$E$32,Primitives!$C$34:$E$36,Primitives!$C$38:$E$40,Primitives!$C$42:$E$44,Primitives!$C$46:$E$48,Primitives!$C$50:$E$52,Primitives!$C$54:$E$56,Primitives!$C$58:$E$60),$N16,U$13)) -> 1 | V16: =IF(AND($K16=Calc.Top, V$10=Calc.Left),"X",INDEX(CHOOSE(INDEX(MazeDef,$L16,V$11),Primitives!$C$2:$E$4,Primitives!$C$6:$E$8,Primitives!$C$10:$E$12,Primitives!$C$14:$E$16,Primitives!$C$18:$E$20,Primitives!$C$22:$E$24,Primitives!$C$26:$E$28,Primitives!$C$30:$E$32,Primitives!$C$34:$E$36,Primitives!$C$38:$E$40,Primitives!$C$42:$E$44,Primitives!$C$46:$E$48,Primitives!$C$50:$E$52,Primitives!$C$54:$E$56,Primitives!$C$58:$E$60),$N16,V$13)) -> 1 | W16: =IF(AND($K16=Calc.Top, W$10=Calc.Left),"X",INDEX(CHOOSE(INDEX(MazeDef,$L16,W$11),Primitives!$C$2:$E$4,Primitives!$C$6:$E$8,Primitives!$C$10:$E$12,Primitives!$C$14:$E$16,Primitives!$C$18:$E$20,Primitives!$C$22:$E$24,Primitives!$C$26:$E$28,Primitives!$C$30:$E$32,Primitives!$C$34:$E$36,Primitives!$C$38:$E$40,Primitives!$C$42:$E$44,Primitives!$C$46:$E$48,Primitives!$C$50:$E$52,Primitives!$C$54:$E$56,Primitives!$C$58:$E$60),$N16,W$13)) -> 1 | X16: =IF(AND($K16=Calc.Top, X$10=Calc.Left),"X",INDEX(CHOOSE(INDEX(MazeDef,$L16,X$11),Primitives!$C$2:$E$4,Primitives!$C$6:$E$8,Primitives!$C$10:$E$12,Primitives!$C$14:$E$16,Primitives!$C$18:$E$20,Primitives!$C$22:$E$24,Primitives!$C$26:$E$28,Primitives!$C$30:$E$32,Primitives!$C$34:$E$36,Primitives!$C$38:$E$40,Primitives!$C$42:$E$44,Primitives!$C$46:$E$48,Primitives!$C$50:$E$52,Primitives!$C$54:$E$56,Primitives!$C$58:$E$60),$N16,X$13)) -> 1 | Y16: =IF(AND($K16=Calc.Top, Y$10=Calc.Left),"X",INDEX(CHOOSE(INDEX(MazeDef,$L16,Y$11),Primitives!$C$2:$E$4,Primitives!$C$6:$E$8,Primitives!$C$10:$E$12,Primitives!$C$14:$E$16,Primitives!$C$18:$E$20,Primitives!$C$22:$E$24,Primitives!$C$26:$E$28,Primitives!$C$30:$E$32,Primitives!$C$34:$E$36,Primitives!$C$38:$E$40,Primitives!$C$42:$E$44,Primitives!$C$46:$E$48,Primitives!$C$50:$E$52,Primitives!$C$54:$E$56,Primitives!$C$58:$E$60),$N16,Y$13)) -> 0 | Z16: =IF(AND($K16=Calc.Top, Z$10=Calc.Left),"X",INDEX(CHOOSE(INDEX(MazeDef,$L16,Z$11),Primitives!$C$2:$E$4,Primitives!$C$6:$E$8,Primitives!$C$10:$E$12,Primitives!$C$14:$E$16,Primitives!$C$18:$E$20,Primitives!$C$22:$E$24,Primitives!$C$26:$E$28,Primitives!$C$30:$E$32,Primitives!$C$34:$E$36,Primitives!$C$38:$E$40,Primitives!$C$42:$E$44,Primitives!$C$46:$E$48,Primitives!$C$50:$E$52,Primitives!$C$54:$E$56,Primitives!$C$58:$E$60),$N16,Z$13)) -> 1 | AA16: =IF(AND($K16=Calc.Top, AA$10=Calc.Left),"X",INDEX(CHOOSE(INDEX(MazeDef,$L16,AA$11),Primitives!$C$2:$E$4,Primitives!$C$6:$E$8,Primitives!$C$10:$E$12,Primitives!$C$14:$E$16,Primitives!$C$18:$E$20,Primitives!$C$22:$E$24,Primitives!$C$26:$E$28,Primitives!$C$30:$E$32,Primitives!$C$34:$E$36,Primitives!$C$38:$E$40,Primitives!$C$42:$E$44,Primitives!$C$46:$E$48,Primitives!$C$50:$E$52,Primitives!$C$54:$E$56,Primitives!$C$58:$E$60),$N16,AA$13)) -> 1 | AB16: =IF(AND($K16=Calc.Top, AB$10=Calc.Left),"X",INDEX(CHOOSE(INDEX(MazeDef,$L16,AB$11),Primitives!$C$2:$E$4,Primitives!$C$6:$E$8,Primitives!$C$10:$E$12,Primitives!$C$14:$E$16,Primitives!$C$18:$E$20,Primitives!$C$22:$E$24,Primitives!$C$26:$E$28,Primitives!$C$30:$E$32,Primitives!$C$34:$E$36,Primitives!$C$38:$E$40,Primitives!$C$42:$E$44,Primitives!$C$46:$E$48,Primitives!$C$50:$E$52,Primitives!$C$54:$E$56,Primitives!$C$58:$E$60),$N16,AB$13)) -> 1 | AC16: =IF(AND($K16=Calc.Top, AC$10=Calc.Left),"X",INDEX(CHOOSE(INDEX(MazeDef,$L16,AC$11),Primitives!$C$2:$E$4,Primitives!$C$6:$E$8,Primitives!$C$10:$E$12,Primitives!$C$14:$E$16,Primitives!$C$18:$E$20,Primitives!$C$22:$E$24,Primitives!$C$26:$E$28,Primitives!$C$30:$E$32,Primitives!$C$34:$E$36,Primitives!$C$38:$E$40,Primitives!$C$42:$E$44,Primitives!$C$46:$E$48,Primitives!$C$50:$E$52,Primitives!$C$54:$E$56,Primitives!$C$58:$E$60),$N16,AC$13)) -> 1 | AD16: =IF(AND($K16=Calc.Top, AD$10=Calc.Left),"X",INDEX(CHOOSE(INDEX(MazeDef,$L16,AD$11),Primitives!$C$2:$E$4,Primitives!$C$6:$E$8,Primitives!$C$10:$E$12,Primitives!$C$14:$E$16,Primitives!$C$18:$E$20,Primitives!$C$22:$E$24,Primitives!$C$26:$E$28,Primitives!$C$30:$E$32,Primitives!$C$34:$E$36,Primitives!$C$38:$E$40,Primitives!$C$42:$E$44,Primitives!$C$46:$E$48,Primitives!$C$50:$E$52,Primitives!$C$54:$E$56,Primitives!$C$58:$E$60),$N16,AD$13)) -> 1 | AE16: =IF(AND($K16=Calc.Top, AE$10=Calc.Left),"X",INDEX(CHOOSE(INDEX(MazeDef,$L16,AE$11),Primitives!$C$2:$E$4,Primitives!$C$6:$E$8,Primitives!$C$10:$E$12,Primitives!$C$14:$E$16,Primitives!$C$18:$E$20,Primitives!$C$22:$E$24,Primitives!$C$26:$E$28,Primitives!$C$30:$E$32,Primitives!$C$34:$E$36,Primitives!$C$38:$E$40,Primitives!$C$42:$E$44,Primitives!$C$46:$E$48,Primitives!$C$50:$E$52,Primitives!$C$54:$E$56,Primitives!$C$58:$E$60),$N16,AE$13)) -> 1 | AF16: =IF(AND($K16=Calc.Top, AF$10=Calc.Left),"X",INDEX(CHOOSE(INDEX(MazeDef,$L16,AF$11),Primitives!$C$2:$E$4,Primitives!$C$6:$E$8,Primitives!$C$10:$E$12,Primitives!$C$14:$E$16,Primitives!$C$18:$E$20,Primitives!$C$22:$E$24,Primitives!$C$26:$E$28,Primitives!$C$30:$E$32,Primitives!$C$34:$E$36,Primitives!$C$38:$E$40,Primitives!$C$42:$E$44,Primitives!$C$46:$E$48,Primitives!$C$50:$E$52,Primitives!$C$54:$E$56,Primitives!$C$58:$E$60),$N16,AF$13)) -> 1 | AG16: =IF(AND($K16=Calc.Top, AG$10=Calc.Left),"X",INDEX(CHOOSE(INDEX(MazeDef,$L16,AG$11),Primitives!$C$2:$E$4,Primitives!$C$6:$E$8,Primitives!$C$10:$E$12,Primitives!$C$14:$E$16,Primitives!$C$18:$E$20,Primitives!$C$22:$E$24,Primitives!$C$26:$E$28,Primitives!$C$30:$E$32,Primitives!$C$34:$E$36,Primitives!$C$38:$E$40,Primitives!$C$42:$E$44,Primitives!$C$46:$E$48,Primitives!$C$50:$E$52,Primitives!$C$54:$E$56,Primitives!$C$58:$E$60),$N16,AG$13)) -> 1 | AH16: =IF(AND($K16=Calc.Top, AH$10=Calc.Left),"X",INDEX(CHOOSE(INDEX(MazeDef,$L16,AH$11),Primitives!$C$2:$E$4,Primitives!$C$6:$E$8,Primitives!$C$10:$E$12,Primitives!$C$14:$E$16,Primitives!$C$18:$E$20,Primitives!$C$22:$E$24,Primitives!$C$26:$E$28,Primitives!$C$30:$E$32,Primitives!$C$34:$E$36,Primitives!$C$38:$E$40,Primitives!$C$42:$E$44,Primitives!$C$46:$E$48,Primitives!$C$50:$E$52,Primitives!$C$54:$E$56,Primitives!$C$58:$E$60),$N16,AH$13)) -> 0 | AI16: =IF(AND($K16=Calc.Top, AI$10=Calc.Left),"X",INDEX(CHOOSE(INDEX(MazeDef,$L16,AI$11),Primitives!$C$2:$E$4,Primitives!$C$6:$E$8,Primitives!$C$10:$E$12,Primitives!$C$14:$E$16,Primitives!$C$18:$E$20,Primitives!$C$22:$E$24,Primitives!$C$26:$E$28,Primitives!$C$30:$E$32,Primitives!$C$34:$E$36,Primitives!$C$38:$E$40,Primitives!$C$42:$E$44,Primitives!$C$46:$E$48,Primitives!$C$50:$E$52,Primitives!$C$54:$E$56,Primitives!$C$58:$E$60),$N16,AI$13)) -> 1 | AJ16: =IF(AND($K16=Calc.Top, AJ$10=Calc.Left),"X",INDEX(CHOOSE(INDEX(MazeDef,$L16,AJ$11),Primitives!$C$2:$E$4,Primitives!$C$6:$E$8,Primitives!$C$10:$E$12,Primitives!$C$14:$E$16,Primitives!$C$18:$E$20,Primitives!$C$22:$E$24,Primitives!$C$26:$E$28,Primitives!$C$30:$E$32,Primitives!$C$34:$E$36,Primitives!$C$38:$E$40,Primitives!$C$42:$E$44,Primitives!$C$46:$E$48,Primitives!$C$50:$E$52,Primitives!$C$54:$E$56,Primitives!$C$58:$E$60),$N16,AJ$13)) -> 1 | AK16: =IF(AND($K16=Calc.Top, AK$10=Calc.Left),"X",INDEX(CHOOSE(INDEX(MazeDef,$L16,AK$11),Primitives!$C$2:$E$4,Primitives!$C$6:$E$8,Primitives!$C$10:$E$12,Primitives!$C$14:$E$16,Primitives!$C$18:$E$20,Primitives!$C$22:$E$24,Primitives!$C$26:$E$28,Primitives!$C$30:$E$32,Primitives!$C$34:$E$36,Primitives!$C$38:$E$40,Primitives!$C$42:$E$44,Primitives!$C$46:$E$48,Primitives!$C$50:$E$52,Primitives!$C$54:$E$56,Primitives!$C$58:$E$60),$N16,AK$13)) -> 0 | AL16: =IF(AND($K16=Calc.Top, AL$10=Calc.Left),"X",INDEX(CHOOSE(INDEX(MazeDef,$L16,AL$11),Primitives!$C$2:$E$4,Primitives!$C$6:$E$8,Primitives!$C$10:$E$12,Primitives!$C$14:$E$16,Primitives!$C$18:$E$20,Primitives!$C$22:$E$24,Primitives!$C$26:$E$28,Primitives!$C$30:$E$32,Primitives!$C$34:$E$36,Primitives!$C$38:$E$40,Primitives!$C$42:$E$44,Primitives!$C$46:$E$48,Primitives!$C$50:$E$52,Primitives!$C$54:$E$56,Primitives!$C$58:$E$60),$N16,AL$13)) -> 1 | AM16: =IF(AND($K16=Calc.Top, AM$10=Calc.Left),"X",INDEX(CHOOSE(INDEX(MazeDef,$L16,AM$11),Primitives!$C$2:$E$4,Primitives!$C$6:$E$8,Primitives!$C$10:$E$12,Primitives!$C$14:$E$16,Primitives!$C$18:$E$20,Primitives!$C$22:$E$24,Primitives!$C$26:$E$28,Primitives!$C$30:$E$32,Primitives!$C$34:$E$36,Primitives!$C$38:$E$40,Primitives!$C$42:$E$44,Primitives!$C$46:$E$48,Primitives!$C$50:$E$52,Primitives!$C$54:$E$56,Primitives!$C$58:$E$60),$N16,AM$13)) -> 1 | AN16: =IF(AND($K16=Calc.Top, AN$10=Calc.Left),"X",INDEX(CHOOSE(INDEX(MazeDef,$L16,AN$11),Primitives!$C$2:$E$4,Primitives!$C$6:$E$8,Primitives!$C$10:$E$12,Primitives!$C$14:$E$16,Primitives!$C$18:$E$20,Primitives!$C$22:$E$24,Primitives!$C$26:$E$28,Primitives!$C$30:$E$32,Primitives!$C$34:$E$36,Primitives!$C$38:$E$40,Primitives!$C$42:$E$44,Primitives!$C$46:$E$48,Primitives!$C$50:$E$52,Primitives!$C$54:$E$56,Primitives!$C$58:$E$60),$N16,AN$13)) -> 0 | AO16: =IF(AND($K16=Calc.Top, AO$10=Calc.Left),"X",INDEX(CHOOSE(INDEX(MazeDef,$L16,AO$11),Primitives!$C$2:$E$4,Primitives!$C$6:$E$8,Primitives!$C$10:$E$12,Primitives!$C$14:$E$16,Primitives!$C$18:$E$20,Primitives!$C$22:$E$24,Primitives!$C$26:$E$28,Primitives!$C$30:$E$32,Primitives!$C$34:$E$36,Primitives!$C$38:$E$40,Primitives!$C$42:$E$44,Primitives!$C$46:$E$48,Primitives!$C$50:$E$52,Primitives!$C$54:$E$56,Primitives!$C$58:$E$60),$N16,AO$13)) -> 1 | AP16: =IF(AND($K16=Calc.Top, AP$10=Calc.Left),"X",INDEX(CHOOSE(INDEX(MazeDef,$L16,AP$11),Primitives!$C$2:$E$4,Primitives!$C$6:$E$8,Primitives!$C$10:$E$12,Primitives!$C$14:$E$16,Primitives!$C$18:$E$20,Primitives!$C$22:$E$24,Primitives!$C$26:$E$28,Primitives!$C$30:$E$32,Primitives!$C$34:$E$36,Primitives!$C$38:$E$40,Primitives!$C$42:$E$44,Primitives!$C$46:$E$48,Primitives!$C$50:$E$52,Primitives!$C$54:$E$56,Primitives!$C$58:$E$60),$N16,AP$13)) -> 1 | AQ16: =IF(AND($K16=Calc.Top, AQ$10=Calc.Left),"X",INDEX(CHOOSE(INDEX(MazeDef,$L16,AQ$11),Primitives!$C$2:$E$4,Primitives!$C$6:$E$8,Primitives!$C$10:$E$12,Primitives!$C$14:$E$16,Primitives!$C$18:$E$20,Primitives!$C$22:$E$24,Primitives!$C$26:$E$28,Primitives!$C$30:$E$32,Primitives!$C$34:$E$36,Primitives!$C$38:$E$40,Primitives!$C$42:$E$44,Primitives!$C$46:$E$48,Primitives!$C$50:$E$52,Primitives!$C$54:$E$56,Primitives!$C$58:$E$60),$N16,AQ$13)) -> 0 | AR16: =IF(AND($K16=Calc.Top, AR$10=Calc.Left),"X",INDEX(CHOOSE(INDEX(MazeDef,$L16,AR$11),Primitives!$C$2:$E$4,Primitives!$C$6:$E$8,Primitives!$C$10:$E$12,Primitives!$C$14:$E$16,Primitives!$C$18:$E$20,Primitives!$C$22:$E$24,Primitives!$C$26:$E$28,Primitives!$C$30:$E$32,Primitives!$C$34:$E$36,Primitives!$C$38:$E$40,Primitives!$C$42:$E$44,Primitives!$C$46:$E$48,Primitives!$C$50:$E$52,Primitives!$C$54:$E$56,Primitives!$C$58:$E$60),$N16,AR$13)) -> 1
K17: 4 | L17: 2 | M17: 2 | N17: 1 | O17: =IF(AND($K17=Calc.Top, O$10=Calc.Left),"X",INDEX(CHOOSE(INDEX(MazeDef,$L17,O$11),Primitives!$C$2:$E$4,Primitives!$C$6:$E$8,Primitives!$C$10:$E$12,Primitives!$C$14:$E$16,Primitives!$C$18:$E$20,Primitives!$C$22:$E$24,Primitives!$C$26:$E$28,Primitives!$C$30:$E$32,Primitives!$C$34:$E$36,Primitives!$C$38:$E$40,Primitives!$C$42:$E$44,Primitives!$C$46:$E$48,Primitives!$C$50:$E$52,Primitives!$C$54:$E$56,Primitives!$C$58:$E$60),$N17,O$13)) -> 1 | P17: =IF(AND($K17=Calc.Top, P$10=Calc.Left),"X",INDEX(CHOOSE(INDEX(MazeDef,$L17,P$11),Primitives!$C$2:$E$4,Primitives!$C$6:$E$8,Primitives!$C$10:$E$12,Primitives!$C$14:$E$16,Primitives!$C$18:$E$20,Primitives!$C$22:$E$24,Primitives!$C$26:$E$28,Primitives!$C$30:$E$32,Primitives!$C$34:$E$36,Primitives!$C$38:$E$40,Primitives!$C$42:$E$44,Primitives!$C$46:$E$48,Primitives!$C$50:$E$52,Primitives!$C$54:$E$56,Primitives!$C$58:$E$60),$N17,P$13)) -> 1 | Q17: =IF(AND($K17=Calc.Top, Q$10=Calc.Left),"X",INDEX(CHOOSE(INDEX(MazeDef,$L17,Q$11),Primitives!$C$2:$E$4,Primitives!$C$6:$E$8,Primitives!$C$10:$E$12,Primitives!$C$14:$E$16,Primitives!$C$18:$E$20,Primitives!$C$22:$E$24,Primitives!$C$26:$E$28,Primitives!$C$30:$E$32,Primitives!$C$34:$E$36,Primitives!$C$38:$E$40,Primitives!$C$42:$E$44,Primitives!$C$46:$E$48,Primitives!$C$50:$E$52,Primitives!$C$54:$E$56,Primitives!$C$58:$E$60),$N17,Q$13)) -> 1 | R17: =IF(AND($K17=Calc.Top, R$10=Calc.Left),"X",INDEX(CHOOSE(INDEX(MazeDef,$L17,R$11),Primitives!$C$2:$E$4,Primitives!$C$6:$E$8,Primitives!$C$10:$E$12,Primitives!$C$14:$E$16,Primitives!$C$18:$E$20,Primitives!$C$22:$E$24,Primitives!$C$26:$E$28,Primitives!$C$30:$E$32,Primitives!$C$34:$E$36,Primitives!$C$38:$E$40,Primitives!$C$42:$E$44,Primitives!$C$46:$E$48,Primitives!$C$50:$E$52,Primitives!$C$54:$E$56,Primitives!$C$58:$E$60),$N17,R$13)) -> 1 | S17: =IF(AND($K17=Calc.Top, S$10=Calc.Left),"X",INDEX(CHOOSE(INDEX(MazeDef,$L17,S$11),Primitives!$C$2:$E$4,Primitives!$C$6:$E$8,Primitives!$C$10:$E$12,Primitives!$C$14:$E$16,Primitives!$C$18:$E$20,Primitives!$C$22:$E$24,Primitives!$C$26:$E$28,Primitives!$C$30:$E$32,Primitives!$C$34:$E$36,Primitives!$C$38:$E$40,Primitives!$C$42:$E$44,Primitives!$C$46:$E$48,Primitives!$C$50:$E$52,Primitives!$C$54:$E$56,Primitives!$C$58:$E$60),$N17,S$13)) -> 1 | T17: =IF(AND($K17=Calc.Top, T$10=Calc.Left),"X",INDEX(CHOOSE(INDEX(MazeDef,$L17,T$11),Primitives!$C$2:$E$4,Primitives!$C$6:$E$8,Primitives!$C$10:$E$12,Primitives!$C$14:$E$16,Primitives!$C$18:$E$20,Primitives!$C$22:$E$24,Primitives!$C$26:$E$28,Primitives!$C$30:$E$32,Primitives!$C$34:$E$36,Primitives!$C$38:$E$40,Primitives!$C$42:$E$44,Primitives!$C$46:$E$48,Primitives!$C$50:$E$52,Primitives!$C$54:$E$56,Primitives!$C$58:$E$60),$N17,T$13)) -> 1 | U17: =IF(AND($K17=Calc.Top, U$10=Calc.Left),"X",INDEX(CHOOSE(INDEX(MazeDef,$L17,U$11),Primitives!$C$2:$E$4,Primitives!$C$6:$E$8,Primitives!$C$10:$E$12,Primitives!$C$14:$E$16,Primitives!$C$18:$E$20,Primitives!$C$22:$E$24,Primitives!$C$26:$E$28,Primitives!$C$30:$E$32,Primitives!$C$34:$E$36,Primitives!$C$38:$E$40,Primitives!$C$42:$E$44,Primitives!$C$46:$E$48,Primitives!$C$50:$E$52,Primitives!$C$54:$E$56,Primitives!$C$58:$E$60),$N17,U$13)) -> 1 | V17: =IF(AND($K17=Calc.Top, V$10=Calc.Left),"X",INDEX(CHOOSE(INDEX(MazeDef,$L17,V$11),Primitives!$C$2:$E$4,Primitives!$C$6:$E$8,Primitives!$C$10:$E$12,Primitives!$C$14:$E$16,Primitives!$C$18:$E$20,Primitives!$C$22:$E$24,Primitives!$C$26:$E$28,Primitives!$C$30:$E$32,Primitives!$C$34:$E$36,Primitives!$C$38:$E$40,Primitives!$C$42:$E$44,Primitives!$C$46:$E$48,Primitives!$C$50:$E$52,Primitives!$C$54:$E$56,Primitives!$C$58:$E$60),$N17,V$13)) -> 1 | W17: =IF(AND($K17=Calc.Top, W$10=Calc.Left),"X",INDEX(CHOOSE(INDEX(MazeDef,$L17,W$11),Primitives!$C$2:$E$4,Primitives!$C$6:$E$8,Primitives!$C$10:$E$12,Primitives!$C$14:$E$16,Primitives!$C$18:$E$20,Primitives!$C$22:$E$24,Primitives!$C$26:$E$28,Primitives!$C$30:$E$32,Primitives!$C$34:$E$36,Primitives!$C$38:$E$40,Primitives!$C$42:$E$44,Primitives!$C$46:$E$48,Primitives!$C$50:$E$52,Primitives!$C$54:$E$56,Primitives!$C$58:$E$60),$N17,W$13)) -> 1 | X17: =IF(AND($K17=Calc.Top, X$10=Calc.Left),"X",INDEX(CHOOSE(INDEX(MazeDef,$L17,X$11),Primitives!$C$2:$E$4,Primitives!$C$6:$E$8,Primitives!$C$10:$E$12,Primitives!$C$14:$E$16,Primitives!$C$18:$E$20,Primitives!$C$22:$E$24,Primitives!$C$26:$E$28,Primitives!$C$30:$E$32,Primitives!$C$34:$E$36,Primitives!$C$38:$E$40,Primitives!$C$42:$E$44,Primitives!$C$46:$E$48,Primitives!$C$50:$E$52,Primitives!$C$54:$E$56,Primitives!$C$58:$E$60),$N17,X$13)) -> 1 | Y17: =IF(AND($K17=Calc.Top, Y$10=Calc.Left),"X",INDEX(CHOOSE(INDEX(MazeDef,$L17,Y$11),Primitives!$C$2:$E$4,Primitives!$C$6:$E$8,Primitives!$C$10:$E$12,Primitives!$C$14:$E$16,Primitives!$C$18:$E$20,Primitives!$C$22:$E$24,Primitives!$C$26:$E$28,Primitives!$C$30:$E$32,Primitives!$C$34:$E$36,Primitives!$C$38:$E$40,Primitives!$C$42:$E$44,Primitives!$C$46:$E$48,Primitives!$C$50:$E$52,Primitives!$C$54:$E$56,Primitives!$C$58:$E$60),$N17,Y$13)) -> 0 | Z17: =IF(AND($K17=Calc.Top, Z$10=Calc.Left),"X",INDEX(CHOOSE(INDEX(MazeDef,$L17,Z$11),Primitives!$C$2:$E$4,Primitives!$C$6:$E$8,Primitives!$C$10:$E$12,Primitives!$C$14:$E$16,Primitives!$C$18:$E$20,Primitives!$C$22:$E$24,Primitives!$C$26:$E$28,Primitives!$C$30:$E$32,Primitives!$C$34:$E$36,Primitives!$C$38:$E$40,Primitives!$C$42:$E$44,Primitives!$C$46:$E$48,Primitives!$C$50:$E$52,Primitives!$C$54:$E$56,Primitives!$C$58:$E$60),$N17,Z$13)) -> 1 | AA17: =IF(AND($K17=Calc.Top, AA$10=Calc.Left),"X",INDEX(CHOOSE(INDEX(MazeDef,$L17,AA$11),Primitives!$C$2:$E$4,Primitives!$C$6:$E$8,Primitives!$C$10:$E$12,Primitives!$C$14:$E$16,Primitives!$C$18:$E$20,Primitives!$C$22:$E$24,Primitives!$C$26:$E$28,Primitives!$C$30:$E$32,Primitives!$C$34:$E$36,Primitives!$C$38:$E$40,Primitives!$C$42:$E$44,Primitives!$C$46:$E$48,Primitives!$C$50:$E$52,Primitives!$C$54:$E$56,Primitives!$C$58:$E$60),$N17,AA$13)) -> 1 | AB17: =IF(AND($K17=Calc.Top, AB$10=Calc.Left),"X",INDEX(CHOOSE(INDEX(MazeDef,$L17,AB$11),Primitives!$C$2:$E$4,Primitives!$C$6:$E$8,Primitives!$C$10:$E$12,Primitives!$C$14:$E$16,Primitives!$C$18:$E$20,Primitives!$C$22:$E$24,Primitives!$C$26:$E$28,Primitives!$C$30:$E$32,Primitives!$C$34:$E$36,Primitives!$C$38:$E$40,Primitives!$C$42:$E$44,Primitives!$C$46:$E$48,Primitives!$C$50:$E$52,Primitives!$C$54:$E$56,Primitives!$C$58:$E$60),$N17,AB$13)) -> 1 | AC17: =IF(AND($K17=Calc.Top, AC$10=Calc.Left),"X",INDEX(CHOOSE(INDEX(MazeDef,$L17,AC$11),Primitives!$C$2:$E$4,Primitives!$C$6:$E$8,Primitives!$C$10:$E$12,Primitives!$C$14:$E$16,Primitives!$C$18:$E$20,Primitives!$C$22:$E$24,Primitives!$C$26:$E$28,Primitives!$C$30:$E$32,Primitives!$C$34:$E$36,Primitives!$C$38:$E$40,Primitives!$C$42:$E$44,Primitives!$C$46:$E$48,Primitives!$C$50:$E$52,Primitives!$C$54:$E$56,Primitives!$C$58:$E$60),$N17,AC$13)) -> 1 | AD17: =IF(AND($K17=Calc.Top, AD$10=Calc.Left),"X",INDEX(CHOOSE(INDEX(MazeDef,$L17,AD$11),Primitives!$C$2:$E$4,Primitives!$C$6:$E$8,Primitives!$C$10:$E$12,Primitives!$C$14:$E$16,Primitives!$C$18:$E$20,Primitives!$C$22:$E$24,Primitives!$C$26:$E$28,Primitives!$C$30:$E$32,Primitives!$C$34:$E$36,Primitives!$C$38:$E$40,Primitives!$C$42:$E$44,Primitives!$C$46:$E$48,Primitives!$C$50:$E$52,Primitives!$C$54:$E$56,Primitives!$C$58:$E$60),$N17,AD$13)) -> 1 | AE17: =IF(AND($K17=Calc.Top, AE$10=Calc.Left),"X",INDEX(CHOOSE(INDEX(MazeDef,$L17,AE$11),Primitives!$C$2:$E$4,Primitives!$C$6:$E$8,Primitives!$C$10:$E$12,Primitives!$C$14:$E$16,Primitives!$C$18:$E$20,Primitives!$C$22:$E$24,Primitives!$C$26:$E$28,Primitives!$C$30:$E$32,Primitives!$C$34:$E$36,Primitives!$C$38:$E$40,Primitives!$C$42:$E$44,Primitives!$C$46:$E$48,Primitives!$C$50:$E$52,Primitives!$C$54:$E$56,Primitives!$C$58:$E$60),$N17,AE$13)) -> 1 | AF17: =IF(AND($K17=Calc.Top, AF$10=Calc.Left),"X",INDEX(CHOOSE(INDEX(MazeDef,$L17,AF$11),Primitives!$C$2:$E$4,Primitives!$C$6:$E$8,Primitives!$C$10:$E$12,Primitives!$C$14:$E$16,Primitives!$C$18:$E$20,Primitives!$C$22:$E$24,Primitives!$C$26:$E$28,Primitives!$C$30:$E$32,Primitives!$C$34:$E$36,Primitives!$C$38:$E$40,Primitives!$C$42:$E$44,Primitives!$C$46:$E$48,Primitives!$C$50:$E$52,Primitives!$C$54:$E$56,Primitives!$C$58:$E$60),$N17,AF$13)) -> 1 | AG17: =IF(AND($K17=Calc.Top, AG$10=Calc.Left),"X",INDEX(CHOOSE(INDEX(MazeDef,$L17,AG$11),Primitives!$C$2:$E$4,Primitives!$C$6:$E$8,Primitives!$C$10:$E$12,Primitives!$C$14:$E$16,Primitives!$C$18:$E$20,Primitives!$C$22:$E$24,Primitives!$C$26:$E$28,Primitives!$C$30:$E$32,Primitives!$C$34:$E$36,Primitives!$C$38:$E$40,Primitives!$C$42:$E$44,Primitives!$C$46:$E$48,Primitives!$C$50:$E$52,Primitives!$C$54:$E$56,Primitives!$C$58:$E$60),$N17,AG$13)) -> 1 | AH17: =IF(AND($K17=Calc.Top, AH$10=Calc.Left),"X",INDEX(CHOOSE(INDEX(MazeDef,$L17,AH$11),Primitives!$C$2:$E$4,Primitives!$C$6:$E$8,Primitives!$C$10:$E$12,Primitives!$C$14:$E$16,Primitives!$C$18:$E$20,Primitives!$C$22:$E$24,Primitives!$C$26:$E$28,Primitives!$C$30:$E$32,Primitives!$C$34:$E$36,Primitives!$C$38:$E$40,Primitives!$C$42:$E$44,Primitives!$C$46:$E$48,Primitives!$C$50:$E$52,Primitives!$C$54:$E$56,Primitives!$C$58:$E$60),$N17,AH$13)) -> 0 | AI17: =IF(AND($K17=Calc.Top, AI$10=Calc.Left),"X",INDEX(CHOOSE(INDEX(MazeDef,$L17,AI$11),Primitives!$C$2:$E$4,Primitives!$C$6:$E$8,Primitives!$C$10:$E$12,Primitives!$C$14:$E$16,Primitives!$C$18:$E$20,Primitives!$C$22:$E$24,Primitives!$C$26:$E$28,Primitives!$C$30:$E$32,Primitives!$C$34:$E$36,Primitives!$C$38:$E$40,Primitives!$C$42:$E$44,Primitives!$C$46:$E$48,Primitives!$C$50:$E$52,Primitives!$C$54:$E$56,Primitives!$C$58:$E$60),$N17,AI$13)) -> 1 | AJ17: =IF(AND($K17=Calc.Top, AJ$10=Calc.Left),"X",INDEX(CHOOSE(INDEX(MazeDef,$L17,AJ$11),Primitives!$C$2:$E$4,Primitives!$C$6:$E$8,Primitives!$C$10:$E$12,Primitives!$C$14:$E$16,Primitives!$C$18:$E$20,Primitives!$C$22:$E$24,Primitives!$C$26:$E$28,Primitives!$C$30:$E$32,Primitives!$C$34:$E$36,Primitives!$C$38:$E$40,Primitives!$C$42:$E$44,Primitives!$C$46:$E$48,Primitives!$C$50:$E$52,Primitives!$C$54:$E$56,Primitives!$C$58:$E$60),$N17,AJ$13)) -> 1 | AK17: =IF(AND($K17=Calc.Top, AK$10=Calc.Left),"X",INDEX(CHOOSE(INDEX(MazeDef,$L17,AK$11),Primitives!$C$2:$E$4,Primitives!$C$6:$E$8,Primitives!$C$10:$E$12,Primitives!$C$14:$E$16,Primitives!$C$18:$E$20,Primitives!$C$22:$E$24,Primitives!$C$26:$E$28,Primitives!$C$30:$E$32,Primitives!$C$34:$E$36,Primitives!$C$38:$E$40,Primitives!$C$42:$E$44,Primitives!$C$46:$E$48,Primitives!$C$50:$E$52,Primitives!$C$54:$E$56,Primitives!$C$58:$E$60),$N17,AK$13)) -> 0 | AL17: =IF(AND($K17=Calc.Top, AL$10=Calc.Left),"X",INDEX(CHOOSE(INDEX(MazeDef,$L17,AL$11),Primitives!$C$2:$E$4,Primitives!$C$6:$E$8,Primitives!$C$10:$E$12,Primitives!$C$14:$E$16,Primitives!$C$18:$E$20,Primitives!$C$22:$E$24,Primitives!$C$26:$E$28,Primitives!$C$30:$E$32,Primitives!$C$34:$E$36,Primitives!$C$38:$E$40,Primitives!$C$42:$E$44,Primitives!$C$46:$E$48,Primitives!$C$50:$E$52,Primitives!$C$54:$E$56,Primitives!$C$58:$E$60),$N17,AL$13)) -> 1 | AM17: =IF(AND($K17=Calc.Top, AM$10=Calc.Left),"X",INDEX(CHOOSE(INDEX(MazeDef,$L17,AM$11),Primitives!$C$2:$E$4,Primitives!$C$6:$E$8,Primitives!$C$10:$E$12,Primitives!$C$14:$E$16,Primitives!$C$18:$E$20,Primitives!$C$22:$E$24,Primitives!$C$26:$E$28,Primitives!$C$30:$E$32,Primitives!$C$34:$E$36,Primitives!$C$38:$E$40,Primitives!$C$42:$E$44,Primitives!$C$46:$E$48,Primitives!$C$50:$E$52,Primitives!$C$54:$E$56,Primitives!$C$58:$E$60),$N17,AM$13)) -> 1 | AN17: =IF(AND($K17=Calc.Top, AN$10=Calc.Left),"X",INDEX(CHOOSE(INDEX(MazeDef,$L17,AN$11),Primitives!$C$2:$E$4,Primitives!$C$6:$E$8,Primitives!$C$10:$E$12,Primitives!$C$14:$E$16,Primitives!$C$18:$E$20,Primitives!$C$22:$E$24,Primitives!$C$26:$E$28,Primitives!$C$30:$E$32,Primitives!$C$34:$E$36,Primitives!$C$38:$E$40,Primitives!$C$42:$E$44,Primitives!$C$46:$E$48,Primitives!$C$50:$E$52,Primitives!$C$54:$E$56,Primitives!$C$58:$E$60),$N17,AN$13)) -> 0 | AO17: =IF(AND($K17=Calc.Top, AO$10=Calc.Left),"X",INDEX(CHOOSE(INDEX(MazeDef,$L17,AO$11),Primitives!$C$2:$E$4,Primitives!$C$6:$E$8,Primitives!$C$10:$E$12,Primitives!$C$14:$E$16,Primitives!$C$18:$E$20,Primitives!$C$22:$E$24,Primitives!$C$26:$E$28,Primitives!$C$30:$E$32,Primitives!$C$34:$E$36,Primitives!$C$38:$E$40,Primitives!$C$42:$E$44,Primitives!$C$46:$E$48,Primitives!$C$50:$E$52,Primitives!$C$54:$E$56,Primitives!$C$58:$E$60),$N17,AO$13)) -> 1 | AP17: =IF(AND($K17=Calc.Top, AP$10=Calc.Left),"X",INDEX(CHOOSE(INDEX(MazeDef,$L17,AP$11),Primitives!$C$2:$E$4,Primitives!$C$6:$E$8,Primitives!$C$10:$E$12,Primitives!$C$14:$E$16,Primitives!$C$18:$E$20,Primitives!$C$22:$E$24,Primitives!$C$26:$E$28,Primitives!$C$30:$E$32,Primitives!$C$34:$E$36,Primitives!$C$38:$E$40,Primitives!$C$42:$E$44,Primitives!$C$46:$E$48,Primitives!$C$50:$E$52,Primitives!$C$54:$E$56,Primitives!$C$58:$E$60),$N17,AP$13)) -> 1 | AQ17: =IF(AND($K17=Calc.Top, AQ$10=Calc.Left),"X",INDEX(CHOOSE(INDEX(MazeDef,$L17,AQ$11),Primitives!$C$2:$E$4,Primitives!$C$6:$E$8,Primitives!$C$10:$E$12,Primitives!$C$14:$E$16,Primitives!$C$18:$E$20,Primitives!$C$22:$E$24,Primitives!$C$26:$E$28,Primitives!$C$30:$E$32,Primitives!$C$34:$E$36,Primitives!$C$38:$E$40,Primitives!$C$42:$E$44,Primitives!$C$46:$E$48,Primitives!$C$50:$E$52,Primitives!$C$54:$E$56,Primitives!$C$58:$E$60),$N17,AQ$13)) -> 0 | AR17: =IF(AND($K17=Calc.Top, AR$10=Calc.Left),"X",INDEX(CHOOSE(INDEX(MazeDef,$L17,AR$11),Primitives!$C$2:$E$4,Primitives!$C$6:$E$8,Primitives!$C$10:$E$12,Primitives!$C$14:$E$16,Primitives!$C$18:$E$20,Primitives!$C$22:$E$24,Primitives!$C$26:$E$28,Primitives!$C$30:$E$32,Primitives!$C$34:$E$36,Primitives!$C$38:$E$40,Primitives!$C$42:$E$44,Primitives!$C$46:$E$48,Primitives!$C$50:$E$52,Primitives!$C$54:$E$56,Primitives!$C$58:$E$60),$N17,AR$13)) -> 1
B18: 1 | C18: 1 | D18: 1 | K18: 5 | L18: 2 | N18: 2 | O18: =IF(AND($K18=Calc.Top, O$10=Calc.Left),"X",INDEX(CHOOSE(INDEX(MazeDef,$L18,O$11),Primitives!$C$2:$E$4,Primitives!$C$6:$E$8,Primitives!$C$10:$E$12,Primitives!$C$14:$E$16,Primitives!$C$18:$E$20,Primitives!$C$22:$E$24,Primitives!$C$26:$E$28,Primitives!$C$30:$E$32,Primitives!$C$34:$E$36,Primitives!$C$38:$E$40,Primitives!$C$42:$E$44,Primitives!$C$46:$E$48,Primitives!$C$50:$E$52,Primitives!$C$54:$E$56,Primitives!$C$58:$E$60),$N18,O$13)) -> 1 | P18: =IF(AND($K18=Calc.Top, P$10=Calc.Left),"X",INDEX(CHOOSE(INDEX(MazeDef,$L18,P$11),Primitives!$C$2:$E$4,Primitives!$C$6:$E$8,Primitives!$C$10:$E$12,Primitives!$C$14:$E$16,Primitives!$C$18:$E$20,Primitives!$C$22:$E$24,Primitives!$C$26:$E$28,Primitives!$C$30:$E$32,Primitives!$C$34:$E$36,Primitives!$C$38:$E$40,Primitives!$C$42:$E$44,Primitives!$C$46:$E$48,Primitives!$C$50:$E$52,Primitives!$C$54:$E$56,Primitives!$C$58:$E$60),$N18,P$13)) -> 0 | Q18: =IF(AND($K18=Calc.Top, Q$10=Calc.Left),"X",INDEX(CHOOSE(INDEX(MazeDef,$L18,Q$11),Primitives!$C$2:$E$4,Primitives!$C$6:$E$8,Primitives!$C$10:$E$12,Primitives!$C$14:$E$16,Primitives!$C$18:$E$20,Primitives!$C$22:$E$24,Primitives!$C$26:$E$28,Primitives!$C$30:$E$32,Primitives!$C$34:$E$36,Primitives!$C$38:$E$40,Primitives!$C$42:$E$44,Primitives!$C$46:$E$48,Primitives!$C$50:$E$52,Primitives!$C$54:$E$56,Primitives!$C$58:$E$60),$N18,Q$13)) -> 0 | R18: =IF(AND($K18=Calc.Top, R$10=Calc.Left),"X",INDEX(CHOOSE(INDEX(MazeDef,$L18,R$11),Primitives!$C$2:$E$4,Primitives!$C$6:$E$8,Primitives!$C$10:$E$12,Primitives!$C$14:$E$16,Primitives!$C$18:$E$20,Primitives!$C$22:$E$24,Primitives!$C$26:$E$28,Primitives!$C$30:$E$32,Primitives!$C$34:$E$36,Primitives!$C$38:$E$40,Primitives!$C$42:$E$44,Primitives!$C$46:$E$48,Primitives!$C$50:$E$52,Primitives!$C$54:$E$56,Primitives!$C$58:$E$60),$N18,R$13)) -> 0 | S18: =IF(AND($K18=Calc.Top, S$10=Calc.Left),"X",INDEX(CHOOSE(INDEX(MazeDef,$L18,S$11),Primitives!$C$2:$E$4,Primitives!$C$6:$E$8,Primitives!$C$10:$E$12,Primitives!$C$14:$E$16,Primitives!$C$18:$E$20,Primitives!$C$22:$E$24,Primitives!$C$26:$E$28,Primitives!$C$30:$E$32,Primitives!$C$34:$E$36,Primitives!$C$38:$E$40,Primitives!$C$42:$E$44,Primitives!$C$46:$E$48,Primitives!$C$50:$E$52,Primitives!$C$54:$E$56,Primitives!$C$58:$E$60),$N18,S$13)) -> 0 | T18: =IF(AND($K18=Calc.Top, T$10=Calc.Left),"X",INDEX(CHOOSE(INDEX(MazeDef,$L18,T$11),Primitives!$C$2:$E$4,Primitives!$C$6:$E$8,Primitives!$C$10:$E$12,Primitives!$C$14:$E$16,Primitives!$C$18:$E$20,Primitives!$C$22:$E$24,Primitives!$C$26:$E$28,Primitives!$C$30:$E$32,Primitives!$C$34:$E$36,Primitives!$C$38:$E$40,Primitives!$C$42:$E$44,Primitives!$C$46:$E$48,Primitives!$C$50:$E$52,Primitives!$C$54:$E$56,Primitives!$C$58:$E$60),$N18,T$13)) -> 0 | U18: =IF(AND($K18=Calc.Top, U$10=Calc.Left),"X",INDEX(CHOOSE(INDEX(MazeDef,$L18,U$11),Primitives!$C$2:$E$4,Primitives!$C$6:$E$8,Primitives!$C$10:$E$12,Primitives!$C$14:$E$16,Primitives!$C$18:$E$20,Primitives!$C$22:$E$24,Primitives!$C$26:$E$28,Primitives!$C$30:$E$32,Primitives!$C$34:$E$36,Primitives!$C$38:$E$40,Primitives!$C$42:$E$44,Primitives!$C$46:$E$48,Primitives!$C$50:$E$52,Primitives!$C$54:$E$56,Primitives!$C$58:$E$60),$N18,U$13)) -> 0 | V18: =IF(AND($K18=Calc.Top, V$10=Calc.Left),"X",INDEX(CHOOSE(INDEX(MazeDef,$L18,V$11),Primitives!$C$2:$E$4,Primitives!$C$6:$E$8,Primitives!$C$10:$E$12,Primitives!$C$14:$E$16,Primitives!$C$18:$E$20,Primitives!$C$22:$E$24,Primitives!$C$26:$E$28,Primitives!$C$30:$E$32,Primitives!$C$34:$E$36,Primitives!$C$38:$E$40,Primitives!$C$42:$E$44,Primitives!$C$46:$E$48,Primitives!$C$50:$E$52,Primitives!$C$54:$E$56,Primitives!$C$58:$E$60),$N18,V$13)) -> 0 | W18: =IF(AND($K18=Calc.Top, W$10=Calc.Left),"X",INDEX(CHOOSE(INDEX(MazeDef,$L18,W$11),Primitives!$C$2:$E$4,Primitives!$C$6:$E$8,Primitives!$C$10:$E$12,Primitives!$C$14:$E$16,Primitives!$C$18:$E$20,Primitives!$C$22:$E$24,Primitives!$C$26:$E$28,Primitives!$C$30:$E$32,Primitives!$C$34:$E$36,Primitives!$C$38:$E$40,Primitives!$C$42:$E$44,Primitives!$C$46:$E$48,Primitives!$C$50:$E$52,Primitives!$C$54:$E$56,Primitives!$C$58:$E$60),$N18,W$13)) -> 0 | X18: =IF(AND($K18=Calc.Top, X$10=Calc.Left),"X",INDEX(CHOOSE(INDEX(MazeDef,$L18,X$11),Primitives!$C$2:$E$4,Primitives!$C$6:$E$8,Primitives!$C$10:$E$12,Primitives!$C$14:$E$16,Primitives!$C$18:$E$20,Primitives!$C$22:$E$24,Primitives!$C$26:$E$28,Primitives!$C$30:$E$32,Primitives!$C$34:$E$36,Primitives!$C$38:$E$40,Primitives!$C$42:$E$44,Primitives!$C$46:$E$48,Primitives!$C$50:$E$52,Primitives!$C$54:$E$56,Primitives!$C$58:$E$60),$N18,X$13)) -> 0 | Y18: =IF(AND($K18=Calc.Top, Y$10=Calc.Left),"X",INDEX(CHOOSE(INDEX(MazeDef,$L18,Y$11),Primitives!$C$2:$E$4,Primitives!$C$6:$E$8,Primitives!$C$10:$E$12,Primitives!$C$14:$E$16,Primitives!$C$18:$E$20,Primitives!$C$22:$E$24,Primitives!$C$26:$E$28,Primitives!$C$30:$E$32,Primitives!$C$34:$E$36,Primitives!$C$38:$E$40,Primitives!$C$42:$E$44,Primitives!$C$46:$E$48,Primitives!$C$50:$E$52,Primitives!$C$54:$E$56,Primitives!$C$58:$E$60),$N18,Y$13)) -> 0 | Z18: =IF(AND($K18=Calc.Top, Z$10=Calc.Left),"X",INDEX(CHOOSE(INDEX(MazeDef,$L18,Z$11),Primitives!$C$2:$E$4,Primitives!$C$6:$E$8,Primitives!$C$10:$E$12,Primitives!$C$14:$E$16,Primitives!$C$18:$E$20,Primitives!$C$22:$E$24,Primitives!$C$26:$E$28,Primitives!$C$30:$E$32,Primitives!$C$34:$E$36,Primitives!$C$38:$E$40,Primitives!$C$42:$E$44,Primitives!$C$46:$E$48,Primitives!$C$50:$E$52,Primitives!$C$54:$E$56,Primitives!$C$58:$E$60),$N18,Z$13)) -> 0 | AA18: =IF(AND($K18=Calc.Top, AA$10=Calc.Left),"X",INDEX(CHOOSE(INDEX(MazeDef,$L18,AA$11),Primitives!$C$2:$E$4,Primitives!$C$6:$E$8,Primitives!$C$10:$E$12,Primitives!$C$14:$E$16,Primitives!$C$18:$E$20,Primitives!$C$22:$E$24,Primitives!$C$26:$E$28,Primitives!$C$30:$E$32,Primitives!$C$34:$E$36,Primitives!$C$38:$E$40,Primitives!$C$42:$E$44,Primitives!$C$46:$E$48,Primitives!$C$50:$E$52,Primitives!$C$54:$E$56,Primitives!$C$58:$E$60),$N18,AA$13)) -> 0 | AB18: =IF(AND($K18=Calc.Top, AB$10=Calc.Left),"X",INDEX(CHOOSE(INDEX(MazeDef,$L18,AB$11),Primitives!$C$2:$E$4,Primitives!$C$6:$E$8,Primitives!$C$10:$E$12,Primitives!$C$14:$E$16,Primitives!$C$18:$E$20,Primitives!$C$22:$E$24,Primitives!$C$26:$E$28,Primitives!$C$30:$E$32,Primitives!$C$34:$E$36,Primitives!$C$38:$E$40,Primitives!$C$42:$E$44,Primitives!$C$46:$E$48,Primitives!$C$50:$E$52,Primitives!$C$54:$E$56,Primitives!$C$58:$E$60),$N18,AB$13)) -> 0 | AC18: =IF(AND($K18=Calc.Top, AC$10=Calc.Left),"X",INDEX(CHOOSE(INDEX(MazeDef,$L18,AC$11),Primitives!$C$2:$E$4,Primitives!$C$6:$E$8,Primitives!$C$10:$E$12,Primitives!$C$14:$E$16,Primitives!$C$18:$E$20,Primitives!$C$22:$E$24,Primitives!$C$26:$E$28,Primitives!$C$30:$E$32,Primitives!$C$34:$E$36,Primitives!$C$38:$E$40,Primitives!$C$42:$E$44,Primitives!$C$46:$E$48,Primitives!$C$50:$E$52,Primitives!$C$54:$E$56,Primitives!$C$58:$E$60),$N18,AC$13)) -> 0 | AD18: =IF(AND($K18=Calc.Top, AD$10=Calc.Left),"X",INDEX(CHOOSE(INDEX(MazeDef,$L18,AD$11),Primitives!$C$2:$E$4,Primitives!$C$6:$E$8,Primitives!$C$10:$E$12,Primitives!$C$14:$E$16,Primitives!$C$18:$E$20,Primitives!$C$22:$E$24,Primitives!$C$26:$E$28,Primitives!$C$30:$E$32,Primitives!$C$34:$E$36,Primitives!$C$38:$E$40,Primitives!$C$42:$E$44,Primitives!$C$46:$E$48,Primitives!$C$50:$E$52,Primitives!$C$54:$E$56,Primitives!$C$58:$E$60),$N18,AD$13)) -> 0 | AE18: =IF(AND($K18=Calc.Top, AE$10=Calc.Left),"X",INDEX(CHOOSE(INDEX(MazeDef,$L18,AE$11),Primitives!$C$2:$E$4,Primitives!$C$6:$E$8,Primitives!$C$10:$E$12,Primitives!$C$14:$E$16,Primitives!$C$18:$E$20,Primitives!$C$22:$E$24,Primitives!$C$26:$E$28,Primitives!$C$30:$E$32,Primitives!$C$34:$E$36,Primitives!$C$38:$E$40,Primitives!$C$42:$E$44,Primitives!$C$46:$E$48,Primitives!$C$50:$E$52,Primitives!$C$54:$E$56,Primitives!$C$58:$E$60),$N18,AE$13)) -> 0 | AF18: =IF(AND($K18=Calc.Top, AF$10=Calc.Left),"X",INDEX(CHOOSE(INDEX(MazeDef,$L18,AF$11),Primitives!$C$2:$E$4,Primitives!$C$6:$E$8,Primitives!$C$10:$E$12,Primitives!$C$14:$E$16,Primitives!$C$18:$E$20,Primitives!$C$22:$E$24,Primitives!$C$26:$E$28,Primitives!$C$30:$E$32,Primitives!$C$34:$E$36,Primitives!$C$38:$E$40,Primitives!$C$42:$E$44,Primitives!$C$46:$E$48,Primitives!$C$50:$E$52,Primitives!$C$54:$E$56,Primitives!$C$58:$E$60),$N18,AF$13)) -> 1 | AG18: =IF(AND($K18=Calc.Top, AG$10=Calc.Left),"X",INDEX(CHOOSE(INDEX(MazeDef,$L18,AG$11),Primitives!$C$2:$E$4,Primitives!$C$6:$E$8,Primitives!$C$10:$E$12,Primitives!$C$14:$E$16,Primitives!$C$18:$E$20,Primitives!$C$22:$E$24,Primitives!$C$26:$E$28,Primitives!$C$30:$E$32,Primitives!$C$34:$E$36,Primitives!$C$38:$E$40,Primitives!$C$42:$E$44,Primitives!$C$46:$E$48,Primitives!$C$50:$E$52,Primitives!$C$54:$E$56,Primitives!$C$58:$E$60),$N18,AG$13)) -> 1 | AH18: =IF(AND($K18=Calc.Top, AH$10=Calc.Left),"X",INDEX(CHOOSE(INDEX(MazeDef,$L18,AH$11),Primitives!$C$2:$E$4,Primitives!$C$6:$E$8,Primitives!$C$10:$E$12,Primitives!$C$14:$E$16,Primitives!$C$18:$E$20,Primitives!$C$22:$E$24,Primitives!$C$26:$E$28,Primitives!$C$30:$E$32,Primitives!$C$34:$E$36,Primitives!$C$38:$E$40,Primitives!$C$42:$E$44,Primitives!$C$46:$E$48,Primitives!$C$50:$E$52,Primitives!$C$54:$E$56,Primitives!$C$58:$E$60),$N18,AH$13)) -> 0 | AI18: =IF(AND($K18=Calc.Top, AI$10=Calc.Left),"X",INDEX(CHOOSE(INDEX(MazeDef,$L18,AI$11),Primitives!$C$2:$E$4,Primitives!$C$6:$E$8,Primitives!$C$10:$E$12,Primitives!$C$14:$E$16,Primitives!$C$18:$E$20,Primitives!$C$22:$E$24,Primitives!$C$26:$E$28,Primitives!$C$30:$E$32,Primitives!$C$34:$E$36,Primitives!$C$38:$E$40,Primitives!$C$42:$E$44,Primitives!$C$46:$E$48,Primitives!$C$50:$E$52,Primitives!$C$54:$E$56,Primitives!$C$58:$E$60),$N18,AI$13)) -> 0 | AJ18: =IF(AND($K18=Calc.Top, AJ$10=Calc.Left),"X",INDEX(CHOOSE(INDEX(MazeDef,$L18,AJ$11),Primitives!$C$2:$E$4,Primitives!$C$6:$E$8,Primitives!$C$10:$E$12,Primitives!$C$14:$E$16,Primitives!$C$18:$E$20,Primitives!$C$22:$E$24,Primitives!$C$26:$E$28,Primitives!$C$30:$E$32,Primitives!$C$34:$E$36,Primitives!$C$38:$E$40,Primitives!$C$42:$E$44,Primitives!$C$46:$E$48,Primitives!$C$50:$E$52,Primitives!$C$54:$E$56,Primitives!$C$58:$E$60),$N18,AJ$13)) -> 0 | AK18: =IF(AND($K18=Calc.Top, AK$10=Calc.Left),"X",INDEX(CHOOSE(INDEX(MazeDef,$L18,AK$11),Primitives!$C$2:$E$4,Primitives!$C$6:$E$8,Primitives!$C$10:$E$12,Primitives!$C$14:$E$16,Primitives!$C$18:$E$20,Primitives!$C$22:$E$24,Primitives!$C$26:$E$28,Primitives!$C$30:$E$32,Primitives!$C$34:$E$36,Primitives!$C$38:$E$40,Primitives!$C$42:$E$44,Primitives!$C$46:$E$48,Primitives!$C$50:$E$52,Primitives!$C$54:$E$56,Primitives!$C$58:$E$60),$N18,AK$13)) -> 0 | AL18: =IF(AND($K18=Calc.Top, AL$10=Calc.Left),"X",INDEX(CHOOSE(INDEX(MazeDef,$L18,AL$11),Primitives!$C$2:$E$4,Primitives!$C$6:$E$8,Primitives!$C$10:$E$12,Primitives!$C$14:$E$16,Primitives!$C$18:$E$20,Primitives!$C$22:$E$24,Primitives!$C$26:$E$28,Primitives!$C$30:$E$32,Primitives!$C$34:$E$36,Primitives!$C$38:$E$40,Primitives!$C$42:$E$44,Primitives!$C$46:$E$48,Primitives!$C$50:$E$52,Primitives!$C$54:$E$56,Primitives!$C$58:$E$60),$N18,AL$13)) -> 1 | AM18: =IF(AND($K18=Calc.Top, AM$10=Calc.Left),"X",INDEX(CHOOSE(INDEX(MazeDef,$L18,AM$11),Primitives!$C$2:$E$4,Primitives!$C$6:$E$8,Primitives!$C$10:$E$12,Primitives!$C$14:$E$16,Primitives!$C$18:$E$20,Primitives!$C$22:$E$24,Primitives!$C$26:$E$28,Primitives!$C$30:$E$32,Primitives!$C$34:$E$36,Primitives!$C$38:$E$40,Primitives!$C$42:$E$44,Primitives!$C$46:$E$48,Primitives!$C$50:$E$52,Primitives!$C$54:$E$56,Primitives!$C$58:$E$60),$N18,AM$13)) -> 1 | AN18: =IF(AND($K18=Calc.Top, AN$10=Calc.Left),"X",INDEX(CHOOSE(INDEX(MazeDef,$L18,AN$11),Primitives!$C$2:$E$4,Primitives!$C$6:$E$8,Primitives!$C$10:$E$12,Primitives!$C$14:$E$16,Primitives!$C$18:$E$20,Primitives!$C$22:$E$24,Primitives!$C$26:$E$28,Primitives!$C$30:$E$32,Primitives!$C$34:$E$36,Primitives!$C$38:$E$40,Primitives!$C$42:$E$44,Primitives!$C$46:$E$48,Primitives!$C$50:$E$52,Primitives!$C$54:$E$56,Primitives!$C$58:$E$60),$N18,AN$13)) -> 0 | AO18: =IF(AND($K18=Calc.Top, AO$10=Calc.Left),"X",INDEX(CHOOSE(INDEX(MazeDef,$L18,AO$11),Primitives!$C$2:$E$4,Primitives!$C$6:$E$8,Primitives!$C$10:$E$12,Primitives!$C$14:$E$16,Primitives!$C$18:$E$20,Primitives!$C$22:$E$24,Primitives!$C$26:$E$28,Primitives!$C$30:$E$32,Primitives!$C$34:$E$36,Primitives!$C$38:$E$40,Primitives!$C$42:$E$44,Primitives!$C$46:$E$48,Primitives!$C$50:$E$52,Primitives!$C$54:$E$56,Primitives!$C$58:$E$60),$N18,AO$13)) -> 0 | AP18: =IF(AND($K18=Calc.Top, AP$10=Calc.Left),"X",INDEX(CHOOSE(INDEX(MazeDef,$L18,AP$11),Primitives!$C$2:$E$4,Primitives!$C$6:$E$8,Primitives!$C$10:$E$12,Primitives!$C$14:$E$16,Primitives!$C$18:$E$20,Primitives!$C$22:$E$24,Primitives!$C$26:$E$28,Primitives!$C$30:$E$32,Primitives!$C$34:$E$36,Primitives!$C$38:$E$40,Primitives!$C$42:$E$44,Primitives!$C$46:$E$48,Primitives!$C$50:$E$52,Primitives!$C$54:$E$56,Primitives!$C$58:$E$60),$N18,AP$13)) -> 0 | AQ18: =IF(AND($K18=Calc.Top, AQ$10=Calc.Left),"X",INDEX(CHOOSE(INDEX(MazeDef,$L18,AQ$11),Primitives!$C$2:$E$4,Primitives!$C$6:$E$8,Primitives!$C$10:$E$12,Primitives!$C$14:$E$16,Primitives!$C$18:$E$20,Primitives!$C$22:$E$24,Primitives!$C$26:$E$28,Primitives!$C$30:$E$32,Primitives!$C$34:$E$36,Primitives!$C$38:$E$40,Primitives!$C$42:$E$44,Primitives!$C$46:$E$48,Primitives!$C$50:$E$52,Primitives!$C$54:$E$56,Primitives!$C$58:$E$60),$N18,AQ$13)) -> 0 | AR18: =IF(AND($K18=Calc.Top, AR$10=Calc.Left),"X",INDEX(CHOOSE(INDEX(MazeDef,$L18,AR$11),Primitives!$C$2:$E$4,Primitives!$C$6:$E$8,Primitives!$C$10:$E$12,Primitives!$C$14:$E$16,Primitives!$C$18:$E$20,Primitives!$C$22:$E$24,Primitives!$C$26:$E$28,Primitives!$C$30:$E$32,Primitives!$C$34:$E$36,Primitives!$C$38:$E$40,Primitives!$C$42:$E$44,Primitives!$C$46:$E$48,Primitives!$C$50:$E$52,Primitives!$C$54:$E$56,Primitives!$C$58:$E$60),$N18,AR$13)) -> 1
A19: 2 | D19: 1 | K19: 6 | L19: 2 | N19: 3 | O19: =IF(AND($K19=Calc.Top, O$10=Calc.Left),"X",INDEX(CHOOSE(INDEX(MazeDef,$L19,O$11),Primitives!$C$2:$E$4,Primitives!$C$6:$E$8,Primitives!$C$10:$E$12,Primitives!$C$14:$E$16,Primitives!$C$18:$E$20,Primitives!$C$22:$E$24,Primitives!$C$26:$E$28,Primitives!$C$30:$E$32,Primitives!$C$34:$E$36,Primitives!$C$38:$E$40,Primitives!$C$42:$E$44,Primitives!$C$46:$E$48,Primitives!$C$50:$E$52,Primitives!$C$54:$E$56,Primitives!$C$58:$E$60),$N19,O$13)) -> 1 | P19: =IF(AND($K19=Calc.Top, P$10=Calc.Left),"X",INDEX(CHOOSE(INDEX(MazeDef,$L19,P$11),Primitives!$C$2:$E$4,Primitives!$C$6:$E$8,Primitives!$C$10:$E$12,Primitives!$C$14:$E$16,Primitives!$C$18:$E$20,Primitives!$C$22:$E$24,Primitives!$C$26:$E$28,Primitives!$C$30:$E$32,Primitives!$C$34:$E$36,Primitives!$C$38:$E$40,Primitives!$C$42:$E$44,Primitives!$C$46:$E$48,Primitives!$C$50:$E$52,Primitives!$C$54:$E$56,Primitives!$C$58:$E$60),$N19,P$13)) -> 0 | Q19: =IF(AND($K19=Calc.Top, Q$10=Calc.Left),"X",INDEX(CHOOSE(INDEX(MazeDef,$L19,Q$11),Primitives!$C$2:$E$4,Primitives!$C$6:$E$8,Primitives!$C$10:$E$12,Primitives!$C$14:$E$16,Primitives!$C$18:$E$20,Primitives!$C$22:$E$24,Primitives!$C$26:$E$28,Primitives!$C$30:$E$32,Primitives!$C$34:$E$36,Primitives!$C$38:$E$40,Primitives!$C$42:$E$44,Primitives!$C$46:$E$48,Primitives!$C$50:$E$52,Primitives!$C$54:$E$56,Primitives!$C$58:$E$60),$N19,Q$13)) -> 1 | R19: =IF(AND($K19=Calc.Top, R$10=Calc.Left),"X",INDEX(CHOOSE(INDEX(MazeDef,$L19,R$11),Primitives!$C$2:$E$4,Primitives!$C$6:$E$8,Primitives!$C$10:$E$12,Primitives!$C$14:$E$16,Primitives!$C$18:$E$20,Primitives!$C$22:$E$24,Primitives!$C$26:$E$28,Primitives!$C$30:$E$32,Primitives!$C$34:$E$36,Primitives!$C$38:$E$40,Primitives!$C$42:$E$44,Primitives!$C$46:$E$48,Primitives!$C$50:$E$52,Primitives!$C$54:$E$56,Primitives!$C$58:$E$60),$N19,R$13)) -> 1 | S19: =IF(AND($K19=Calc.Top, S$10=Calc.Left),"X",INDEX(CHOOSE(INDEX(MazeDef,$L19,S$11),Primitives!$C$2:$E$4,Primitives!$C$6:$E$8,Primitives!$C$10:$E$12,Primitives!$C$14:$E$16,Primitives!$C$18:$E$20,Primitives!$C$22:$E$24,Primitives!$C$26:$E$28,Primitives!$C$30:$E$32,Primitives!$C$34:$E$36,Primitives!$C$38:$E$40,Primitives!$C$42:$E$44,Primitives!$C$46:$E$48,Primitives!$C$50:$E$52,Primitives!$C$54:$E$56,Primitives!$C$58:$E$60),$N19,S$13)) -> 1 | T19: =IF(AND($K19=Calc.Top, T$10=Calc.Left),"X",INDEX(CHOOSE(INDEX(MazeDef,$L19,T$11),Primitives!$C$2:$E$4,Primitives!$C$6:$E$8,Primitives!$C$10:$E$12,Primitives!$C$14:$E$16,Primitives!$C$18:$E$20,Primitives!$C$22:$E$24,Primitives!$C$26:$E$28,Primitives!$C$30:$E$32,Primitives!$C$34:$E$36,Primitives!$C$38:$E$40,Primitives!$C$42:$E$44,Primitives!$C$46:$E$48,Primitives!$C$50:$E$52,Primitives!$C$54:$E$56,Primitives!$C$58:$E$60),$N19,T$13)) -> 1 | U19: =IF(AND($K19=Calc.Top, U$10=Calc.Left),"X",INDEX(CHOOSE(INDEX(MazeDef,$L19,U$11),Primitives!$C$2:$E$4,Primitives!$C$6:$E$8,Primitives!$C$10:$E$12,Primitives!$C$14:$E$16,Primitives!$C$18:$E$20,Primitives!$C$22:$E$24,Primitives!$C$26:$E$28,Primitives!$C$30:$E$32,Primitives!$C$34:$E$36,Primitives!$C$38:$E$40,Primitives!$C$42:$E$44,Primitives!$C$46:$E$48,Primitives!$C$50:$E$52,Primitives!$C$54:$E$56,Primitives!$C$58:$E$60),$N19,U$13)) -> 1 | V19: =IF(AND($K19=Calc.Top, V$10=Calc.Left),"X",INDEX(CHOOSE(INDEX(MazeDef,$L19,V$11),Primitives!$C$2:$E$4,Primitives!$C$6:$E$8,Primitives!$C$10:$E$12,Primitives!$C$14:$E$16,Primitives!$C$18:$E$20,Primitives!$C$22:$E$24,Primitives!$C$26:$E$28,Primitives!$C$30:$E$32,Primitives!$C$34:$E$36,Primitives!$C$38:$E$40,Primitives!$C$42:$E$44,Primitives!$C$46:$E$48,Primitives!$C$50:$E$52,Primitives!$C$54:$E$56,Primitives!$C$58:$E$60),$N19,V$13)) -> 1 | W19: =IF(AND($K19=Calc.Top, W$10=Calc.Left),"X",INDEX(CHOOSE(INDEX(MazeDef,$L19,W$11),Primitives!$C$2:$E$4,Primitives!$C$6:$E$8,Primitives!$C$10:$E$12,Primitives!$C$14:$E$16,Primitives!$C$18:$E$20,Primitives!$C$22:$E$24,Primitives!$C$26:$E$28,Primitives!$C$30:$E$32,Primitives!$C$34:$E$36,Primitives!$C$38:$E$40,Primitives!$C$42:$E$44,Primitives!$C$46:$E$48,Primitives!$C$50:$E$52,Primitives!$C$54:$E$56,Primitives!$C$58:$E$60),$N19,W$13)) -> 1 | X19: =IF(AND($K19=Calc.Top, X$10=Calc.Left),"X",INDEX(CHOOSE(INDEX(MazeDef,$L19,X$11),Primitives!$C$2:$E$4,Primitives!$C$6:$E$8,Primitives!$C$10:$E$12,Primitives!$C$14:$E$16,Primitives!$C$18:$E$20,Primitives!$C$22:$E$24,Primitives!$C$26:$E$28,Primitives!$C$30:$E$32,Primitives!$C$34:$E$36,Primitives!$C$38:$E$40,Primitives!$C$42:$E$44,Primitives!$C$46:$E$48,Primitives!$C$50:$E$52,Primitives!$C$54:$E$56,Primitives!$C$58:$E$60),$N19,X$13)) -> 1 | Y19: =IF(AND($K19=Calc.Top, Y$10=Calc.Left),"X",INDEX(CHOOSE(INDEX(MazeDef,$L19,Y$11),Primitives!$C$2:$E$4,Primitives!$C$6:$E$8,Primitives!$C$10:$E$12,Primitives!$C$14:$E$16,Primitives!$C$18:$E$20,Primitives!$C$22:$E$24,Primitives!$C$26:$E$28,Primitives!$C$30:$E$32,Primitives!$C$34:$E$36,Primitives!$C$38:$E$40,Primitives!$C$42:$E$44,Primitives!$C$46:$E$48,Primitives!$C$50:$E$52,Primitives!$C$54:$E$56,Primitives!$C$58:$E$60),$N19,Y$13)) -> 0 | Z19: =IF(AND($K19=Calc.Top, Z$10=Calc.Left),"X",INDEX(CHOOSE(INDEX(MazeDef,$L19,Z$11),Primitives!$C$2:$E$4,Primitives!$C$6:$E$8,Primitives!$C$10:$E$12,Primitives!$C$14:$E$16,Primitives!$C$18:$E$20,Primitives!$C$22:$E$24,Primitives!$C$26:$E$28,Primitives!$C$30:$E$32,Primitives!$C$34:$E$36,Primitives!$C$38:$E$40,Primitives!$C$42:$E$44,Primitives!$C$46:$E$48,Primitives!$C$50:$E$52,Primitives!$C$54:$E$56,Primitives!$C$58:$E$60),$N19,Z$13)) -> 1 | AA19: =IF(AND($K19=Calc.Top, AA$10=Calc.Left),"X",INDEX(CHOOSE(INDEX(MazeDef,$L19,AA$11),Primitives!$C$2:$E$4,Primitives!$C$6:$E$8,Primitives!$C$10:$E$12,Primitives!$C$14:$E$16,Primitives!$C$18:$E$20,Primitives!$C$22:$E$24,Primitives!$C$26:$E$28,Primitives!$C$30:$E$32,Primitives!$C$34:$E$36,Primitives!$C$38:$E$40,Primitives!$C$42:$E$44,Primitives!$C$46:$E$48,Primitives!$C$50:$E$52,Primitives!$C$54:$E$56,Primitives!$C$58:$E$60),$N19,AA$13)) -> 1 | AB19: =IF(AND($K19=Calc.Top, AB$10=Calc.Left),"X",INDEX(CHOOSE(INDEX(MazeDef,$L19,AB$11),Primitives!$C$2:$E$4,Primitives!$C$6:$E$8,Primitives!$C$10:$E$12,Primitives!$C$14:$E$16,Primitives!$C$18:$E$20,Primitives!$C$22:$E$24,Primitives!$C$26:$E$28,Primitives!$C$30:$E$32,Primitives!$C$34:$E$36,Primitives!$C$38:$E$40,Primitives!$C$42:$E$44,Primitives!$C$46:$E$48,Primitives!$C$50:$E$52,Primitives!$C$54:$E$56,Primitives!$C$58:$E$60),$N19,AB$13)) -> 1 | AC19: =IF(AND($K19=Calc.Top, AC$10=Calc.Left),"X",INDEX(CHOOSE(INDEX(MazeDef,$L19,AC$11),Primitives!$C$2:$E$4,Primitives!$C$6:$E$8,Primitives!$C$10:$E$12,Primitives!$C$14:$E$16,Primitives!$C$18:$E$20,Primitives!$C$22:$E$24,Primitives!$C$26:$E$28,Primitives!$C$30:$E$32,Primitives!$C$34:$E$36,Primitives!$C$38:$E$40,Primitives!$C$42:$E$44,Primitives!$C$46:$E$48,Primitives!$C$50:$E$52,Primitives!$C$54:$E$56,Primitives!$C$58:$E$60),$N19,AC$13)) -> 1 | AD19: =IF(AND($K19=Calc.Top, AD$10=Calc.Left),"X",INDEX(CHOOSE(INDEX(MazeDef,$L19,AD$11),Primitives!$C$2:$E$4,Primitives!$C$6:$E$8,Primitives!$C$10:$E$12,Primitives!$C$14:$E$16,Primitives!$C$18:$E$20,Primitives!$C$22:$E$24,Primitives!$C$26:$E$28,Primitives!$C$30:$E$32,Primitives!$C$34:$E$36,Primitives!$C$38:$E$40,Primitives!$C$42:$E$44,Primitives!$C$46:$E$48,Primitives!$C$50:$E$52,Primitives!$C$54:$E$56,Primitives!$C$58:$E$60),$N19,AD$13)) -> 1 | AE19: =IF(AND($K19=Calc.Top, AE$10=Calc.Left),"X",INDEX(CHOOSE(INDEX(MazeDef,$L19,AE$11),Primitives!$C$2:$E$4,Primitives!$C$6:$E$8,Primitives!$C$10:$E$12,Primitives!$C$14:$E$16,Primitives!$C$18:$E$20,Primitives!$C$22:$E$24,Primitives!$C$26:$E$28,Primitives!$C$30:$E$32,Primitives!$C$34:$E$36,Primitives!$C$38:$E$40,Primitives!$C$42:$E$44,Primitives!$C$46:$E$48,Primitives!$C$50:$E$52,Primitives!$C$54:$E$56,Primitives!$C$58:$E$60),$N19,AE$13)) -> 0 | AF19: =IF(AND($K19=Calc.Top, AF$10=Calc.Left),"X",INDEX(CHOOSE(INDEX(MazeDef,$L19,AF$11),Primitives!$C$2:$E$4,Primitives!$C$6:$E$8,Primitives!$C$10:$E$12,Primitives!$C$14:$E$16,Primitives!$C$18:$E$20,Primitives!$C$22:$E$24,Primitives!$C$26:$E$28,Primitives!$C$30:$E$32,Primitives!$C$34:$E$36,Primitives!$C$38:$E$40,Primitives!$C$42:$E$44,Primitives!$C$46:$E$48,Primitives!$C$50:$E$52,Primitives!$C$54:$E$56,Primitives!$C$58:$E$60),$N19,AF$13)) -> 1 | AG19: =IF(AND($K19=Calc.Top, AG$10=Calc.Left),"X",INDEX(CHOOSE(INDEX(MazeDef,$L19,AG$11),Primitives!$C$2:$E$4,Primitives!$C$6:$E$8,Primitives!$C$10:$E$12,Primitives!$C$14:$E$16,Primitives!$C$18:$E$20,Primitives!$C$22:$E$24,Primitives!$C$26:$E$28,Primitives!$C$30:$E$32,Primitives!$C$34:$E$36,Primitives!$C$38:$E$40,Primitives!$C$42:$E$44,Primitives!$C$46:$E$48,Primitives!$C$50:$E$52,Primitives!$C$54:$E$56,Primitives!$C$58:$E$60),$N19,AG$13)) -> 1 | AH19: =IF(AND($K19=Calc.Top, AH$10=Calc.Left),"X",INDEX(CHOOSE(INDEX(MazeDef,$L19,AH$11),Primitives!$C$2:$E$4,Primitives!$C$6:$E$8,Primitives!$C$10:$E$12,Primitives!$C$14:$E$16,Primitives!$C$18:$E$20,Primitives!$C$22:$E$24,Primitives!$C$26:$E$28,Primitives!$C$30:$E$32,Primitives!$C$34:$E$36,Primitives!$C$38:$E$40,Primitives!$C$42:$E$44,Primitives!$C$46:$E$48,Primitives!$C$50:$E$52,Primitives!$C$54:$E$56,Primitives!$C$58:$E$60),$N19,AH$13)) -> 0 | AI19: =IF(AND($K19=Calc.Top, AI$10=Calc.Left),"X",INDEX(CHOOSE(INDEX(MazeDef,$L19,AI$11),Primitives!$C$2:$E$4,Primitives!$C$6:$E$8,Primitives!$C$10:$E$12,Primitives!$C$14:$E$16,Primitives!$C$18:$E$20,Primitives!$C$22:$E$24,Primitives!$C$26:$E$28,Primitives!$C$30:$E$32,Primitives!$C$34:$E$36,Primitives!$C$38:$E$40,Primitives!$C$42:$E$44,Primitives!$C$46:$E$48,Primitives!$C$50:$E$52,Primitives!$C$54:$E$56,Primitives!$C$58:$E$60),$N19,AI$13)) -> 1 | AJ19: =IF(AND($K19=Calc.Top, AJ$10=Calc.Left),"X",INDEX(CHOOSE(INDEX(MazeDef,$L19,AJ$11),Primitives!$C$2:$E$4,Primitives!$C$6:$E$8,Primitives!$C$10:$E$12,Primitives!$C$14:$E$16,Primitives!$C$18:$E$20,Primitives!$C$22:$E$24,Primitives!$C$26:$E$28,Primitives!$C$30:$E$32,Primitives!$C$34:$E$36,Primitives!$C$38:$E$40,Primitives!$C$42:$E$44,Primitives!$C$46:$E$48,Primitives!$C$50:$E$52,Primitives!$C$54:$E$56,Primitives!$C$58:$E$60),$N19,AJ$13)) -> 1 | AK19: =IF(AND($K19=Calc.Top, AK$10=Calc.Left),"X",INDEX(CHOOSE(INDEX(MazeDef,$L19,AK$11),Primitives!$C$2:$E$4,Primitives!$C$6:$E$8,Primitives!$C$10:$E$12,Primitives!$C$14:$E$16,Primitives!$C$18:$E$20,Primitives!$C$22:$E$24,Primitives!$C$26:$E$28,Primitives!$C$30:$E$32,Primitives!$C$34:$E$36,Primitives!$C$38:$E$40,Primitives!$C$42:$E$44,Primitives!$C$46:$E$48,Primitives!$C$50:$E$52,Primitives!$C$54:$E$56,Primitives!$C$58:$E$60),$N19,AK$13)) -> 0 | AL19: =IF(AND($K19=Calc.Top, AL$10=Calc.Left),"X",INDEX(CHOOSE(INDEX(MazeDef,$L19,AL$11),Primitives!$C$2:$E$4,Primitives!$C$6:$E$8,Primitives!$C$10:$E$12,Primitives!$C$14:$E$16,Primitives!$C$18:$E$20,Primitives!$C$22:$E$24,Primitives!$C$26:$E$28,Primitives!$C$30:$E$32,Primitives!$C$34:$E$36,Primitives!$C$38:$E$40,Primitives!$C$42:$E$44,Primitives!$C$46:$E$48,Primitives!$C$50:$E$52,Primitives!$C$54:$E$56,Primitives!$C$58:$E$60),$N19,AL$13)) -> 1 | AM19: =IF(AND($K19=Calc.Top, AM$10=Calc.Left),"X",INDEX(CHOOSE(INDEX(MazeDef,$L19,AM$11),Primitives!$C$2:$E$4,Primitives!$C$6:$E$8,Primitives!$C$10:$E$12,Primitives!$C$14:$E$16,Primitives!$C$18:$E$20,Primitives!$C$22:$E$24,Primitives!$C$26:$E$28,Primitives!$C$30:$E$32,Primitives!$C$34:$E$36,Primitives!$C$38:$E$40,Primitives!$C$42:$E$44,Primitives!$C$46:$E$48,Primitives!$C$50:$E$52,Primitives!$C$54:$E$56,Primitives!$C$58:$E$60),$N19,AM$13)) -> 1 | AN19: =IF(AND($K19=Calc.Top, AN$10=Calc.Left),"X",INDEX(CHOOSE(INDEX(MazeDef,$L19,AN$11),Primitives!$C$2:$E$4,Primitives!$C$6:$E$8,Primitives!$C$10:$E$12,Primitives!$C$14:$E$16,Primitives!$C$18:$E$20,Primitives!$C$22:$E$24,Primitives!$C$26:$E$28,Primitives!$C$30:$E$32,Primitives!$C$34:$E$36,Primitives!$C$38:$E$40,Primitives!$C$42:$E$44,Primitives!$C$46:$E$48,Primitives!$C$50:$E$52,Primitives!$C$54:$E$56,Primitives!$C$58:$E$60),$N19,AN$13)) -> 0 | AO19: =IF(AND($K19=Calc.Top, AO$10=Calc.Left),"X",INDEX(CHOOSE(INDEX(MazeDef,$L19,AO$11),Primitives!$C$2:$E$4,Primitives!$C$6:$E$8,Primitives!$C$10:$E$12,Primitives!$C$14:$E$16,Primitives!$C$18:$E$20,Primitives!$C$22:$E$24,Primitives!$C$26:$E$28,Primitives!$C$30:$E$32,Primitives!$C$34:$E$36,Primitives!$C$38:$E$40,Primitives!$C$42:$E$44,Primitives!$C$46:$E$48,Primitives!$C$50:$E$52,Primitives!$C$54:$E$56,Primitives!$C$58:$E$60),$N19,AO$13)) -> 1 | AP19: =IF(AND($K19=Calc.Top, AP$10=Calc.Left),"X",INDEX(CHOOSE(INDEX(MazeDef,$L19,AP$11),Primitives!$C$2:$E$4,Primitives!$C$6:$E$8,Primitives!$C$10:$E$12,Primitives!$C$14:$E$16,Primitives!$C$18:$E$20,Primitives!$C$22:$E$24,Primitives!$C$26:$E$28,Primitives!$C$30:$E$32,Primitives!$C$34:$E$36,Primitives!$C$38:$E$40,Primitives!$C$42:$E$44,Primitives!$C$46:$E$48,Primitives!$C$50:$E$52,Primitives!$C$54:$E$56,Primitives!$C$58:$E$60),$N19,AP$13)) -> 1 | AQ19: =IF(AND($K19=Calc.Top, AQ$10=Calc.Left),"X",INDEX(CHOOSE(INDEX(MazeDef,$L19,AQ$11),Primitives!$C$2:$E$4,Primitives!$C$6:$E$8,Primitives!$C$10:$E$12,Primitives!$C$14:$E$16,Primitives!$C$18:$E$20,Primitives!$C$22:$E$24,Primitives!$C$26:$E$28,Primitives!$C$30:$E$32,Primitives!$C$34:$E$36,Primitives!$C$38:$E$40,Primitives!$C$42:$E$44,Primitives!$C$46:$E$48,Primitives!$C$50:$E$52,Primitives!$C$54:$E$56,Primitives!$C$58:$E$60),$N19,AQ$13)) -> 1 | AR19: =IF(AND($K19=Calc.Top, AR$10=Calc.Left),"X",INDEX(CHOOSE(INDEX(MazeDef,$L19,AR$11),Primitives!$C$2:$E$4,Primitives!$C$6:$E$8,Primitives!$C$10:$E$12,Primitives!$C$14:$E$16,Primitives!$C$18:$E$20,Primitives!$C$22:$E$24,Primitives!$C$26:$E$28,Primitives!$C$30:$E$32,Primitives!$C$34:$E$36,Primitives!$C$38:$E$40,Primitives!$C$42:$E$44,Primitives!$C$46:$E$48,Primitives!$C$50:$E$52,Primitives!$C$54:$E$56,Primitives!$C$58:$E$60),$N19,AR$13)) -> 1
B20: 1 | C20: 1 | D20: 1 | K20: 7 | L20: 3 | M20: 3 | N20: 1 | O20: =IF(AND($K20=Calc.Top, O$10=Calc.Left),"X",INDEX(CHOOSE(INDEX(MazeDef,$L20,O$11),Primitives!$C$2:$E$4,Primitives!$C$6:$E$8,Primitives!$C$10:$E$12,Primitives!$C$14:$E$16,Primitives!$C$18:$E$20,Primitives!$C$22:$E$24,Primitives!$C$26:$E$28,Primitives!$C$30:$E$32,Primitives!$C$34:$E$36,Primitives!$C$38:$E$40,Primitives!$C$42:$E$44,Primitives!$C$46:$E$48,Primitives!$C$50:$E$52,Primitives!$C$54:$E$56,Primitives!$C$58:$E$60),$N20,O$13)) -> 1 | P20: =IF(AND($K20=Calc.Top, P$10=Calc.Left),"X",INDEX(CHOOSE(INDEX(MazeDef,$L20,P$11),Primitives!$C$2:$E$4,Primitives!$C$6:$E$8,Primitives!$C$10:$E$12,Primitives!$C$14:$E$16,Primitives!$C$18:$E$20,Primitives!$C$22:$E$24,Primitives!$C$26:$E$28,Primitives!$C$30:$E$32,Primitives!$C$34:$E$36,Primitives!$C$38:$E$40,Primitives!$C$42:$E$44,Primitives!$C$46:$E$48,Primitives!$C$50:$E$52,Primitives!$C$54:$E$56,Primitives!$C$58:$E$60),$N20,P$13)) -> 0 | Q20: =IF(AND($K20=Calc.Top, Q$10=Calc.Left),"X",INDEX(CHOOSE(INDEX(MazeDef,$L20,Q$11),Primitives!$C$2:$E$4,Primitives!$C$6:$E$8,Primitives!$C$10:$E$12,Primitives!$C$14:$E$16,Primitives!$C$18:$E$20,Primitives!$C$22:$E$24,Primitives!$C$26:$E$28,Primitives!$C$30:$E$32,Primitives!$C$34:$E$36,Primitives!$C$38:$E$40,Primitives!$C$42:$E$44,Primitives!$C$46:$E$48,Primitives!$C$50:$E$52,Primitives!$C$54:$E$56,Primitives!$C$58:$E$60),$N20,Q$13)) -> 1 | R20: =IF(AND($K20=Calc.Top, R$10=Calc.Left),"X",INDEX(CHOOSE(INDEX(MazeDef,$L20,R$11),Primitives!$C$2:$E$4,Primitives!$C$6:$E$8,Primitives!$C$10:$E$12,Primitives!$C$14:$E$16,Primitives!$C$18:$E$20,Primitives!$C$22:$E$24,Primitives!$C$26:$E$28,Primitives!$C$30:$E$32,Primitives!$C$34:$E$36,Primitives!$C$38:$E$40,Primitives!$C$42:$E$44,Primitives!$C$46:$E$48,Primitives!$C$50:$E$52,Primitives!$C$54:$E$56,Primitives!$C$58:$E$60),$N20,R$13)) -> 1 | S20: =IF(AND($K20=Calc.Top, S$10=Calc.Left),"X",INDEX(CHOOSE(INDEX(MazeDef,$L20,S$11),Primitives!$C$2:$E$4,Primitives!$C$6:$E$8,Primitives!$C$10:$E$12,Primitives!$C$14:$E$16,Primitives!$C$18:$E$20,Primitives!$C$22:$E$24,Primitives!$C$26:$E$28,Primitives!$C$30:$E$32,Primitives!$C$34:$E$36,Primitives!$C$38:$E$40,Primitives!$C$42:$E$44,Primitives!$C$46:$E$48,Primitives!$C$50:$E$52,Primitives!$C$54:$E$56,Primitives!$C$58:$E$60),$N20,S$13)) -> 1 | T20: =IF(AND($K20=Calc.Top, T$10=Calc.Left),"X",INDEX(CHOOSE(INDEX(MazeDef,$L20,T$11),Primitives!$C$2:$E$4,Primitives!$C$6:$E$8,Primitives!$C$10:$E$12,Primitives!$C$14:$E$16,Primitives!$C$18:$E$20,Primitives!$C$22:$E$24,Primitives!$C$26:$E$28,Primitives!$C$30:$E$32,Primitives!$C$34:$E$36,Primitives!$C$38:$E$40,Primitives!$C$42:$E$44,Primitives!$C$46:$E$48,Primitives!$C$50:$E$52,Primitives!$C$54:$E$56,Primitives!$C$58:$E$60),$N20,T$13)) -> 1 | U20: =IF(AND($K20=Calc.Top, U$10=Calc.Left),"X",INDEX(CHOOSE(INDEX(MazeDef,$L20,U$11),Primitives!$C$2:$E$4,Primitives!$C$6:$E$8,Primitives!$C$10:$E$12,Primitives!$C$14:$E$16,Primitives!$C$18:$E$20,Primitives!$C$22:$E$24,Primitives!$C$26:$E$28,Primitives!$C$30:$E$32,Primitives!$C$34:$E$36,Primitives!$C$38:$E$40,Primitives!$C$42:$E$44,Primitives!$C$46:$E$48,Primitives!$C$50:$E$52,Primitives!$C$54:$E$56,Primitives!$C$58:$E$60),$N20,U$13)) -> 1 | V20: =IF(AND($K20=Calc.Top, V$10=Calc.Left),"X",INDEX(CHOOSE(INDEX(MazeDef,$L20,V$11),Primitives!$C$2:$E$4,Primitives!$C$6:$E$8,Primitives!$C$10:$E$12,Primitives!$C$14:$E$16,Primitives!$C$18:$E$20,Primitives!$C$22:$E$24,Primitives!$C$26:$E$28,Primitives!$C$30:$E$32,Primitives!$C$34:$E$36,Primitives!$C$38:$E$40,Primitives!$C$42:$E$44,Primitives!$C$46:$E$48,Primitives!$C$50:$E$52,Primitives!$C$54:$E$56,Primitives!$C$58:$E$60),$N20,V$13)) -> 1 | W20: =IF(AND($K20=Calc.Top, W$10=Calc.Left),"X",INDEX(CHOOSE(INDEX(MazeDef,$L20,W$11),Primitives!$C$2:$E$4,Primitives!$C$6:$E$8,Primitives!$C$10:$E$12,Primitives!$C$14:$E$16,Primitives!$C$18:$E$20,Primitives!$C$22:$E$24,Primitives!$C$26:$E$28,Primitives!$C$30:$E$32,Primitives!$C$34:$E$36,Primitives!$C$38:$E$40,Primitives!$C$42:$E$44,Primitives!$C$46:$E$48,Primitives!$C$50:$E$52,Primitives!$C$54:$E$56,Primitives!$C$58:$E$60),$N20,W$13)) -> 1 | X20: =IF(AND($K20=Calc.Top, X$10=Calc.Left),"X",INDEX(CHOOSE(INDEX(MazeDef,$L20,X$11),Primitives!$C$2:$E$4,Primitives!$C$6:$E$8,Primitives!$C$10:$E$12,Primitives!$C$14:$E$16,Primitives!$C$18:$E$20,Primitives!$C$22:$E$24,Primitives!$C$26:$E$28,Primitives!$C$30:$E$32,Primitives!$C$34:$E$36,Primitives!$C$38:$E$40,Primitives!$C$42:$E$44,Primitives!$C$46:$E$48,Primitives!$C$50:$E$52,Primitives!$C$54:$E$56,Primitives!$C$58:$E$60),$N20,X$13)) -> 1 | Y20: =IF(AND($K20=Calc.Top, Y$10=Calc.Left),"X",INDEX(CHOOSE(INDEX(MazeDef,$L20,Y$11),Primitives!$C$2:$E$4,Primitives!$C$6:$E$8,Primitives!$C$10:$E$12,Primitives!$C$14:$E$16,Primitives!$C$18:$E$20,Primitives!$C$22:$E$24,Primitives!$C$26:$E$28,Primitives!$C$30:$E$32,Primitives!$C$34:$E$36,Primitives!$C$38:$E$40,Primitives!$C$42:$E$44,Primitives!$C$46:$E$48,Primitives!$C$50:$E$52,Primitives!$C$54:$E$56,Primitives!$C$58:$E$60),$N20,Y$13)) -> 0 | Z20: =IF(AND($K20=Calc.Top, Z$10=Calc.Left),"X",INDEX(CHOOSE(INDEX(MazeDef,$L20,Z$11),Primitives!$C$2:$E$4,Primitives!$C$6:$E$8,Primitives!$C$10:$E$12,Primitives!$C$14:$E$16,Primitives!$C$18:$E$20,Primitives!$C$22:$E$24,Primitives!$C$26:$E$28,Primitives!$C$30:$E$32,Primitives!$C$34:$E$36,Primitives!$C$38:$E$40,Primitives!$C$42:$E$44,Primitives!$C$46:$E$48,Primitives!$C$50:$E$52,Primitives!$C$54:$E$56,Primitives!$C$58:$E$60),$N20,Z$13)) -> 1 | AA20: =IF(AND($K20=Calc.Top, AA$10=Calc.Left),"X",INDEX(CHOOSE(INDEX(MazeDef,$L20,AA$11),Primitives!$C$2:$E$4,Primitives!$C$6:$E$8,Primitives!$C$10:$E$12,Primitives!$C$14:$E$16,Primitives!$C$18:$E$20,Primitives!$C$22:$E$24,Primitives!$C$26:$E$28,Primitives!$C$30:$E$32,Primitives!$C$34:$E$36,Primitives!$C$38:$E$40,Primitives!$C$42:$E$44,Primitives!$C$46:$E$48,Primitives!$C$50:$E$52,Primitives!$C$54:$E$56,Primitives!$C$58:$E$60),$N20,AA$13)) -> 1 | AB20: =IF(AND($K20=Calc.Top, AB$10=Calc.Left),"X",INDEX(CHOOSE(INDEX(MazeDef,$L20,AB$11),Primitives!$C$2:$E$4,Primitives!$C$6:$E$8,Primitives!$C$10:$E$12,Primitives!$C$14:$E$16,Primitives!$C$18:$E$20,Primitives!$C$22:$E$24,Primitives!$C$26:$E$28,Primitives!$C$30:$E$32,Primitives!$C$34:$E$36,Primitives!$C$38:$E$40,Primitives!$C$42:$E$44,Primitives!$C$46:$E$48,Primitives!$C$50:$E$52,Primitives!$C$54:$E$56,Primitives!$C$58:$E$60),$N20,AB$13)) -> 1 | AC20: =IF(AND($K20=Calc.Top, AC$10=Calc.Left),"X",INDEX(CHOOSE(INDEX(MazeDef,$L20,AC$11),Primitives!$C$2:$E$4,Primitives!$C$6:$E$8,Primitives!$C$10:$E$12,Primitives!$C$14:$E$16,Primitives!$C$18:$E$20,Primitives!$C$22:$E$24,Primitives!$C$26:$E$28,Primitives!$C$30:$E$32,Primitives!$C$34:$E$36,Primitives!$C$38:$E$40,Primitives!$C$42:$E$44,Primitives!$C$46:$E$48,Primitives!$C$50:$E$52,Primitives!$C$54:$E$56,Primitives!$C$58:$E$60),$N20,AC$13)) -> 1 | AD20: =IF(AND($K20=Calc.Top, AD$10=Calc.Left),"X",INDEX(CHOOSE(INDEX(MazeDef,$L20,AD$11),Primitives!$C$2:$E$4,Primitives!$C$6:$E$8,Primitives!$C$10:$E$12,Primitives!$C$14:$E$16,Primitives!$C$18:$E$20,Primitives!$C$22:$E$24,Primitives!$C$26:$E$28,Primitives!$C$30:$E$32,Primitives!$C$34:$E$36,Primitives!$C$38:$E$40,Primitives!$C$42:$E$44,Primitives!$C$46:$E$48,Primitives!$C$50:$E$52,Primitives!$C$54:$E$56,Primitives!$C$58:$E$60),$N20,AD$13)) -> 1 | AE20: =IF(AND($K20=Calc.Top, AE$10=Calc.Left),"X",INDEX(CHOOSE(INDEX(MazeDef,$L20,AE$11),Primitives!$C$2:$E$4,Primitives!$C$6:$E$8,Primitives!$C$10:$E$12,Primitives!$C$14:$E$16,Primitives!$C$18:$E$20,Primitives!$C$22:$E$24,Primitives!$C$26:$E$28,Primitives!$C$30:$E$32,Primitives!$C$34:$E$36,Primitives!$C$38:$E$40,Primitives!$C$42:$E$44,Primitives!$C$46:$E$48,Primitives!$C$50:$E$52,Primitives!$C$54:$E$56,Primitives!$C$58:$E$60),$N20,AE$13)) -> 0 | AF20: =IF(AND($K20=Calc.Top, AF$10=Calc.Left),"X",INDEX(CHOOSE(INDEX(MazeDef,$L20,AF$11),Primitives!$C$2:$E$4,Primitives!$C$6:$E$8,Primitives!$C$10:$E$12,Primitives!$C$14:$E$16,Primitives!$C$18:$E$20,Primitives!$C$22:$E$24,Primitives!$C$26:$E$28,Primitives!$C$30:$E$32,Primitives!$C$34:$E$36,Primitives!$C$38:$E$40,Primitives!$C$42:$E$44,Primitives!$C$46:$E$48,Primitives!$C$50:$E$52,Primitives!$C$54:$E$56,Primitives!$C$58:$E$60),$N20,AF$13)) -> 1 | AG20: =IF(AND($K20=Calc.Top, AG$10=Calc.Left),"X",INDEX(CHOOSE(INDEX(MazeDef,$L20,AG$11),Primitives!$C$2:$E$4,Primitives!$C$6:$E$8,Primitives!$C$10:$E$12,Primitives!$C$14:$E$16,Primitives!$C$18:$E$20,Primitives!$C$22:$E$24,Primitives!$C$26:$E$28,Primitives!$C$30:$E$32,Primitives!$C$34:$E$36,Primitives!$C$38:$E$40,Primitives!$C$42:$E$44,Primitives!$C$46:$E$48,Primitives!$C$50:$E$52,Primitives!$C$54:$E$56,Primitives!$C$58:$E$60),$N20,AG$13)) -> 1 | AH20: =IF(AND($K20=Calc.Top, AH$10=Calc.Left),"X",INDEX(CHOOSE(INDEX(MazeDef,$L20,AH$11),Primitives!$C$2:$E$4,Primitives!$C$6:$E$8,Primitives!$C$10:$E$12,Primitives!$C$14:$E$16,Primitives!$C$18:$E$20,Primitives!$C$22:$E$24,Primitives!$C$26:$E$28,Primitives!$C$30:$E$32,Primitives!$C$34:$E$36,Primitives!$C$38:$E$40,Primitives!$C$42:$E$44,Primitives!$C$46:$E$48,Primitives!$C$50:$E$52,Primitives!$C$54:$E$56,Primitives!$C$58:$E$60),$N20,AH$13)) -> 0 | AI20: =IF(AND($K20=Calc.Top, AI$10=Calc.Left),"X",INDEX(CHOOSE(INDEX(MazeDef,$L20,AI$11),Primitives!$C$2:$E$4,Primitives!$C$6:$E$8,Primitives!$C$10:$E$12,Primitives!$C$14:$E$16,Primitives!$C$18:$E$20,Primitives!$C$22:$E$24,Primitives!$C$26:$E$28,Primitives!$C$30:$E$32,Primitives!$C$34:$E$36,Primitives!$C$38:$E$40,Primitives!$C$42:$E$44,Primitives!$C$46:$E$48,Primitives!$C$50:$E$52,Primitives!$C$54:$E$56,Primitives!$C$58:$E$60),$N20,AI$13)) -> 1 | AJ20: =IF(AND($K20=Calc.Top, AJ$10=Calc.Left),"X",INDEX(CHOOSE(INDEX(MazeDef,$L20,AJ$11),Primitives!$C$2:$E$4,Primitives!$C$6:$E$8,Primitives!$C$10:$E$12,Primitives!$C$14:$E$16,Primitives!$C$18:$E$20,Primitives!$C$22:$E$24,Primitives!$C$26:$E$28,Primitives!$C$30:$E$32,Primitives!$C$34:$E$36,Primitives!$C$38:$E$40,Primitives!$C$42:$E$44,Primitives!$C$46:$E$48,Primitives!$C$50:$E$52,Primitives!$C$54:$E$56,Primitives!$C$58:$E$60),$N20,AJ$13)) -> 1 | AK20: =IF(AND($K20=Calc.Top, AK$10=Calc.Left),"X",INDEX(CHOOSE(INDEX(MazeDef,$L20,AK$11),Primitives!$C$2:$E$4,Primitives!$C$6:$E$8,Primitives!$C$10:$E$12,Primitives!$C$14:$E$16,Primitives!$C$18:$E$20,Primitives!$C$22:$E$24,Primitives!$C$26:$E$28,Primitives!$C$30:$E$32,Primitives!$C$34:$E$36,Primitives!$C$38:$E$40,Primitives!$C$42:$E$44,Primitives!$C$46:$E$48,Primitives!$C$50:$E$52,Primitives!$C$54:$E$56,Primitives!$C$58:$E$60),$N20,AK$13)) -> 0 | AL20: =IF(AND($K20=Calc.Top, AL$10=Calc.Left),"X",INDEX(CHOOSE(INDEX(MazeDef,$L20,AL$11),Primitives!$C$2:$E$4,Primitives!$C$6:$E$8,Primitives!$C$10:$E$12,Primitives!$C$14:$E$16,Primitives!$C$18:$E$20,Primitives!$C$22:$E$24,Primitives!$C$26:$E$28,Primitives!$C$30:$E$32,Primitives!$C$34:$E$36,Primitives!$C$38:$E$40,Primitives!$C$42:$E$44,Primitives!$C$46:$E$48,Primitives!$C$50:$E$52,Primitives!$C$54:$E$56,Primitives!$C$58:$E$60),$N20,AL$13)) -> 1 | AM20: =IF(AND($K20=Calc.Top, AM$10=Calc.Left),"X",INDEX(CHOOSE(INDEX(MazeDef,$L20,AM$11),Primitives!$C$2:$E$4,Primitives!$C$6:$E$8,Primitives!$C$10:$E$12,Primitives!$C$14:$E$16,Primitives!$C$18:$E$20,Primitives!$C$22:$E$24,Primitives!$C$26:$E$28,Primitives!$C$30:$E$32,Primitives!$C$34:$E$36,Primitives!$C$38:$E$40,Primitives!$C$42:$E$44,Primitives!$C$46:$E$48,Primitives!$C$50:$E$52,Primitives!$C$54:$E$56,Primitives!$C$58:$E$60),$N20,AM$13)) -> 1 | AN20: =IF(AND($K20=Calc.Top, AN$10=Calc.Left),"X",INDEX(CHOOSE(INDEX(MazeDef,$L20,AN$11),Primitives!$C$2:$E$4,Primitives!$C$6:$E$8,Primitives!$C$10:$E$12,Primitives!$C$14:$E$16,Primitives!$C$18:$E$20,Primitives!$C$22:$E$24,Primitives!$C$26:$E$28,Primitives!$C$30:$E$32,Primitives!$C$34:$E$36,Primitives!$C$38:$E$40,Primitives!$C$42:$E$44,Primitives!$C$46:$E$48,Primitives!$C$50:$E$52,Primitives!$C$54:$E$56,Primitives!$C$58:$E$60),$N20,AN$13)) -> 0 | AO20: =IF(AND($K20=Calc.Top, AO$10=Calc.Left),"X",INDEX(CHOOSE(INDEX(MazeDef,$L20,AO$11),Primitives!$C$2:$E$4,Primitives!$C$6:$E$8,Primitives!$C$10:$E$12,Primitives!$C$14:$E$16,Primitives!$C$18:$E$20,Primitives!$C$22:$E$24,Primitives!$C$26:$E$28,Primitives!$C$30:$E$32,Primitives!$C$34:$E$36,Primitives!$C$38:$E$40,Primitives!$C$42:$E$44,Primitives!$C$46:$E$48,Primitives!$C$50:$E$52,Primitives!$C$54:$E$56,Primitives!$C$58:$E$60),$N20,AO$13)) -> 1 | AP20: =IF(AND($K20=Calc.Top, AP$10=Calc.Left),"X",INDEX(CHOOSE(INDEX(MazeDef,$L20,AP$11),Primitives!$C$2:$E$4,Primitives!$C$6:$E$8,Primitives!$C$10:$E$12,Primitives!$C$14:$E$16,Primitives!$C$18:$E$20,Primitives!$C$22:$E$24,Primitives!$C$26:$E$28,Primitives!$C$30:$E$32,Primitives!$C$34:$E$36,Primitives!$C$38:$E$40,Primitives!$C$42:$E$44,Primitives!$C$46:$E$48,Primitives!$C$50:$E$52,Primitives!$C$54:$E$56,Primitives!$C$58:$E$60),$N20,AP$13)) -> 1 | AQ20: =IF(AND($K20=Calc.Top, AQ$10=Calc.Left),"X",INDEX(CHOOSE(INDEX(MazeDef,$L20,AQ$11),Primitives!$C$2:$E$4,Primitives!$C$6:$E$8,Primitives!$C$10:$E$12,Primitives!$C$14:$E$16,Primitives!$C$18:$E$20,Primitives!$C$22:$E$24,Primitives!$C$26:$E$28,Primitives!$C$30:$E$32,Primitives!$C$34:$E$36,Primitives!$C$38:$E$40,Primitives!$C$42:$E$44,Primitives!$C$46:$E$48,Primitives!$C$50:$E$52,Primitives!$C$54:$E$56,Primitives!$C$58:$E$60),$N20,AQ$13)) -> 1 | AR20: =IF(AND($K20=Calc.Top, AR$10=Calc.Left),"X",INDEX(CHOOSE(INDEX(MazeDef,$L20,AR$11),Primitives!$C$2:$E$4,Primitives!$C$6:$E$8,Primitives!$C$10:$E$12,Primitives!$C$14:$E$16,Primitives!$C$18:$E$20,Primitives!$C$22:$E$24,Primitives!$C$26:$E$28,Primitives!$C$30:$E$32,Primitives!$C$34:$E$36,Primitives!$C$38:$E$40,Primitives!$C$42:$E$44,Primitives!$C$46:$E$48,Primitives!$C$50:$E$52,Primitives!$C$54:$E$56,Primitives!$C$58:$E$60),$N20,AR$13)) -> 1
K21: 8 | L21: 3 | N21: 2 | O21: =IF(AND($K21=Calc.Top, O$10=Calc.Left),"X",INDEX(CHOOSE(INDEX(MazeDef,$L21,O$11),Primitives!$C$2:$E$4,Primitives!$C$6:$E$8,Primitives!$C$10:$E$12,Primitives!$C$14:$E$16,Primitives!$C$18:$E$20,Primitives!$C$22:$E$24,Primitives!$C$26:$E$28,Primitives!$C$30:$E$32,Primitives!$C$34:$E$36,Primitives!$C$38:$E$40,Primitives!$C$42:$E$44,Primitives!$C$46:$E$48,Primitives!$C$50:$E$52,Primitives!$C$54:$E$56,Primitives!$C$58:$E$60),$N21,O$13)) -> 1 | P21: =IF(AND($K21=Calc.Top, P$10=Calc.Left),"X",INDEX(CHOOSE(INDEX(MazeDef,$L21,P$11),Primitives!$C$2:$E$4,Primitives!$C$6:$E$8,Primitives!$C$10:$E$12,Primitives!$C$14:$E$16,Primitives!$C$18:$E$20,Primitives!$C$22:$E$24,Primitives!$C$26:$E$28,Primitives!$C$30:$E$32,Primitives!$C$34:$E$36,Primitives!$C$38:$E$40,Primitives!$C$42:$E$44,Primitives!$C$46:$E$48,Primitives!$C$50:$E$52,Primitives!$C$54:$E$56,Primitives!$C$58:$E$60),$N21,P$13)) -> 0 | Q21: =IF(AND($K21=Calc.Top, Q$10=Calc.Left),"X",INDEX(CHOOSE(INDEX(MazeDef,$L21,Q$11),Primitives!$C$2:$E$4,Primitives!$C$6:$E$8,Primitives!$C$10:$E$12,Primitives!$C$14:$E$16,Primitives!$C$18:$E$20,Primitives!$C$22:$E$24,Primitives!$C$26:$E$28,Primitives!$C$30:$E$32,Primitives!$C$34:$E$36,Primitives!$C$38:$E$40,Primitives!$C$42:$E$44,Primitives!$C$46:$E$48,Primitives!$C$50:$E$52,Primitives!$C$54:$E$56,Primitives!$C$58:$E$60),$N21,Q$13)) -> 0 | R21: =IF(AND($K21=Calc.Top, R$10=Calc.Left),"X",INDEX(CHOOSE(INDEX(MazeDef,$L21,R$11),Primitives!$C$2:$E$4,Primitives!$C$6:$E$8,Primitives!$C$10:$E$12,Primitives!$C$14:$E$16,Primitives!$C$18:$E$20,Primitives!$C$22:$E$24,Primitives!$C$26:$E$28,Primitives!$C$30:$E$32,Primitives!$C$34:$E$36,Primitives!$C$38:$E$40,Primitives!$C$42:$E$44,Primitives!$C$46:$E$48,Primitives!$C$50:$E$52,Primitives!$C$54:$E$56,Primitives!$C$58:$E$60),$N21,R$13)) -> 0 | S21: =IF(AND($K21=Calc.Top, S$10=Calc.Left),"X",INDEX(CHOOSE(INDEX(MazeDef,$L21,S$11),Primitives!$C$2:$E$4,Primitives!$C$6:$E$8,Primitives!$C$10:$E$12,Primitives!$C$14:$E$16,Primitives!$C$18:$E$20,Primitives!$C$22:$E$24,Primitives!$C$26:$E$28,Primitives!$C$30:$E$32,Primitives!$C$34:$E$36,Primitives!$C$38:$E$40,Primitives!$C$42:$E$44,Primitives!$C$46:$E$48,Primitives!$C$50:$E$52,Primitives!$C$54:$E$56,Primitives!$C$58:$E$60),$N21,S$13)) -> 0 | T21: =IF(AND($K21=Calc.Top, T$10=Calc.Left),"X",INDEX(CHOOSE(INDEX(MazeDef,$L21,T$11),Primitives!$C$2:$E$4,Primitives!$C$6:$E$8,Primitives!$C$10:$E$12,Primitives!$C$14:$E$16,Primitives!$C$18:$E$20,Primitives!$C$22:$E$24,Primitives!$C$26:$E$28,Primitives!$C$30:$E$32,Primitives!$C$34:$E$36,Primitives!$C$38:$E$40,Primitives!$C$42:$E$44,Primitives!$C$46:$E$48,Primitives!$C$50:$E$52,Primitives!$C$54:$E$56,Primitives!$C$58:$E$60),$N21,T$13)) -> 0 | U21: =IF(AND($K21=Calc.Top, U$10=Calc.Left),"X",INDEX(CHOOSE(INDEX(MazeDef,$L21,U$11),Primitives!$C$2:$E$4,Primitives!$C$6:$E$8,Primitives!$C$10:$E$12,Primitives!$C$14:$E$16,Primitives!$C$18:$E$20,Primitives!$C$22:$E$24,Primitives!$C$26:$E$28,Primitives!$C$30:$E$32,Primitives!$C$34:$E$36,Primitives!$C$38:$E$40,Primitives!$C$42:$E$44,Primitives!$C$46:$E$48,Primitives!$C$50:$E$52,Primitives!$C$54:$E$56,Primitives!$C$58:$E$60),$N21,U$13)) -> 0 | V21: =IF(AND($K21=Calc.Top, V$10=Calc.Left),"X",INDEX(CHOOSE(INDEX(MazeDef,$L21,V$11),Primitives!$C$2:$E$4,Primitives!$C$6:$E$8,Primitives!$C$10:$E$12,Primitives!$C$14:$E$16,Primitives!$C$18:$E$20,Primitives!$C$22:$E$24,Primitives!$C$26:$E$28,Primitives!$C$30:$E$32,Primitives!$C$34:$E$36,Primitives!$C$38:$E$40,Primitives!$C$42:$E$44,Primitives!$C$46:$E$48,Primitives!$C$50:$E$52,Primitives!$C$54:$E$56,Primitives!$C$58:$E$60),$N21,V$13)) -> 0 | W21: =IF(AND($K21=Calc.Top, W$10=Calc.Left),"X",INDEX(CHOOSE(INDEX(MazeDef,$L21,W$11),Primitives!$C$2:$E$4,Primitives!$C$6:$E$8,Primitives!$C$10:$E$12,Primitives!$C$14:$E$16,Primitives!$C$18:$E$20,Primitives!$C$22:$E$24,Primitives!$C$26:$E$28,Primitives!$C$30:$E$32,Primitives!$C$34:$E$36,Primitives!$C$38:$E$40,Primitives!$C$42:$E$44,Primitives!$C$46:$E$48,Primitives!$C$50:$E$52,Primitives!$C$54:$E$56,Primitives!$C$58:$E$60),$N21,W$13)) -> 0 | X21: =IF(AND($K21=Calc.Top, X$10=Calc.Left),"X",INDEX(CHOOSE(INDEX(MazeDef,$L21,X$11),Primitives!$C$2:$E$4,Primitives!$C$6:$E$8,Primitives!$C$10:$E$12,Primitives!$C$14:$E$16,Primitives!$C$18:$E$20,Primitives!$C$22:$E$24,Primitives!$C$26:$E$28,Primitives!$C$30:$E$32,Primitives!$C$34:$E$36,Primitives!$C$38:$E$40,Primitives!$C$42:$E$44,Primitives!$C$46:$E$48,Primitives!$C$50:$E$52,Primitives!$C$54:$E$56,Primitives!$C$58:$E$60),$N21,X$13)) -> 0 | Y21: =IF(AND($K21=Calc.Top, Y$10=Calc.Left),"X",INDEX(CHOOSE(INDEX(MazeDef,$L21,Y$11),Primitives!$C$2:$E$4,Primitives!$C$6:$E$8,Primitives!$C$10:$E$12,Primitives!$C$14:$E$16,Primitives!$C$18:$E$20,Primitives!$C$22:$E$24,Primitives!$C$26:$E$28,Primitives!$C$30:$E$32,Primitives!$C$34:$E$36,Primitives!$C$38:$E$40,Primitives!$C$42:$E$44,Primitives!$C$46:$E$48,Primitives!$C$50:$E$52,Primitives!$C$54:$E$56,Primitives!$C$58:$E$60),$N21,Y$13)) -> 0 | Z21: =IF(AND($K21=Calc.Top, Z$10=Calc.Left),"X",INDEX(CHOOSE(INDEX(MazeDef,$L21,Z$11),Primitives!$C$2:$E$4,Primitives!$C$6:$E$8,Primitives!$C$10:$E$12,Primitives!$C$14:$E$16,Primitives!$C$18:$E$20,Primitives!$C$22:$E$24,Primitives!$C$26:$E$28,Primitives!$C$30:$E$32,Primitives!$C$34:$E$36,Primitives!$C$38:$E$40,Primitives!$C$42:$E$44,Primitives!$C$46:$E$48,Primitives!$C$50:$E$52,Primitives!$C$54:$E$56,Primitives!$C$58:$E$60),$N21,Z$13)) -> 0 | AA21: =IF(AND($K21=Calc.Top, AA$10=Calc.Left),"X",INDEX(CHOOSE(INDEX(MazeDef,$L21,AA$11),Primitives!$C$2:$E$4,Primitives!$C$6:$E$8,Primitives!$C$10:$E$12,Primitives!$C$14:$E$16,Primitives!$C$18:$E$20,Primitives!$C$22:$E$24,Primitives!$C$26:$E$28,Primitives!$C$30:$E$32,Primitives!$C$34:$E$36,Primitives!$C$38:$E$40,Primitives!$C$42:$E$44,Primitives!$C$46:$E$48,Primitives!$C$50:$E$52,Primitives!$C$54:$E$56,Primitives!$C$58:$E$60),$N21,AA$13)) -> 0 | AB21: =IF(AND($K21=Calc.Top, AB$10=Calc.Left),"X",INDEX(CHOOSE(INDEX(MazeDef,$L21,AB$11),Primitives!$C$2:$E$4,Primitives!$C$6:$E$8,Primitives!$C$10:$E$12,Primitives!$C$14:$E$16,Primitives!$C$18:$E$20,Primitives!$C$22:$E$24,Primitives!$C$26:$E$28,Primitives!$C$30:$E$32,Primitives!$C$34:$E$36,Primitives!$C$38:$E$40,Primitives!$C$42:$E$44,Primitives!$C$46:$E$48,Primitives!$C$50:$E$52,Primitives!$C$54:$E$56,Primitives!$C$58:$E$60),$N21,AB$13)) -> 0 | AC21: =IF(AND($K21=Calc.Top, AC$10=Calc.Left),"X",INDEX(CHOOSE(INDEX(MazeDef,$L21,AC$11),Primitives!$C$2:$E$4,Primitives!$C$6:$E$8,Primitives!$C$10:$E$12,Primitives!$C$14:$E$16,Primitives!$C$18:$E$20,Primitives!$C$22:$E$24,Primitives!$C$26:$E$28,Primitives!$C$30:$E$32,Primitives!$C$34:$E$36,Primitives!$C$38:$E$40,Primitives!$C$42:$E$44,Primitives!$C$46:$E$48,Primitives!$C$50:$E$52,Primitives!$C$54:$E$56,Primitives!$C$58:$E$60),$N21,AC$13)) -> 1 | AD21: =IF(AND($K21=Calc.Top, AD$10=Calc.Left),"X",INDEX(CHOOSE(INDEX(MazeDef,$L21,AD$11),Primitives!$C$2:$E$4,Primitives!$C$6:$E$8,Primitives!$C$10:$E$12,Primitives!$C$14:$E$16,Primitives!$C$18:$E$20,Primitives!$C$22:$E$24,Primitives!$C$26:$E$28,Primitives!$C$30:$E$32,Primitives!$C$34:$E$36,Primitives!$C$38:$E$40,Primitives!$C$42:$E$44,Primitives!$C$46:$E$48,Primitives!$C$50:$E$52,Primitives!$C$54:$E$56,Primitives!$C$58:$E$60),$N21,AD$13)) -> 1 | AE21: =IF(AND($K21=Calc.Top, AE$10=Calc.Left),"X",INDEX(CHOOSE(INDEX(MazeDef,$L21,AE$11),Primitives!$C$2:$E$4,Primitives!$C$6:$E$8,Primitives!$C$10:$E$12,Primitives!$C$14:$E$16,Primitives!$C$18:$E$20,Primitives!$C$22:$E$24,Primitives!$C$26:$E$28,Primitives!$C$30:$E$32,Primitives!$C$34:$E$36,Primitives!$C$38:$E$40,Primitives!$C$42:$E$44,Primitives!$C$46:$E$48,Primitives!$C$50:$E$52,Primitives!$C$54:$E$56,Primitives!$C$58:$E$60),$N21,AE$13)) -> 0 | AF21: =IF(AND($K21=Calc.Top, AF$10=Calc.Left),"X",INDEX(CHOOSE(INDEX(MazeDef,$L21,AF$11),Primitives!$C$2:$E$4,Primitives!$C$6:$E$8,Primitives!$C$10:$E$12,Primitives!$C$14:$E$16,Primitives!$C$18:$E$20,Primitives!$C$22:$E$24,Primitives!$C$26:$E$28,Primitives!$C$30:$E$32,Primitives!$C$34:$E$36,Primitives!$C$38:$E$40,Primitives!$C$42:$E$44,Primitives!$C$46:$E$48,Primitives!$C$50:$E$52,Primitives!$C$54:$E$56,Primitives!$C$58:$E$60),$N21,AF$13)) -> 0 | AG21: =IF(AND($K21=Calc.Top, AG$10=Calc.Left),"X",INDEX(CHOOSE(INDEX(MazeDef,$L21,AG$11),Primitives!$C$2:$E$4,Primitives!$C$6:$E$8,Primitives!$C$10:$E$12,Primitives!$C$14:$E$16,Primitives!$C$18:$E$20,Primitives!$C$22:$E$24,Primitives!$C$26:$E$28,Primitives!$C$30:$E$32,Primitives!$C$34:$E$36,Primitives!$C$38:$E$40,Primitives!$C$42:$E$44,Primitives!$C$46:$E$48,Primitives!$C$50:$E$52,Primitives!$C$54:$E$56,Primitives!$C$58:$E$60),$N21,AG$13)) -> 0 | AH21: =IF(AND($K21=Calc.Top, AH$10=Calc.Left),"X",INDEX(CHOOSE(INDEX(MazeDef,$L21,AH$11),Primitives!$C$2:$E$4,Primitives!$C$6:$E$8,Primitives!$C$10:$E$12,Primitives!$C$14:$E$16,Primitives!$C$18:$E$20,Primitives!$C$22:$E$24,Primitives!$C$26:$E$28,Primitives!$C$30:$E$32,Primitives!$C$34:$E$36,Primitives!$C$38:$E$40,Primitives!$C$42:$E$44,Primitives!$C$46:$E$48,Primitives!$C$50:$E$52,Primitives!$C$54:$E$56,Primitives!$C$58:$E$60),$N21,AH$13)) -> 0 | AI21: =IF(AND($K21=Calc.Top, AI$10=Calc.Left),"X",INDEX(CHOOSE(INDEX(MazeDef,$L21,AI$11),Primitives!$C$2:$E$4,Primitives!$C$6:$E$8,Primitives!$C$10:$E$12,Primitives!$C$14:$E$16,Primitives!$C$18:$E$20,Primitives!$C$22:$E$24,Primitives!$C$26:$E$28,Primitives!$C$30:$E$32,Primitives!$C$34:$E$36,Primitives!$C$38:$E$40,Primitives!$C$42:$E$44,Primitives!$C$46:$E$48,Primitives!$C$50:$E$52,Primitives!$C$54:$E$56,Primitives!$C$58:$E$60),$N21,AI$13)) -> 1 | AJ21: =IF(AND($K21=Calc.Top, AJ$10=Calc.Left),"X",INDEX(CHOOSE(INDEX(MazeDef,$L21,AJ$11),Primitives!$C$2:$E$4,Primitives!$C$6:$E$8,Primitives!$C$10:$E$12,Primitives!$C$14:$E$16,Primitives!$C$18:$E$20,Primitives!$C$22:$E$24,Primitives!$C$26:$E$28,Primitives!$C$30:$E$32,Primitives!$C$34:$E$36,Primitives!$C$38:$E$40,Primitives!$C$42:$E$44,Primitives!$C$46:$E$48,Primitives!$C$50:$E$52,Primitives!$C$54:$E$56,Primitives!$C$58:$E$60),$N21,AJ$13)) -> 1 | AK21: =IF(AND($K21=Calc.Top, AK$10=Calc.Left),"X",INDEX(CHOOSE(INDEX(MazeDef,$L21,AK$11),Primitives!$C$2:$E$4,Primitives!$C$6:$E$8,Primitives!$C$10:$E$12,Primitives!$C$14:$E$16,Primitives!$C$18:$E$20,Primitives!$C$22:$E$24,Primitives!$C$26:$E$28,Primitives!$C$30:$E$32,Primitives!$C$34:$E$36,Primitives!$C$38:$E$40,Primitives!$C$42:$E$44,Primitives!$C$46:$E$48,Primitives!$C$50:$E$52,Primitives!$C$54:$E$56,Primitives!$C$58:$E$60),$N21,AK$13)) -> 0 | AL21: =IF(AND($K21=Calc.Top, AL$10=Calc.Left),"X",INDEX(CHOOSE(INDEX(MazeDef,$L21,AL$11),Primitives!$C$2:$E$4,Primitives!$C$6:$E$8,Primitives!$C$10:$E$12,Primitives!$C$14:$E$16,Primitives!$C$18:$E$20,Primitives!$C$22:$E$24,Primitives!$C$26:$E$28,Primitives!$C$30:$E$32,Primitives!$C$34:$E$36,Primitives!$C$38:$E$40,Primitives!$C$42:$E$44,Primitives!$C$46:$E$48,Primitives!$C$50:$E$52,Primitives!$C$54:$E$56,Primitives!$C$58:$E$60),$N21,AL$13)) -> 0 | AM21: =IF(AND($K21=Calc.Top, AM$10=Calc.Left),"X",INDEX(CHOOSE(INDEX(MazeDef,$L21,AM$11),Primitives!$C$2:$E$4,Primitives!$C$6:$E$8,Primitives!$C$10:$E$12,Primitives!$C$14:$E$16,Primitives!$C$18:$E$20,Primitives!$C$22:$E$24,Primitives!$C$26:$E$28,Primitives!$C$30:$E$32,Primitives!$C$34:$E$36,Primitives!$C$38:$E$40,Primitives!$C$42:$E$44,Primitives!$C$46:$E$48,Primitives!$C$50:$E$52,Primitives!$C$54:$E$56,Primitives!$C$58:$E$60),$N21,AM$13)) -> 0 | AN21: =IF(AND($K21=Calc.Top, AN$10=Calc.Left),"X",INDEX(CHOOSE(INDEX(MazeDef,$L21,AN$11),Primitives!$C$2:$E$4,Primitives!$C$6:$E$8,Primitives!$C$10:$E$12,Primitives!$C$14:$E$16,Primitives!$C$18:$E$20,Primitives!$C$22:$E$24,Primitives!$C$26:$E$28,Primitives!$C$30:$E$32,Primitives!$C$34:$E$36,Primitives!$C$38:$E$40,Primitives!$C$42:$E$44,Primitives!$C$46:$E$48,Primitives!$C$50:$E$52,Primitives!$C$54:$E$56,Primitives!$C$58:$E$60),$N21,AN$13)) -> 0 | AO21: =IF(AND($K21=Calc.Top, AO$10=Calc.Left),"X",INDEX(CHOOSE(INDEX(MazeDef,$L21,AO$11),Primitives!$C$2:$E$4,Primitives!$C$6:$E$8,Primitives!$C$10:$E$12,Primitives!$C$14:$E$16,Primitives!$C$18:$E$20,Primitives!$C$22:$E$24,Primitives!$C$26:$E$28,Primitives!$C$30:$E$32,Primitives!$C$34:$E$36,Primitives!$C$38:$E$40,Primitives!$C$42:$E$44,Primitives!$C$46:$E$48,Primitives!$C$50:$E$52,Primitives!$C$54:$E$56,Primitives!$C$58:$E$60),$N21,AO$13)) -> 0 | AP21: =IF(AND($K21=Calc.Top, AP$10=Calc.Left),"X",INDEX(CHOOSE(INDEX(MazeDef,$L21,AP$11),Primitives!$C$2:$E$4,Primitives!$C$6:$E$8,Primitives!$C$10:$E$12,Primitives!$C$14:$E$16,Primitives!$C$18:$E$20,Primitives!$C$22:$E$24,Primitives!$C$26:$E$28,Primitives!$C$30:$E$32,Primitives!$C$34:$E$36,Primitives!$C$38:$E$40,Primitives!$C$42:$E$44,Primitives!$C$46:$E$48,Primitives!$C$50:$E$52,Primitives!$C$54:$E$56,Primitives!$C$58:$E$60),$N21,AP$13)) -> 0 | AQ21: =IF(AND($K21=Calc.Top, AQ$10=Calc.Left),"X",INDEX(CHOOSE(INDEX(MazeDef,$L21,AQ$11),Primitives!$C$2:$E$4,Primitives!$C$6:$E$8,Primitives!$C$10:$E$12,Primitives!$C$14:$E$16,Primitives!$C$18:$E$20,Primitives!$C$22:$E$24,Primitives!$C$26:$E$28,Primitives!$C$30:$E$32,Primitives!$C$34:$E$36,Primitives!$C$38:$E$40,Primitives!$C$42:$E$44,Primitives!$C$46:$E$48,Primitives!$C$50:$E$52,Primitives!$C$54:$E$56,Primitives!$C$58:$E$60),$N21,AQ$13)) -> 0 | AR21: =IF(AND($K21=Calc.Top, AR$10=Calc.Left),"X",INDEX(CHOOSE(INDEX(MazeDef,$L21,AR$11),Primitives!$C$2:$E$4,Primitives!$C$6:$E$8,Primitives!$C$10:$E$12,Primitives!$C$14:$E$16,Primitives!$C$18:$E$20,Primitives!$C$22:$E$24,Primitives!$C$26:$E$28,Primitives!$C$30:$E$32,Primitives!$C$34:$E$36,Primitives!$C$38:$E$40,Primitives!$C$42:$E$44,Primitives!$C$46:$E$48,Primitives!$C$50:$E$52,Primitives!$C$54:$E$56,Primitives!$C$58:$E$60),$N21,AR$13)) -> 1
B22: 1 | C22: 1 | D22: 1 | K22: 9 | L22: 3 | N22: 3 | O22: =IF(AND($K22=Calc.Top, O$10=Calc.Left),"X",INDEX(CHOOSE(INDEX(MazeDef,$L22,O$11),Primitives!$C$2:$E$4,Primitives!$C$6:$E$8,Primitives!$C$10:$E$12,Primitives!$C$14:$E$16,Primitives!$C$18:$E$20,Primitives!$C$22:$E$24,Primitives!$C$26:$E$28,Primitives!$C$30:$E$32,Primitives!$C$34:$E$36,Primitives!$C$38:$E$40,Primitives!$C$42:$E$44,Primitives!$C$46:$E$48,Primitives!$C$50:$E$52,Primitives!$C$54:$E$56,Primitives!$C$58:$E$60),$N22,O$13)) -> 1 | P22: =IF(AND($K22=Calc.Top, P$10=Calc.Left),"X",INDEX(CHOOSE(INDEX(MazeDef,$L22,P$11),Primitives!$C$2:$E$4,Primitives!$C$6:$E$8,Primitives!$C$10:$E$12,Primitives!$C$14:$E$16,Primitives!$C$18:$E$20,Primitives!$C$22:$E$24,Primitives!$C$26:$E$28,Primitives!$C$30:$E$32,Primitives!$C$34:$E$36,Primitives!$C$38:$E$40,Primitives!$C$42:$E$44,Primitives!$C$46:$E$48,Primitives!$C$50:$E$52,Primitives!$C$54:$E$56,Primitives!$C$58:$E$60),$N22,P$13)) -> 1 | Q22: =IF(AND($K22=Calc.Top, Q$10=Calc.Left),"X",INDEX(CHOOSE(INDEX(MazeDef,$L22,Q$11),Primitives!$C$2:$E$4,Primitives!$C$6:$E$8,Primitives!$C$10:$E$12,Primitives!$C$14:$E$16,Primitives!$C$18:$E$20,Primitives!$C$22:$E$24,Primitives!$C$26:$E$28,Primitives!$C$30:$E$32,Primitives!$C$34:$E$36,Primitives!$C$38:$E$40,Primitives!$C$42:$E$44,Primitives!$C$46:$E$48,Primitives!$C$50:$E$52,Primitives!$C$54:$E$56,Primitives!$C$58:$E$60),$N22,Q$13)) -> 1 | R22: =IF(AND($K22=Calc.Top, R$10=Calc.Left),"X",INDEX(CHOOSE(INDEX(MazeDef,$L22,R$11),Primitives!$C$2:$E$4,Primitives!$C$6:$E$8,Primitives!$C$10:$E$12,Primitives!$C$14:$E$16,Primitives!$C$18:$E$20,Primitives!$C$22:$E$24,Primitives!$C$26:$E$28,Primitives!$C$30:$E$32,Primitives!$C$34:$E$36,Primitives!$C$38:$E$40,Primitives!$C$42:$E$44,Primitives!$C$46:$E$48,Primitives!$C$50:$E$52,Primitives!$C$54:$E$56,Primitives!$C$58:$E$60),$N22,R$13)) -> 1 | S22: =IF(AND($K22=Calc.Top, S$10=Calc.Left),"X",INDEX(CHOOSE(INDEX(MazeDef,$L22,S$11),Primitives!$C$2:$E$4,Primitives!$C$6:$E$8,Primitives!$C$10:$E$12,Primitives!$C$14:$E$16,Primitives!$C$18:$E$20,Primitives!$C$22:$E$24,Primitives!$C$26:$E$28,Primitives!$C$30:$E$32,Primitives!$C$34:$E$36,Primitives!$C$38:$E$40,Primitives!$C$42:$E$44,Primitives!$C$46:$E$48,Primitives!$C$50:$E$52,Primitives!$C$54:$E$56,Primitives!$C$58:$E$60),$N22,S$13)) -> 1 | T22: =IF(AND($K22=Calc.Top, T$10=Calc.Left),"X",INDEX(CHOOSE(INDEX(MazeDef,$L22,T$11),Primitives!$C$2:$E$4,Primitives!$C$6:$E$8,Primitives!$C$10:$E$12,Primitives!$C$14:$E$16,Primitives!$C$18:$E$20,Primitives!$C$22:$E$24,Primitives!$C$26:$E$28,Primitives!$C$30:$E$32,Primitives!$C$34:$E$36,Primitives!$C$38:$E$40,Primitives!$C$42:$E$44,Primitives!$C$46:$E$48,Primitives!$C$50:$E$52,Primitives!$C$54:$E$56,Primitives!$C$58:$E$60),$N22,T$13)) -> 1 | U22: =IF(AND($K22=Calc.Top, U$10=Calc.Left),"X",INDEX(CHOOSE(INDEX(MazeDef,$L22,U$11),Primitives!$C$2:$E$4,Primitives!$C$6:$E$8,Primitives!$C$10:$E$12,Primitives!$C$14:$E$16,Primitives!$C$18:$E$20,Primitives!$C$22:$E$24,Primitives!$C$26:$E$28,Primitives!$C$30:$E$32,Primitives!$C$34:$E$36,Primitives!$C$38:$E$40,Primitives!$C$42:$E$44,Primitives!$C$46:$E$48,Primitives!$C$50:$E$52,Primitives!$C$54:$E$56,Primitives!$C$58:$E$60),$N22,U$13)) -> 1 | V22: =IF(AND($K22=Calc.Top, V$10=Calc.Left),"X",INDEX(CHOOSE(INDEX(MazeDef,$L22,V$11),Primitives!$C$2:$E$4,Primitives!$C$6:$E$8,Primitives!$C$10:$E$12,Primitives!$C$14:$E$16,Primitives!$C$18:$E$20,Primitives!$C$22:$E$24,Primitives!$C$26:$E$28,Primitives!$C$30:$E$32,Primitives!$C$34:$E$36,Primitives!$C$38:$E$40,Primitives!$C$42:$E$44,Primitives!$C$46:$E$48,Primitives!$C$50:$E$52,Primitives!$C$54:$E$56,Primitives!$C$58:$E$60),$N22,V$13)) -> 0 | W22: =IF(AND($K22=Calc.Top, W$10=Calc.Left),"X",INDEX(CHOOSE(INDEX(MazeDef,$L22,W$11),Primitives!$C$2:$E$4,Primitives!$C$6:$E$8,Primitives!$C$10:$E$12,Primitives!$C$14:$E$16,Primitives!$C$18:$E$20,Primitives!$C$22:$E$24,Primitives!$C$26:$E$28,Primitives!$C$30:$E$32,Primitives!$C$34:$E$36,Primitives!$C$38:$E$40,Primitives!$C$42:$E$44,Primitives!$C$46:$E$48,Primitives!$C$50:$E$52,Primitives!$C$54:$E$56,Primitives!$C$58:$E$60),$N22,W$13)) -> 1 | X22: =IF(AND($K22=Calc.Top, X$10=Calc.Left),"X",INDEX(CHOOSE(INDEX(MazeDef,$L22,X$11),Primitives!$C$2:$E$4,Primitives!$C$6:$E$8,Primitives!$C$10:$E$12,Primitives!$C$14:$E$16,Primitives!$C$18:$E$20,Primitives!$C$22:$E$24,Primitives!$C$26:$E$28,Primitives!$C$30:$E$32,Primitives!$C$34:$E$36,Primitives!$C$38:$E$40,Primitives!$C$42:$E$44,Primitives!$C$46:$E$48,Primitives!$C$50:$E$52,Primitives!$C$54:$E$56,Primitives!$C$58:$E$60),$N22,X$13)) -> 1 | Y22: =IF(AND($K22=Calc.Top, Y$10=Calc.Left),"X",INDEX(CHOOSE(INDEX(MazeDef,$L22,Y$11),Primitives!$C$2:$E$4,Primitives!$C$6:$E$8,Primitives!$C$10:$E$12,Primitives!$C$14:$E$16,Primitives!$C$18:$E$20,Primitives!$C$22:$E$24,Primitives!$C$26:$E$28,Primitives!$C$30:$E$32,Primitives!$C$34:$E$36,Primitives!$C$38:$E$40,Primitives!$C$42:$E$44,Primitives!$C$46:$E$48,Primitives!$C$50:$E$52,Primitives!$C$54:$E$56,Primitives!$C$58:$E$60),$N22,Y$13)) -> 0 | Z22: =IF(AND($K22=Calc.Top, Z$10=Calc.Left),"X",INDEX(CHOOSE(INDEX(MazeDef,$L22,Z$11),Primitives!$C$2:$E$4,Primitives!$C$6:$E$8,Primitives!$C$10:$E$12,Primitives!$C$14:$E$16,Primitives!$C$18:$E$20,Primitives!$C$22:$E$24,Primitives!$C$26:$E$28,Primitives!$C$30:$E$32,Primitives!$C$34:$E$36,Primitives!$C$38:$E$40,Primitives!$C$42:$E$44,Primitives!$C$46:$E$48,Primitives!$C$50:$E$52,Primitives!$C$54:$E$56,Primitives!$C$58:$E$60),$N22,Z$13)) -> 1 | AA22: =IF(AND($K22=Calc.Top, AA$10=Calc.Left),"X",INDEX(CHOOSE(INDEX(MazeDef,$L22,AA$11),Primitives!$C$2:$E$4,Primitives!$C$6:$E$8,Primitives!$C$10:$E$12,Primitives!$C$14:$E$16,Primitives!$C$18:$E$20,Primitives!$C$22:$E$24,Primitives!$C$26:$E$28,Primitives!$C$30:$E$32,Primitives!$C$34:$E$36,Primitives!$C$38:$E$40,Primitives!$C$42:$E$44,Primitives!$C$46:$E$48,Primitives!$C$50:$E$52,Primitives!$C$54:$E$56,Primitives!$C$58:$E$60),$N22,AA$13)) -> 1 | AB22: =IF(AND($K22=Calc.Top, AB$10=Calc.Left),"X",INDEX(CHOOSE(INDEX(MazeDef,$L22,AB$11),Primitives!$C$2:$E$4,Primitives!$C$6:$E$8,Primitives!$C$10:$E$12,Primitives!$C$14:$E$16,Primitives!$C$18:$E$20,Primitives!$C$22:$E$24,Primitives!$C$26:$E$28,Primitives!$C$30:$E$32,Primitives!$C$34:$E$36,Primitives!$C$38:$E$40,Primitives!$C$42:$E$44,Primitives!$C$46:$E$48,Primitives!$C$50:$E$52,Primitives!$C$54:$E$56,Primitives!$C$58:$E$60),$N22,AB$13)) -> 0 | AC22: =IF(AND($K22=Calc.Top, AC$10=Calc.Left),"X",INDEX(CHOOSE(INDEX(MazeDef,$L22,AC$11),Primitives!$C$2:$E$4,Primitives!$C$6:$E$8,Primitives!$C$10:$E$12,Primitives!$C$14:$E$16,Primitives!$C$18:$E$20,Primitives!$C$22:$E$24,Primitives!$C$26:$E$28,Primitives!$C$30:$E$32,Primitives!$C$34:$E$36,Primitives!$C$38:$E$40,Primitives!$C$42:$E$44,Primitives!$C$46:$E$48,Primitives!$C$50:$E$52,Primitives!$C$54:$E$56,Primitives!$C$58:$E$60),$N22,AC$13)) -> 1 | AD22: =IF(AND($K22=Calc.Top, AD$10=Calc.Left),"X",INDEX(CHOOSE(INDEX(MazeDef,$L22,AD$11),Primitives!$C$2:$E$4,Primitives!$C$6:$E$8,Primitives!$C$10:$E$12,Primitives!$C$14:$E$16,Primitives!$C$18:$E$20,Primitives!$C$22:$E$24,Primitives!$C$26:$E$28,Primitives!$C$30:$E$32,Primitives!$C$34:$E$36,Primitives!$C$38:$E$40,Primitives!$C$42:$E$44,Primitives!$C$46:$E$48,Primitives!$C$50:$E$52,Primitives!$C$54:$E$56,Primitives!$C$58:$E$60),$N22,AD$13)) -> 1 | AE22: =IF(AND($K22=Calc.Top, AE$10=Calc.Left),"X",INDEX(CHOOSE(INDEX(MazeDef,$L22,AE$11),Primitives!$C$2:$E$4,Primitives!$C$6:$E$8,Primitives!$C$10:$E$12,Primitives!$C$14:$E$16,Primitives!$C$18:$E$20,Primitives!$C$22:$E$24,Primitives!$C$26:$E$28,Primitives!$C$30:$E$32,Primitives!$C$34:$E$36,Primitives!$C$38:$E$40,Primitives!$C$42:$E$44,Primitives!$C$46:$E$48,Primitives!$C$50:$E$52,Primitives!$C$54:$E$56,Primitives!$C$58:$E$60),$N22,AE$13)) -> 1 | AF22: =IF(AND($K22=Calc.Top, AF$10=Calc.Left),"X",INDEX(CHOOSE(INDEX(MazeDef,$L22,AF$11),Primitives!$C$2:$E$4,Primitives!$C$6:$E$8,Primitives!$C$10:$E$12,Primitives!$C$14:$E$16,Primitives!$C$18:$E$20,Primitives!$C$22:$E$24,Primitives!$C$26:$E$28,Primitives!$C$30:$E$32,Primitives!$C$34:$E$36,Primitives!$C$38:$E$40,Primitives!$C$42:$E$44,Primitives!$C$46:$E$48,Primitives!$C$50:$E$52,Primitives!$C$54:$E$56,Primitives!$C$58:$E$60),$N22,AF$13)) -> 1 | AG22: =IF(AND($K22=Calc.Top, AG$10=Calc.Left),"X",INDEX(CHOOSE(INDEX(MazeDef,$L22,AG$11),Primitives!$C$2:$E$4,Primitives!$C$6:$E$8,Primitives!$C$10:$E$12,Primitives!$C$14:$E$16,Primitives!$C$18:$E$20,Primitives!$C$22:$E$24,Primitives!$C$26:$E$28,Primitives!$C$30:$E$32,Primitives!$C$34:$E$36,Primitives!$C$38:$E$40,Primitives!$C$42:$E$44,Primitives!$C$46:$E$48,Primitives!$C$50:$E$52,Primitives!$C$54:$E$56,Primitives!$C$58:$E$60),$N22,AG$13)) -> 1 | AH22: =IF(AND($K22=Calc.Top, AH$10=Calc.Left),"X",INDEX(CHOOSE(INDEX(MazeDef,$L22,AH$11),Primitives!$C$2:$E$4,Primitives!$C$6:$E$8,Primitives!$C$10:$E$12,Primitives!$C$14:$E$16,Primitives!$C$18:$E$20,Primitives!$C$22:$E$24,Primitives!$C$26:$E$28,Primitives!$C$30:$E$32,Primitives!$C$34:$E$36,Primitives!$C$38:$E$40,Primitives!$C$42:$E$44,Primitives!$C$46:$E$48,Primitives!$C$50:$E$52,Primitives!$C$54:$E$56,Primitives!$C$58:$E$60),$N22,AH$13)) -> 1 | AI22: =IF(AND($K22=Calc.Top, AI$10=Calc.Left),"X",INDEX(CHOOSE(INDEX(MazeDef,$L22,AI$11),Primitives!$C$2:$E$4,Primitives!$C$6:$E$8,Primitives!$C$10:$E$12,Primitives!$C$14:$E$16,Primitives!$C$18:$E$20,Primitives!$C$22:$E$24,Primitives!$C$26:$E$28,Primitives!$C$30:$E$32,Primitives!$C$34:$E$36,Primitives!$C$38:$E$40,Primitives!$C$42:$E$44,Primitives!$C$46:$E$48,Primitives!$C$50:$E$52,Primitives!$C$54:$E$56,Primitives!$C$58:$E$60),$N22,AI$13)) -> 1 | AJ22: =IF(AND($K22=Calc.Top, AJ$10=Calc.Left),"X",INDEX(CHOOSE(INDEX(MazeDef,$L22,AJ$11),Primitives!$C$2:$E$4,Primitives!$C$6:$E$8,Primitives!$C$10:$E$12,Primitives!$C$14:$E$16,Primitives!$C$18:$E$20,Primitives!$C$22:$E$24,Primitives!$C$26:$E$28,Primitives!$C$30:$E$32,Primitives!$C$34:$E$36,Primitives!$C$38:$E$40,Primitives!$C$42:$E$44,Primitives!$C$46:$E$48,Primitives!$C$50:$E$52,Primitives!$C$54:$E$56,Primitives!$C$58:$E$60),$N22,AJ$13)) -> 1 | AK22: =IF(AND($K22=Calc.Top, AK$10=Calc.Left),"X",INDEX(CHOOSE(INDEX(MazeDef,$L22,AK$11),Primitives!$C$2:$E$4,Primitives!$C$6:$E$8,Primitives!$C$10:$E$12,Primitives!$C$14:$E$16,Primitives!$C$18:$E$20,Primitives!$C$22:$E$24,Primitives!$C$26:$E$28,Primitives!$C$30:$E$32,Primitives!$C$34:$E$36,Primitives!$C$38:$E$40,Primitives!$C$42:$E$44,Primitives!$C$46:$E$48,Primitives!$C$50:$E$52,Primitives!$C$54:$E$56,Primitives!$C$58:$E$60),$N22,AK$13)) -> 0 | AL22: =IF(AND($K22=Calc.Top, AL$10=Calc.Left),"X",INDEX(CHOOSE(INDEX(MazeDef,$L22,AL$11),Primitives!$C$2:$E$4,Primitives!$C$6:$E$8,Primitives!$C$10:$E$12,Primitives!$C$14:$E$16,Primitives!$C$18:$E$20,Primitives!$C$22:$E$24,Primitives!$C$26:$E$28,Primitives!$C$30:$E$32,Primitives!$C$34:$E$36,Primitives!$C$38:$E$40,Primitives!$C$42:$E$44,Primitives!$C$46:$E$48,Primitives!$C$50:$E$52,Primitives!$C$54:$E$56,Primitives!$C$58:$E$60),$N22,AL$13)) -> 1 | AM22: =IF(AND($K22=Calc.Top, AM$10=Calc.Left),"X",INDEX(CHOOSE(INDEX(MazeDef,$L22,AM$11),Primitives!$C$2:$E$4,Primitives!$C$6:$E$8,Primitives!$C$10:$E$12,Primitives!$C$14:$E$16,Primitives!$C$18:$E$20,Primitives!$C$22:$E$24,Primitives!$C$26:$E$28,Primitives!$C$30:$E$32,Primitives!$C$34:$E$36,Primitives!$C$38:$E$40,Primitives!$C$42:$E$44,Primitives!$C$46:$E$48,Primitives!$C$50:$E$52,Primitives!$C$54:$E$56,Primitives!$C$58:$E$60),$N22,AM$13)) -> 1 | AN22: =IF(AND($K22=Calc.Top, AN$10=Calc.Left),"X",INDEX(CHOOSE(INDEX(MazeDef,$L22,AN$11),Primitives!$C$2:$E$4,Primitives!$C$6:$E$8,Primitives!$C$10:$E$12,Primitives!$C$14:$E$16,Primitives!$C$18:$E$20,Primitives!$C$22:$E$24,Primitives!$C$26:$E$28,Primitives!$C$30:$E$32,Primitives!$C$34:$E$36,Primitives!$C$38:$E$40,Primitives!$C$42:$E$44,Primitives!$C$46:$E$48,Primitives!$C$50:$E$52,Primitives!$C$54:$E$56,Primitives!$C$58:$E$60),$N22,AN$13)) -> 0 | AO22: =IF(AND($K22=Calc.Top, AO$10=Calc.Left),"X",INDEX(CHOOSE(INDEX(MazeDef,$L22,AO$11),Primitives!$C$2:$E$4,Primitives!$C$6:$E$8,Primitives!$C$10:$E$12,Primitives!$C$14:$E$16,Primitives!$C$18:$E$20,Primitives!$C$22:$E$24,Primitives!$C$26:$E$28,Primitives!$C$30:$E$32,Primitives!$C$34:$E$36,Primitives!$C$38:$E$40,Primitives!$C$42:$E$44,Primitives!$C$46:$E$48,Primitives!$C$50:$E$52,Primitives!$C$54:$E$56,Primitives!$C$58:$E$60),$N22,AO$13)) -> 1 | AP22: =IF(AND($K22=Calc.Top, AP$10=Calc.Left),"X",INDEX(CHOOSE(INDEX(MazeDef,$L22,AP$11),Primitives!$C$2:$E$4,Primitives!$C$6:$E$8,Primitives!$C$10:$E$12,Primitives!$C$14:$E$16,Primitives!$C$18:$E$20,Primitives!$C$22:$E$24,Primitives!$C$26:$E$28,Primitives!$C$30:$E$32,Primitives!$C$34:$E$36,Primitives!$C$38:$E$40,Primitives!$C$42:$E$44,Primitives!$C$46:$E$48,Primitives!$C$50:$E$52,Primitives!$C$54:$E$56,Primitives!$C$58:$E$60),$N22,AP$13)) -> 1 | AQ22: =IF(AND($K22=Calc.Top, AQ$10=Calc.Left),"X",INDEX(CHOOSE(INDEX(MazeDef,$L22,AQ$11),Primitives!$C$2:$E$4,Primitives!$C$6:$E$8,Primitives!$C$10:$E$12,Primitives!$C$14:$E$16,Primitives!$C$18:$E$20,Primitives!$C$22:$E$24,Primitives!$C$26:$E$28,Primitives!$C$30:$E$32,Primitives!$C$34:$E$36,Primitives!$C$38:$E$40,Primitives!$C$42:$E$44,Primitives!$C$46:$E$48,Primitives!$C$50:$E$52,Primitives!$C$54:$E$56,Primitives!$C$58:$E$60),$N22,AQ$13)) -> 0 | AR22: =IF(AND($K22=Calc.Top, AR$10=Calc.Left),"X",INDEX(CHOOSE(INDEX(MazeDef,$L22,AR$11),Primitives!$C$2:$E$4,Primitives!$C$6:$E$8,Primitives!$C$10:$E$12,Primitives!$C$14:$E$16,Primitives!$C$18:$E$20,Primitives!$C$22:$E$24,Primitives!$C$26:$E$28,Primitives!$C$30:$E$32,Primitives!$C$34:$E$36,Primitives!$C$38:$E$40,Primitives!$C$42:$E$44,Primitives!$C$46:$E$48,Primitives!$C$50:$E$52,Primitives!$C$54:$E$56,Primitives!$C$58:$E$60),$N22,AR$13)) -> 1
A23: 3 | B23: 1 | D23: 1 | K23: 10 | L23: 4 | M23: 4 | N23: 1 | O23: =IF(AND($K23=Calc.Top, O$10=Calc.Left),"X",INDEX(CHOOSE(INDEX(MazeDef,$L23,O$11),Primitives!$C$2:$E$4,Primitives!$C$6:$E$8,Primitives!$C$10:$E$12,Primitives!$C$14:$E$16,Primitives!$C$18:$E$20,Primitives!$C$22:$E$24,Primitives!$C$26:$E$28,Primitives!$C$30:$E$32,Primitives!$C$34:$E$36,Primitives!$C$38:$E$40,Primitives!$C$42:$E$44,Primitives!$C$46:$E$48,Primitives!$C$50:$E$52,Primitives!$C$54:$E$56,Primitives!$C$58:$E$60),$N23,O$13)) -> 1 | P23: =IF(AND($K23=Calc.Top, P$10=Calc.Left),"X",INDEX(CHOOSE(INDEX(MazeDef,$L23,P$11),Primitives!$C$2:$E$4,Primitives!$C$6:$E$8,Primitives!$C$10:$E$12,Primitives!$C$14:$E$16,Primitives!$C$18:$E$20,Primitives!$C$22:$E$24,Primitives!$C$26:$E$28,Primitives!$C$30:$E$32,Primitives!$C$34:$E$36,Primitives!$C$38:$E$40,Primitives!$C$42:$E$44,Primitives!$C$46:$E$48,Primitives!$C$50:$E$52,Primitives!$C$54:$E$56,Primitives!$C$58:$E$60),$N23,P$13)) -> 1 | Q23: =IF(AND($K23=Calc.Top, Q$10=Calc.Left),"X",INDEX(CHOOSE(INDEX(MazeDef,$L23,Q$11),Primitives!$C$2:$E$4,Primitives!$C$6:$E$8,Primitives!$C$10:$E$12,Primitives!$C$14:$E$16,Primitives!$C$18:$E$20,Primitives!$C$22:$E$24,Primitives!$C$26:$E$28,Primitives!$C$30:$E$32,Primitives!$C$34:$E$36,Primitives!$C$38:$E$40,Primitives!$C$42:$E$44,Primitives!$C$46:$E$48,Primitives!$C$50:$E$52,Primitives!$C$54:$E$56,Primitives!$C$58:$E$60),$N23,Q$13)) -> 1 | R23: =IF(AND($K23=Calc.Top, R$10=Calc.Left),"X",INDEX(CHOOSE(INDEX(MazeDef,$L23,R$11),Primitives!$C$2:$E$4,Primitives!$C$6:$E$8,Primitives!$C$10:$E$12,Primitives!$C$14:$E$16,Primitives!$C$18:$E$20,Primitives!$C$22:$E$24,Primitives!$C$26:$E$28,Primitives!$C$30:$E$32,Primitives!$C$34:$E$36,Primitives!$C$38:$E$40,Primitives!$C$42:$E$44,Primitives!$C$46:$E$48,Primitives!$C$50:$E$52,Primitives!$C$54:$E$56,Primitives!$C$58:$E$60),$N23,R$13)) -> 1 | S23: =IF(AND($K23=Calc.Top, S$10=Calc.Left),"X",INDEX(CHOOSE(INDEX(MazeDef,$L23,S$11),Primitives!$C$2:$E$4,Primitives!$C$6:$E$8,Primitives!$C$10:$E$12,Primitives!$C$14:$E$16,Primitives!$C$18:$E$20,Primitives!$C$22:$E$24,Primitives!$C$26:$E$28,Primitives!$C$30:$E$32,Primitives!$C$34:$E$36,Primitives!$C$38:$E$40,Primitives!$C$42:$E$44,Primitives!$C$46:$E$48,Primitives!$C$50:$E$52,Primitives!$C$54:$E$56,Primitives!$C$58:$E$60),$N23,S$13)) -> 1 | T23: =IF(AND($K23=Calc.Top, T$10=Calc.Left),"X",INDEX(CHOOSE(INDEX(MazeDef,$L23,T$11),Primitives!$C$2:$E$4,Primitives!$C$6:$E$8,Primitives!$C$10:$E$12,Primitives!$C$14:$E$16,Primitives!$C$18:$E$20,Primitives!$C$22:$E$24,Primitives!$C$26:$E$28,Primitives!$C$30:$E$32,Primitives!$C$34:$E$36,Primitives!$C$38:$E$40,Primitives!$C$42:$E$44,Primitives!$C$46:$E$48,Primitives!$C$50:$E$52,Primitives!$C$54:$E$56,Primitives!$C$58:$E$60),$N23,T$13)) -> 1 | U23: =IF(AND($K23=Calc.Top, U$10=Calc.Left),"X",INDEX(CHOOSE(INDEX(MazeDef,$L23,U$11),Primitives!$C$2:$E$4,Primitives!$C$6:$E$8,Primitives!$C$10:$E$12,Primitives!$C$14:$E$16,Primitives!$C$18:$E$20,Primitives!$C$22:$E$24,Primitives!$C$26:$E$28,Primitives!$C$30:$E$32,Primitives!$C$34:$E$36,Primitives!$C$38:$E$40,Primitives!$C$42:$E$44,Primitives!$C$46:$E$48,Primitives!$C$50:$E$52,Primitives!$C$54:$E$56,Primitives!$C$58:$E$60),$N23,U$13)) -> 1 | V23: =IF(AND($K23=Calc.Top, V$10=Calc.Left),"X",INDEX(CHOOSE(INDEX(MazeDef,$L23,V$11),Primitives!$C$2:$E$4,Primitives!$C$6:$E$8,Primitives!$C$10:$E$12,Primitives!$C$14:$E$16,Primitives!$C$18:$E$20,Primitives!$C$22:$E$24,Primitives!$C$26:$E$28,Primitives!$C$30:$E$32,Primitives!$C$34:$E$36,Primitives!$C$38:$E$40,Primitives!$C$42:$E$44,Primitives!$C$46:$E$48,Primitives!$C$50:$E$52,Primitives!$C$54:$E$56,Primitives!$C$58:$E$60),$N23,V$13)) -> 0 | W23: =IF(AND($K23=Calc.Top, W$10=Calc.Left),"X",INDEX(CHOOSE(INDEX(MazeDef,$L23,W$11),Primitives!$C$2:$E$4,Primitives!$C$6:$E$8,Primitives!$C$10:$E$12,Primitives!$C$14:$E$16,Primitives!$C$18:$E$20,Primitives!$C$22:$E$24,Primitives!$C$26:$E$28,Primitives!$C$30:$E$32,Primitives!$C$34:$E$36,Primitives!$C$38:$E$40,Primitives!$C$42:$E$44,Primitives!$C$46:$E$48,Primitives!$C$50:$E$52,Primitives!$C$54:$E$56,Primitives!$C$58:$E$60),$N23,W$13)) -> 1 | X23: =IF(AND($K23=Calc.Top, X$10=Calc.Left),"X",INDEX(CHOOSE(INDEX(MazeDef,$L23,X$11),Primitives!$C$2:$E$4,Primitives!$C$6:$E$8,Primitives!$C$10:$E$12,Primitives!$C$14:$E$16,Primitives!$C$18:$E$20,Primitives!$C$22:$E$24,Primitives!$C$26:$E$28,Primitives!$C$30:$E$32,Primitives!$C$34:$E$36,Primitives!$C$38:$E$40,Primitives!$C$42:$E$44,Primitives!$C$46:$E$48,Primitives!$C$50:$E$52,Primitives!$C$54:$E$56,Primitives!$C$58:$E$60),$N23,X$13)) -> 1 | Y23: =IF(AND($K23=Calc.Top, Y$10=Calc.Left),"X",INDEX(CHOOSE(INDEX(MazeDef,$L23,Y$11),Primitives!$C$2:$E$4,Primitives!$C$6:$E$8,Primitives!$C$10:$E$12,Primitives!$C$14:$E$16,Primitives!$C$18:$E$20,Primitives!$C$22:$E$24,Primitives!$C$26:$E$28,Primitives!$C$30:$E$32,Primitives!$C$34:$E$36,Primitives!$C$38:$E$40,Primitives!$C$42:$E$44,Primitives!$C$46:$E$48,Primitives!$C$50:$E$52,Primitives!$C$54:$E$56,Primitives!$C$58:$E$60),$N23,Y$13)) -> 0 | Z23: =IF(AND($K23=Calc.Top, Z$10=Calc.Left),"X",INDEX(CHOOSE(INDEX(MazeDef,$L23,Z$11),Primitives!$C$2:$E$4,Primitives!$C$6:$E$8,Primitives!$C$10:$E$12,Primitives!$C$14:$E$16,Primitives!$C$18:$E$20,Primitives!$C$22:$E$24,Primitives!$C$26:$E$28,Primitives!$C$30:$E$32,Primitives!$C$34:$E$36,Primitives!$C$38:$E$40,Primitives!$C$42:$E$44,Primitives!$C$46:$E$48,Primitives!$C$50:$E$52,Primitives!$C$54:$E$56,Primitives!$C$58:$E$60),$N23,Z$13)) -> 1 | AA23: =IF(AND($K23=Calc.Top, AA$10=Calc.Left),"X",INDEX(CHOOSE(INDEX(MazeDef,$L23,AA$11),Primitives!$C$2:$E$4,Primitives!$C$6:$E$8,Primitives!$C$10:$E$12,Primitives!$C$14:$E$16,Primitives!$C$18:$E$20,Primitives!$C$22:$E$24,Primitives!$C$26:$E$28,Primitives!$C$30:$E$32,Primitives!$C$34:$E$36,Primitives!$C$38:$E$40,Primitives!$C$42:$E$44,Primitives!$C$46:$E$48,Primitives!$C$50:$E$52,Primitives!$C$54:$E$56,Primitives!$C$58:$E$60),$N23,AA$13)) -> 1 | AB23: =IF(AND($K23=Calc.Top, AB$10=Calc.Left),"X",INDEX(CHOOSE(INDEX(MazeDef,$L23,AB$11),Primitives!$C$2:$E$4,Primitives!$C$6:$E$8,Primitives!$C$10:$E$12,Primitives!$C$14:$E$16,Primitives!$C$18:$E$20,Primitives!$C$22:$E$24,Primitives!$C$26:$E$28,Primitives!$C$30:$E$32,Primitives!$C$34:$E$36,Primitives!$C$38:$E$40,Primitives!$C$42:$E$44,Primitives!$C$46:$E$48,Primitives!$C$50:$E$52,Primitives!$C$54:$E$56,Primitives!$C$58:$E$60),$N23,AB$13)) -> 0 | AC23: =IF(AND($K23=Calc.Top, AC$10=Calc.Left),"X",INDEX(CHOOSE(INDEX(MazeDef,$L23,AC$11),Primitives!$C$2:$E$4,Primitives!$C$6:$E$8,Primitives!$C$10:$E$12,Primitives!$C$14:$E$16,Primitives!$C$18:$E$20,Primitives!$C$22:$E$24,Primitives!$C$26:$E$28,Primitives!$C$30:$E$32,Primitives!$C$34:$E$36,Primitives!$C$38:$E$40,Primitives!$C$42:$E$44,Primitives!$C$46:$E$48,Primitives!$C$50:$E$52,Primitives!$C$54:$E$56,Primitives!$C$58:$E$60),$N23,AC$13)) -> 1 | AD23: =IF(AND($K23=Calc.Top, AD$10=Calc.Left),"X",INDEX(CHOOSE(INDEX(MazeDef,$L23,AD$11),Primitives!$C$2:$E$4,Primitives!$C$6:$E$8,Primitives!$C$10:$E$12,Primitives!$C$14:$E$16,Primitives!$C$18:$E$20,Primitives!$C$22:$E$24,Primitives!$C$26:$E$28,Primitives!$C$30:$E$32,Primitives!$C$34:$E$36,Primitives!$C$38:$E$40,Primitives!$C$42:$E$44,Primitives!$C$46:$E$48,Primitives!$C$50:$E$52,Primitives!$C$54:$E$56,Primitives!$C$58:$E$60),$N23,AD$13)) -> 1 | AE23: =IF(AND($K23=Calc.Top, AE$10=Calc.Left),"X",INDEX(CHOOSE(INDEX(MazeDef,$L23,AE$11),Primitives!$C$2:$E$4,Primitives!$C$6:$E$8,Primitives!$C$10:$E$12,Primitives!$C$14:$E$16,Primitives!$C$18:$E$20,Primitives!$C$22:$E$24,Primitives!$C$26:$E$28,Primitives!$C$30:$E$32,Primitives!$C$34:$E$36,Primitives!$C$38:$E$40,Primitives!$C$42:$E$44,Primitives!$C$46:$E$48,Primitives!$C$50:$E$52,Primitives!$C$54:$E$56,Primitives!$C$58:$E$60),$N23,AE$13)) -> 1 | AF23: =IF(AND($K23=Calc.Top, AF$10=Calc.Left),"X",INDEX(CHOOSE(INDEX(MazeDef,$L23,AF$11),Primitives!$C$2:$E$4,Primitives!$C$6:$E$8,Primitives!$C$10:$E$12,Primitives!$C$14:$E$16,Primitives!$C$18:$E$20,Primitives!$C$22:$E$24,Primitives!$C$26:$E$28,Primitives!$C$30:$E$32,Primitives!$C$34:$E$36,Primitives!$C$38:$E$40,Primitives!$C$42:$E$44,Primitives!$C$46:$E$48,Primitives!$C$50:$E$52,Primitives!$C$54:$E$56,Primitives!$C$58:$E$60),$N23,AF$13)) -> 1 | AG23: =IF(AND($K23=Calc.Top, AG$10=Calc.Left),"X",INDEX(CHOOSE(INDEX(MazeDef,$L23,AG$11),Primitives!$C$2:$E$4,Primitives!$C$6:$E$8,Primitives!$C$10:$E$12,Primitives!$C$14:$E$16,Primitives!$C$18:$E$20,Primitives!$C$22:$E$24,Primitives!$C$26:$E$28,Primitives!$C$30:$E$32,Primitives!$C$34:$E$36,Primitives!$C$38:$E$40,Primitives!$C$42:$E$44,Primitives!$C$46:$E$48,Primitives!$C$50:$E$52,Primitives!$C$54:$E$56,Primitives!$C$58:$E$60),$N23,AG$13)) -> 1 | AH23: =IF(AND($K23=Calc.Top, AH$10=Calc.Left),"X",INDEX(CHOOSE(INDEX(MazeDef,$L23,AH$11),Primitives!$C$2:$E$4,Primitives!$C$6:$E$8,Primitives!$C$10:$E$12,Primitives!$C$14:$E$16,Primitives!$C$18:$E$20,Primitives!$C$22:$E$24,Primitives!$C$26:$E$28,Primitives!$C$30:$E$32,Primitives!$C$34:$E$36,Primitives!$C$38:$E$40,Primitives!$C$42:$E$44,Primitives!$C$46:$E$48,Primitives!$C$50:$E$52,Primitives!$C$54:$E$56,Primitives!$C$58:$E$60),$N23,AH$13)) -> 1 | AI23: =IF(AND($K23=Calc.Top, AI$10=Calc.Left),"X",INDEX(CHOOSE(INDEX(MazeDef,$L23,AI$11),Primitives!$C$2:$E$4,Primitives!$C$6:$E$8,Primitives!$C$10:$E$12,Primitives!$C$14:$E$16,Primitives!$C$18:$E$20,Primitives!$C$22:$E$24,Primitives!$C$26:$E$28,Primitives!$C$30:$E$32,Primitives!$C$34:$E$36,Primitives!$C$38:$E$40,Primitives!$C$42:$E$44,Primitives!$C$46:$E$48,Primitives!$C$50:$E$52,Primitives!$C$54:$E$56,Primitives!$C$58:$E$60),$N23,AI$13)) -> 1 | AJ23: =IF(AND($K23=Calc.Top, AJ$10=Calc.Left),"X",INDEX(CHOOSE(INDEX(MazeDef,$L23,AJ$11),Primitives!$C$2:$E$4,Primitives!$C$6:$E$8,Primitives!$C$10:$E$12,Primitives!$C$14:$E$16,Primitives!$C$18:$E$20,Primitives!$C$22:$E$24,Primitives!$C$26:$E$28,Primitives!$C$30:$E$32,Primitives!$C$34:$E$36,Primitives!$C$38:$E$40,Primitives!$C$42:$E$44,Primitives!$C$46:$E$48,Primitives!$C$50:$E$52,Primitives!$C$54:$E$56,Primitives!$C$58:$E$60),$N23,AJ$13)) -> 1 | AK23: =IF(AND($K23=Calc.Top, AK$10=Calc.Left),"X",INDEX(CHOOSE(INDEX(MazeDef,$L23,AK$11),Primitives!$C$2:$E$4,Primitives!$C$6:$E$8,Primitives!$C$10:$E$12,Primitives!$C$14:$E$16,Primitives!$C$18:$E$20,Primitives!$C$22:$E$24,Primitives!$C$26:$E$28,Primitives!$C$30:$E$32,Primitives!$C$34:$E$36,Primitives!$C$38:$E$40,Primitives!$C$42:$E$44,Primitives!$C$46:$E$48,Primitives!$C$50:$E$52,Primitives!$C$54:$E$56,Primitives!$C$58:$E$60),$N23,AK$13)) -> 0 | AL23: =IF(AND($K23=Calc.Top, AL$10=Calc.Left),"X",INDEX(CHOOSE(INDEX(MazeDef,$L23,AL$11),Primitives!$C$2:$E$4,Primitives!$C$6:$E$8,Primitives!$C$10:$E$12,Primitives!$C$14:$E$16,Primitives!$C$18:$E$20,Primitives!$C$22:$E$24,Primitives!$C$26:$E$28,Primitives!$C$30:$E$32,Primitives!$C$34:$E$36,Primitives!$C$38:$E$40,Primitives!$C$42:$E$44,Primitives!$C$46:$E$48,Primitives!$C$50:$E$52,Primitives!$C$54:$E$56,Primitives!$C$58:$E$60),$N23,AL$13)) -> 1 | AM23: =IF(AND($K23=Calc.Top, AM$10=Calc.Left),"X",INDEX(CHOOSE(INDEX(MazeDef,$L23,AM$11),Primitives!$C$2:$E$4,Primitives!$C$6:$E$8,Primitives!$C$10:$E$12,Primitives!$C$14:$E$16,Primitives!$C$18:$E$20,Primitives!$C$22:$E$24,Primitives!$C$26:$E$28,Primitives!$C$30:$E$32,Primitives!$C$34:$E$36,Primitives!$C$38:$E$40,Primitives!$C$42:$E$44,Primitives!$C$46:$E$48,Primitives!$C$50:$E$52,Primitives!$C$54:$E$56,Primitives!$C$58:$E$60),$N23,AM$13)) -> 1 | AN23: =IF(AND($K23=Calc.Top, AN$10=Calc.Left),"X",INDEX(CHOOSE(INDEX(MazeDef,$L23,AN$11),Primitives!$C$2:$E$4,Primitives!$C$6:$E$8,Primitives!$C$10:$E$12,Primitives!$C$14:$E$16,Primitives!$C$18:$E$20,Primitives!$C$22:$E$24,Primitives!$C$26:$E$28,Primitives!$C$30:$E$32,Primitives!$C$34:$E$36,Primitives!$C$38:$E$40,Primitives!$C$42:$E$44,Primitives!$C$46:$E$48,Primitives!$C$50:$E$52,Primitives!$C$54:$E$56,Primitives!$C$58:$E$60),$N23,AN$13)) -> 0 | AO23: =IF(AND($K23=Calc.Top, AO$10=Calc.Left),"X",INDEX(CHOOSE(INDEX(MazeDef,$L23,AO$11),Primitives!$C$2:$E$4,Primitives!$C$6:$E$8,Primitives!$C$10:$E$12,Primitives!$C$14:$E$16,Primitives!$C$18:$E$20,Primitives!$C$22:$E$24,Primitives!$C$26:$E$28,Primitives!$C$30:$E$32,Primitives!$C$34:$E$36,Primitives!$C$38:$E$40,Primitives!$C$42:$E$44,Primitives!$C$46:$E$48,Primitives!$C$50:$E$52,Primitives!$C$54:$E$56,Primitives!$C$58:$E$60),$N23,AO$13)) -> 1 | AP23: =IF(AND($K23=Calc.Top, AP$10=Calc.Left),"X",INDEX(CHOOSE(INDEX(MazeDef,$L23,AP$11),Primitives!$C$2:$E$4,Primitives!$C$6:$E$8,Primitives!$C$10:$E$12,Primitives!$C$14:$E$16,Primitives!$C$18:$E$20,Primitives!$C$22:$E$24,Primitives!$C$26:$E$28,Primitives!$C$30:$E$32,Primitives!$C$34:$E$36,Primitives!$C$38:$E$40,Primitives!$C$42:$E$44,Primitives!$C$46:$E$48,Primitives!$C$50:$E$52,Primitives!$C$54:$E$56,Primitives!$C$58:$E$60),$N23,AP$13)) -> 1 | AQ23: =IF(AND($K23=Calc.Top, AQ$10=Calc.Left),"X",INDEX(CHOOSE(INDEX(MazeDef,$L23,AQ$11),Primitives!$C$2:$E$4,Primitives!$C$6:$E$8,Primitives!$C$10:$E$12,Primitives!$C$14:$E$16,Primitives!$C$18:$E$20,Primitives!$C$22:$E$24,Primitives!$C$26:$E$28,Primitives!$C$30:$E$32,Primitives!$C$34:$E$36,Primitives!$C$38:$E$40,Primitives!$C$42:$E$44,Primitives!$C$46:$E$48,Primitives!$C$50:$E$52,Primitives!$C$54:$E$56,Primitives!$C$58:$E$60),$N23,AQ$13)) -> 0 | AR23: =IF(AND($K23=Calc.Top, AR$10=Calc.Left),"X",INDEX(CHOOSE(INDEX(MazeDef,$L23,AR$11),Primitives!$C$2:$E$4,Primitives!$C$6:$E$8,Primitives!$C$10:$E$12,Primitives!$C$14:$E$16,Primitives!$C$18:$E$20,Primitives!$C$22:$E$24,Primitives!$C$26:$E$28,Primitives!$C$30:$E$32,Primitives!$C$34:$E$36,Primitives!$C$38:$E$40,Primitives!$C$42:$E$44,Primitives!$C$46:$E$48,Primitives!$C$50:$E$52,Primitives!$C$54:$E$56,Primitives!$C$58:$E$60),$N23,AR$13)) -> 1
B24: 1 | D24: 1 | K24: 11 | L24: 4 | N24: 2 | O24: =IF(AND($K24=Calc.Top, O$10=Calc.Left),"X",INDEX(CHOOSE(INDEX(MazeDef,$L24,O$11),Primitives!$C$2:$E$4,Primitives!$C$6:$E$8,Primitives!$C$10:$E$12,Primitives!$C$14:$E$16,Primitives!$C$18:$E$20,Primitives!$C$22:$E$24,Primitives!$C$26:$E$28,Primitives!$C$30:$E$32,Primitives!$C$34:$E$36,Primitives!$C$38:$E$40,Primitives!$C$42:$E$44,Primitives!$C$46:$E$48,Primitives!$C$50:$E$52,Primitives!$C$54:$E$56,Primitives!$C$58:$E$60),$N24,O$13)) -> 1 | P24: =IF(AND($K24=Calc.Top, P$10=Calc.Left),"X",INDEX(CHOOSE(INDEX(MazeDef,$L24,P$11),Primitives!$C$2:$E$4,Primitives!$C$6:$E$8,Primitives!$C$10:$E$12,Primitives!$C$14:$E$16,Primitives!$C$18:$E$20,Primitives!$C$22:$E$24,Primitives!$C$26:$E$28,Primitives!$C$30:$E$32,Primitives!$C$34:$E$36,Primitives!$C$38:$E$40,Primitives!$C$42:$E$44,Primitives!$C$46:$E$48,Primitives!$C$50:$E$52,Primitives!$C$54:$E$56,Primitives!$C$58:$E$60),$N24,P$13)) -> 0 | Q24: =IF(AND($K24=Calc.Top, Q$10=Calc.Left),"X",INDEX(CHOOSE(INDEX(MazeDef,$L24,Q$11),Primitives!$C$2:$E$4,Primitives!$C$6:$E$8,Primitives!$C$10:$E$12,Primitives!$C$14:$E$16,Primitives!$C$18:$E$20,Primitives!$C$22:$E$24,Primitives!$C$26:$E$28,Primitives!$C$30:$E$32,Primitives!$C$34:$E$36,Primitives!$C$38:$E$40,Primitives!$C$42:$E$44,Primitives!$C$46:$E$48,Primitives!$C$50:$E$52,Primitives!$C$54:$E$56,Primitives!$C$58:$E$60),$N24,Q$13)) -> 0 | R24: =IF(AND($K24=Calc.Top, R$10=Calc.Left),"X",INDEX(CHOOSE(INDEX(MazeDef,$L24,R$11),Primitives!$C$2:$E$4,Primitives!$C$6:$E$8,Primitives!$C$10:$E$12,Primitives!$C$14:$E$16,Primitives!$C$18:$E$20,Primitives!$C$22:$E$24,Primitives!$C$26:$E$28,Primitives!$C$30:$E$32,Primitives!$C$34:$E$36,Primitives!$C$38:$E$40,Primitives!$C$42:$E$44,Primitives!$C$46:$E$48,Primitives!$C$50:$E$52,Primitives!$C$54:$E$56,Primitives!$C$58:$E$60),$N24,R$13)) -> 0 | S24: =IF(AND($K24=Calc.Top, S$10=Calc.Left),"X",INDEX(CHOOSE(INDEX(MazeDef,$L24,S$11),Primitives!$C$2:$E$4,Primitives!$C$6:$E$8,Primitives!$C$10:$E$12,Primitives!$C$14:$E$16,Primitives!$C$18:$E$20,Primitives!$C$22:$E$24,Primitives!$C$26:$E$28,Primitives!$C$30:$E$32,Primitives!$C$34:$E$36,Primitives!$C$38:$E$40,Primitives!$C$42:$E$44,Primitives!$C$46:$E$48,Primitives!$C$50:$E$52,Primitives!$C$54:$E$56,Primitives!$C$58:$E$60),$N24,S$13)) -> 0 | T24: =IF(AND($K24=Calc.Top, T$10=Calc.Left),"X",INDEX(CHOOSE(INDEX(MazeDef,$L24,T$11),Primitives!$C$2:$E$4,Primitives!$C$6:$E$8,Primitives!$C$10:$E$12,Primitives!$C$14:$E$16,Primitives!$C$18:$E$20,Primitives!$C$22:$E$24,Primitives!$C$26:$E$28,Primitives!$C$30:$E$32,Primitives!$C$34:$E$36,Primitives!$C$38:$E$40,Primitives!$C$42:$E$44,Primitives!$C$46:$E$48,Primitives!$C$50:$E$52,Primitives!$C$54:$E$56,Primitives!$C$58:$E$60),$N24,T$13)) -> 1 | U24: =IF(AND($K24=Calc.Top, U$10=Calc.Left),"X",INDEX(CHOOSE(INDEX(MazeDef,$L24,U$11),Primitives!$C$2:$E$4,Primitives!$C$6:$E$8,Primitives!$C$10:$E$12,Primitives!$C$14:$E$16,Primitives!$C$18:$E$20,Primitives!$C$22:$E$24,Primitives!$C$26:$E$28,Primitives!$C$30:$E$32,Primitives!$C$34:$E$36,Primitives!$C$38:$E$40,Primitives!$C$42:$E$44,Primitives!$C$46:$E$48,Primitives!$C$50:$E$52,Primitives!$C$54:$E$56,Primitives!$C$58:$E$60),$N24,U$13)) -> 1 | V24: =IF(AND($K24=Calc.Top, V$10=Calc.Left),"X",INDEX(CHOOSE(INDEX(MazeDef,$L24,V$11),Primitives!$C$2:$E$4,Primitives!$C$6:$E$8,Primitives!$C$10:$E$12,Primitives!$C$14:$E$16,Primitives!$C$18:$E$20,Primitives!$C$22:$E$24,Primitives!$C$26:$E$28,Primitives!$C$30:$E$32,Primitives!$C$34:$E$36,Primitives!$C$38:$E$40,Primitives!$C$42:$E$44,Primitives!$C$46:$E$48,Primitives!$C$50:$E$52,Primitives!$C$54:$E$56,Primitives!$C$58:$E$60),$N24,V$13)) -> 0 | W24: =IF(AND($K24=Calc.Top, W$10=Calc.Left),"X",INDEX(CHOOSE(INDEX(MazeDef,$L24,W$11),Primitives!$C$2:$E$4,Primitives!$C$6:$E$8,Primitives!$C$10:$E$12,Primitives!$C$14:$E$16,Primitives!$C$18:$E$20,Primitives!$C$22:$E$24,Primitives!$C$26:$E$28,Primitives!$C$30:$E$32,Primitives!$C$34:$E$36,Primitives!$C$38:$E$40,Primitives!$C$42:$E$44,Primitives!$C$46:$E$48,Primitives!$C$50:$E$52,Primitives!$C$54:$E$56,Primitives!$C$58:$E$60),$N24,W$13)) -> 1 | X24: =IF(AND($K24=Calc.Top, X$10=Calc.Left),"X",INDEX(CHOOSE(INDEX(MazeDef,$L24,X$11),Primitives!$C$2:$E$4,Primitives!$C$6:$E$8,Primitives!$C$10:$E$12,Primitives!$C$14:$E$16,Primitives!$C$18:$E$20,Primitives!$C$22:$E$24,Primitives!$C$26:$E$28,Primitives!$C$30:$E$32,Primitives!$C$34:$E$36,Primitives!$C$38:$E$40,Primitives!$C$42:$E$44,Primitives!$C$46:$E$48,Primitives!$C$50:$E$52,Primitives!$C$54:$E$56,Primitives!$C$58:$E$60),$N24,X$13)) -> 1 | Y24: =IF(AND($K24=Calc.Top, Y$10=Calc.Left),"X",INDEX(CHOOSE(INDEX(MazeDef,$L24,Y$11),Primitives!$C$2:$E$4,Primitives!$C$6:$E$8,Primitives!$C$10:$E$12,Primitives!$C$14:$E$16,Primitives!$C$18:$E$20,Primitives!$C$22:$E$24,Primitives!$C$26:$E$28,Primitives!$C$30:$E$32,Primitives!$C$34:$E$36,Primitives!$C$38:$E$40,Primitives!$C$42:$E$44,Primitives!$C$46:$E$48,Primitives!$C$50:$E$52,Primitives!$C$54:$E$56,Primitives!$C$58:$E$60),$N24,Y$13)) -> 0 | Z24: =IF(AND($K24=Calc.Top, Z$10=Calc.Left),"X",INDEX(CHOOSE(INDEX(MazeDef,$L24,Z$11),Primitives!$C$2:$E$4,Primitives!$C$6:$E$8,Primitives!$C$10:$E$12,Primitives!$C$14:$E$16,Primitives!$C$18:$E$20,Primitives!$C$22:$E$24,Primitives!$C$26:$E$28,Primitives!$C$30:$E$32,Primitives!$C$34:$E$36,Primitives!$C$38:$E$40,Primitives!$C$42:$E$44,Primitives!$C$46:$E$48,Primitives!$C$50:$E$52,Primitives!$C$54:$E$56,Primitives!$C$58:$E$60),$N24,Z$13)) -> 1 | AA24: =IF(AND($K24=Calc.Top, AA$10=Calc.Left),"X",INDEX(CHOOSE(INDEX(MazeDef,$L24,AA$11),Primitives!$C$2:$E$4,Primitives!$C$6:$E$8,Primitives!$C$10:$E$12,Primitives!$C$14:$E$16,Primitives!$C$18:$E$20,Primitives!$C$22:$E$24,Primitives!$C$26:$E$28,Primitives!$C$30:$E$32,Primitives!$C$34:$E$36,Primitives!$C$38:$E$40,Primitives!$C$42:$E$44,Primitives!$C$46:$E$48,Primitives!$C$50:$E$52,Primitives!$C$54:$E$56,Primitives!$C$58:$E$60),$N24,AA$13)) -> 1 | AB24: =IF(AND($K24=Calc.Top, AB$10=Calc.Left),"X",INDEX(CHOOSE(INDEX(MazeDef,$L24,AB$11),Primitives!$C$2:$E$4,Primitives!$C$6:$E$8,Primitives!$C$10:$E$12,Primitives!$C$14:$E$16,Primitives!$C$18:$E$20,Primitives!$C$22:$E$24,Primitives!$C$26:$E$28,Primitives!$C$30:$E$32,Primitives!$C$34:$E$36,Primitives!$C$38:$E$40,Primitives!$C$42:$E$44,Primitives!$C$46:$E$48,Primitives!$C$50:$E$52,Primitives!$C$54:$E$56,Primitives!$C$58:$E$60),$N24,AB$13)) -> 0 | AC24: =IF(AND($K24=Calc.Top, AC$10=Calc.Left),"X",INDEX(CHOOSE(INDEX(MazeDef,$L24,AC$11),Primitives!$C$2:$E$4,Primitives!$C$6:$E$8,Primitives!$C$10:$E$12,Primitives!$C$14:$E$16,Primitives!$C$18:$E$20,Primitives!$C$22:$E$24,Primitives!$C$26:$E$28,Primitives!$C$30:$E$32,Primitives!$C$34:$E$36,Primitives!$C$38:$E$40,Primitives!$C$42:$E$44,Primitives!$C$46:$E$48,Primitives!$C$50:$E$52,Primitives!$C$54:$E$56,Primitives!$C$58:$E$60),$N24,AC$13)) -> 0 | AD24: =IF(AND($K24=Calc.Top, AD$10=Calc.Left),"X",INDEX(CHOOSE(INDEX(MazeDef,$L24,AD$11),Primitives!$C$2:$E$4,Primitives!$C$6:$E$8,Primitives!$C$10:$E$12,Primitives!$C$14:$E$16,Primitives!$C$18:$E$20,Primitives!$C$22:$E$24,Primitives!$C$26:$E$28,Primitives!$C$30:$E$32,Primitives!$C$34:$E$36,Primitives!$C$38:$E$40,Primitives!$C$42:$E$44,Primitives!$C$46:$E$48,Primitives!$C$50:$E$52,Primitives!$C$54:$E$56,Primitives!$C$58:$E$60),$N24,AD$13)) -> 0 | AE24: =IF(AND($K24=Calc.Top, AE$10=Calc.Left),"X",INDEX(CHOOSE(INDEX(MazeDef,$L24,AE$11),Primitives!$C$2:$E$4,Primitives!$C$6:$E$8,Primitives!$C$10:$E$12,Primitives!$C$14:$E$16,Primitives!$C$18:$E$20,Primitives!$C$22:$E$24,Primitives!$C$26:$E$28,Primitives!$C$30:$E$32,Primitives!$C$34:$E$36,Primitives!$C$38:$E$40,Primitives!$C$42:$E$44,Primitives!$C$46:$E$48,Primitives!$C$50:$E$52,Primitives!$C$54:$E$56,Primitives!$C$58:$E$60),$N24,AE$13)) -> 0 | AF24: =IF(AND($K24=Calc.Top, AF$10=Calc.Left),"X",INDEX(CHOOSE(INDEX(MazeDef,$L24,AF$11),Primitives!$C$2:$E$4,Primitives!$C$6:$E$8,Primitives!$C$10:$E$12,Primitives!$C$14:$E$16,Primitives!$C$18:$E$20,Primitives!$C$22:$E$24,Primitives!$C$26:$E$28,Primitives!$C$30:$E$32,Primitives!$C$34:$E$36,Primitives!$C$38:$E$40,Primitives!$C$42:$E$44,Primitives!$C$46:$E$48,Primitives!$C$50:$E$52,Primitives!$C$54:$E$56,Primitives!$C$58:$E$60),$N24,AF$13)) -> 0 | AG24: =IF(AND($K24=Calc.Top, AG$10=Calc.Left),"X",INDEX(CHOOSE(INDEX(MazeDef,$L24,AG$11),Primitives!$C$2:$E$4,Primitives!$C$6:$E$8,Primitives!$C$10:$E$12,Primitives!$C$14:$E$16,Primitives!$C$18:$E$20,Primitives!$C$22:$E$24,Primitives!$C$26:$E$28,Primitives!$C$30:$E$32,Primitives!$C$34:$E$36,Primitives!$C$38:$E$40,Primitives!$C$42:$E$44,Primitives!$C$46:$E$48,Primitives!$C$50:$E$52,Primitives!$C$54:$E$56,Primitives!$C$58:$E$60),$N24,AG$13)) -> 0 | AH24: =IF(AND($K24=Calc.Top, AH$10=Calc.Left),"X",INDEX(CHOOSE(INDEX(MazeDef,$L24,AH$11),Primitives!$C$2:$E$4,Primitives!$C$6:$E$8,Primitives!$C$10:$E$12,Primitives!$C$14:$E$16,Primitives!$C$18:$E$20,Primitives!$C$22:$E$24,Primitives!$C$26:$E$28,Primitives!$C$30:$E$32,Primitives!$C$34:$E$36,Primitives!$C$38:$E$40,Primitives!$C$42:$E$44,Primitives!$C$46:$E$48,Primitives!$C$50:$E$52,Primitives!$C$54:$E$56,Primitives!$C$58:$E$60),$N24,AH$13)) -> 0 | AI24: =IF(AND($K24=Calc.Top, AI$10=Calc.Left),"X",INDEX(CHOOSE(INDEX(MazeDef,$L24,AI$11),Primitives!$C$2:$E$4,Primitives!$C$6:$E$8,Primitives!$C$10:$E$12,Primitives!$C$14:$E$16,Primitives!$C$18:$E$20,Primitives!$C$22:$E$24,Primitives!$C$26:$E$28,Primitives!$C$30:$E$32,Primitives!$C$34:$E$36,Primitives!$C$38:$E$40,Primitives!$C$42:$E$44,Primitives!$C$46:$E$48,Primitives!$C$50:$E$52,Primitives!$C$54:$E$56,Primitives!$C$58:$E$60),$N24,AI$13)) -> 0 | AJ24: =IF(AND($K24=Calc.Top, AJ$10=Calc.Left),"X",INDEX(CHOOSE(INDEX(MazeDef,$L24,AJ$11),Primitives!$C$2:$E$4,Primitives!$C$6:$E$8,Primitives!$C$10:$E$12,Primitives!$C$14:$E$16,Primitives!$C$18:$E$20,Primitives!$C$22:$E$24,Primitives!$C$26:$E$28,Primitives!$C$30:$E$32,Primitives!$C$34:$E$36,Primitives!$C$38:$E$40,Primitives!$C$42:$E$44,Primitives!$C$46:$E$48,Primitives!$C$50:$E$52,Primitives!$C$54:$E$56,Primitives!$C$58:$E$60),$N24,AJ$13)) -> 0 | AK24: =IF(AND($K24=Calc.Top, AK$10=Calc.Left),"X",INDEX(CHOOSE(INDEX(MazeDef,$L24,AK$11),Primitives!$C$2:$E$4,Primitives!$C$6:$E$8,Primitives!$C$10:$E$12,Primitives!$C$14:$E$16,Primitives!$C$18:$E$20,Primitives!$C$22:$E$24,Primitives!$C$26:$E$28,Primitives!$C$30:$E$32,Primitives!$C$34:$E$36,Primitives!$C$38:$E$40,Primitives!$C$42:$E$44,Primitives!$C$46:$E$48,Primitives!$C$50:$E$52,Primitives!$C$54:$E$56,Primitives!$C$58:$E$60),$N24,AK$13)) -> 0 | AL24: =IF(AND($K24=Calc.Top, AL$10=Calc.Left),"X",INDEX(CHOOSE(INDEX(MazeDef,$L24,AL$11),Primitives!$C$2:$E$4,Primitives!$C$6:$E$8,Primitives!$C$10:$E$12,Primitives!$C$14:$E$16,Primitives!$C$18:$E$20,Primitives!$C$22:$E$24,Primitives!$C$26:$E$28,Primitives!$C$30:$E$32,Primitives!$C$34:$E$36,Primitives!$C$38:$E$40,Primitives!$C$42:$E$44,Primitives!$C$46:$E$48,Primitives!$C$50:$E$52,Primitives!$C$54:$E$56,Primitives!$C$58:$E$60),$N24,AL$13)) -> 1 | AM24: =IF(AND($K24=Calc.Top, AM$10=Calc.Left),"X",INDEX(CHOOSE(INDEX(MazeDef,$L24,AM$11),Primitives!$C$2:$E$4,Primitives!$C$6:$E$8,Primitives!$C$10:$E$12,Primitives!$C$14:$E$16,Primitives!$C$18:$E$20,Primitives!$C$22:$E$24,Primitives!$C$26:$E$28,Primitives!$C$30:$E$32,Primitives!$C$34:$E$36,Primitives!$C$38:$E$40,Primitives!$C$42:$E$44,Primitives!$C$46:$E$48,Primitives!$C$50:$E$52,Primitives!$C$54:$E$56,Primitives!$C$58:$E$60),$N24,AM$13)) -> 1 | AN24: =IF(AND($K24=Calc.Top, AN$10=Calc.Left),"X",INDEX(CHOOSE(INDEX(MazeDef,$L24,AN$11),Primitives!$C$2:$E$4,Primitives!$C$6:$E$8,Primitives!$C$10:$E$12,Primitives!$C$14:$E$16,Primitives!$C$18:$E$20,Primitives!$C$22:$E$24,Primitives!$C$26:$E$28,Primitives!$C$30:$E$32,Primitives!$C$34:$E$36,Primitives!$C$38:$E$40,Primitives!$C$42:$E$44,Primitives!$C$46:$E$48,Primitives!$C$50:$E$52,Primitives!$C$54:$E$56,Primitives!$C$58:$E$60),$N24,AN$13)) -> 0 | AO24: =IF(AND($K24=Calc.Top, AO$10=Calc.Left),"X",INDEX(CHOOSE(INDEX(MazeDef,$L24,AO$11),Primitives!$C$2:$E$4,Primitives!$C$6:$E$8,Primitives!$C$10:$E$12,Primitives!$C$14:$E$16,Primitives!$C$18:$E$20,Primitives!$C$22:$E$24,Primitives!$C$26:$E$28,Primitives!$C$30:$E$32,Primitives!$C$34:$E$36,Primitives!$C$38:$E$40,Primitives!$C$42:$E$44,Primitives!$C$46:$E$48,Primitives!$C$50:$E$52,Primitives!$C$54:$E$56,Primitives!$C$58:$E$60),$N24,AO$13)) -> 1 | AP24: =IF(AND($K24=Calc.Top, AP$10=Calc.Left),"X",INDEX(CHOOSE(INDEX(MazeDef,$L24,AP$11),Primitives!$C$2:$E$4,Primitives!$C$6:$E$8,Primitives!$C$10:$E$12,Primitives!$C$14:$E$16,Primitives!$C$18:$E$20,Primitives!$C$22:$E$24,Primitives!$C$26:$E$28,Primitives!$C$30:$E$32,Primitives!$C$34:$E$36,Primitives!$C$38:$E$40,Primitives!$C$42:$E$44,Primitives!$C$46:$E$48,Primitives!$C$50:$E$52,Primitives!$C$54:$E$56,Primitives!$C$58:$E$60),$N24,AP$13)) -> 1 | AQ24: =IF(AND($K24=Calc.Top, AQ$10=Calc.Left),"X",INDEX(CHOOSE(INDEX(MazeDef,$L24,AQ$11),Primitives!$C$2:$E$4,Primitives!$C$6:$E$8,Primitives!$C$10:$E$12,Primitives!$C$14:$E$16,Primitives!$C$18:$E$20,Primitives!$C$22:$E$24,Primitives!$C$26:$E$28,Primitives!$C$30:$E$32,Primitives!$C$34:$E$36,Primitives!$C$38:$E$40,Primitives!$C$42:$E$44,Primitives!$C$46:$E$48,Primitives!$C$50:$E$52,Primitives!$C$54:$E$56,Primitives!$C$58:$E$60),$N24,AQ$13)) -> 0 | AR24: =IF(AND($K24=Calc.Top, AR$10=Calc.Left),"X",INDEX(CHOOSE(INDEX(MazeDef,$L24,AR$11),Primitives!$C$2:$E$4,Primitives!$C$6:$E$8,Primitives!$C$10:$E$12,Primitives!$C$14:$E$16,Primitives!$C$18:$E$20,Primitives!$C$22:$E$24,Primitives!$C$26:$E$28,Primitives!$C$30:$E$32,Primitives!$C$34:$E$36,Primitives!$C$38:$E$40,Primitives!$C$42:$E$44,Primitives!$C$46:$E$48,Primitives!$C$50:$E$52,Primitives!$C$54:$E$56,Primitives!$C$58:$E$60),$N24,AR$13)) -> 1
K25: 12 | L25: 4 | N25: 3 | O25: =IF(AND($K25=Calc.Top, O$10=Calc.Left),"X",INDEX(CHOOSE(INDEX(MazeDef,$L25,O$11),Primitives!$C$2:$E$4,Primitives!$C$6:$E$8,Primitives!$C$10:$E$12,Primitives!$C$14:$E$16,Primitives!$C$18:$E$20,Primitives!$C$22:$E$24,Primitives!$C$26:$E$28,Primitives!$C$30:$E$32,Primitives!$C$34:$E$36,Primitives!$C$38:$E$40,Primitives!$C$42:$E$44,Primitives!$C$46:$E$48,Primitives!$C$50:$E$52,Primitives!$C$54:$E$56,Primitives!$C$58:$E$60),$N25,O$13)) -> 1 | P25: =IF(AND($K25=Calc.Top, P$10=Calc.Left),"X",INDEX(CHOOSE(INDEX(MazeDef,$L25,P$11),Primitives!$C$2:$E$4,Primitives!$C$6:$E$8,Primitives!$C$10:$E$12,Primitives!$C$14:$E$16,Primitives!$C$18:$E$20,Primitives!$C$22:$E$24,Primitives!$C$26:$E$28,Primitives!$C$30:$E$32,Primitives!$C$34:$E$36,Primitives!$C$38:$E$40,Primitives!$C$42:$E$44,Primitives!$C$46:$E$48,Primitives!$C$50:$E$52,Primitives!$C$54:$E$56,Primitives!$C$58:$E$60),$N25,P$13)) -> 0 | Q25: =IF(AND($K25=Calc.Top, Q$10=Calc.Left),"X",INDEX(CHOOSE(INDEX(MazeDef,$L25,Q$11),Primitives!$C$2:$E$4,Primitives!$C$6:$E$8,Primitives!$C$10:$E$12,Primitives!$C$14:$E$16,Primitives!$C$18:$E$20,Primitives!$C$22:$E$24,Primitives!$C$26:$E$28,Primitives!$C$30:$E$32,Primitives!$C$34:$E$36,Primitives!$C$38:$E$40,Primitives!$C$42:$E$44,Primitives!$C$46:$E$48,Primitives!$C$50:$E$52,Primitives!$C$54:$E$56,Primitives!$C$58:$E$60),$N25,Q$13)) -> 1 | R25: =IF(AND($K25=Calc.Top, R$10=Calc.Left),"X",INDEX(CHOOSE(INDEX(MazeDef,$L25,R$11),Primitives!$C$2:$E$4,Primitives!$C$6:$E$8,Primitives!$C$10:$E$12,Primitives!$C$14:$E$16,Primitives!$C$18:$E$20,Primitives!$C$22:$E$24,Primitives!$C$26:$E$28,Primitives!$C$30:$E$32,Primitives!$C$34:$E$36,Primitives!$C$38:$E$40,Primitives!$C$42:$E$44,Primitives!$C$46:$E$48,Primitives!$C$50:$E$52,Primitives!$C$54:$E$56,Primitives!$C$58:$E$60),$N25,R$13)) -> 1 | S25: =IF(AND($K25=Calc.Top, S$10=Calc.Left),"X",INDEX(CHOOSE(INDEX(MazeDef,$L25,S$11),Primitives!$C$2:$E$4,Primitives!$C$6:$E$8,Primitives!$C$10:$E$12,Primitives!$C$14:$E$16,Primitives!$C$18:$E$20,Primitives!$C$22:$E$24,Primitives!$C$26:$E$28,Primitives!$C$30:$E$32,Primitives!$C$34:$E$36,Primitives!$C$38:$E$40,Primitives!$C$42:$E$44,Primitives!$C$46:$E$48,Primitives!$C$50:$E$52,Primitives!$C$54:$E$56,Primitives!$C$58:$E$60),$N25,S$13)) -> 0 | T25: =IF(AND($K25=Calc.Top, T$10=Calc.Left),"X",INDEX(CHOOSE(INDEX(MazeDef,$L25,T$11),Primitives!$C$2:$E$4,Primitives!$C$6:$E$8,Primitives!$C$10:$E$12,Primitives!$C$14:$E$16,Primitives!$C$18:$E$20,Primitives!$C$22:$E$24,Primitives!$C$26:$E$28,Primitives!$C$30:$E$32,Primitives!$C$34:$E$36,Primitives!$C$38:$E$40,Primitives!$C$42:$E$44,Primitives!$C$46:$E$48,Primitives!$C$50:$E$52,Primitives!$C$54:$E$56,Primitives!$C$58:$E$60),$N25,T$13)) -> 1 | U25: =IF(AND($K25=Calc.Top, U$10=Calc.Left),"X",INDEX(CHOOSE(INDEX(MazeDef,$L25,U$11),Primitives!$C$2:$E$4,Primitives!$C$6:$E$8,Primitives!$C$10:$E$12,Primitives!$C$14:$E$16,Primitives!$C$18:$E$20,Primitives!$C$22:$E$24,Primitives!$C$26:$E$28,Primitives!$C$30:$E$32,Primitives!$C$34:$E$36,Primitives!$C$38:$E$40,Primitives!$C$42:$E$44,Primitives!$C$46:$E$48,Primitives!$C$50:$E$52,Primitives!$C$54:$E$56,Primitives!$C$58:$E$60),$N25,U$13)) -> 1 | V25: =IF(AND($K25=Calc.Top, V$10=Calc.Left),"X",INDEX(CHOOSE(INDEX(MazeDef,$L25,V$11),Primitives!$C$2:$E$4,Primitives!$C$6:$E$8,Primitives!$C$10:$E$12,Primitives!$C$14:$E$16,Primitives!$C$18:$E$20,Primitives!$C$22:$E$24,Primitives!$C$26:$E$28,Primitives!$C$30:$E$32,Primitives!$C$34:$E$36,Primitives!$C$38:$E$40,Primitives!$C$42:$E$44,Primitives!$C$46:$E$48,Primitives!$C$50:$E$52,Primitives!$C$54:$E$56,Primitives!$C$58:$E$60),$N25,V$13)) -> 0 | W25: =IF(AND($K25=Calc.Top, W$10=Calc.Left),"X",INDEX(CHOOSE(INDEX(MazeDef,$L25,W$11),Primitives!$C$2:$E$4,Primitives!$C$6:$E$8,Primitives!$C$10:$E$12,Primitives!$C$14:$E$16,Primitives!$C$18:$E$20,Primitives!$C$22:$E$24,Primitives!$C$26:$E$28,Primitives!$C$30:$E$32,Primitives!$C$34:$E$36,Primitives!$C$38:$E$40,Primitives!$C$42:$E$44,Primitives!$C$46:$E$48,Primitives!$C$50:$E$52,Primitives!$C$54:$E$56,Primitives!$C$58:$E$60),$N25,W$13)) -> 1 | X25: =IF(AND($K25=Calc.Top, X$10=Calc.Left),"X",INDEX(CHOOSE(INDEX(MazeDef,$L25,X$11),Primitives!$C$2:$E$4,Primitives!$C$6:$E$8,Primitives!$C$10:$E$12,Primitives!$C$14:$E$16,Primitives!$C$18:$E$20,Primitives!$C$22:$E$24,Primitives!$C$26:$E$28,Primitives!$C$30:$E$32,Primitives!$C$34:$E$36,Primitives!$C$38:$E$40,Primitives!$C$42:$E$44,Primitives!$C$46:$E$48,Primitives!$C$50:$E$52,Primitives!$C$54:$E$56,Primitives!$C$58:$E$60),$N25,X$13)) -> 1 | Y25: =IF(AND($K25=Calc.Top, Y$10=Calc.Left),"X",INDEX(CHOOSE(INDEX(MazeDef,$L25,Y$11),Primitives!$C$2:$E$4,Primitives!$C$6:$E$8,Primitives!$C$10:$E$12,Primitives!$C$14:$E$16,Primitives!$C$18:$E$20,Primitives!$C$22:$E$24,Primitives!$C$26:$E$28,Primitives!$C$30:$E$32,Primitives!$C$34:$E$36,Primitives!$C$38:$E$40,Primitives!$C$42:$E$44,Primitives!$C$46:$E$48,Primitives!$C$50:$E$52,Primitives!$C$54:$E$56,Primitives!$C$58:$E$60),$N25,Y$13)) -> 0 | Z25: =IF(AND($K25=Calc.Top, Z$10=Calc.Left),"X",INDEX(CHOOSE(INDEX(MazeDef,$L25,Z$11),Primitives!$C$2:$E$4,Primitives!$C$6:$E$8,Primitives!$C$10:$E$12,Primitives!$C$14:$E$16,Primitives!$C$18:$E$20,Primitives!$C$22:$E$24,Primitives!$C$26:$E$28,Primitives!$C$30:$E$32,Primitives!$C$34:$E$36,Primitives!$C$38:$E$40,Primitives!$C$42:$E$44,Primitives!$C$46:$E$48,Primitives!$C$50:$E$52,Primitives!$C$54:$E$56,Primitives!$C$58:$E$60),$N25,Z$13)) -> 1 | AA25: =IF(AND($K25=Calc.Top, AA$10=Calc.Left),"X",INDEX(CHOOSE(INDEX(MazeDef,$L25,AA$11),Primitives!$C$2:$E$4,Primitives!$C$6:$E$8,Primitives!$C$10:$E$12,Primitives!$C$14:$E$16,Primitives!$C$18:$E$20,Primitives!$C$22:$E$24,Primitives!$C$26:$E$28,Primitives!$C$30:$E$32,Primitives!$C$34:$E$36,Primitives!$C$38:$E$40,Primitives!$C$42:$E$44,Primitives!$C$46:$E$48,Primitives!$C$50:$E$52,Primitives!$C$54:$E$56,Primitives!$C$58:$E$60),$N25,AA$13)) -> 1 | AB25: =IF(AND($K25=Calc.Top, AB$10=Calc.Left),"X",INDEX(CHOOSE(INDEX(MazeDef,$L25,AB$11),Primitives!$C$2:$E$4,Primitives!$C$6:$E$8,Primitives!$C$10:$E$12,Primitives!$C$14:$E$16,Primitives!$C$18:$E$20,Primitives!$C$22:$E$24,Primitives!$C$26:$E$28,Primitives!$C$30:$E$32,Primitives!$C$34:$E$36,Primitives!$C$38:$E$40,Primitives!$C$42:$E$44,Primitives!$C$46:$E$48,Primitives!$C$50:$E$52,Primitives!$C$54:$E$56,Primitives!$C$58:$E$60),$N25,AB$13)) -> 0 | AC25: =IF(AND($K25=Calc.Top, AC$10=Calc.Left),"X",INDEX(CHOOSE(INDEX(MazeDef,$L25,AC$11),Primitives!$C$2:$E$4,Primitives!$C$6:$E$8,Primitives!$C$10:$E$12,Primitives!$C$14:$E$16,Primitives!$C$18:$E$20,Primitives!$C$22:$E$24,Primitives!$C$26:$E$28,Primitives!$C$30:$E$32,Primitives!$C$34:$E$36,Primitives!$C$38:$E$40,Primitives!$C$42:$E$44,Primitives!$C$46:$E$48,Primitives!$C$50:$E$52,Primitives!$C$54:$E$56,Primitives!$C$58:$E$60),$N25,AC$13)) -> 1 | AD25: =IF(AND($K25=Calc.Top, AD$10=Calc.Left),"X",INDEX(CHOOSE(INDEX(MazeDef,$L25,AD$11),Primitives!$C$2:$E$4,Primitives!$C$6:$E$8,Primitives!$C$10:$E$12,Primitives!$C$14:$E$16,Primitives!$C$18:$E$20,Primitives!$C$22:$E$24,Primitives!$C$26:$E$28,Primitives!$C$30:$E$32,Primitives!$C$34:$E$36,Primitives!$C$38:$E$40,Primitives!$C$42:$E$44,Primitives!$C$46:$E$48,Primitives!$C$50:$E$52,Primitives!$C$54:$E$56,Primitives!$C$58:$E$60),$N25,AD$13)) -> 1 | AE25: =IF(AND($K25=Calc.Top, AE$10=Calc.Left),"X",INDEX(CHOOSE(INDEX(MazeDef,$L25,AE$11),Primitives!$C$2:$E$4,Primitives!$C$6:$E$8,Primitives!$C$10:$E$12,Primitives!$C$14:$E$16,Primitives!$C$18:$E$20,Primitives!$C$22:$E$24,Primitives!$C$26:$E$28,Primitives!$C$30:$E$32,Primitives!$C$34:$E$36,Primitives!$C$38:$E$40,Primitives!$C$42:$E$44,Primitives!$C$46:$E$48,Primitives!$C$50:$E$52,Primitives!$C$54:$E$56,Primitives!$C$58:$E$60),$N25,AE$13)) -> 1 | AF25: =IF(AND($K25=Calc.Top, AF$10=Calc.Left),"X",INDEX(CHOOSE(INDEX(MazeDef,$L25,AF$11),Primitives!$C$2:$E$4,Primitives!$C$6:$E$8,Primitives!$C$10:$E$12,Primitives!$C$14:$E$16,Primitives!$C$18:$E$20,Primitives!$C$22:$E$24,Primitives!$C$26:$E$28,Primitives!$C$30:$E$32,Primitives!$C$34:$E$36,Primitives!$C$38:$E$40,Primitives!$C$42:$E$44,Primitives!$C$46:$E$48,Primitives!$C$50:$E$52,Primitives!$C$54:$E$56,Primitives!$C$58:$E$60),$N25,AF$13)) -> 1 | AG25: =IF(AND($K25=Calc.Top, AG$10=Calc.Left),"X",INDEX(CHOOSE(INDEX(MazeDef,$L25,AG$11),Primitives!$C$2:$E$4,Primitives!$C$6:$E$8,Primitives!$C$10:$E$12,Primitives!$C$14:$E$16,Primitives!$C$18:$E$20,Primitives!$C$22:$E$24,Primitives!$C$26:$E$28,Primitives!$C$30:$E$32,Primitives!$C$34:$E$36,Primitives!$C$38:$E$40,Primitives!$C$42:$E$44,Primitives!$C$46:$E$48,Primitives!$C$50:$E$52,Primitives!$C$54:$E$56,Primitives!$C$58:$E$60),$N25,AG$13)) -> 1 | AH25: =IF(AND($K25=Calc.Top, AH$10=Calc.Left),"X",INDEX(CHOOSE(INDEX(MazeDef,$L25,AH$11),Primitives!$C$2:$E$4,Primitives!$C$6:$E$8,Primitives!$C$10:$E$12,Primitives!$C$14:$E$16,Primitives!$C$18:$E$20,Primitives!$C$22:$E$24,Primitives!$C$26:$E$28,Primitives!$C$30:$E$32,Primitives!$C$34:$E$36,Primitives!$C$38:$E$40,Primitives!$C$42:$E$44,Primitives!$C$46:$E$48,Primitives!$C$50:$E$52,Primitives!$C$54:$E$56,Primitives!$C$58:$E$60),$N25,AH$13)) -> 1 | AI25: =IF(AND($K25=Calc.Top, AI$10=Calc.Left),"X",INDEX(CHOOSE(INDEX(MazeDef,$L25,AI$11),Primitives!$C$2:$E$4,Primitives!$C$6:$E$8,Primitives!$C$10:$E$12,Primitives!$C$14:$E$16,Primitives!$C$18:$E$20,Primitives!$C$22:$E$24,Primitives!$C$26:$E$28,Primitives!$C$30:$E$32,Primitives!$C$34:$E$36,Primitives!$C$38:$E$40,Primitives!$C$42:$E$44,Primitives!$C$46:$E$48,Primitives!$C$50:$E$52,Primitives!$C$54:$E$56,Primitives!$C$58:$E$60),$N25,AI$13)) -> 1 | AJ25: =IF(AND($K25=Calc.Top, AJ$10=Calc.Left),"X",INDEX(CHOOSE(INDEX(MazeDef,$L25,AJ$11),Primitives!$C$2:$E$4,Primitives!$C$6:$E$8,Primitives!$C$10:$E$12,Primitives!$C$14:$E$16,Primitives!$C$18:$E$20,Primitives!$C$22:$E$24,Primitives!$C$26:$E$28,Primitives!$C$30:$E$32,Primitives!$C$34:$E$36,Primitives!$C$38:$E$40,Primitives!$C$42:$E$44,Primitives!$C$46:$E$48,Primitives!$C$50:$E$52,Primitives!$C$54:$E$56,Primitives!$C$58:$E$60),$N25,AJ$13)) -> 1 | AK25: =IF(AND($K25=Calc.Top, AK$10=Calc.Left),"X",INDEX(CHOOSE(INDEX(MazeDef,$L25,AK$11),Primitives!$C$2:$E$4,Primitives!$C$6:$E$8,Primitives!$C$10:$E$12,Primitives!$C$14:$E$16,Primitives!$C$18:$E$20,Primitives!$C$22:$E$24,Primitives!$C$26:$E$28,Primitives!$C$30:$E$32,Primitives!$C$34:$E$36,Primitives!$C$38:$E$40,Primitives!$C$42:$E$44,Primitives!$C$46:$E$48,Primitives!$C$50:$E$52,Primitives!$C$54:$E$56,Primitives!$C$58:$E$60),$N25,AK$13)) -> 1 | AL25: =IF(AND($K25=Calc.Top, AL$10=Calc.Left),"X",INDEX(CHOOSE(INDEX(MazeDef,$L25,AL$11),Primitives!$C$2:$E$4,Primitives!$C$6:$E$8,Primitives!$C$10:$E$12,Primitives!$C$14:$E$16,Primitives!$C$18:$E$20,Primitives!$C$22:$E$24,Primitives!$C$26:$E$28,Primitives!$C$30:$E$32,Primitives!$C$34:$E$36,Primitives!$C$38:$E$40,Primitives!$C$42:$E$44,Primitives!$C$46:$E$48,Primitives!$C$50:$E$52,Primitives!$C$54:$E$56,Primitives!$C$58:$E$60),$N25,AL$13)) -> 1 | AM25: =IF(AND($K25=Calc.Top, AM$10=Calc.Left),"X",INDEX(CHOOSE(INDEX(MazeDef,$L25,AM$11),Primitives!$C$2:$E$4,Primitives!$C$6:$E$8,Primitives!$C$10:$E$12,Primitives!$C$14:$E$16,Primitives!$C$18:$E$20,Primitives!$C$22:$E$24,Primitives!$C$26:$E$28,Primitives!$C$30:$E$32,Primitives!$C$34:$E$36,Primitives!$C$38:$E$40,Primitives!$C$42:$E$44,Primitives!$C$46:$E$48,Primitives!$C$50:$E$52,Primitives!$C$54:$E$56,Primitives!$C$58:$E$60),$N25,AM$13)) -> 1 | AN25: =IF(AND($K25=Calc.Top, AN$10=Calc.Left),"X",INDEX(CHOOSE(INDEX(MazeDef,$L25,AN$11),Primitives!$C$2:$E$4,Primitives!$C$6:$E$8,Primitives!$C$10:$E$12,Primitives!$C$14:$E$16,Primitives!$C$18:$E$20,Primitives!$C$22:$E$24,Primitives!$C$26:$E$28,Primitives!$C$30:$E$32,Primitives!$C$34:$E$36,Primitives!$C$38:$E$40,Primitives!$C$42:$E$44,Primitives!$C$46:$E$48,Primitives!$C$50:$E$52,Primitives!$C$54:$E$56,Primitives!$C$58:$E$60),$N25,AN$13)) -> 0 | AO25: =IF(AND($K25=Calc.Top, AO$10=Calc.Left),"X",INDEX(CHOOSE(INDEX(MazeDef,$L25,AO$11),Primitives!$C$2:$E$4,Primitives!$C$6:$E$8,Primitives!$C$10:$E$12,Primitives!$C$14:$E$16,Primitives!$C$18:$E$20,Primitives!$C$22:$E$24,Primitives!$C$26:$E$28,Primitives!$C$30:$E$32,Primitives!$C$34:$E$36,Primitives!$C$38:$E$40,Primitives!$C$42:$E$44,Primitives!$C$46:$E$48,Primitives!$C$50:$E$52,Primitives!$C$54:$E$56,Primitives!$C$58:$E$60),$N25,AO$13)) -> 1 | AP25: =IF(AND($K25=Calc.Top, AP$10=Calc.Left),"X",INDEX(CHOOSE(INDEX(MazeDef,$L25,AP$11),Primitives!$C$2:$E$4,Primitives!$C$6:$E$8,Primitives!$C$10:$E$12,Primitives!$C$14:$E$16,Primitives!$C$18:$E$20,Primitives!$C$22:$E$24,Primitives!$C$26:$E$28,Primitives!$C$30:$E$32,Primitives!$C$34:$E$36,Primitives!$C$38:$E$40,Primitives!$C$42:$E$44,Primitives!$C$46:$E$48,Primitives!$C$50:$E$52,Primitives!$C$54:$E$56,Primitives!$C$58:$E$60),$N25,AP$13)) -> 1 | AQ25: =IF(AND($K25=Calc.Top, AQ$10=Calc.Left),"X",INDEX(CHOOSE(INDEX(MazeDef,$L25,AQ$11),Primitives!$C$2:$E$4,Primitives!$C$6:$E$8,Primitives!$C$10:$E$12,Primitives!$C$14:$E$16,Primitives!$C$18:$E$20,Primitives!$C$22:$E$24,Primitives!$C$26:$E$28,Primitives!$C$30:$E$32,Primitives!$C$34:$E$36,Primitives!$C$38:$E$40,Primitives!$C$42:$E$44,Primitives!$C$46:$E$48,Primitives!$C$50:$E$52,Primitives!$C$54:$E$56,Primitives!$C$58:$E$60),$N25,AQ$13)) -> 0 | AR25: =IF(AND($K25=Calc.Top, AR$10=Calc.Left),"X",INDEX(CHOOSE(INDEX(MazeDef,$L25,AR$11),Primitives!$C$2:$E$4,Primitives!$C$6:$E$8,Primitives!$C$10:$E$12,Primitives!$C$14:$E$16,Primitives!$C$18:$E$20,Primitives!$C$22:$E$24,Primitives!$C$26:$E$28,Primitives!$C$30:$E$32,Primitives!$C$34:$E$36,Primitives!$C$38:$E$40,Primitives!$C$42:$E$44,Primitives!$C$46:$E$48,Primitives!$C$50:$E$52,Primitives!$C$54:$E$56,Primitives!$C$58:$E$60),$N25,AR$13)) -> 1
B26: 1 | D26: 1 | K26: 13 | L26: 5 | M26: 5 | N26: 1 | O26: =IF(AND($K26=Calc.Top, O$10=Calc.Left),"X",INDEX(CHOOSE(INDEX(MazeDef,$L26,O$11),Primitives!$C$2:$E$4,Primitives!$C$6:$E$8,Primitives!$C$10:$E$12,Primitives!$C$14:$E$16,Primitives!$C$18:$E$20,Primitives!$C$22:$E$24,Primitives!$C$26:$E$28,Primitives!$C$30:$E$32,Primitives!$C$34:$E$36,Primitives!$C$38:$E$40,Primitives!$C$42:$E$44,Primitives!$C$46:$E$48,Primitives!$C$50:$E$52,Primitives!$C$54:$E$56,Primitives!$C$58:$E$60),$N26,O$13)) -> 1 | P26: =IF(AND($K26=Calc.Top, P$10=Calc.Left),"X",INDEX(CHOOSE(INDEX(MazeDef,$L26,P$11),Primitives!$C$2:$E$4,Primitives!$C$6:$E$8,Primitives!$C$10:$E$12,Primitives!$C$14:$E$16,Primitives!$C$18:$E$20,Primitives!$C$22:$E$24,Primitives!$C$26:$E$28,Primitives!$C$30:$E$32,Primitives!$C$34:$E$36,Primitives!$C$38:$E$40,Primitives!$C$42:$E$44,Primitives!$C$46:$E$48,Primitives!$C$50:$E$52,Primitives!$C$54:$E$56,Primitives!$C$58:$E$60),$N26,P$13)) -> 0 | Q26: =IF(AND($K26=Calc.Top, Q$10=Calc.Left),"X",INDEX(CHOOSE(INDEX(MazeDef,$L26,Q$11),Primitives!$C$2:$E$4,Primitives!$C$6:$E$8,Primitives!$C$10:$E$12,Primitives!$C$14:$E$16,Primitives!$C$18:$E$20,Primitives!$C$22:$E$24,Primitives!$C$26:$E$28,Primitives!$C$30:$E$32,Primitives!$C$34:$E$36,Primitives!$C$38:$E$40,Primitives!$C$42:$E$44,Primitives!$C$46:$E$48,Primitives!$C$50:$E$52,Primitives!$C$54:$E$56,Primitives!$C$58:$E$60),$N26,Q$13)) -> 1 | R26: =IF(AND($K26=Calc.Top, R$10=Calc.Left),"X",INDEX(CHOOSE(INDEX(MazeDef,$L26,R$11),Primitives!$C$2:$E$4,Primitives!$C$6:$E$8,Primitives!$C$10:$E$12,Primitives!$C$14:$E$16,Primitives!$C$18:$E$20,Primitives!$C$22:$E$24,Primitives!$C$26:$E$28,Primitives!$C$30:$E$32,Primitives!$C$34:$E$36,Primitives!$C$38:$E$40,Primitives!$C$42:$E$44,Primitives!$C$46:$E$48,Primitives!$C$50:$E$52,Primitives!$C$54:$E$56,Primitives!$C$58:$E$60),$N26,R$13)) -> 1 | S26: =IF(AND($K26=Calc.Top, S$10=Calc.Left),"X",INDEX(CHOOSE(INDEX(MazeDef,$L26,S$11),Primitives!$C$2:$E$4,Primitives!$C$6:$E$8,Primitives!$C$10:$E$12,Primitives!$C$14:$E$16,Primitives!$C$18:$E$20,Primitives!$C$22:$E$24,Primitives!$C$26:$E$28,Primitives!$C$30:$E$32,Primitives!$C$34:$E$36,Primitives!$C$38:$E$40,Primitives!$C$42:$E$44,Primitives!$C$46:$E$48,Primitives!$C$50:$E$52,Primitives!$C$54:$E$56,Primitives!$C$58:$E$60),$N26,S$13)) -> 0 | T26: =IF(AND($K26=Calc.Top, T$10=Calc.Left),"X",INDEX(CHOOSE(INDEX(MazeDef,$L26,T$11),Primitives!$C$2:$E$4,Primitives!$C$6:$E$8,Primitives!$C$10:$E$12,Primitives!$C$14:$E$16,Primitives!$C$18:$E$20,Primitives!$C$22:$E$24,Primitives!$C$26:$E$28,Primitives!$C$30:$E$32,Primitives!$C$34:$E$36,Primitives!$C$38:$E$40,Primitives!$C$42:$E$44,Primitives!$C$46:$E$48,Primitives!$C$50:$E$52,Primitives!$C$54:$E$56,Primitives!$C$58:$E$60),$N26,T$13)) -> 1 | U26: =IF(AND($K26=Calc.Top, U$10=Calc.Left),"X",INDEX(CHOOSE(INDEX(MazeDef,$L26,U$11),Primitives!$C$2:$E$4,Primitives!$C$6:$E$8,Primitives!$C$10:$E$12,Primitives!$C$14:$E$16,Primitives!$C$18:$E$20,Primitives!$C$22:$E$24,Primitives!$C$26:$E$28,Primitives!$C$30:$E$32,Primitives!$C$34:$E$36,Primitives!$C$38:$E$40,Primitives!$C$42:$E$44,Primitives!$C$46:$E$48,Primitives!$C$50:$E$52,Primitives!$C$54:$E$56,Primitives!$C$58:$E$60),$N26,U$13)) -> 1 | V26: =IF(AND($K26=Calc.Top, V$10=Calc.Left),"X",INDEX(CHOOSE(INDEX(MazeDef,$L26,V$11),Primitives!$C$2:$E$4,Primitives!$C$6:$E$8,Primitives!$C$10:$E$12,Primitives!$C$14:$E$16,Primitives!$C$18:$E$20,Primitives!$C$22:$E$24,Primitives!$C$26:$E$28,Primitives!$C$30:$E$32,Primitives!$C$34:$E$36,Primitives!$C$38:$E$40,Primitives!$C$42:$E$44,Primitives!$C$46:$E$48,Primitives!$C$50:$E$52,Primitives!$C$54:$E$56,Primitives!$C$58:$E$60),$N26,V$13)) -> 0 | W26: =IF(AND($K26=Calc.Top, W$10=Calc.Left),"X",INDEX(CHOOSE(INDEX(MazeDef,$L26,W$11),Primitives!$C$2:$E$4,Primitives!$C$6:$E$8,Primitives!$C$10:$E$12,Primitives!$C$14:$E$16,Primitives!$C$18:$E$20,Primitives!$C$22:$E$24,Primitives!$C$26:$E$28,Primitives!$C$30:$E$32,Primitives!$C$34:$E$36,Primitives!$C$38:$E$40,Primitives!$C$42:$E$44,Primitives!$C$46:$E$48,Primitives!$C$50:$E$52,Primitives!$C$54:$E$56,Primitives!$C$58:$E$60),$N26,W$13)) -> 1 | X26: =IF(AND($K26=Calc.Top, X$10=Calc.Left),"X",INDEX(CHOOSE(INDEX(MazeDef,$L26,X$11),Primitives!$C$2:$E$4,Primitives!$C$6:$E$8,Primitives!$C$10:$E$12,Primitives!$C$14:$E$16,Primitives!$C$18:$E$20,Primitives!$C$22:$E$24,Primitives!$C$26:$E$28,Primitives!$C$30:$E$32,Primitives!$C$34:$E$36,Primitives!$C$38:$E$40,Primitives!$C$42:$E$44,Primitives!$C$46:$E$48,Primitives!$C$50:$E$52,Primitives!$C$54:$E$56,Primitives!$C$58:$E$60),$N26,X$13)) -> 1 | Y26: =IF(AND($K26=Calc.Top, Y$10=Calc.Left),"X",INDEX(CHOOSE(INDEX(MazeDef,$L26,Y$11),Primitives!$C$2:$E$4,Primitives!$C$6:$E$8,Primitives!$C$10:$E$12,Primitives!$C$14:$E$16,Primitives!$C$18:$E$20,Primitives!$C$22:$E$24,Primitives!$C$26:$E$28,Primitives!$C$30:$E$32,Primitives!$C$34:$E$36,Primitives!$C$38:$E$40,Primitives!$C$42:$E$44,Primitives!$C$46:$E$48,Primitives!$C$50:$E$52,Primitives!$C$54:$E$56,Primitives!$C$58:$E$60),$N26,Y$13)) -> 0 | Z26: =IF(AND($K26=Calc.Top, Z$10=Calc.Left),"X",INDEX(CHOOSE(INDEX(MazeDef,$L26,Z$11),Primitives!$C$2:$E$4,Primitives!$C$6:$E$8,Primitives!$C$10:$E$12,Primitives!$C$14:$E$16,Primitives!$C$18:$E$20,Primitives!$C$22:$E$24,Primitives!$C$26:$E$28,Primitives!$C$30:$E$32,Primitives!$C$34:$E$36,Primitives!$C$38:$E$40,Primitives!$C$42:$E$44,Primitives!$C$46:$E$48,Primitives!$C$50:$E$52,Primitives!$C$54:$E$56,Primitives!$C$58:$E$60),$N26,Z$13)) -> 1 | AA26: =IF(AND($K26=Calc.Top, AA$10=Calc.Left),"X",INDEX(CHOOSE(INDEX(MazeDef,$L26,AA$11),Primitives!$C$2:$E$4,Primitives!$C$6:$E$8,Primitives!$C$10:$E$12,Primitives!$C$14:$E$16,Primitives!$C$18:$E$20,Primitives!$C$22:$E$24,Primitives!$C$26:$E$28,Primitives!$C$30:$E$32,Primitives!$C$34:$E$36,Primitives!$C$38:$E$40,Primitives!$C$42:$E$44,Primitives!$C$46:$E$48,Primitives!$C$50:$E$52,Primitives!$C$54:$E$56,Primitives!$C$58:$E$60),$N26,AA$13)) -> 1 | AB26: =IF(AND($K26=Calc.Top, AB$10=Calc.Left),"X",INDEX(CHOOSE(INDEX(MazeDef,$L26,AB$11),Primitives!$C$2:$E$4,Primitives!$C$6:$E$8,Primitives!$C$10:$E$12,Primitives!$C$14:$E$16,Primitives!$C$18:$E$20,Primitives!$C$22:$E$24,Primitives!$C$26:$E$28,Primitives!$C$30:$E$32,Primitives!$C$34:$E$36,Primitives!$C$38:$E$40,Primitives!$C$42:$E$44,Primitives!$C$46:$E$48,Primitives!$C$50:$E$52,Primitives!$C$54:$E$56,Primitives!$C$58:$E$60),$N26,AB$13)) -> 0 | AC26: =IF(AND($K26=Calc.Top, AC$10=Calc.Left),"X",INDEX(CHOOSE(INDEX(MazeDef,$L26,AC$11),Primitives!$C$2:$E$4,Primitives!$C$6:$E$8,Primitives!$C$10:$E$12,Primitives!$C$14:$E$16,Primitives!$C$18:$E$20,Primitives!$C$22:$E$24,Primitives!$C$26:$E$28,Primitives!$C$30:$E$32,Primitives!$C$34:$E$36,Primitives!$C$38:$E$40,Primitives!$C$42:$E$44,Primitives!$C$46:$E$48,Primitives!$C$50:$E$52,Primitives!$C$54:$E$56,Primitives!$C$58:$E$60),$N26,AC$13)) -> 1 | AD26: =IF(AND($K26=Calc.Top, AD$10=Calc.Left),"X",INDEX(CHOOSE(INDEX(MazeDef,$L26,AD$11),Primitives!$C$2:$E$4,Primitives!$C$6:$E$8,Primitives!$C$10:$E$12,Primitives!$C$14:$E$16,Primitives!$C$18:$E$20,Primitives!$C$22:$E$24,Primitives!$C$26:$E$28,Primitives!$C$30:$E$32,Primitives!$C$34:$E$36,Primitives!$C$38:$E$40,Primitives!$C$42:$E$44,Primitives!$C$46:$E$48,Primitives!$C$50:$E$52,Primitives!$C$54:$E$56,Primitives!$C$58:$E$60),$N26,AD$13)) -> 1 | AE26: =IF(AND($K26=Calc.Top, AE$10=Calc.Left),"X",INDEX(CHOOSE(INDEX(MazeDef,$L26,AE$11),Primitives!$C$2:$E$4,Primitives!$C$6:$E$8,Primitives!$C$10:$E$12,Primitives!$C$14:$E$16,Primitives!$C$18:$E$20,Primitives!$C$22:$E$24,Primitives!$C$26:$E$28,Primitives!$C$30:$E$32,Primitives!$C$34:$E$36,Primitives!$C$38:$E$40,Primitives!$C$42:$E$44,Primitives!$C$46:$E$48,Primitives!$C$50:$E$52,Primitives!$C$54:$E$56,Primitives!$C$58:$E$60),$N26,AE$13)) -> 1 | AF26: =IF(AND($K26=Calc.Top, AF$10=Calc.Left),"X",INDEX(CHOOSE(INDEX(MazeDef,$L26,AF$11),Primitives!$C$2:$E$4,Primitives!$C$6:$E$8,Primitives!$C$10:$E$12,Primitives!$C$14:$E$16,Primitives!$C$18:$E$20,Primitives!$C$22:$E$24,Primitives!$C$26:$E$28,Primitives!$C$30:$E$32,Primitives!$C$34:$E$36,Primitives!$C$38:$E$40,Primitives!$C$42:$E$44,Primitives!$C$46:$E$48,Primitives!$C$50:$E$52,Primitives!$C$54:$E$56,Primitives!$C$58:$E$60),$N26,AF$13)) -> 1 | AG26: =IF(AND($K26=Calc.Top, AG$10=Calc.Left),"X",INDEX(CHOOSE(INDEX(MazeDef,$L26,AG$11),Primitives!$C$2:$E$4,Primitives!$C$6:$E$8,Primitives!$C$10:$E$12,Primitives!$C$14:$E$16,Primitives!$C$18:$E$20,Primitives!$C$22:$E$24,Primitives!$C$26:$E$28,Primitives!$C$30:$E$32,Primitives!$C$34:$E$36,Primitives!$C$38:$E$40,Primitives!$C$42:$E$44,Primitives!$C$46:$E$48,Primitives!$C$50:$E$52,Primitives!$C$54:$E$56,Primitives!$C$58:$E$60),$N26,AG$13)) -> 1 | AH26: =IF(AND($K26=Calc.Top, AH$10=Calc.Left),"X",INDEX(CHOOSE(INDEX(MazeDef,$L26,AH$11),Primitives!$C$2:$E$4,Primitives!$C$6:$E$8,Primitives!$C$10:$E$12,Primitives!$C$14:$E$16,Primitives!$C$18:$E$20,Primitives!$C$22:$E$24,Primitives!$C$26:$E$28,Primitives!$C$30:$E$32,Primitives!$C$34:$E$36,Primitives!$C$38:$E$40,Primitives!$C$42:$E$44,Primitives!$C$46:$E$48,Primitives!$C$50:$E$52,Primitives!$C$54:$E$56,Primitives!$C$58:$E$60),$N26,AH$13)) -> 1 | AI26: =IF(AND($K26=Calc.Top, AI$10=Calc.Left),"X",INDEX(CHOOSE(INDEX(MazeDef,$L26,AI$11),Primitives!$C$2:$E$4,Primitives!$C$6:$E$8,Primitives!$C$10:$E$12,Primitives!$C$14:$E$16,Primitives!$C$18:$E$20,Primitives!$C$22:$E$24,Primitives!$C$26:$E$28,Primitives!$C$30:$E$32,Primitives!$C$34:$E$36,Primitives!$C$38:$E$40,Primitives!$C$42:$E$44,Primitives!$C$46:$E$48,Primitives!$C$50:$E$52,Primitives!$C$54:$E$56,Primitives!$C$58:$E$60),$N26,AI$13)) -> 1 | AJ26: =IF(AND($K26=Calc.Top, AJ$10=Calc.Left),"X",INDEX(CHOOSE(INDEX(MazeDef,$L26,AJ$11),Primitives!$C$2:$E$4,Primitives!$C$6:$E$8,Primitives!$C$10:$E$12,Primitives!$C$14:$E$16,Primitives!$C$18:$E$20,Primitives!$C$22:$E$24,Primitives!$C$26:$E$28,Primitives!$C$30:$E$32,Primitives!$C$34:$E$36,Primitives!$C$38:$E$40,Primitives!$C$42:$E$44,Primitives!$C$46:$E$48,Primitives!$C$50:$E$52,Primitives!$C$54:$E$56,Primitives!$C$58:$E$60),$N26,AJ$13)) -> 1 | AK26: =IF(AND($K26=Calc.Top, AK$10=Calc.Left),"X",INDEX(CHOOSE(INDEX(MazeDef,$L26,AK$11),Primitives!$C$2:$E$4,Primitives!$C$6:$E$8,Primitives!$C$10:$E$12,Primitives!$C$14:$E$16,Primitives!$C$18:$E$20,Primitives!$C$22:$E$24,Primitives!$C$26:$E$28,Primitives!$C$30:$E$32,Primitives!$C$34:$E$36,Primitives!$C$38:$E$40,Primitives!$C$42:$E$44,Primitives!$C$46:$E$48,Primitives!$C$50:$E$52,Primitives!$C$54:$E$56,Primitives!$C$58:$E$60),$N26,AK$13)) -> 1 | AL26: =IF(AND($K26=Calc.Top, AL$10=Calc.Left),"X",INDEX(CHOOSE(INDEX(MazeDef,$L26,AL$11),Primitives!$C$2:$E$4,Primitives!$C$6:$E$8,Primitives!$C$10:$E$12,Primitives!$C$14:$E$16,Primitives!$C$18:$E$20,Primitives!$C$22:$E$24,Primitives!$C$26:$E$28,Primitives!$C$30:$E$32,Primitives!$C$34:$E$36,Primitives!$C$38:$E$40,Primitives!$C$42:$E$44,Primitives!$C$46:$E$48,Primitives!$C$50:$E$52,Primitives!$C$54:$E$56,Primitives!$C$58:$E$60),$N26,AL$13)) -> 1 | AM26: =IF(AND($K26=Calc.Top, AM$10=Calc.Left),"X",INDEX(CHOOSE(INDEX(MazeDef,$L26,AM$11),Primitives!$C$2:$E$4,Primitives!$C$6:$E$8,Primitives!$C$10:$E$12,Primitives!$C$14:$E$16,Primitives!$C$18:$E$20,Primitives!$C$22:$E$24,Primitives!$C$26:$E$28,Primitives!$C$30:$E$32,Primitives!$C$34:$E$36,Primitives!$C$38:$E$40,Primitives!$C$42:$E$44,Primitives!$C$46:$E$48,Primitives!$C$50:$E$52,Primitives!$C$54:$E$56,Primitives!$C$58:$E$60),$N26,AM$13)) -> 1 | AN26: =IF(AND($K26=Calc.Top, AN$10=Calc.Left),"X",INDEX(CHOOSE(INDEX(MazeDef,$L26,AN$11),Primitives!$C$2:$E$4,Primitives!$C$6:$E$8,Primitives!$C$10:$E$12,Primitives!$C$14:$E$16,Primitives!$C$18:$E$20,Primitives!$C$22:$E$24,Primitives!$C$26:$E$28,Primitives!$C$30:$E$32,Primitives!$C$34:$E$36,Primitives!$C$38:$E$40,Primitives!$C$42:$E$44,Primitives!$C$46:$E$48,Primitives!$C$50:$E$52,Primitives!$C$54:$E$56,Primitives!$C$58:$E$60),$N26,AN$13)) -> 0 | AO26: =IF(AND($K26=Calc.Top, AO$10=Calc.Left),"X",INDEX(CHOOSE(INDEX(MazeDef,$L26,AO$11),Primitives!$C$2:$E$4,Primitives!$C$6:$E$8,Primitives!$C$10:$E$12,Primitives!$C$14:$E$16,Primitives!$C$18:$E$20,Primitives!$C$22:$E$24,Primitives!$C$26:$E$28,Primitives!$C$30:$E$32,Primitives!$C$34:$E$36,Primitives!$C$38:$E$40,Primitives!$C$42:$E$44,Primitives!$C$46:$E$48,Primitives!$C$50:$E$52,Primitives!$C$54:$E$56,Primitives!$C$58:$E$60),$N26,AO$13)) -> 1 | AP26: =IF(AND($K26=Calc.Top, AP$10=Calc.Left),"X",INDEX(CHOOSE(INDEX(MazeDef,$L26,AP$11),Primitives!$C$2:$E$4,Primitives!$C$6:$E$8,Primitives!$C$10:$E$12,Primitives!$C$14:$E$16,Primitives!$C$18:$E$20,Primitives!$C$22:$E$24,Primitives!$C$26:$E$28,Primitives!$C$30:$E$32,Primitives!$C$34:$E$36,Primitives!$C$38:$E$40,Primitives!$C$42:$E$44,Primitives!$C$46:$E$48,Primitives!$C$50:$E$52,Primitives!$C$54:$E$56,Primitives!$C$58:$E$60),$N26,AP$13)) -> 1 | AQ26: =IF(AND($K26=Calc.Top, AQ$10=Calc.Left),"X",INDEX(CHOOSE(INDEX(MazeDef,$L26,AQ$11),Primitives!$C$2:$E$4,Primitives!$C$6:$E$8,Primitives!$C$10:$E$12,Primitives!$C$14:$E$16,Primitives!$C$18:$E$20,Primitives!$C$22:$E$24,Primitives!$C$26:$E$28,Primitives!$C$30:$E$32,Primitives!$C$34:$E$36,Primitives!$C$38:$E$40,Primitives!$C$42:$E$44,Primitives!$C$46:$E$48,Primitives!$C$50:$E$52,Primitives!$C$54:$E$56,Primitives!$C$58:$E$60),$N26,AQ$13)) -> 0 | AR26: =IF(AND($K26=Calc.Top, AR$10=Calc.Left),"X",INDEX(CHOOSE(INDEX(MazeDef,$L26,AR$11),Primitives!$C$2:$E$4,Primitives!$C$6:$E$8,Primitives!$C$10:$E$12,Primitives!$C$14:$E$16,Primitives!$C$18:$E$20,Primitives!$C$22:$E$24,Primitives!$C$26:$E$28,Primitives!$C$30:$E$32,Primitives!$C$34:$E$36,Primitives!$C$38:$E$40,Primitives!$C$42:$E$44,Primitives!$C$46:$E$48,Primitives!$C$50:$E$52,Primitives!$C$54:$E$56,Primitives!$C$58:$E$60),$N26,AR$13)) -> 1
A27: 4 | B27: 1 | D27: 1 | K27: 14 | L27: 5 | N27: 2 | O27: =IF(AND($K27=Calc.Top, O$10=Calc.Left),"X",INDEX(CHOOSE(INDEX(MazeDef,$L27,O$11),Primitives!$C$2:$E$4,Primitives!$C$6:$E$8,Primitives!$C$10:$E$12,Primitives!$C$14:$E$16,Primitives!$C$18:$E$20,Primitives!$C$22:$E$24,Primitives!$C$26:$E$28,Primitives!$C$30:$E$32,Primitives!$C$34:$E$36,Primitives!$C$38:$E$40,Primitives!$C$42:$E$44,Primitives!$C$46:$E$48,Primitives!$C$50:$E$52,Primitives!$C$54:$E$56,Primitives!$C$58:$E$60),$N27,O$13)) -> 1 | P27: =IF(AND($K27=Calc.Top, P$10=Calc.Left),"X",INDEX(CHOOSE(INDEX(MazeDef,$L27,P$11),Primitives!$C$2:$E$4,Primitives!$C$6:$E$8,Primitives!$C$10:$E$12,Primitives!$C$14:$E$16,Primitives!$C$18:$E$20,Primitives!$C$22:$E$24,Primitives!$C$26:$E$28,Primitives!$C$30:$E$32,Primitives!$C$34:$E$36,Primitives!$C$38:$E$40,Primitives!$C$42:$E$44,Primitives!$C$46:$E$48,Primitives!$C$50:$E$52,Primitives!$C$54:$E$56,Primitives!$C$58:$E$60),$N27,P$13)) -> 0 | Q27: =IF(AND($K27=Calc.Top, Q$10=Calc.Left),"X",INDEX(CHOOSE(INDEX(MazeDef,$L27,Q$11),Primitives!$C$2:$E$4,Primitives!$C$6:$E$8,Primitives!$C$10:$E$12,Primitives!$C$14:$E$16,Primitives!$C$18:$E$20,Primitives!$C$22:$E$24,Primitives!$C$26:$E$28,Primitives!$C$30:$E$32,Primitives!$C$34:$E$36,Primitives!$C$38:$E$40,Primitives!$C$42:$E$44,Primitives!$C$46:$E$48,Primitives!$C$50:$E$52,Primitives!$C$54:$E$56,Primitives!$C$58:$E$60),$N27,Q$13)) -> 0 | R27: =IF(AND($K27=Calc.Top, R$10=Calc.Left),"X",INDEX(CHOOSE(INDEX(MazeDef,$L27,R$11),Primitives!$C$2:$E$4,Primitives!$C$6:$E$8,Primitives!$C$10:$E$12,Primitives!$C$14:$E$16,Primitives!$C$18:$E$20,Primitives!$C$22:$E$24,Primitives!$C$26:$E$28,Primitives!$C$30:$E$32,Primitives!$C$34:$E$36,Primitives!$C$38:$E$40,Primitives!$C$42:$E$44,Primitives!$C$46:$E$48,Primitives!$C$50:$E$52,Primitives!$C$54:$E$56,Primitives!$C$58:$E$60),$N27,R$13)) -> 0 | S27: =IF(AND($K27=Calc.Top, S$10=Calc.Left),"X",INDEX(CHOOSE(INDEX(MazeDef,$L27,S$11),Primitives!$C$2:$E$4,Primitives!$C$6:$E$8,Primitives!$C$10:$E$12,Primitives!$C$14:$E$16,Primitives!$C$18:$E$20,Primitives!$C$22:$E$24,Primitives!$C$26:$E$28,Primitives!$C$30:$E$32,Primitives!$C$34:$E$36,Primitives!$C$38:$E$40,Primitives!$C$42:$E$44,Primitives!$C$46:$E$48,Primitives!$C$50:$E$52,Primitives!$C$54:$E$56,Primitives!$C$58:$E$60),$N27,S$13)) -> 0 | T27: =IF(AND($K27=Calc.Top, T$10=Calc.Left),"X",INDEX(CHOOSE(INDEX(MazeDef,$L27,T$11),Primitives!$C$2:$E$4,Primitives!$C$6:$E$8,Primitives!$C$10:$E$12,Primitives!$C$14:$E$16,Primitives!$C$18:$E$20,Primitives!$C$22:$E$24,Primitives!$C$26:$E$28,Primitives!$C$30:$E$32,Primitives!$C$34:$E$36,Primitives!$C$38:$E$40,Primitives!$C$42:$E$44,Primitives!$C$46:$E$48,Primitives!$C$50:$E$52,Primitives!$C$54:$E$56,Primitives!$C$58:$E$60),$N27,T$13)) -> 0 | U27: =IF(AND($K27=Calc.Top, U$10=Calc.Left),"X",INDEX(CHOOSE(INDEX(MazeDef,$L27,U$11),Primitives!$C$2:$E$4,Primitives!$C$6:$E$8,Primitives!$C$10:$E$12,Primitives!$C$14:$E$16,Primitives!$C$18:$E$20,Primitives!$C$22:$E$24,Primitives!$C$26:$E$28,Primitives!$C$30:$E$32,Primitives!$C$34:$E$36,Primitives!$C$38:$E$40,Primitives!$C$42:$E$44,Primitives!$C$46:$E$48,Primitives!$C$50:$E$52,Primitives!$C$54:$E$56,Primitives!$C$58:$E$60),$N27,U$13)) -> 0 | V27: =IF(AND($K27=Calc.Top, V$10=Calc.Left),"X",INDEX(CHOOSE(INDEX(MazeDef,$L27,V$11),Primitives!$C$2:$E$4,Primitives!$C$6:$E$8,Primitives!$C$10:$E$12,Primitives!$C$14:$E$16,Primitives!$C$18:$E$20,Primitives!$C$22:$E$24,Primitives!$C$26:$E$28,Primitives!$C$30:$E$32,Primitives!$C$34:$E$36,Primitives!$C$38:$E$40,Primitives!$C$42:$E$44,Primitives!$C$46:$E$48,Primitives!$C$50:$E$52,Primitives!$C$54:$E$56,Primitives!$C$58:$E$60),$N27,V$13)) -> 0 | W27: =IF(AND($K27=Calc.Top, W$10=Calc.Left),"X",INDEX(CHOOSE(INDEX(MazeDef,$L27,W$11),Primitives!$C$2:$E$4,Primitives!$C$6:$E$8,Primitives!$C$10:$E$12,Primitives!$C$14:$E$16,Primitives!$C$18:$E$20,Primitives!$C$22:$E$24,Primitives!$C$26:$E$28,Primitives!$C$30:$E$32,Primitives!$C$34:$E$36,Primitives!$C$38:$E$40,Primitives!$C$42:$E$44,Primitives!$C$46:$E$48,Primitives!$C$50:$E$52,Primitives!$C$54:$E$56,Primitives!$C$58:$E$60),$N27,W$13)) -> 0 | X27: =IF(AND($K27=Calc.Top, X$10=Calc.Left),"X",INDEX(CHOOSE(INDEX(MazeDef,$L27,X$11),Primitives!$C$2:$E$4,Primitives!$C$6:$E$8,Primitives!$C$10:$E$12,Primitives!$C$14:$E$16,Primitives!$C$18:$E$20,Primitives!$C$22:$E$24,Primitives!$C$26:$E$28,Primitives!$C$30:$E$32,Primitives!$C$34:$E$36,Primitives!$C$38:$E$40,Primitives!$C$42:$E$44,Primitives!$C$46:$E$48,Primitives!$C$50:$E$52,Primitives!$C$54:$E$56,Primitives!$C$58:$E$60),$N27,X$13)) -> 0 | Y27: =IF(AND($K27=Calc.Top, Y$10=Calc.Left),"X",INDEX(CHOOSE(INDEX(MazeDef,$L27,Y$11),Primitives!$C$2:$E$4,Primitives!$C$6:$E$8,Primitives!$C$10:$E$12,Primitives!$C$14:$E$16,Primitives!$C$18:$E$20,Primitives!$C$22:$E$24,Primitives!$C$26:$E$28,Primitives!$C$30:$E$32,Primitives!$C$34:$E$36,Primitives!$C$38:$E$40,Primitives!$C$42:$E$44,Primitives!$C$46:$E$48,Primitives!$C$50:$E$52,Primitives!$C$54:$E$56,Primitives!$C$58:$E$60),$N27,Y$13)) -> 0 | Z27: =IF(AND($K27=Calc.Top, Z$10=Calc.Left),"X",INDEX(CHOOSE(INDEX(MazeDef,$L27,Z$11),Primitives!$C$2:$E$4,Primitives!$C$6:$E$8,Primitives!$C$10:$E$12,Primitives!$C$14:$E$16,Primitives!$C$18:$E$20,Primitives!$C$22:$E$24,Primitives!$C$26:$E$28,Primitives!$C$30:$E$32,Primitives!$C$34:$E$36,Primitives!$C$38:$E$40,Primitives!$C$42:$E$44,Primitives!$C$46:$E$48,Primitives!$C$50:$E$52,Primitives!$C$54:$E$56,Primitives!$C$58:$E$60),$N27,Z$13)) -> 0 | AA27: =IF(AND($K27=Calc.Top, AA$10=Calc.Left),"X",INDEX(CHOOSE(INDEX(MazeDef,$L27,AA$11),Primitives!$C$2:$E$4,Primitives!$C$6:$E$8,Primitives!$C$10:$E$12,Primitives!$C$14:$E$16,Primitives!$C$18:$E$20,Primitives!$C$22:$E$24,Primitives!$C$26:$E$28,Primitives!$C$30:$E$32,Primitives!$C$34:$E$36,Primitives!$C$38:$E$40,Primitives!$C$42:$E$44,Primitives!$C$46:$E$48,Primitives!$C$50:$E$52,Primitives!$C$54:$E$56,Primitives!$C$58:$E$60),$N27,AA$13)) -> 0 | AB27: =IF(AND($K27=Calc.Top, AB$10=Calc.Left),"X",INDEX(CHOOSE(INDEX(MazeDef,$L27,AB$11),Primitives!$C$2:$E$4,Primitives!$C$6:$E$8,Primitives!$C$10:$E$12,Primitives!$C$14:$E$16,Primitives!$C$18:$E$20,Primitives!$C$22:$E$24,Primitives!$C$26:$E$28,Primitives!$C$30:$E$32,Primitives!$C$34:$E$36,Primitives!$C$38:$E$40,Primitives!$C$42:$E$44,Primitives!$C$46:$E$48,Primitives!$C$50:$E$52,Primitives!$C$54:$E$56,Primitives!$C$58:$E$60),$N27,AB$13)) -> 0 | AC27: =IF(AND($K27=Calc.Top, AC$10=Calc.Left),"X",INDEX(CHOOSE(INDEX(MazeDef,$L27,AC$11),Primitives!$C$2:$E$4,Primitives!$C$6:$E$8,Primitives!$C$10:$E$12,Primitives!$C$14:$E$16,Primitives!$C$18:$E$20,Primitives!$C$22:$E$24,Primitives!$C$26:$E$28,Primitives!$C$30:$E$32,Primitives!$C$34:$E$36,Primitives!$C$38:$E$40,Primitives!$C$42:$E$44,Primitives!$C$46:$E$48,Primitives!$C$50:$E$52,Primitives!$C$54:$E$56,Primitives!$C$58:$E$60),$N27,AC$13)) -> 0 | AD27: =IF(AND($K27=Calc.Top, AD$10=Calc.Left),"X",INDEX(CHOOSE(INDEX(MazeDef,$L27,AD$11),Primitives!$C$2:$E$4,Primitives!$C$6:$E$8,Primitives!$C$10:$E$12,Primitives!$C$14:$E$16,Primitives!$C$18:$E$20,Primitives!$C$22:$E$24,Primitives!$C$26:$E$28,Primitives!$C$30:$E$32,Primitives!$C$34:$E$36,Primitives!$C$38:$E$40,Primitives!$C$42:$E$44,Primitives!$C$46:$E$48,Primitives!$C$50:$E$52,Primitives!$C$54:$E$56,Primitives!$C$58:$E$60),$N27,AD$13)) -> 0 | AE27: =IF(AND($K27=Calc.Top, AE$10=Calc.Left),"X",INDEX(CHOOSE(INDEX(MazeDef,$L27,AE$11),Primitives!$C$2:$E$4,Primitives!$C$6:$E$8,Primitives!$C$10:$E$12,Primitives!$C$14:$E$16,Primitives!$C$18:$E$20,Primitives!$C$22:$E$24,Primitives!$C$26:$E$28,Primitives!$C$30:$E$32,Primitives!$C$34:$E$36,Primitives!$C$38:$E$40,Primitives!$C$42:$E$44,Primitives!$C$46:$E$48,Primitives!$C$50:$E$52,Primitives!$C$54:$E$56,Primitives!$C$58:$E$60),$N27,AE$13)) -> 0 | AF27: =IF(AND($K27=Calc.Top, AF$10=Calc.Left),"X",INDEX(CHOOSE(INDEX(MazeDef,$L27,AF$11),Primitives!$C$2:$E$4,Primitives!$C$6:$E$8,Primitives!$C$10:$E$12,Primitives!$C$14:$E$16,Primitives!$C$18:$E$20,Primitives!$C$22:$E$24,Primitives!$C$26:$E$28,Primitives!$C$30:$E$32,Primitives!$C$34:$E$36,Primitives!$C$38:$E$40,Primitives!$C$42:$E$44,Primitives!$C$46:$E$48,Primitives!$C$50:$E$52,Primitives!$C$54:$E$56,Primitives!$C$58:$E$60),$N27,AF$13)) -> 0 | AG27: =IF(AND($K27=Calc.Top, AG$10=Calc.Left),"X",INDEX(CHOOSE(INDEX(MazeDef,$L27,AG$11),Primitives!$C$2:$E$4,Primitives!$C$6:$E$8,Primitives!$C$10:$E$12,Primitives!$C$14:$E$16,Primitives!$C$18:$E$20,Primitives!$C$22:$E$24,Primitives!$C$26:$E$28,Primitives!$C$30:$E$32,Primitives!$C$34:$E$36,Primitives!$C$38:$E$40,Primitives!$C$42:$E$44,Primitives!$C$46:$E$48,Primitives!$C$50:$E$52,Primitives!$C$54:$E$56,Primitives!$C$58:$E$60),$N27,AG$13)) -> 0 | AH27: =IF(AND($K27=Calc.Top, AH$10=Calc.Left),"X",INDEX(CHOOSE(INDEX(MazeDef,$L27,AH$11),Primitives!$C$2:$E$4,Primitives!$C$6:$E$8,Primitives!$C$10:$E$12,Primitives!$C$14:$E$16,Primitives!$C$18:$E$20,Primitives!$C$22:$E$24,Primitives!$C$26:$E$28,Primitives!$C$30:$E$32,Primitives!$C$34:$E$36,Primitives!$C$38:$E$40,Primitives!$C$42:$E$44,Primitives!$C$46:$E$48,Primitives!$C$50:$E$52,Primitives!$C$54:$E$56,Primitives!$C$58:$E$60),$N27,AH$13)) -> 0 | AI27: =IF(AND($K27=Calc.Top, AI$10=Calc.Left),"X",INDEX(CHOOSE(INDEX(MazeDef,$L27,AI$11),Primitives!$C$2:$E$4,Primitives!$C$6:$E$8,Primitives!$C$10:$E$12,Primitives!$C$14:$E$16,Primitives!$C$18:$E$20,Primitives!$C$22:$E$24,Primitives!$C$26:$E$28,Primitives!$C$30:$E$32,Primitives!$C$34:$E$36,Primitives!$C$38:$E$40,Primitives!$C$42:$E$44,Primitives!$C$46:$E$48,Primitives!$C$50:$E$52,Primitives!$C$54:$E$56,Primitives!$C$58:$E$60),$N27,AI$13)) -> 0 | AJ27: =IF(AND($K27=Calc.Top, AJ$10=Calc.Left),"X",INDEX(CHOOSE(INDEX(MazeDef,$L27,AJ$11),Primitives!$C$2:$E$4,Primitives!$C$6:$E$8,Primitives!$C$10:$E$12,Primitives!$C$14:$E$16,Primitives!$C$18:$E$20,Primitives!$C$22:$E$24,Primitives!$C$26:$E$28,Primitives!$C$30:$E$32,Primitives!$C$34:$E$36,Primitives!$C$38:$E$40,Primitives!$C$42:$E$44,Primitives!$C$46:$E$48,Primitives!$C$50:$E$52,Primitives!$C$54:$E$56,Primitives!$C$58:$E$60),$N27,AJ$13)) -> 0 | AK27: =IF(AND($K27=Calc.Top, AK$10=Calc.Left),"X",INDEX(CHOOSE(INDEX(MazeDef,$L27,AK$11),Primitives!$C$2:$E$4,Primitives!$C$6:$E$8,Primitives!$C$10:$E$12,Primitives!$C$14:$E$16,Primitives!$C$18:$E$20,Primitives!$C$22:$E$24,Primitives!$C$26:$E$28,Primitives!$C$30:$E$32,Primitives!$C$34:$E$36,Primitives!$C$38:$E$40,Primitives!$C$42:$E$44,Primitives!$C$46:$E$48,Primitives!$C$50:$E$52,Primitives!$C$54:$E$56,Primitives!$C$58:$E$60),$N27,AK$13)) -> 0 | AL27: =IF(AND($K27=Calc.Top, AL$10=Calc.Left),"X",INDEX(CHOOSE(INDEX(MazeDef,$L27,AL$11),Primitives!$C$2:$E$4,Primitives!$C$6:$E$8,Primitives!$C$10:$E$12,Primitives!$C$14:$E$16,Primitives!$C$18:$E$20,Primitives!$C$22:$E$24,Primitives!$C$26:$E$28,Primitives!$C$30:$E$32,Primitives!$C$34:$E$36,Primitives!$C$38:$E$40,Primitives!$C$42:$E$44,Primitives!$C$46:$E$48,Primitives!$C$50:$E$52,Primitives!$C$54:$E$56,Primitives!$C$58:$E$60),$N27,AL$13)) -> 1 | AM27: =IF(AND($K27=Calc.Top, AM$10=Calc.Left),"X",INDEX(CHOOSE(INDEX(MazeDef,$L27,AM$11),Primitives!$C$2:$E$4,Primitives!$C$6:$E$8,Primitives!$C$10:$E$12,Primitives!$C$14:$E$16,Primitives!$C$18:$E$20,Primitives!$C$22:$E$24,Primitives!$C$26:$E$28,Primitives!$C$30:$E$32,Primitives!$C$34:$E$36,Primitives!$C$38:$E$40,Primitives!$C$42:$E$44,Primitives!$C$46:$E$48,Primitives!$C$50:$E$52,Primitives!$C$54:$E$56,Primitives!$C$58:$E$60),$N27,AM$13)) -> 1 | AN27: =IF(AND($K27=Calc.Top, AN$10=Calc.Left),"X",INDEX(CHOOSE(INDEX(MazeDef,$L27,AN$11),Primitives!$C$2:$E$4,Primitives!$C$6:$E$8,Primitives!$C$10:$E$12,Primitives!$C$14:$E$16,Primitives!$C$18:$E$20,Primitives!$C$22:$E$24,Primitives!$C$26:$E$28,Primitives!$C$30:$E$32,Primitives!$C$34:$E$36,Primitives!$C$38:$E$40,Primitives!$C$42:$E$44,Primitives!$C$46:$E$48,Primitives!$C$50:$E$52,Primitives!$C$54:$E$56,Primitives!$C$58:$E$60),$N27,AN$13)) -> 0 | AO27: =IF(AND($K27=Calc.Top, AO$10=Calc.Left),"X",INDEX(CHOOSE(INDEX(MazeDef,$L27,AO$11),Primitives!$C$2:$E$4,Primitives!$C$6:$E$8,Primitives!$C$10:$E$12,Primitives!$C$14:$E$16,Primitives!$C$18:$E$20,Primitives!$C$22:$E$24,Primitives!$C$26:$E$28,Primitives!$C$30:$E$32,Primitives!$C$34:$E$36,Primitives!$C$38:$E$40,Primitives!$C$42:$E$44,Primitives!$C$46:$E$48,Primitives!$C$50:$E$52,Primitives!$C$54:$E$56,Primitives!$C$58:$E$60),$N27,AO$13)) -> 1 | AP27: =IF(AND($K27=Calc.Top, AP$10=Calc.Left),"X",INDEX(CHOOSE(INDEX(MazeDef,$L27,AP$11),Primitives!$C$2:$E$4,Primitives!$C$6:$E$8,Primitives!$C$10:$E$12,Primitives!$C$14:$E$16,Primitives!$C$18:$E$20,Primitives!$C$22:$E$24,Primitives!$C$26:$E$28,Primitives!$C$30:$E$32,Primitives!$C$34:$E$36,Primitives!$C$38:$E$40,Primitives!$C$42:$E$44,Primitives!$C$46:$E$48,Primitives!$C$50:$E$52,Primitives!$C$54:$E$56,Primitives!$C$58:$E$60),$N27,AP$13)) -> 1 | AQ27: =IF(AND($K27=Calc.Top, AQ$10=Calc.Left),"X",INDEX(CHOOSE(INDEX(MazeDef,$L27,AQ$11),Primitives!$C$2:$E$4,Primitives!$C$6:$E$8,Primitives!$C$10:$E$12,Primitives!$C$14:$E$16,Primitives!$C$18:$E$20,Primitives!$C$22:$E$24,Primitives!$C$26:$E$28,Primitives!$C$30:$E$32,Primitives!$C$34:$E$36,Primitives!$C$38:$E$40,Primitives!$C$42:$E$44,Primitives!$C$46:$E$48,Primitives!$C$50:$E$52,Primitives!$C$54:$E$56,Primitives!$C$58:$E$60),$N27,AQ$13)) -> 0 | AR27: =IF(AND($K27=Calc.Top, AR$10=Calc.Left),"X",INDEX(CHOOSE(INDEX(MazeDef,$L27,AR$11),Primitives!$C$2:$E$4,Primitives!$C$6:$E$8,Primitives!$C$10:$E$12,Primitives!$C$14:$E$16,Primitives!$C$18:$E$20,Primitives!$C$22:$E$24,Primitives!$C$26:$E$28,Primitives!$C$30:$E$32,Primitives!$C$34:$E$36,Primitives!$C$38:$E$40,Primitives!$C$42:$E$44,Primitives!$C$46:$E$48,Primitives!$C$50:$E$52,Primitives!$C$54:$E$56,Primitives!$C$58:$E$60),$N27,AR$13)) -> 1
B28: 1 | C28: 1 | D28: 1 | K28: 15 | L28: 5 | N28: 3 | O28: =IF(AND($K28=Calc.Top, O$10=Calc.Left),"X",INDEX(CHOOSE(INDEX(MazeDef,$L28,O$11),Primitives!$C$2:$E$4,Primitives!$C$6:$E$8,Primitives!$C$10:$E$12,Primitives!$C$14:$E$16,Primitives!$C$18:$E$20,Primitives!$C$22:$E$24,Primitives!$C$26:$E$28,Primitives!$C$30:$E$32,Primitives!$C$34:$E$36,Primitives!$C$38:$E$40,Primitives!$C$42:$E$44,Primitives!$C$46:$E$48,Primitives!$C$50:$E$52,Primitives!$C$54:$E$56,Primitives!$C$58:$E$60),$N28,O$13)) -> 1 | P28: =IF(AND($K28=Calc.Top, P$10=Calc.Left),"X",INDEX(CHOOSE(INDEX(MazeDef,$L28,P$11),Primitives!$C$2:$E$4,Primitives!$C$6:$E$8,Primitives!$C$10:$E$12,Primitives!$C$14:$E$16,Primitives!$C$18:$E$20,Primitives!$C$22:$E$24,Primitives!$C$26:$E$28,Primitives!$C$30:$E$32,Primitives!$C$34:$E$36,Primitives!$C$38:$E$40,Primitives!$C$42:$E$44,Primitives!$C$46:$E$48,Primitives!$C$50:$E$52,Primitives!$C$54:$E$56,Primitives!$C$58:$E$60),$N28,P$13)) -> 1 | Q28: =IF(AND($K28=Calc.Top, Q$10=Calc.Left),"X",INDEX(CHOOSE(INDEX(MazeDef,$L28,Q$11),Primitives!$C$2:$E$4,Primitives!$C$6:$E$8,Primitives!$C$10:$E$12,Primitives!$C$14:$E$16,Primitives!$C$18:$E$20,Primitives!$C$22:$E$24,Primitives!$C$26:$E$28,Primitives!$C$30:$E$32,Primitives!$C$34:$E$36,Primitives!$C$38:$E$40,Primitives!$C$42:$E$44,Primitives!$C$46:$E$48,Primitives!$C$50:$E$52,Primitives!$C$54:$E$56,Primitives!$C$58:$E$60),$N28,Q$13)) -> 1 | R28: =IF(AND($K28=Calc.Top, R$10=Calc.Left),"X",INDEX(CHOOSE(INDEX(MazeDef,$L28,R$11),Primitives!$C$2:$E$4,Primitives!$C$6:$E$8,Primitives!$C$10:$E$12,Primitives!$C$14:$E$16,Primitives!$C$18:$E$20,Primitives!$C$22:$E$24,Primitives!$C$26:$E$28,Primitives!$C$30:$E$32,Primitives!$C$34:$E$36,Primitives!$C$38:$E$40,Primitives!$C$42:$E$44,Primitives!$C$46:$E$48,Primitives!$C$50:$E$52,Primitives!$C$54:$E$56,Primitives!$C$58:$E$60),$N28,R$13)) -> 1 | S28: =IF(AND($K28=Calc.Top, S$10=Calc.Left),"X",INDEX(CHOOSE(INDEX(MazeDef,$L28,S$11),Primitives!$C$2:$E$4,Primitives!$C$6:$E$8,Primitives!$C$10:$E$12,Primitives!$C$14:$E$16,Primitives!$C$18:$E$20,Primitives!$C$22:$E$24,Primitives!$C$26:$E$28,Primitives!$C$30:$E$32,Primitives!$C$34:$E$36,Primitives!$C$38:$E$40,Primitives!$C$42:$E$44,Primitives!$C$46:$E$48,Primitives!$C$50:$E$52,Primitives!$C$54:$E$56,Primitives!$C$58:$E$60),$N28,S$13)) -> 1 | T28: =IF(AND($K28=Calc.Top, T$10=Calc.Left),"X",INDEX(CHOOSE(INDEX(MazeDef,$L28,T$11),Primitives!$C$2:$E$4,Primitives!$C$6:$E$8,Primitives!$C$10:$E$12,Primitives!$C$14:$E$16,Primitives!$C$18:$E$20,Primitives!$C$22:$E$24,Primitives!$C$26:$E$28,Primitives!$C$30:$E$32,Primitives!$C$34:$E$36,Primitives!$C$38:$E$40,Primitives!$C$42:$E$44,Primitives!$C$46:$E$48,Primitives!$C$50:$E$52,Primitives!$C$54:$E$56,Primitives!$C$58:$E$60),$N28,T$13)) -> 1 | U28: =IF(AND($K28=Calc.Top, U$10=Calc.Left),"X",INDEX(CHOOSE(INDEX(MazeDef,$L28,U$11),Primitives!$C$2:$E$4,Primitives!$C$6:$E$8,Primitives!$C$10:$E$12,Primitives!$C$14:$E$16,Primitives!$C$18:$E$20,Primitives!$C$22:$E$24,Primitives!$C$26:$E$28,Primitives!$C$30:$E$32,Primitives!$C$34:$E$36,Primitives!$C$38:$E$40,Primitives!$C$42:$E$44,Primitives!$C$46:$E$48,Primitives!$C$50:$E$52,Primitives!$C$54:$E$56,Primitives!$C$58:$E$60),$N28,U$13)) -> 1 | V28: =IF(AND($K28=Calc.Top, V$10=Calc.Left),"X",INDEX(CHOOSE(INDEX(MazeDef,$L28,V$11),Primitives!$C$2:$E$4,Primitives!$C$6:$E$8,Primitives!$C$10:$E$12,Primitives!$C$14:$E$16,Primitives!$C$18:$E$20,Primitives!$C$22:$E$24,Primitives!$C$26:$E$28,Primitives!$C$30:$E$32,Primitives!$C$34:$E$36,Primitives!$C$38:$E$40,Primitives!$C$42:$E$44,Primitives!$C$46:$E$48,Primitives!$C$50:$E$52,Primitives!$C$54:$E$56,Primitives!$C$58:$E$60),$N28,V$13)) -> 1 | W28: =IF(AND($K28=Calc.Top, W$10=Calc.Left),"X",INDEX(CHOOSE(INDEX(MazeDef,$L28,W$11),Primitives!$C$2:$E$4,Primitives!$C$6:$E$8,Primitives!$C$10:$E$12,Primitives!$C$14:$E$16,Primitives!$C$18:$E$20,Primitives!$C$22:$E$24,Primitives!$C$26:$E$28,Primitives!$C$30:$E$32,Primitives!$C$34:$E$36,Primitives!$C$38:$E$40,Primitives!$C$42:$E$44,Primitives!$C$46:$E$48,Primitives!$C$50:$E$52,Primitives!$C$54:$E$56,Primitives!$C$58:$E$60),$N28,W$13)) -> 1 | X28: =IF(AND($K28=Calc.Top, X$10=Calc.Left),"X",INDEX(CHOOSE(INDEX(MazeDef,$L28,X$11),Primitives!$C$2:$E$4,Primitives!$C$6:$E$8,Primitives!$C$10:$E$12,Primitives!$C$14:$E$16,Primitives!$C$18:$E$20,Primitives!$C$22:$E$24,Primitives!$C$26:$E$28,Primitives!$C$30:$E$32,Primitives!$C$34:$E$36,Primitives!$C$38:$E$40,Primitives!$C$42:$E$44,Primitives!$C$46:$E$48,Primitives!$C$50:$E$52,Primitives!$C$54:$E$56,Primitives!$C$58:$E$60),$N28,X$13)) -> 1 | Y28: =IF(AND($K28=Calc.Top, Y$10=Calc.Left),"X",INDEX(CHOOSE(INDEX(MazeDef,$L28,Y$11),Primitives!$C$2:$E$4,Primitives!$C$6:$E$8,Primitives!$C$10:$E$12,Primitives!$C$14:$E$16,Primitives!$C$18:$E$20,Primitives!$C$22:$E$24,Primitives!$C$26:$E$28,Primitives!$C$30:$E$32,Primitives!$C$34:$E$36,Primitives!$C$38:$E$40,Primitives!$C$42:$E$44,Primitives!$C$46:$E$48,Primitives!$C$50:$E$52,Primitives!$C$54:$E$56,Primitives!$C$58:$E$60),$N28,Y$13)) -> 0 | Z28: =IF(AND($K28=Calc.Top, Z$10=Calc.Left),"X",INDEX(CHOOSE(INDEX(MazeDef,$L28,Z$11),Primitives!$C$2:$E$4,Primitives!$C$6:$E$8,Primitives!$C$10:$E$12,Primitives!$C$14:$E$16,Primitives!$C$18:$E$20,Primitives!$C$22:$E$24,Primitives!$C$26:$E$28,Primitives!$C$30:$E$32,Primitives!$C$34:$E$36,Primitives!$C$38:$E$40,Primitives!$C$42:$E$44,Primitives!$C$46:$E$48,Primitives!$C$50:$E$52,Primitives!$C$54:$E$56,Primitives!$C$58:$E$60),$N28,Z$13)) -> 1 | AA28: =IF(AND($K28=Calc.Top, AA$10=Calc.Left),"X",INDEX(CHOOSE(INDEX(MazeDef,$L28,AA$11),Primitives!$C$2:$E$4,Primitives!$C$6:$E$8,Primitives!$C$10:$E$12,Primitives!$C$14:$E$16,Primitives!$C$18:$E$20,Primitives!$C$22:$E$24,Primitives!$C$26:$E$28,Primitives!$C$30:$E$32,Primitives!$C$34:$E$36,Primitives!$C$38:$E$40,Primitives!$C$42:$E$44,Primitives!$C$46:$E$48,Primitives!$C$50:$E$52,Primitives!$C$54:$E$56,Primitives!$C$58:$E$60),$N28,AA$13)) -> 1 | AB28: =IF(AND($K28=Calc.Top, AB$10=Calc.Left),"X",INDEX(CHOOSE(INDEX(MazeDef,$L28,AB$11),Primitives!$C$2:$E$4,Primitives!$C$6:$E$8,Primitives!$C$10:$E$12,Primitives!$C$14:$E$16,Primitives!$C$18:$E$20,Primitives!$C$22:$E$24,Primitives!$C$26:$E$28,Primitives!$C$30:$E$32,Primitives!$C$34:$E$36,Primitives!$C$38:$E$40,Primitives!$C$42:$E$44,Primitives!$C$46:$E$48,Primitives!$C$50:$E$52,Primitives!$C$54:$E$56,Primitives!$C$58:$E$60),$N28,AB$13)) -> 0 | AC28: =IF(AND($K28=Calc.Top, AC$10=Calc.Left),"X",INDEX(CHOOSE(INDEX(MazeDef,$L28,AC$11),Primitives!$C$2:$E$4,Primitives!$C$6:$E$8,Primitives!$C$10:$E$12,Primitives!$C$14:$E$16,Primitives!$C$18:$E$20,Primitives!$C$22:$E$24,Primitives!$C$26:$E$28,Primitives!$C$30:$E$32,Primitives!$C$34:$E$36,Primitives!$C$38:$E$40,Primitives!$C$42:$E$44,Primitives!$C$46:$E$48,Primitives!$C$50:$E$52,Primitives!$C$54:$E$56,Primitives!$C$58:$E$60),$N28,AC$13)) -> 1 | AD28: =IF(AND($K28=Calc.Top, AD$10=Calc.Left),"X",INDEX(CHOOSE(INDEX(MazeDef,$L28,AD$11),Primitives!$C$2:$E$4,Primitives!$C$6:$E$8,Primitives!$C$10:$E$12,Primitives!$C$14:$E$16,Primitives!$C$18:$E$20,Primitives!$C$22:$E$24,Primitives!$C$26:$E$28,Primitives!$C$30:$E$32,Primitives!$C$34:$E$36,Primitives!$C$38:$E$40,Primitives!$C$42:$E$44,Primitives!$C$46:$E$48,Primitives!$C$50:$E$52,Primitives!$C$54:$E$56,Primitives!$C$58:$E$60),$N28,AD$13)) -> 1 | AE28: =IF(AND($K28=Calc.Top, AE$10=Calc.Left),"X",INDEX(CHOOSE(INDEX(MazeDef,$L28,AE$11),Primitives!$C$2:$E$4,Primitives!$C$6:$E$8,Primitives!$C$10:$E$12,Primitives!$C$14:$E$16,Primitives!$C$18:$E$20,Primitives!$C$22:$E$24,Primitives!$C$26:$E$28,Primitives!$C$30:$E$32,Primitives!$C$34:$E$36,Primitives!$C$38:$E$40,Primitives!$C$42:$E$44,Primitives!$C$46:$E$48,Primitives!$C$50:$E$52,Primitives!$C$54:$E$56,Primitives!$C$58:$E$60),$N28,AE$13)) -> 1 | AF28: =IF(AND($K28=Calc.Top, AF$10=Calc.Left),"X",INDEX(CHOOSE(INDEX(MazeDef,$L28,AF$11),Primitives!$C$2:$E$4,Primitives!$C$6:$E$8,Primitives!$C$10:$E$12,Primitives!$C$14:$E$16,Primitives!$C$18:$E$20,Primitives!$C$22:$E$24,Primitives!$C$26:$E$28,Primitives!$C$30:$E$32,Primitives!$C$34:$E$36,Primitives!$C$38:$E$40,Primitives!$C$42:$E$44,Primitives!$C$46:$E$48,Primitives!$C$50:$E$52,Primitives!$C$54:$E$56,Primitives!$C$58:$E$60),$N28,AF$13)) -> 1 | AG28: =IF(AND($K28=Calc.Top, AG$10=Calc.Left),"X",INDEX(CHOOSE(INDEX(MazeDef,$L28,AG$11),Primitives!$C$2:$E$4,Primitives!$C$6:$E$8,Primitives!$C$10:$E$12,Primitives!$C$14:$E$16,Primitives!$C$18:$E$20,Primitives!$C$22:$E$24,Primitives!$C$26:$E$28,Primitives!$C$30:$E$32,Primitives!$C$34:$E$36,Primitives!$C$38:$E$40,Primitives!$C$42:$E$44,Primitives!$C$46:$E$48,Primitives!$C$50:$E$52,Primitives!$C$54:$E$56,Primitives!$C$58:$E$60),$N28,AG$13)) -> 1 | AH28: =IF(AND($K28=Calc.Top, AH$10=Calc.Left),"X",INDEX(CHOOSE(INDEX(MazeDef,$L28,AH$11),Primitives!$C$2:$E$4,Primitives!$C$6:$E$8,Primitives!$C$10:$E$12,Primitives!$C$14:$E$16,Primitives!$C$18:$E$20,Primitives!$C$22:$E$24,Primitives!$C$26:$E$28,Primitives!$C$30:$E$32,Primitives!$C$34:$E$36,Primitives!$C$38:$E$40,Primitives!$C$42:$E$44,Primitives!$C$46:$E$48,Primitives!$C$50:$E$52,Primitives!$C$54:$E$56,Primitives!$C$58:$E$60),$N28,AH$13)) -> 1 | AI28: =IF(AND($K28=Calc.Top, AI$10=Calc.Left),"X",INDEX(CHOOSE(INDEX(MazeDef,$L28,AI$11),Primitives!$C$2:$E$4,Primitives!$C$6:$E$8,Primitives!$C$10:$E$12,Primitives!$C$14:$E$16,Primitives!$C$18:$E$20,Primitives!$C$22:$E$24,Primitives!$C$26:$E$28,Primitives!$C$30:$E$32,Primitives!$C$34:$E$36,Primitives!$C$38:$E$40,Primitives!$C$42:$E$44,Primitives!$C$46:$E$48,Primitives!$C$50:$E$52,Primitives!$C$54:$E$56,Primitives!$C$58:$E$60),$N28,AI$13)) -> 1 | AJ28: =IF(AND($K28=Calc.Top, AJ$10=Calc.Left),"X",INDEX(CHOOSE(INDEX(MazeDef,$L28,AJ$11),Primitives!$C$2:$E$4,Primitives!$C$6:$E$8,Primitives!$C$10:$E$12,Primitives!$C$14:$E$16,Primitives!$C$18:$E$20,Primitives!$C$22:$E$24,Primitives!$C$26:$E$28,Primitives!$C$30:$E$32,Primitives!$C$34:$E$36,Primitives!$C$38:$E$40,Primitives!$C$42:$E$44,Primitives!$C$46:$E$48,Primitives!$C$50:$E$52,Primitives!$C$54:$E$56,Primitives!$C$58:$E$60),$N28,AJ$13)) -> 1 | AK28: =IF(AND($K28=Calc.Top, AK$10=Calc.Left),"X",INDEX(CHOOSE(INDEX(MazeDef,$L28,AK$11),Primitives!$C$2:$E$4,Primitives!$C$6:$E$8,Primitives!$C$10:$E$12,Primitives!$C$14:$E$16,Primitives!$C$18:$E$20,Primitives!$C$22:$E$24,Primitives!$C$26:$E$28,Primitives!$C$30:$E$32,Primitives!$C$34:$E$36,Primitives!$C$38:$E$40,Primitives!$C$42:$E$44,Primitives!$C$46:$E$48,Primitives!$C$50:$E$52,Primitives!$C$54:$E$56,Primitives!$C$58:$E$60),$N28,AK$13)) -> 0 | AL28: =IF(AND($K28=Calc.Top, AL$10=Calc.Left),"X",INDEX(CHOOSE(INDEX(MazeDef,$L28,AL$11),Primitives!$C$2:$E$4,Primitives!$C$6:$E$8,Primitives!$C$10:$E$12,Primitives!$C$14:$E$16,Primitives!$C$18:$E$20,Primitives!$C$22:$E$24,Primitives!$C$26:$E$28,Primitives!$C$30:$E$32,Primitives!$C$34:$E$36,Primitives!$C$38:$E$40,Primitives!$C$42:$E$44,Primitives!$C$46:$E$48,Primitives!$C$50:$E$52,Primitives!$C$54:$E$56,Primitives!$C$58:$E$60),$N28,AL$13)) -> 1 | AM28: =IF(AND($K28=Calc.Top, AM$10=Calc.Left),"X",INDEX(CHOOSE(INDEX(MazeDef,$L28,AM$11),Primitives!$C$2:$E$4,Primitives!$C$6:$E$8,Primitives!$C$10:$E$12,Primitives!$C$14:$E$16,Primitives!$C$18:$E$20,Primitives!$C$22:$E$24,Primitives!$C$26:$E$28,Primitives!$C$30:$E$32,Primitives!$C$34:$E$36,Primitives!$C$38:$E$40,Primitives!$C$42:$E$44,Primitives!$C$46:$E$48,Primitives!$C$50:$E$52,Primitives!$C$54:$E$56,Primitives!$C$58:$E$60),$N28,AM$13)) -> 1 | AN28: =IF(AND($K28=Calc.Top, AN$10=Calc.Left),"X",INDEX(CHOOSE(INDEX(MazeDef,$L28,AN$11),Primitives!$C$2:$E$4,Primitives!$C$6:$E$8,Primitives!$C$10:$E$12,Primitives!$C$14:$E$16,Primitives!$C$18:$E$20,Primitives!$C$22:$E$24,Primitives!$C$26:$E$28,Primitives!$C$30:$E$32,Primitives!$C$34:$E$36,Primitives!$C$38:$E$40,Primitives!$C$42:$E$44,Primitives!$C$46:$E$48,Primitives!$C$50:$E$52,Primitives!$C$54:$E$56,Primitives!$C$58:$E$60),$N28,AN$13)) -> 0 | AO28: =IF(AND($K28=Calc.Top, AO$10=Calc.Left),"X",INDEX(CHOOSE(INDEX(MazeDef,$L28,AO$11),Primitives!$C$2:$E$4,Primitives!$C$6:$E$8,Primitives!$C$10:$E$12,Primitives!$C$14:$E$16,Primitives!$C$18:$E$20,Primitives!$C$22:$E$24,Primitives!$C$26:$E$28,Primitives!$C$30:$E$32,Primitives!$C$34:$E$36,Primitives!$C$38:$E$40,Primitives!$C$42:$E$44,Primitives!$C$46:$E$48,Primitives!$C$50:$E$52,Primitives!$C$54:$E$56,Primitives!$C$58:$E$60),$N28,AO$13)) -> 1 | AP28: =IF(AND($K28=Calc.Top, AP$10=Calc.Left),"X",INDEX(CHOOSE(INDEX(MazeDef,$L28,AP$11),Primitives!$C$2:$E$4,Primitives!$C$6:$E$8,Primitives!$C$10:$E$12,Primitives!$C$14:$E$16,Primitives!$C$18:$E$20,Primitives!$C$22:$E$24,Primitives!$C$26:$E$28,Primitives!$C$30:$E$32,Primitives!$C$34:$E$36,Primitives!$C$38:$E$40,Primitives!$C$42:$E$44,Primitives!$C$46:$E$48,Primitives!$C$50:$E$52,Primitives!$C$54:$E$56,Primitives!$C$58:$E$60),$N28,AP$13)) -> 1 | AQ28: =IF(AND($K28=Calc.Top, AQ$10=Calc.Left),"X",INDEX(CHOOSE(INDEX(MazeDef,$L28,AQ$11),Primitives!$C$2:$E$4,Primitives!$C$6:$E$8,Primitives!$C$10:$E$12,Primitives!$C$14:$E$16,Primitives!$C$18:$E$20,Primitives!$C$22:$E$24,Primitives!$C$26:$E$28,Primitives!$C$30:$E$32,Primitives!$C$34:$E$36,Primitives!$C$38:$E$40,Primitives!$C$42:$E$44,Primitives!$C$46:$E$48,Primitives!$C$50:$E$52,Primitives!$C$54:$E$56,Primitives!$C$58:$E$60),$N28,AQ$13)) -> 0 | AR28: =IF(AND($K28=Calc.Top, AR$10=Calc.Left),"X",INDEX(CHOOSE(INDEX(MazeDef,$L28,AR$11),Primitives!$C$2:$E$4,Primitives!$C$6:$E$8,Primitives!$C$10:$E$12,Primitives!$C$14:$E$16,Primitives!$C$18:$E$20,Primitives!$C$22:$E$24,Primitives!$C$26:$E$28,Primitives!$C$30:$E$32,Primitives!$C$34:$E$36,Primitives!$C$38:$E$40,Primitives!$C$42:$E$44,Primitives!$C$46:$E$48,Primitives!$C$50:$E$52,Primitives!$C$54:$E$56,Primitives!$C$58:$E$60),$N28,AR$13)) -> 1
K29: 16 | L29: 6 | M29: 6 | N29: 1 | O29: =IF(AND($K29=Calc.Top, O$10=Calc.Left),"X",INDEX(CHOOSE(INDEX(MazeDef,$L29,O$11),Primitives!$C$2:$E$4,Primitives!$C$6:$E$8,Primitives!$C$10:$E$12,Primitives!$C$14:$E$16,Primitives!$C$18:$E$20,Primitives!$C$22:$E$24,Primitives!$C$26:$E$28,Primitives!$C$30:$E$32,Primitives!$C$34:$E$36,Primitives!$C$38:$E$40,Primitives!$C$42:$E$44,Primitives!$C$46:$E$48,Primitives!$C$50:$E$52,Primitives!$C$54:$E$56,Primitives!$C$58:$E$60),$N29,O$13)) -> 1 | P29: =IF(AND($K29=Calc.Top, P$10=Calc.Left),"X",INDEX(CHOOSE(INDEX(MazeDef,$L29,P$11),Primitives!$C$2:$E$4,Primitives!$C$6:$E$8,Primitives!$C$10:$E$12,Primitives!$C$14:$E$16,Primitives!$C$18:$E$20,Primitives!$C$22:$E$24,Primitives!$C$26:$E$28,Primitives!$C$30:$E$32,Primitives!$C$34:$E$36,Primitives!$C$38:$E$40,Primitives!$C$42:$E$44,Primitives!$C$46:$E$48,Primitives!$C$50:$E$52,Primitives!$C$54:$E$56,Primitives!$C$58:$E$60),$N29,P$13)) -> 1 | Q29: =IF(AND($K29=Calc.Top, Q$10=Calc.Left),"X",INDEX(CHOOSE(INDEX(MazeDef,$L29,Q$11),Primitives!$C$2:$E$4,Primitives!$C$6:$E$8,Primitives!$C$10:$E$12,Primitives!$C$14:$E$16,Primitives!$C$18:$E$20,Primitives!$C$22:$E$24,Primitives!$C$26:$E$28,Primitives!$C$30:$E$32,Primitives!$C$34:$E$36,Primitives!$C$38:$E$40,Primitives!$C$42:$E$44,Primitives!$C$46:$E$48,Primitives!$C$50:$E$52,Primitives!$C$54:$E$56,Primitives!$C$58:$E$60),$N29,Q$13)) -> 1 | R29: =IF(AND($K29=Calc.Top, R$10=Calc.Left),"X",INDEX(CHOOSE(INDEX(MazeDef,$L29,R$11),Primitives!$C$2:$E$4,Primitives!$C$6:$E$8,Primitives!$C$10:$E$12,Primitives!$C$14:$E$16,Primitives!$C$18:$E$20,Primitives!$C$22:$E$24,Primitives!$C$26:$E$28,Primitives!$C$30:$E$32,Primitives!$C$34:$E$36,Primitives!$C$38:$E$40,Primitives!$C$42:$E$44,Primitives!$C$46:$E$48,Primitives!$C$50:$E$52,Primitives!$C$54:$E$56,Primitives!$C$58:$E$60),$N29,R$13)) -> 1 | S29: =IF(AND($K29=Calc.Top, S$10=Calc.Left),"X",INDEX(CHOOSE(INDEX(MazeDef,$L29,S$11),Primitives!$C$2:$E$4,Primitives!$C$6:$E$8,Primitives!$C$10:$E$12,Primitives!$C$14:$E$16,Primitives!$C$18:$E$20,Primitives!$C$22:$E$24,Primitives!$C$26:$E$28,Primitives!$C$30:$E$32,Primitives!$C$34:$E$36,Primitives!$C$38:$E$40,Primitives!$C$42:$E$44,Primitives!$C$46:$E$48,Primitives!$C$50:$E$52,Primitives!$C$54:$E$56,Primitives!$C$58:$E$60),$N29,S$13)) -> 1 | T29: =IF(AND($K29=Calc.Top, T$10=Calc.Left),"X",INDEX(CHOOSE(INDEX(MazeDef,$L29,T$11),Primitives!$C$2:$E$4,Primitives!$C$6:$E$8,Primitives!$C$10:$E$12,Primitives!$C$14:$E$16,Primitives!$C$18:$E$20,Primitives!$C$22:$E$24,Primitives!$C$26:$E$28,Primitives!$C$30:$E$32,Primitives!$C$34:$E$36,Primitives!$C$38:$E$40,Primitives!$C$42:$E$44,Primitives!$C$46:$E$48,Primitives!$C$50:$E$52,Primitives!$C$54:$E$56,Primitives!$C$58:$E$60),$N29,T$13)) -> 1 | U29: =IF(AND($K29=Calc.Top, U$10=Calc.Left),"X",INDEX(CHOOSE(INDEX(MazeDef,$L29,U$11),Primitives!$C$2:$E$4,Primitives!$C$6:$E$8,Primitives!$C$10:$E$12,Primitives!$C$14:$E$16,Primitives!$C$18:$E$20,Primitives!$C$22:$E$24,Primitives!$C$26:$E$28,Primitives!$C$30:$E$32,Primitives!$C$34:$E$36,Primitives!$C$38:$E$40,Primitives!$C$42:$E$44,Primitives!$C$46:$E$48,Primitives!$C$50:$E$52,Primitives!$C$54:$E$56,Primitives!$C$58:$E$60),$N29,U$13)) -> 1 | V29: =IF(AND($K29=Calc.Top, V$10=Calc.Left),"X",INDEX(CHOOSE(INDEX(MazeDef,$L29,V$11),Primitives!$C$2:$E$4,Primitives!$C$6:$E$8,Primitives!$C$10:$E$12,Primitives!$C$14:$E$16,Primitives!$C$18:$E$20,Primitives!$C$22:$E$24,Primitives!$C$26:$E$28,Primitives!$C$30:$E$32,Primitives!$C$34:$E$36,Primitives!$C$38:$E$40,Primitives!$C$42:$E$44,Primitives!$C$46:$E$48,Primitives!$C$50:$E$52,Primitives!$C$54:$E$56,Primitives!$C$58:$E$60),$N29,V$13)) -> 1 | W29: =IF(AND($K29=Calc.Top, W$10=Calc.Left),"X",INDEX(CHOOSE(INDEX(MazeDef,$L29,W$11),Primitives!$C$2:$E$4,Primitives!$C$6:$E$8,Primitives!$C$10:$E$12,Primitives!$C$14:$E$16,Primitives!$C$18:$E$20,Primitives!$C$22:$E$24,Primitives!$C$26:$E$28,Primitives!$C$30:$E$32,Primitives!$C$34:$E$36,Primitives!$C$38:$E$40,Primitives!$C$42:$E$44,Primitives!$C$46:$E$48,Primitives!$C$50:$E$52,Primitives!$C$54:$E$56,Primitives!$C$58:$E$60),$N29,W$13)) -> 1 | X29: =IF(AND($K29=Calc.Top, X$10=Calc.Left),"X",INDEX(CHOOSE(INDEX(MazeDef,$L29,X$11),Primitives!$C$2:$E$4,Primitives!$C$6:$E$8,Primitives!$C$10:$E$12,Primitives!$C$14:$E$16,Primitives!$C$18:$E$20,Primitives!$C$22:$E$24,Primitives!$C$26:$E$28,Primitives!$C$30:$E$32,Primitives!$C$34:$E$36,Primitives!$C$38:$E$40,Primitives!$C$42:$E$44,Primitives!$C$46:$E$48,Primitives!$C$50:$E$52,Primitives!$C$54:$E$56,Primitives!$C$58:$E$60),$N29,X$13)) -> 1 | Y29: =IF(AND($K29=Calc.Top, Y$10=Calc.Left),"X",INDEX(CHOOSE(INDEX(MazeDef,$L29,Y$11),Primitives!$C$2:$E$4,Primitives!$C$6:$E$8,Primitives!$C$10:$E$12,Primitives!$C$14:$E$16,Primitives!$C$18:$E$20,Primitives!$C$22:$E$24,Primitives!$C$26:$E$28,Primitives!$C$30:$E$32,Primitives!$C$34:$E$36,Primitives!$C$38:$E$40,Primitives!$C$42:$E$44,Primitives!$C$46:$E$48,Primitives!$C$50:$E$52,Primitives!$C$54:$E$56,Primitives!$C$58:$E$60),$N29,Y$13)) -> 0 | Z29: =IF(AND($K29=Calc.Top, Z$10=Calc.Left),"X",INDEX(CHOOSE(INDEX(MazeDef,$L29,Z$11),Primitives!$C$2:$E$4,Primitives!$C$6:$E$8,Primitives!$C$10:$E$12,Primitives!$C$14:$E$16,Primitives!$C$18:$E$20,Primitives!$C$22:$E$24,Primitives!$C$26:$E$28,Primitives!$C$30:$E$32,Primitives!$C$34:$E$36,Primitives!$C$38:$E$40,Primitives!$C$42:$E$44,Primitives!$C$46:$E$48,Primitives!$C$50:$E$52,Primitives!$C$54:$E$56,Primitives!$C$58:$E$60),$N29,Z$13)) -> 1 | AA29: =IF(AND($K29=Calc.Top, AA$10=Calc.Left),"X",INDEX(CHOOSE(INDEX(MazeDef,$L29,AA$11),Primitives!$C$2:$E$4,Primitives!$C$6:$E$8,Primitives!$C$10:$E$12,Primitives!$C$14:$E$16,Primitives!$C$18:$E$20,Primitives!$C$22:$E$24,Primitives!$C$26:$E$28,Primitives!$C$30:$E$32,Primitives!$C$34:$E$36,Primitives!$C$38:$E$40,Primitives!$C$42:$E$44,Primitives!$C$46:$E$48,Primitives!$C$50:$E$52,Primitives!$C$54:$E$56,Primitives!$C$58:$E$60),$N29,AA$13)) -> 1 | AB29: =IF(AND($K29=Calc.Top, AB$10=Calc.Left),"X",INDEX(CHOOSE(INDEX(MazeDef,$L29,AB$11),Primitives!$C$2:$E$4,Primitives!$C$6:$E$8,Primitives!$C$10:$E$12,Primitives!$C$14:$E$16,Primitives!$C$18:$E$20,Primitives!$C$22:$E$24,Primitives!$C$26:$E$28,Primitives!$C$30:$E$32,Primitives!$C$34:$E$36,Primitives!$C$38:$E$40,Primitives!$C$42:$E$44,Primitives!$C$46:$E$48,Primitives!$C$50:$E$52,Primitives!$C$54:$E$56,Primitives!$C$58:$E$60),$N29,AB$13)) -> 0 | AC29: =IF(AND($K29=Calc.Top, AC$10=Calc.Left),"X",INDEX(CHOOSE(INDEX(MazeDef,$L29,AC$11),Primitives!$C$2:$E$4,Primitives!$C$6:$E$8,Primitives!$C$10:$E$12,Primitives!$C$14:$E$16,Primitives!$C$18:$E$20,Primitives!$C$22:$E$24,Primitives!$C$26:$E$28,Primitives!$C$30:$E$32,Primitives!$C$34:$E$36,Primitives!$C$38:$E$40,Primitives!$C$42:$E$44,Primitives!$C$46:$E$48,Primitives!$C$50:$E$52,Primitives!$C$54:$E$56,Primitives!$C$58:$E$60),$N29,AC$13)) -> 1 | AD29: =IF(AND($K29=Calc.Top, AD$10=Calc.Left),"X",INDEX(CHOOSE(INDEX(MazeDef,$L29,AD$11),Primitives!$C$2:$E$4,Primitives!$C$6:$E$8,Primitives!$C$10:$E$12,Primitives!$C$14:$E$16,Primitives!$C$18:$E$20,Primitives!$C$22:$E$24,Primitives!$C$26:$E$28,Primitives!$C$30:$E$32,Primitives!$C$34:$E$36,Primitives!$C$38:$E$40,Primitives!$C$42:$E$44,Primitives!$C$46:$E$48,Primitives!$C$50:$E$52,Primitives!$C$54:$E$56,Primitives!$C$58:$E$60),$N29,AD$13)) -> 1 | AE29: =IF(AND($K29=Calc.Top, AE$10=Calc.Left),"X",INDEX(CHOOSE(INDEX(MazeDef,$L29,AE$11),Primitives!$C$2:$E$4,Primitives!$C$6:$E$8,Primitives!$C$10:$E$12,Primitives!$C$14:$E$16,Primitives!$C$18:$E$20,Primitives!$C$22:$E$24,Primitives!$C$26:$E$28,Primitives!$C$30:$E$32,Primitives!$C$34:$E$36,Primitives!$C$38:$E$40,Primitives!$C$42:$E$44,Primitives!$C$46:$E$48,Primitives!$C$50:$E$52,Primitives!$C$54:$E$56,Primitives!$C$58:$E$60),$N29,AE$13)) -> 1 | AF29: =IF(AND($K29=Calc.Top, AF$10=Calc.Left),"X",INDEX(CHOOSE(INDEX(MazeDef,$L29,AF$11),Primitives!$C$2:$E$4,Primitives!$C$6:$E$8,Primitives!$C$10:$E$12,Primitives!$C$14:$E$16,Primitives!$C$18:$E$20,Primitives!$C$22:$E$24,Primitives!$C$26:$E$28,Primitives!$C$30:$E$32,Primitives!$C$34:$E$36,Primitives!$C$38:$E$40,Primitives!$C$42:$E$44,Primitives!$C$46:$E$48,Primitives!$C$50:$E$52,Primitives!$C$54:$E$56,Primitives!$C$58:$E$60),$N29,AF$13)) -> 1 | AG29: =IF(AND($K29=Calc.Top, AG$10=Calc.Left),"X",INDEX(CHOOSE(INDEX(MazeDef,$L29,AG$11),Primitives!$C$2:$E$4,Primitives!$C$6:$E$8,Primitives!$C$10:$E$12,Primitives!$C$14:$E$16,Primitives!$C$18:$E$20,Primitives!$C$22:$E$24,Primitives!$C$26:$E$28,Primitives!$C$30:$E$32,Primitives!$C$34:$E$36,Primitives!$C$38:$E$40,Primitives!$C$42:$E$44,Primitives!$C$46:$E$48,Primitives!$C$50:$E$52,Primitives!$C$54:$E$56,Primitives!$C$58:$E$60),$N29,AG$13)) -> 1 | AH29: =IF(AND($K29=Calc.Top, AH$10=Calc.Left),"X",INDEX(CHOOSE(INDEX(MazeDef,$L29,AH$11),Primitives!$C$2:$E$4,Primitives!$C$6:$E$8,Primitives!$C$10:$E$12,Primitives!$C$14:$E$16,Primitives!$C$18:$E$20,Primitives!$C$22:$E$24,Primitives!$C$26:$E$28,Primitives!$C$30:$E$32,Primitives!$C$34:$E$36,Primitives!$C$38:$E$40,Primitives!$C$42:$E$44,Primitives!$C$46:$E$48,Primitives!$C$50:$E$52,Primitives!$C$54:$E$56,Primitives!$C$58:$E$60),$N29,AH$13)) -> 1 | AI29: =IF(AND($K29=Calc.Top, AI$10=Calc.Left),"X",INDEX(CHOOSE(INDEX(MazeDef,$L29,AI$11),Primitives!$C$2:$E$4,Primitives!$C$6:$E$8,Primitives!$C$10:$E$12,Primitives!$C$14:$E$16,Primitives!$C$18:$E$20,Primitives!$C$22:$E$24,Primitives!$C$26:$E$28,Primitives!$C$30:$E$32,Primitives!$C$34:$E$36,Primitives!$C$38:$E$40,Primitives!$C$42:$E$44,Primitives!$C$46:$E$48,Primitives!$C$50:$E$52,Primitives!$C$54:$E$56,Primitives!$C$58:$E$60),$N29,AI$13)) -> 1 | AJ29: =IF(AND($K29=Calc.Top, AJ$10=Calc.Left),"X",INDEX(CHOOSE(INDEX(MazeDef,$L29,AJ$11),Primitives!$C$2:$E$4,Primitives!$C$6:$E$8,Primitives!$C$10:$E$12,Primitives!$C$14:$E$16,Primitives!$C$18:$E$20,Primitives!$C$22:$E$24,Primitives!$C$26:$E$28,Primitives!$C$30:$E$32,Primitives!$C$34:$E$36,Primitives!$C$38:$E$40,Primitives!$C$42:$E$44,Primitives!$C$46:$E$48,Primitives!$C$50:$E$52,Primitives!$C$54:$E$56,Primitives!$C$58:$E$60),$N29,AJ$13)) -> 1 | AK29: =IF(AND($K29=Calc.Top, AK$10=Calc.Left),"X",INDEX(CHOOSE(INDEX(MazeDef,$L29,AK$11),Primitives!$C$2:$E$4,Primitives!$C$6:$E$8,Primitives!$C$10:$E$12,Primitives!$C$14:$E$16,Primitives!$C$18:$E$20,Primitives!$C$22:$E$24,Primitives!$C$26:$E$28,Primitives!$C$30:$E$32,Primitives!$C$34:$E$36,Primitives!$C$38:$E$40,Primitives!$C$42:$E$44,Primitives!$C$46:$E$48,Primitives!$C$50:$E$52,Primitives!$C$54:$E$56,Primitives!$C$58:$E$60),$N29,AK$13)) -> 0 | AL29: =IF(AND($K29=Calc.Top, AL$10=Calc.Left),"X",INDEX(CHOOSE(INDEX(MazeDef,$L29,AL$11),Primitives!$C$2:$E$4,Primitives!$C$6:$E$8,Primitives!$C$10:$E$12,Primitives!$C$14:$E$16,Primitives!$C$18:$E$20,Primitives!$C$22:$E$24,Primitives!$C$26:$E$28,Primitives!$C$30:$E$32,Primitives!$C$34:$E$36,Primitives!$C$38:$E$40,Primitives!$C$42:$E$44,Primitives!$C$46:$E$48,Primitives!$C$50:$E$52,Primitives!$C$54:$E$56,Primitives!$C$58:$E$60),$N29,AL$13)) -> 1 | AM29: =IF(AND($K29=Calc.Top, AM$10=Calc.Left),"X",INDEX(CHOOSE(INDEX(MazeDef,$L29,AM$11),Primitives!$C$2:$E$4,Primitives!$C$6:$E$8,Primitives!$C$10:$E$12,Primitives!$C$14:$E$16,Primitives!$C$18:$E$20,Primitives!$C$22:$E$24,Primitives!$C$26:$E$28,Primitives!$C$30:$E$32,Primitives!$C$34:$E$36,Primitives!$C$38:$E$40,Primitives!$C$42:$E$44,Primitives!$C$46:$E$48,Primitives!$C$50:$E$52,Primitives!$C$54:$E$56,Primitives!$C$58:$E$60),$N29,AM$13)) -> 1 | AN29: =IF(AND($K29=Calc.Top, AN$10=Calc.Left),"X",INDEX(CHOOSE(INDEX(MazeDef,$L29,AN$11),Primitives!$C$2:$E$4,Primitives!$C$6:$E$8,Primitives!$C$10:$E$12,Primitives!$C$14:$E$16,Primitives!$C$18:$E$20,Primitives!$C$22:$E$24,Primitives!$C$26:$E$28,Primitives!$C$30:$E$32,Primitives!$C$34:$E$36,Primitives!$C$38:$E$40,Primitives!$C$42:$E$44,Primitives!$C$46:$E$48,Primitives!$C$50:$E$52,Primitives!$C$54:$E$56,Primitives!$C$58:$E$60),$N29,AN$13)) -> 0 | AO29: =IF(AND($K29=Calc.Top, AO$10=Calc.Left),"X",INDEX(CHOOSE(INDEX(MazeDef,$L29,AO$11),Primitives!$C$2:$E$4,Primitives!$C$6:$E$8,Primitives!$C$10:$E$12,Primitives!$C$14:$E$16,Primitives!$C$18:$E$20,Primitives!$C$22:$E$24,Primitives!$C$26:$E$28,Primitives!$C$30:$E$32,Primitives!$C$34:$E$36,Primitives!$C$38:$E$40,Primitives!$C$42:$E$44,Primitives!$C$46:$E$48,Primitives!$C$50:$E$52,Primitives!$C$54:$E$56,Primitives!$C$58:$E$60),$N29,AO$13)) -> 1 | AP29: =IF(AND($K29=Calc.Top, AP$10=Calc.Left),"X",INDEX(CHOOSE(INDEX(MazeDef,$L29,AP$11),Primitives!$C$2:$E$4,Primitives!$C$6:$E$8,Primitives!$C$10:$E$12,Primitives!$C$14:$E$16,Primitives!$C$18:$E$20,Primitives!$C$22:$E$24,Primitives!$C$26:$E$28,Primitives!$C$30:$E$32,Primitives!$C$34:$E$36,Primitives!$C$38:$E$40,Primitives!$C$42:$E$44,Primitives!$C$46:$E$48,Primitives!$C$50:$E$52,Primitives!$C$54:$E$56,Primitives!$C$58:$E$60),$N29,AP$13)) -> 1 | AQ29: =IF(AND($K29=Calc.Top, AQ$10=Calc.Left),"X",INDEX(CHOOSE(INDEX(MazeDef,$L29,AQ$11),Primitives!$C$2:$E$4,Primitives!$C$6:$E$8,Primitives!$C$10:$E$12,Primitives!$C$14:$E$16,Primitives!$C$18:$E$20,Primitives!$C$22:$E$24,Primitives!$C$26:$E$28,Primitives!$C$30:$E$32,Primitives!$C$34:$E$36,Primitives!$C$38:$E$40,Primitives!$C$42:$E$44,Primitives!$C$46:$E$48,Primitives!$C$50:$E$52,Primitives!$C$54:$E$56,Primitives!$C$58:$E$60),$N29,AQ$13)) -> 0 | AR29: =IF(AND($K29=Calc.Top, AR$10=Calc.Left),"X",INDEX(CHOOSE(INDEX(MazeDef,$L29,AR$11),Primitives!$C$2:$E$4,Primitives!$C$6:$E$8,Primitives!$C$10:$E$12,Primitives!$C$14:$E$16,Primitives!$C$18:$E$20,Primitives!$C$22:$E$24,Primitives!$C$26:$E$28,Primitives!$C$30:$E$32,Primitives!$C$34:$E$36,Primitives!$C$38:$E$40,Primitives!$C$42:$E$44,Primitives!$C$46:$E$48,Primitives!$C$50:$E$52,Primitives!$C$54:$E$56,Primitives!$C$58:$E$60),$N29,AR$13)) -> 1
B30: 1 | C30: 1 | D30: 1 | K30: 17 | L30: 6 | N30: 2 | O30: =IF(AND($K30=Calc.Top, O$10=Calc.Left),"X",INDEX(CHOOSE(INDEX(MazeDef,$L30,O$11),Primitives!$C$2:$E$4,Primitives!$C$6:$E$8,Primitives!$C$10:$E$12,Primitives!$C$14:$E$16,Primitives!$C$18:$E$20,Primitives!$C$22:$E$24,Primitives!$C$26:$E$28,Primitives!$C$30:$E$32,Primitives!$C$34:$E$36,Primitives!$C$38:$E$40,Primitives!$C$42:$E$44,Primitives!$C$46:$E$48,Primitives!$C$50:$E$52,Primitives!$C$54:$E$56,Primitives!$C$58:$E$60),$N30,O$13)) -> 1 | P30: =IF(AND($K30=Calc.Top, P$10=Calc.Left),"X",INDEX(CHOOSE(INDEX(MazeDef,$L30,P$11),Primitives!$C$2:$E$4,Primitives!$C$6:$E$8,Primitives!$C$10:$E$12,Primitives!$C$14:$E$16,Primitives!$C$18:$E$20,Primitives!$C$22:$E$24,Primitives!$C$26:$E$28,Primitives!$C$30:$E$32,Primitives!$C$34:$E$36,Primitives!$C$38:$E$40,Primitives!$C$42:$E$44,Primitives!$C$46:$E$48,Primitives!$C$50:$E$52,Primitives!$C$54:$E$56,Primitives!$C$58:$E$60),$N30,P$13)) -> 0 | Q30: =IF(AND($K30=Calc.Top, Q$10=Calc.Left),"X",INDEX(CHOOSE(INDEX(MazeDef,$L30,Q$11),Primitives!$C$2:$E$4,Primitives!$C$6:$E$8,Primitives!$C$10:$E$12,Primitives!$C$14:$E$16,Primitives!$C$18:$E$20,Primitives!$C$22:$E$24,Primitives!$C$26:$E$28,Primitives!$C$30:$E$32,Primitives!$C$34:$E$36,Primitives!$C$38:$E$40,Primitives!$C$42:$E$44,Primitives!$C$46:$E$48,Primitives!$C$50:$E$52,Primitives!$C$54:$E$56,Primitives!$C$58:$E$60),$N30,Q$13)) -> 0 | R30: =IF(AND($K30=Calc.Top, R$10=Calc.Left),"X",INDEX(CHOOSE(INDEX(MazeDef,$L30,R$11),Primitives!$C$2:$E$4,Primitives!$C$6:$E$8,Primitives!$C$10:$E$12,Primitives!$C$14:$E$16,Primitives!$C$18:$E$20,Primitives!$C$22:$E$24,Primitives!$C$26:$E$28,Primitives!$C$30:$E$32,Primitives!$C$34:$E$36,Primitives!$C$38:$E$40,Primitives!$C$42:$E$44,Primitives!$C$46:$E$48,Primitives!$C$50:$E$52,Primitives!$C$54:$E$56,Primitives!$C$58:$E$60),$N30,R$13)) -> 0 | S30: =IF(AND($K30=Calc.Top, S$10=Calc.Left),"X",INDEX(CHOOSE(INDEX(MazeDef,$L30,S$11),Primitives!$C$2:$E$4,Primitives!$C$6:$E$8,Primitives!$C$10:$E$12,Primitives!$C$14:$E$16,Primitives!$C$18:$E$20,Primitives!$C$22:$E$24,Primitives!$C$26:$E$28,Primitives!$C$30:$E$32,Primitives!$C$34:$E$36,Primitives!$C$38:$E$40,Primitives!$C$42:$E$44,Primitives!$C$46:$E$48,Primitives!$C$50:$E$52,Primitives!$C$54:$E$56,Primitives!$C$58:$E$60),$N30,S$13)) -> 0 | T30: =IF(AND($K30=Calc.Top, T$10=Calc.Left),"X",INDEX(CHOOSE(INDEX(MazeDef,$L30,T$11),Primitives!$C$2:$E$4,Primitives!$C$6:$E$8,Primitives!$C$10:$E$12,Primitives!$C$14:$E$16,Primitives!$C$18:$E$20,Primitives!$C$22:$E$24,Primitives!$C$26:$E$28,Primitives!$C$30:$E$32,Primitives!$C$34:$E$36,Primitives!$C$38:$E$40,Primitives!$C$42:$E$44,Primitives!$C$46:$E$48,Primitives!$C$50:$E$52,Primitives!$C$54:$E$56,Primitives!$C$58:$E$60),$N30,T$13)) -> 0 | U30: =IF(AND($K30=Calc.Top, U$10=Calc.Left),"X",INDEX(CHOOSE(INDEX(MazeDef,$L30,U$11),Primitives!$C$2:$E$4,Primitives!$C$6:$E$8,Primitives!$C$10:$E$12,Primitives!$C$14:$E$16,Primitives!$C$18:$E$20,Primitives!$C$22:$E$24,Primitives!$C$26:$E$28,Primitives!$C$30:$E$32,Primitives!$C$34:$E$36,Primitives!$C$38:$E$40,Primitives!$C$42:$E$44,Primitives!$C$46:$E$48,Primitives!$C$50:$E$52,Primitives!$C$54:$E$56,Primitives!$C$58:$E$60),$N30,U$13)) -> 0 | V30: =IF(AND($K30=Calc.Top, V$10=Calc.Left),"X",INDEX(CHOOSE(INDEX(MazeDef,$L30,V$11),Primitives!$C$2:$E$4,Primitives!$C$6:$E$8,Primitives!$C$10:$E$12,Primitives!$C$14:$E$16,Primitives!$C$18:$E$20,Primitives!$C$22:$E$24,Primitives!$C$26:$E$28,Primitives!$C$30:$E$32,Primitives!$C$34:$E$36,Primitives!$C$38:$E$40,Primitives!$C$42:$E$44,Primitives!$C$46:$E$48,Primitives!$C$50:$E$52,Primitives!$C$54:$E$56,Primitives!$C$58:$E$60),$N30,V$13)) -> 0 | W30: =IF(AND($K30=Calc.Top, W$10=Calc.Left),"X",INDEX(CHOOSE(INDEX(MazeDef,$L30,W$11),Primitives!$C$2:$E$4,Primitives!$C$6:$E$8,Primitives!$C$10:$E$12,Primitives!$C$14:$E$16,Primitives!$C$18:$E$20,Primitives!$C$22:$E$24,Primitives!$C$26:$E$28,Primitives!$C$30:$E$32,Primitives!$C$34:$E$36,Primitives!$C$38:$E$40,Primitives!$C$42:$E$44,Primitives!$C$46:$E$48,Primitives!$C$50:$E$52,Primitives!$C$54:$E$56,Primitives!$C$58:$E$60),$N30,W$13)) -> 0 | X30: =IF(AND($K30=Calc.Top, X$10=Calc.Left),"X",INDEX(CHOOSE(INDEX(MazeDef,$L30,X$11),Primitives!$C$2:$E$4,Primitives!$C$6:$E$8,Primitives!$C$10:$E$12,Primitives!$C$14:$E$16,Primitives!$C$18:$E$20,Primitives!$C$22:$E$24,Primitives!$C$26:$E$28,Primitives!$C$30:$E$32,Primitives!$C$34:$E$36,Primitives!$C$38:$E$40,Primitives!$C$42:$E$44,Primitives!$C$46:$E$48,Primitives!$C$50:$E$52,Primitives!$C$54:$E$56,Primitives!$C$58:$E$60),$N30,X$13)) -> 0 | Y30: =IF(AND($K30=Calc.Top, Y$10=Calc.Left),"X",INDEX(CHOOSE(INDEX(MazeDef,$L30,Y$11),Primitives!$C$2:$E$4,Primitives!$C$6:$E$8,Primitives!$C$10:$E$12,Primitives!$C$14:$E$16,Primitives!$C$18:$E$20,Primitives!$C$22:$E$24,Primitives!$C$26:$E$28,Primitives!$C$30:$E$32,Primitives!$C$34:$E$36,Primitives!$C$38:$E$40,Primitives!$C$42:$E$44,Primitives!$C$46:$E$48,Primitives!$C$50:$E$52,Primitives!$C$54:$E$56,Primitives!$C$58:$E$60),$N30,Y$13)) -> 0 | Z30: =IF(AND($K30=Calc.Top, Z$10=Calc.Left),"X",INDEX(CHOOSE(INDEX(MazeDef,$L30,Z$11),Primitives!$C$2:$E$4,Primitives!$C$6:$E$8,Primitives!$C$10:$E$12,Primitives!$C$14:$E$16,Primitives!$C$18:$E$20,Primitives!$C$22:$E$24,Primitives!$C$26:$E$28,Primitives!$C$30:$E$32,Primitives!$C$34:$E$36,Primitives!$C$38:$E$40,Primitives!$C$42:$E$44,Primitives!$C$46:$E$48,Primitives!$C$50:$E$52,Primitives!$C$54:$E$56,Primitives!$C$58:$E$60),$N30,Z$13)) -> 0 | AA30: =IF(AND($K30=Calc.Top, AA$10=Calc.Left),"X",INDEX(CHOOSE(INDEX(MazeDef,$L30,AA$11),Primitives!$C$2:$E$4,Primitives!$C$6:$E$8,Primitives!$C$10:$E$12,Primitives!$C$14:$E$16,Primitives!$C$18:$E$20,Primitives!$C$22:$E$24,Primitives!$C$26:$E$28,Primitives!$C$30:$E$32,Primitives!$C$34:$E$36,Primitives!$C$38:$E$40,Primitives!$C$42:$E$44,Primitives!$C$46:$E$48,Primitives!$C$50:$E$52,Primitives!$C$54:$E$56,Primitives!$C$58:$E$60),$N30,AA$13)) -> 0 | AB30: =IF(AND($K30=Calc.Top, AB$10=Calc.Left),"X",INDEX(CHOOSE(INDEX(MazeDef,$L30,AB$11),Primitives!$C$2:$E$4,Primitives!$C$6:$E$8,Primitives!$C$10:$E$12,Primitives!$C$14:$E$16,Primitives!$C$18:$E$20,Primitives!$C$22:$E$24,Primitives!$C$26:$E$28,Primitives!$C$30:$E$32,Primitives!$C$34:$E$36,Primitives!$C$38:$E$40,Primitives!$C$42:$E$44,Primitives!$C$46:$E$48,Primitives!$C$50:$E$52,Primitives!$C$54:$E$56,Primitives!$C$58:$E$60),$N30,AB$13)) -> 0 | AC30: =IF(AND($K30=Calc.Top, AC$10=Calc.Left),"X",INDEX(CHOOSE(INDEX(MazeDef,$L30,AC$11),Primitives!$C$2:$E$4,Primitives!$C$6:$E$8,Primitives!$C$10:$E$12,Primitives!$C$14:$E$16,Primitives!$C$18:$E$20,Primitives!$C$22:$E$24,Primitives!$C$26:$E$28,Primitives!$C$30:$E$32,Primitives!$C$34:$E$36,Primitives!$C$38:$E$40,Primitives!$C$42:$E$44,Primitives!$C$46:$E$48,Primitives!$C$50:$E$52,Primitives!$C$54:$E$56,Primitives!$C$58:$E$60),$N30,AC$13)) -> 0 | AD30: =IF(AND($K30=Calc.Top, AD$10=Calc.Left),"X",INDEX(CHOOSE(INDEX(MazeDef,$L30,AD$11),Primitives!$C$2:$E$4,Primitives!$C$6:$E$8,Primitives!$C$10:$E$12,Primitives!$C$14:$E$16,Primitives!$C$18:$E$20,Primitives!$C$22:$E$24,Primitives!$C$26:$E$28,Primitives!$C$30:$E$32,Primitives!$C$34:$E$36,Primitives!$C$38:$E$40,Primitives!$C$42:$E$44,Primitives!$C$46:$E$48,Primitives!$C$50:$E$52,Primitives!$C$54:$E$56,Primitives!$C$58:$E$60),$N30,AD$13)) -> 0 | AE30: =IF(AND($K30=Calc.Top, AE$10=Calc.Left),"X",INDEX(CHOOSE(INDEX(MazeDef,$L30,AE$11),Primitives!$C$2:$E$4,Primitives!$C$6:$E$8,Primitives!$C$10:$E$12,Primitives!$C$14:$E$16,Primitives!$C$18:$E$20,Primitives!$C$22:$E$24,Primitives!$C$26:$E$28,Primitives!$C$30:$E$32,Primitives!$C$34:$E$36,Primitives!$C$38:$E$40,Primitives!$C$42:$E$44,Primitives!$C$46:$E$48,Primitives!$C$50:$E$52,Primitives!$C$54:$E$56,Primitives!$C$58:$E$60),$N30,AE$13)) -> 0 | AF30: =IF(AND($K30=Calc.Top, AF$10=Calc.Left),"X",INDEX(CHOOSE(INDEX(MazeDef,$L30,AF$11),Primitives!$C$2:$E$4,Primitives!$C$6:$E$8,Primitives!$C$10:$E$12,Primitives!$C$14:$E$16,Primitives!$C$18:$E$20,Primitives!$C$22:$E$24,Primitives!$C$26:$E$28,Primitives!$C$30:$E$32,Primitives!$C$34:$E$36,Primitives!$C$38:$E$40,Primitives!$C$42:$E$44,Primitives!$C$46:$E$48,Primitives!$C$50:$E$52,Primitives!$C$54:$E$56,Primitives!$C$58:$E$60),$N30,AF$13)) -> 0 | AG30: =IF(AND($K30=Calc.Top, AG$10=Calc.Left),"X",INDEX(CHOOSE(INDEX(MazeDef,$L30,AG$11),Primitives!$C$2:$E$4,Primitives!$C$6:$E$8,Primitives!$C$10:$E$12,Primitives!$C$14:$E$16,Primitives!$C$18:$E$20,Primitives!$C$22:$E$24,Primitives!$C$26:$E$28,Primitives!$C$30:$E$32,Primitives!$C$34:$E$36,Primitives!$C$38:$E$40,Primitives!$C$42:$E$44,Primitives!$C$46:$E$48,Primitives!$C$50:$E$52,Primitives!$C$54:$E$56,Primitives!$C$58:$E$60),$N30,AG$13)) -> 0 | AH30: =IF(AND($K30=Calc.Top, AH$10=Calc.Left),"X",INDEX(CHOOSE(INDEX(MazeDef,$L30,AH$11),Primitives!$C$2:$E$4,Primitives!$C$6:$E$8,Primitives!$C$10:$E$12,Primitives!$C$14:$E$16,Primitives!$C$18:$E$20,Primitives!$C$22:$E$24,Primitives!$C$26:$E$28,Primitives!$C$30:$E$32,Primitives!$C$34:$E$36,Primitives!$C$38:$E$40,Primitives!$C$42:$E$44,Primitives!$C$46:$E$48,Primitives!$C$50:$E$52,Primitives!$C$54:$E$56,Primitives!$C$58:$E$60),$N30,AH$13)) -> 0 | AI30: =IF(AND($K30=Calc.Top, AI$10=Calc.Left),"X",INDEX(CHOOSE(INDEX(MazeDef,$L30,AI$11),Primitives!$C$2:$E$4,Primitives!$C$6:$E$8,Primitives!$C$10:$E$12,Primitives!$C$14:$E$16,Primitives!$C$18:$E$20,Primitives!$C$22:$E$24,Primitives!$C$26:$E$28,Primitives!$C$30:$E$32,Primitives!$C$34:$E$36,Primitives!$C$38:$E$40,Primitives!$C$42:$E$44,Primitives!$C$46:$E$48,Primitives!$C$50:$E$52,Primitives!$C$54:$E$56,Primitives!$C$58:$E$60),$N30,AI$13)) -> 0 | AJ30: =IF(AND($K30=Calc.Top, AJ$10=Calc.Left),"X",INDEX(CHOOSE(INDEX(MazeDef,$L30,AJ$11),Primitives!$C$2:$E$4,Primitives!$C$6:$E$8,Primitives!$C$10:$E$12,Primitives!$C$14:$E$16,Primitives!$C$18:$E$20,Primitives!$C$22:$E$24,Primitives!$C$26:$E$28,Primitives!$C$30:$E$32,Primitives!$C$34:$E$36,Primitives!$C$38:$E$40,Primitives!$C$42:$E$44,Primitives!$C$46:$E$48,Primitives!$C$50:$E$52,Primitives!$C$54:$E$56,Primitives!$C$58:$E$60),$N30,AJ$13)) -> 0 | AK30: =IF(AND($K30=Calc.Top, AK$10=Calc.Left),"X",INDEX(CHOOSE(INDEX(MazeDef,$L30,AK$11),Primitives!$C$2:$E$4,Primitives!$C$6:$E$8,Primitives!$C$10:$E$12,Primitives!$C$14:$E$16,Primitives!$C$18:$E$20,Primitives!$C$22:$E$24,Primitives!$C$26:$E$28,Primitives!$C$30:$E$32,Primitives!$C$34:$E$36,Primitives!$C$38:$E$40,Primitives!$C$42:$E$44,Primitives!$C$46:$E$48,Primitives!$C$50:$E$52,Primitives!$C$54:$E$56,Primitives!$C$58:$E$60),$N30,AK$13)) -> 0 | AL30: =IF(AND($K30=Calc.Top, AL$10=Calc.Left),"X",INDEX(CHOOSE(INDEX(MazeDef,$L30,AL$11),Primitives!$C$2:$E$4,Primitives!$C$6:$E$8,Primitives!$C$10:$E$12,Primitives!$C$14:$E$16,Primitives!$C$18:$E$20,Primitives!$C$22:$E$24,Primitives!$C$26:$E$28,Primitives!$C$30:$E$32,Primitives!$C$34:$E$36,Primitives!$C$38:$E$40,Primitives!$C$42:$E$44,Primitives!$C$46:$E$48,Primitives!$C$50:$E$52,Primitives!$C$54:$E$56,Primitives!$C$58:$E$60),$N30,AL$13)) -> 0 | AM30: =IF(AND($K30=Calc.Top, AM$10=Calc.Left),"X",INDEX(CHOOSE(INDEX(MazeDef,$L30,AM$11),Primitives!$C$2:$E$4,Primitives!$C$6:$E$8,Primitives!$C$10:$E$12,Primitives!$C$14:$E$16,Primitives!$C$18:$E$20,Primitives!$C$22:$E$24,Primitives!$C$26:$E$28,Primitives!$C$30:$E$32,Primitives!$C$34:$E$36,Primitives!$C$38:$E$40,Primitives!$C$42:$E$44,Primitives!$C$46:$E$48,Primitives!$C$50:$E$52,Primitives!$C$54:$E$56,Primitives!$C$58:$E$60),$N30,AM$13)) -> 0 | AN30: =IF(AND($K30=Calc.Top, AN$10=Calc.Left),"X",INDEX(CHOOSE(INDEX(MazeDef,$L30,AN$11),Primitives!$C$2:$E$4,Primitives!$C$6:$E$8,Primitives!$C$10:$E$12,Primitives!$C$14:$E$16,Primitives!$C$18:$E$20,Primitives!$C$22:$E$24,Primitives!$C$26:$E$28,Primitives!$C$30:$E$32,Primitives!$C$34:$E$36,Primitives!$C$38:$E$40,Primitives!$C$42:$E$44,Primitives!$C$46:$E$48,Primitives!$C$50:$E$52,Primitives!$C$54:$E$56,Primitives!$C$58:$E$60),$N30,AN$13)) -> 0 | AO30: =IF(AND($K30=Calc.Top, AO$10=Calc.Left),"X",INDEX(CHOOSE(INDEX(MazeDef,$L30,AO$11),Primitives!$C$2:$E$4,Primitives!$C$6:$E$8,Primitives!$C$10:$E$12,Primitives!$C$14:$E$16,Primitives!$C$18:$E$20,Primitives!$C$22:$E$24,Primitives!$C$26:$E$28,Primitives!$C$30:$E$32,Primitives!$C$34:$E$36,Primitives!$C$38:$E$40,Primitives!$C$42:$E$44,Primitives!$C$46:$E$48,Primitives!$C$50:$E$52,Primitives!$C$54:$E$56,Primitives!$C$58:$E$60),$N30,AO$13)) -> 0 | AP30: =IF(AND($K30=Calc.Top, AP$10=Calc.Left),"X",INDEX(CHOOSE(INDEX(MazeDef,$L30,AP$11),Primitives!$C$2:$E$4,Primitives!$C$6:$E$8,Primitives!$C$10:$E$12,Primitives!$C$14:$E$16,Primitives!$C$18:$E$20,Primitives!$C$22:$E$24,Primitives!$C$26:$E$28,Primitives!$C$30:$E$32,Primitives!$C$34:$E$36,Primitives!$C$38:$E$40,Primitives!$C$42:$E$44,Primitives!$C$46:$E$48,Primitives!$C$50:$E$52,Primitives!$C$54:$E$56,Primitives!$C$58:$E$60),$N30,AP$13)) -> 0 | AQ30: =IF(AND($K30=Calc.Top, AQ$10=Calc.Left),"X",INDEX(CHOOSE(INDEX(MazeDef,$L30,AQ$11),Primitives!$C$2:$E$4,Primitives!$C$6:$E$8,Primitives!$C$10:$E$12,Primitives!$C$14:$E$16,Primitives!$C$18:$E$20,Primitives!$C$22:$E$24,Primitives!$C$26:$E$28,Primitives!$C$30:$E$32,Primitives!$C$34:$E$36,Primitives!$C$38:$E$40,Primitives!$C$42:$E$44,Primitives!$C$46:$E$48,Primitives!$C$50:$E$52,Primitives!$C$54:$E$56,Primitives!$C$58:$E$60),$N30,AQ$13)) -> 0 | AR30: =IF(AND($K30=Calc.Top, AR$10=Calc.Left),"X",INDEX(CHOOSE(INDEX(MazeDef,$L30,AR$11),Primitives!$C$2:$E$4,Primitives!$C$6:$E$8,Primitives!$C$10:$E$12,Primitives!$C$14:$E$16,Primitives!$C$18:$E$20,Primitives!$C$22:$E$24,Primitives!$C$26:$E$28,Primitives!$C$30:$E$32,Primitives!$C$34:$E$36,Primitives!$C$38:$E$40,Primitives!$C$42:$E$44,Primitives!$C$46:$E$48,Primitives!$C$50:$E$52,Primitives!$C$54:$E$56,Primitives!$C$58:$E$60),$N30,AR$13)) -> 1
A31: 5 | K31: 18 | L31: 6 | N31: 3 | O31: =IF(AND($K31=Calc.Top, O$10=Calc.Left),"X",INDEX(CHOOSE(INDEX(MazeDef,$L31,O$11),Primitives!$C$2:$E$4,Primitives!$C$6:$E$8,Primitives!$C$10:$E$12,Primitives!$C$14:$E$16,Primitives!$C$18:$E$20,Primitives!$C$22:$E$24,Primitives!$C$26:$E$28,Primitives!$C$30:$E$32,Primitives!$C$34:$E$36,Primitives!$C$38:$E$40,Primitives!$C$42:$E$44,Primitives!$C$46:$E$48,Primitives!$C$50:$E$52,Primitives!$C$54:$E$56,Primitives!$C$58:$E$60),$N31,O$13)) -> 1 | P31: =IF(AND($K31=Calc.Top, P$10=Calc.Left),"X",INDEX(CHOOSE(INDEX(MazeDef,$L31,P$11),Primitives!$C$2:$E$4,Primitives!$C$6:$E$8,Primitives!$C$10:$E$12,Primitives!$C$14:$E$16,Primitives!$C$18:$E$20,Primitives!$C$22:$E$24,Primitives!$C$26:$E$28,Primitives!$C$30:$E$32,Primitives!$C$34:$E$36,Primitives!$C$38:$E$40,Primitives!$C$42:$E$44,Primitives!$C$46:$E$48,Primitives!$C$50:$E$52,Primitives!$C$54:$E$56,Primitives!$C$58:$E$60),$N31,P$13)) -> 0 | Q31: =IF(AND($K31=Calc.Top, Q$10=Calc.Left),"X",INDEX(CHOOSE(INDEX(MazeDef,$L31,Q$11),Primitives!$C$2:$E$4,Primitives!$C$6:$E$8,Primitives!$C$10:$E$12,Primitives!$C$14:$E$16,Primitives!$C$18:$E$20,Primitives!$C$22:$E$24,Primitives!$C$26:$E$28,Primitives!$C$30:$E$32,Primitives!$C$34:$E$36,Primitives!$C$38:$E$40,Primitives!$C$42:$E$44,Primitives!$C$46:$E$48,Primitives!$C$50:$E$52,Primitives!$C$54:$E$56,Primitives!$C$58:$E$60),$N31,Q$13)) -> 1 | R31: =IF(AND($K31=Calc.Top, R$10=Calc.Left),"X",INDEX(CHOOSE(INDEX(MazeDef,$L31,R$11),Primitives!$C$2:$E$4,Primitives!$C$6:$E$8,Primitives!$C$10:$E$12,Primitives!$C$14:$E$16,Primitives!$C$18:$E$20,Primitives!$C$22:$E$24,Primitives!$C$26:$E$28,Primitives!$C$30:$E$32,Primitives!$C$34:$E$36,Primitives!$C$38:$E$40,Primitives!$C$42:$E$44,Primitives!$C$46:$E$48,Primitives!$C$50:$E$52,Primitives!$C$54:$E$56,Primitives!$C$58:$E$60),$N31,R$13)) -> 1 | S31: =IF(AND($K31=Calc.Top, S$10=Calc.Left),"X",INDEX(CHOOSE(INDEX(MazeDef,$L31,S$11),Primitives!$C$2:$E$4,Primitives!$C$6:$E$8,Primitives!$C$10:$E$12,Primitives!$C$14:$E$16,Primitives!$C$18:$E$20,Primitives!$C$22:$E$24,Primitives!$C$26:$E$28,Primitives!$C$30:$E$32,Primitives!$C$34:$E$36,Primitives!$C$38:$E$40,Primitives!$C$42:$E$44,Primitives!$C$46:$E$48,Primitives!$C$50:$E$52,Primitives!$C$54:$E$56,Primitives!$C$58:$E$60),$N31,S$13)) -> 1 | T31: =IF(AND($K31=Calc.Top, T$10=Calc.Left),"X",INDEX(CHOOSE(INDEX(MazeDef,$L31,T$11),Primitives!$C$2:$E$4,Primitives!$C$6:$E$8,Primitives!$C$10:$E$12,Primitives!$C$14:$E$16,Primitives!$C$18:$E$20,Primitives!$C$22:$E$24,Primitives!$C$26:$E$28,Primitives!$C$30:$E$32,Primitives!$C$34:$E$36,Primitives!$C$38:$E$40,Primitives!$C$42:$E$44,Primitives!$C$46:$E$48,Primitives!$C$50:$E$52,Primitives!$C$54:$E$56,Primitives!$C$58:$E$60),$N31,T$13)) -> 1 | U31: =IF(AND($K31=Calc.Top, U$10=Calc.Left),"X",INDEX(CHOOSE(INDEX(MazeDef,$L31,U$11),Primitives!$C$2:$E$4,Primitives!$C$6:$E$8,Primitives!$C$10:$E$12,Primitives!$C$14:$E$16,Primitives!$C$18:$E$20,Primitives!$C$22:$E$24,Primitives!$C$26:$E$28,Primitives!$C$30:$E$32,Primitives!$C$34:$E$36,Primitives!$C$38:$E$40,Primitives!$C$42:$E$44,Primitives!$C$46:$E$48,Primitives!$C$50:$E$52,Primitives!$C$54:$E$56,Primitives!$C$58:$E$60),$N31,U$13)) -> 1 | V31: =IF(AND($K31=Calc.Top, V$10=Calc.Left),"X",INDEX(CHOOSE(INDEX(MazeDef,$L31,V$11),Primitives!$C$2:$E$4,Primitives!$C$6:$E$8,Primitives!$C$10:$E$12,Primitives!$C$14:$E$16,Primitives!$C$18:$E$20,Primitives!$C$22:$E$24,Primitives!$C$26:$E$28,Primitives!$C$30:$E$32,Primitives!$C$34:$E$36,Primitives!$C$38:$E$40,Primitives!$C$42:$E$44,Primitives!$C$46:$E$48,Primitives!$C$50:$E$52,Primitives!$C$54:$E$56,Primitives!$C$58:$E$60),$N31,V$13)) -> 1 | W31: =IF(AND($K31=Calc.Top, W$10=Calc.Left),"X",INDEX(CHOOSE(INDEX(MazeDef,$L31,W$11),Primitives!$C$2:$E$4,Primitives!$C$6:$E$8,Primitives!$C$10:$E$12,Primitives!$C$14:$E$16,Primitives!$C$18:$E$20,Primitives!$C$22:$E$24,Primitives!$C$26:$E$28,Primitives!$C$30:$E$32,Primitives!$C$34:$E$36,Primitives!$C$38:$E$40,Primitives!$C$42:$E$44,Primitives!$C$46:$E$48,Primitives!$C$50:$E$52,Primitives!$C$54:$E$56,Primitives!$C$58:$E$60),$N31,W$13)) -> 1 | X31: =IF(AND($K31=Calc.Top, X$10=Calc.Left),"X",INDEX(CHOOSE(INDEX(MazeDef,$L31,X$11),Primitives!$C$2:$E$4,Primitives!$C$6:$E$8,Primitives!$C$10:$E$12,Primitives!$C$14:$E$16,Primitives!$C$18:$E$20,Primitives!$C$22:$E$24,Primitives!$C$26:$E$28,Primitives!$C$30:$E$32,Primitives!$C$34:$E$36,Primitives!$C$38:$E$40,Primitives!$C$42:$E$44,Primitives!$C$46:$E$48,Primitives!$C$50:$E$52,Primitives!$C$54:$E$56,Primitives!$C$58:$E$60),$N31,X$13)) -> 1 | Y31: =IF(AND($K31=Calc.Top, Y$10=Calc.Left),"X",INDEX(CHOOSE(INDEX(MazeDef,$L31,Y$11),Primitives!$C$2:$E$4,Primitives!$C$6:$E$8,Primitives!$C$10:$E$12,Primitives!$C$14:$E$16,Primitives!$C$18:$E$20,Primitives!$C$22:$E$24,Primitives!$C$26:$E$28,Primitives!$C$30:$E$32,Primitives!$C$34:$E$36,Primitives!$C$38:$E$40,Primitives!$C$42:$E$44,Primitives!$C$46:$E$48,Primitives!$C$50:$E$52,Primitives!$C$54:$E$56,Primitives!$C$58:$E$60),$N31,Y$13)) -> 0 | Z31: =IF(AND($K31=Calc.Top, Z$10=Calc.Left),"X",INDEX(CHOOSE(INDEX(MazeDef,$L31,Z$11),Primitives!$C$2:$E$4,Primitives!$C$6:$E$8,Primitives!$C$10:$E$12,Primitives!$C$14:$E$16,Primitives!$C$18:$E$20,Primitives!$C$22:$E$24,Primitives!$C$26:$E$28,Primitives!$C$30:$E$32,Primitives!$C$34:$E$36,Primitives!$C$38:$E$40,Primitives!$C$42:$E$44,Primitives!$C$46:$E$48,Primitives!$C$50:$E$52,Primitives!$C$54:$E$56,Primitives!$C$58:$E$60),$N31,Z$13)) -> 1 | AA31: =IF(AND($K31=Calc.Top, AA$10=Calc.Left),"X",INDEX(CHOOSE(INDEX(MazeDef,$L31,AA$11),Primitives!$C$2:$E$4,Primitives!$C$6:$E$8,Primitives!$C$10:$E$12,Primitives!$C$14:$E$16,Primitives!$C$18:$E$20,Primitives!$C$22:$E$24,Primitives!$C$26:$E$28,Primitives!$C$30:$E$32,Primitives!$C$34:$E$36,Primitives!$C$38:$E$40,Primitives!$C$42:$E$44,Primitives!$C$46:$E$48,Primitives!$C$50:$E$52,Primitives!$C$54:$E$56,Primitives!$C$58:$E$60),$N31,AA$13)) -> 1 | AB31: =IF(AND($K31=Calc.Top, AB$10=Calc.Left),"X",INDEX(CHOOSE(INDEX(MazeDef,$L31,AB$11),Primitives!$C$2:$E$4,Primitives!$C$6:$E$8,Primitives!$C$10:$E$12,Primitives!$C$14:$E$16,Primitives!$C$18:$E$20,Primitives!$C$22:$E$24,Primitives!$C$26:$E$28,Primitives!$C$30:$E$32,Primitives!$C$34:$E$36,Primitives!$C$38:$E$40,Primitives!$C$42:$E$44,Primitives!$C$46:$E$48,Primitives!$C$50:$E$52,Primitives!$C$54:$E$56,Primitives!$C$58:$E$60),$N31,AB$13)) -> 0 | AC31: =IF(AND($K31=Calc.Top, AC$10=Calc.Left),"X",INDEX(CHOOSE(INDEX(MazeDef,$L31,AC$11),Primitives!$C$2:$E$4,Primitives!$C$6:$E$8,Primitives!$C$10:$E$12,Primitives!$C$14:$E$16,Primitives!$C$18:$E$20,Primitives!$C$22:$E$24,Primitives!$C$26:$E$28,Primitives!$C$30:$E$32,Primitives!$C$34:$E$36,Primitives!$C$38:$E$40,Primitives!$C$42:$E$44,Primitives!$C$46:$E$48,Primitives!$C$50:$E$52,Primitives!$C$54:$E$56,Primitives!$C$58:$E$60),$N31,AC$13)) -> 1 | AD31: =IF(AND($K31=Calc.Top, AD$10=Calc.Left),"X",INDEX(CHOOSE(INDEX(MazeDef,$L31,AD$11),Primitives!$C$2:$E$4,Primitives!$C$6:$E$8,Primitives!$C$10:$E$12,Primitives!$C$14:$E$16,Primitives!$C$18:$E$20,Primitives!$C$22:$E$24,Primitives!$C$26:$E$28,Primitives!$C$30:$E$32,Primitives!$C$34:$E$36,Primitives!$C$38:$E$40,Primitives!$C$42:$E$44,Primitives!$C$46:$E$48,Primitives!$C$50:$E$52,Primitives!$C$54:$E$56,Primitives!$C$58:$E$60),$N31,AD$13)) -> 1 | AE31: =IF(AND($K31=Calc.Top, AE$10=Calc.Left),"X",INDEX(CHOOSE(INDEX(MazeDef,$L31,AE$11),Primitives!$C$2:$E$4,Primitives!$C$6:$E$8,Primitives!$C$10:$E$12,Primitives!$C$14:$E$16,Primitives!$C$18:$E$20,Primitives!$C$22:$E$24,Primitives!$C$26:$E$28,Primitives!$C$30:$E$32,Primitives!$C$34:$E$36,Primitives!$C$38:$E$40,Primitives!$C$42:$E$44,Primitives!$C$46:$E$48,Primitives!$C$50:$E$52,Primitives!$C$54:$E$56,Primitives!$C$58:$E$60),$N31,AE$13)) -> 1 | AF31: =IF(AND($K31=Calc.Top, AF$10=Calc.Left),"X",INDEX(CHOOSE(INDEX(MazeDef,$L31,AF$11),Primitives!$C$2:$E$4,Primitives!$C$6:$E$8,Primitives!$C$10:$E$12,Primitives!$C$14:$E$16,Primitives!$C$18:$E$20,Primitives!$C$22:$E$24,Primitives!$C$26:$E$28,Primitives!$C$30:$E$32,Primitives!$C$34:$E$36,Primitives!$C$38:$E$40,Primitives!$C$42:$E$44,Primitives!$C$46:$E$48,Primitives!$C$50:$E$52,Primitives!$C$54:$E$56,Primitives!$C$58:$E$60),$N31,AF$13)) -> 1 | AG31: =IF(AND($K31=Calc.Top, AG$10=Calc.Left),"X",INDEX(CHOOSE(INDEX(MazeDef,$L31,AG$11),Primitives!$C$2:$E$4,Primitives!$C$6:$E$8,Primitives!$C$10:$E$12,Primitives!$C$14:$E$16,Primitives!$C$18:$E$20,Primitives!$C$22:$E$24,Primitives!$C$26:$E$28,Primitives!$C$30:$E$32,Primitives!$C$34:$E$36,Primitives!$C$38:$E$40,Primitives!$C$42:$E$44,Primitives!$C$46:$E$48,Primitives!$C$50:$E$52,Primitives!$C$54:$E$56,Primitives!$C$58:$E$60),$N31,AG$13)) -> 1 | AH31: =IF(AND($K31=Calc.Top, AH$10=Calc.Left),"X",INDEX(CHOOSE(INDEX(MazeDef,$L31,AH$11),Primitives!$C$2:$E$4,Primitives!$C$6:$E$8,Primitives!$C$10:$E$12,Primitives!$C$14:$E$16,Primitives!$C$18:$E$20,Primitives!$C$22:$E$24,Primitives!$C$26:$E$28,Primitives!$C$30:$E$32,Primitives!$C$34:$E$36,Primitives!$C$38:$E$40,Primitives!$C$42:$E$44,Primitives!$C$46:$E$48,Primitives!$C$50:$E$52,Primitives!$C$54:$E$56,Primitives!$C$58:$E$60),$N31,AH$13)) -> 1 | AI31: =IF(AND($K31=Calc.Top, AI$10=Calc.Left),"X",INDEX(CHOOSE(INDEX(MazeDef,$L31,AI$11),Primitives!$C$2:$E$4,Primitives!$C$6:$E$8,Primitives!$C$10:$E$12,Primitives!$C$14:$E$16,Primitives!$C$18:$E$20,Primitives!$C$22:$E$24,Primitives!$C$26:$E$28,Primitives!$C$30:$E$32,Primitives!$C$34:$E$36,Primitives!$C$38:$E$40,Primitives!$C$42:$E$44,Primitives!$C$46:$E$48,Primitives!$C$50:$E$52,Primitives!$C$54:$E$56,Primitives!$C$58:$E$60),$N31,AI$13)) -> 1 | AJ31: =IF(AND($K31=Calc.Top, AJ$10=Calc.Left),"X",INDEX(CHOOSE(INDEX(MazeDef,$L31,AJ$11),Primitives!$C$2:$E$4,Primitives!$C$6:$E$8,Primitives!$C$10:$E$12,Primitives!$C$14:$E$16,Primitives!$C$18:$E$20,Primitives!$C$22:$E$24,Primitives!$C$26:$E$28,Primitives!$C$30:$E$32,Primitives!$C$34:$E$36,Primitives!$C$38:$E$40,Primitives!$C$42:$E$44,Primitives!$C$46:$E$48,Primitives!$C$50:$E$52,Primitives!$C$54:$E$56,Primitives!$C$58:$E$60),$N31,AJ$13)) -> 1 | AK31: =IF(AND($K31=Calc.Top, AK$10=Calc.Left),"X",INDEX(CHOOSE(INDEX(MazeDef,$L31,AK$11),Primitives!$C$2:$E$4,Primitives!$C$6:$E$8,Primitives!$C$10:$E$12,Primitives!$C$14:$E$16,Primitives!$C$18:$E$20,Primitives!$C$22:$E$24,Primitives!$C$26:$E$28,Primitives!$C$30:$E$32,Primitives!$C$34:$E$36,Primitives!$C$38:$E$40,Primitives!$C$42:$E$44,Primitives!$C$46:$E$48,Primitives!$C$50:$E$52,Primitives!$C$54:$E$56,Primitives!$C$58:$E$60),$N31,AK$13)) -> 0 | AL31: =IF(AND($K31=Calc.Top, AL$10=Calc.Left),"X",INDEX(CHOOSE(INDEX(MazeDef,$L31,AL$11),Primitives!$C$2:$E$4,Primitives!$C$6:$E$8,Primitives!$C$10:$E$12,Primitives!$C$14:$E$16,Primitives!$C$18:$E$20,Primitives!$C$22:$E$24,Primitives!$C$26:$E$28,Primitives!$C$30:$E$32,Primitives!$C$34:$E$36,Primitives!$C$38:$E$40,Primitives!$C$42:$E$44,Primitives!$C$46:$E$48,Primitives!$C$50:$E$52,Primitives!$C$54:$E$56,Primitives!$C$58:$E$60),$N31,AL$13)) -> 1 | AM31: =IF(AND($K31=Calc.Top, AM$10=Calc.Left),"X",INDEX(CHOOSE(INDEX(MazeDef,$L31,AM$11),Primitives!$C$2:$E$4,Primitives!$C$6:$E$8,Primitives!$C$10:$E$12,Primitives!$C$14:$E$16,Primitives!$C$18:$E$20,Primitives!$C$22:$E$24,Primitives!$C$26:$E$28,Primitives!$C$30:$E$32,Primitives!$C$34:$E$36,Primitives!$C$38:$E$40,Primitives!$C$42:$E$44,Primitives!$C$46:$E$48,Primitives!$C$50:$E$52,Primitives!$C$54:$E$56,Primitives!$C$58:$E$60),$N31,AM$13)) -> 1 | AN31: =IF(AND($K31=Calc.Top, AN$10=Calc.Left),"X",INDEX(CHOOSE(INDEX(MazeDef,$L31,AN$11),Primitives!$C$2:$E$4,Primitives!$C$6:$E$8,Primitives!$C$10:$E$12,Primitives!$C$14:$E$16,Primitives!$C$18:$E$20,Primitives!$C$22:$E$24,Primitives!$C$26:$E$28,Primitives!$C$30:$E$32,Primitives!$C$34:$E$36,Primitives!$C$38:$E$40,Primitives!$C$42:$E$44,Primitives!$C$46:$E$48,Primitives!$C$50:$E$52,Primitives!$C$54:$E$56,Primitives!$C$58:$E$60),$N31,AN$13)) -> 1 | AO31: =IF(AND($K31=Calc.Top, AO$10=Calc.Left),"X",INDEX(CHOOSE(INDEX(MazeDef,$L31,AO$11),Primitives!$C$2:$E$4,Primitives!$C$6:$E$8,Primitives!$C$10:$E$12,Primitives!$C$14:$E$16,Primitives!$C$18:$E$20,Primitives!$C$22:$E$24,Primitives!$C$26:$E$28,Primitives!$C$30:$E$32,Primitives!$C$34:$E$36,Primitives!$C$38:$E$40,Primitives!$C$42:$E$44,Primitives!$C$46:$E$48,Primitives!$C$50:$E$52,Primitives!$C$54:$E$56,Primitives!$C$58:$E$60),$N31,AO$13)) -> 1 | AP31: =IF(AND($K31=Calc.Top, AP$10=Calc.Left),"X",INDEX(CHOOSE(INDEX(MazeDef,$L31,AP$11),Primitives!$C$2:$E$4,Primitives!$C$6:$E$8,Primitives!$C$10:$E$12,Primitives!$C$14:$E$16,Primitives!$C$18:$E$20,Primitives!$C$22:$E$24,Primitives!$C$26:$E$28,Primitives!$C$30:$E$32,Primitives!$C$34:$E$36,Primitives!$C$38:$E$40,Primitives!$C$42:$E$44,Primitives!$C$46:$E$48,Primitives!$C$50:$E$52,Primitives!$C$54:$E$56,Primitives!$C$58:$E$60),$N31,AP$13)) -> 1 | AQ31: =IF(AND($K31=Calc.Top, AQ$10=Calc.Left),"X",INDEX(CHOOSE(INDEX(MazeDef,$L31,AQ$11),Primitives!$C$2:$E$4,Primitives!$C$6:$E$8,Primitives!$C$10:$E$12,Primitives!$C$14:$E$16,Primitives!$C$18:$E$20,Primitives!$C$22:$E$24,Primitives!$C$26:$E$28,Primitives!$C$30:$E$32,Primitives!$C$34:$E$36,Primitives!$C$38:$E$40,Primitives!$C$42:$E$44,Primitives!$C$46:$E$48,Primitives!$C$50:$E$52,Primitives!$C$54:$E$56,Primitives!$C$58:$E$60),$N31,AQ$13)) -> 1 | AR31: =IF(AND($K31=Calc.Top, AR$10=Calc.Left),"X",INDEX(CHOOSE(INDEX(MazeDef,$L31,AR$11),Primitives!$C$2:$E$4,Primitives!$C$6:$E$8,Primitives!$C$10:$E$12,Primitives!$C$14:$E$16,Primitives!$C$18:$E$20,Primitives!$C$22:$E$24,Primitives!$C$26:$E$28,Primitives!$C$30:$E$32,Primitives!$C$34:$E$36,Primitives!$C$38:$E$40,Primitives!$C$42:$E$44,Primitives!$C$46:$E$48,Primitives!$C$50:$E$52,Primitives!$C$54:$E$56,Primitives!$C$58:$E$60),$N31,AR$13)) -> 1
B32: 1 | C32: 1 | D32: 1 | K32: 19 | L32: 7 | M32: 7 | N32: 1 | O32: =IF(AND($K32=Calc.Top, O$10=Calc.Left),"X",INDEX(CHOOSE(INDEX(MazeDef,$L32,O$11),Primitives!$C$2:$E$4,Primitives!$C$6:$E$8,Primitives!$C$10:$E$12,Primitives!$C$14:$E$16,Primitives!$C$18:$E$20,Primitives!$C$22:$E$24,Primitives!$C$26:$E$28,Primitives!$C$30:$E$32,Primitives!$C$34:$E$36,Primitives!$C$38:$E$40,Primitives!$C$42:$E$44,Primitives!$C$46:$E$48,Primitives!$C$50:$E$52,Primitives!$C$54:$E$56,Primitives!$C$58:$E$60),$N32,O$13)) -> 1 | P32: =IF(AND($K32=Calc.Top, P$10=Calc.Left),"X",INDEX(CHOOSE(INDEX(MazeDef,$L32,P$11),Primitives!$C$2:$E$4,Primitives!$C$6:$E$8,Primitives!$C$10:$E$12,Primitives!$C$14:$E$16,Primitives!$C$18:$E$20,Primitives!$C$22:$E$24,Primitives!$C$26:$E$28,Primitives!$C$30:$E$32,Primitives!$C$34:$E$36,Primitives!$C$38:$E$40,Primitives!$C$42:$E$44,Primitives!$C$46:$E$48,Primitives!$C$50:$E$52,Primitives!$C$54:$E$56,Primitives!$C$58:$E$60),$N32,P$13)) -> 0 | Q32: =IF(AND($K32=Calc.Top, Q$10=Calc.Left),"X",INDEX(CHOOSE(INDEX(MazeDef,$L32,Q$11),Primitives!$C$2:$E$4,Primitives!$C$6:$E$8,Primitives!$C$10:$E$12,Primitives!$C$14:$E$16,Primitives!$C$18:$E$20,Primitives!$C$22:$E$24,Primitives!$C$26:$E$28,Primitives!$C$30:$E$32,Primitives!$C$34:$E$36,Primitives!$C$38:$E$40,Primitives!$C$42:$E$44,Primitives!$C$46:$E$48,Primitives!$C$50:$E$52,Primitives!$C$54:$E$56,Primitives!$C$58:$E$60),$N32,Q$13)) -> 1 | R32: =IF(AND($K32=Calc.Top, R$10=Calc.Left),"X",INDEX(CHOOSE(INDEX(MazeDef,$L32,R$11),Primitives!$C$2:$E$4,Primitives!$C$6:$E$8,Primitives!$C$10:$E$12,Primitives!$C$14:$E$16,Primitives!$C$18:$E$20,Primitives!$C$22:$E$24,Primitives!$C$26:$E$28,Primitives!$C$30:$E$32,Primitives!$C$34:$E$36,Primitives!$C$38:$E$40,Primitives!$C$42:$E$44,Primitives!$C$46:$E$48,Primitives!$C$50:$E$52,Primitives!$C$54:$E$56,Primitives!$C$58:$E$60),$N32,R$13)) -> 1 | S32: =IF(AND($K32=Calc.Top, S$10=Calc.Left),"X",INDEX(CHOOSE(INDEX(MazeDef,$L32,S$11),Primitives!$C$2:$E$4,Primitives!$C$6:$E$8,Primitives!$C$10:$E$12,Primitives!$C$14:$E$16,Primitives!$C$18:$E$20,Primitives!$C$22:$E$24,Primitives!$C$26:$E$28,Primitives!$C$30:$E$32,Primitives!$C$34:$E$36,Primitives!$C$38:$E$40,Primitives!$C$42:$E$44,Primitives!$C$46:$E$48,Primitives!$C$50:$E$52,Primitives!$C$54:$E$56,Primitives!$C$58:$E$60),$N32,S$13)) -> 1 | T32: =IF(AND($K32=Calc.Top, T$10=Calc.Left),"X",INDEX(CHOOSE(INDEX(MazeDef,$L32,T$11),Primitives!$C$2:$E$4,Primitives!$C$6:$E$8,Primitives!$C$10:$E$12,Primitives!$C$14:$E$16,Primitives!$C$18:$E$20,Primitives!$C$22:$E$24,Primitives!$C$26:$E$28,Primitives!$C$30:$E$32,Primitives!$C$34:$E$36,Primitives!$C$38:$E$40,Primitives!$C$42:$E$44,Primitives!$C$46:$E$48,Primitives!$C$50:$E$52,Primitives!$C$54:$E$56,Primitives!$C$58:$E$60),$N32,T$13)) -> 1 | U32: =IF(AND($K32=Calc.Top, U$10=Calc.Left),"X",INDEX(CHOOSE(INDEX(MazeDef,$L32,U$11),Primitives!$C$2:$E$4,Primitives!$C$6:$E$8,Primitives!$C$10:$E$12,Primitives!$C$14:$E$16,Primitives!$C$18:$E$20,Primitives!$C$22:$E$24,Primitives!$C$26:$E$28,Primitives!$C$30:$E$32,Primitives!$C$34:$E$36,Primitives!$C$38:$E$40,Primitives!$C$42:$E$44,Primitives!$C$46:$E$48,Primitives!$C$50:$E$52,Primitives!$C$54:$E$56,Primitives!$C$58:$E$60),$N32,U$13)) -> 1 | V32: =IF(AND($K32=Calc.Top, V$10=Calc.Left),"X",INDEX(CHOOSE(INDEX(MazeDef,$L32,V$11),Primitives!$C$2:$E$4,Primitives!$C$6:$E$8,Primitives!$C$10:$E$12,Primitives!$C$14:$E$16,Primitives!$C$18:$E$20,Primitives!$C$22:$E$24,Primitives!$C$26:$E$28,Primitives!$C$30:$E$32,Primitives!$C$34:$E$36,Primitives!$C$38:$E$40,Primitives!$C$42:$E$44,Primitives!$C$46:$E$48,Primitives!$C$50:$E$52,Primitives!$C$54:$E$56,Primitives!$C$58:$E$60),$N32,V$13)) -> 1 | W32: =IF(AND($K32=Calc.Top, W$10=Calc.Left),"X",INDEX(CHOOSE(INDEX(MazeDef,$L32,W$11),Primitives!$C$2:$E$4,Primitives!$C$6:$E$8,Primitives!$C$10:$E$12,Primitives!$C$14:$E$16,Primitives!$C$18:$E$20,Primitives!$C$22:$E$24,Primitives!$C$26:$E$28,Primitives!$C$30:$E$32,Primitives!$C$34:$E$36,Primitives!$C$38:$E$40,Primitives!$C$42:$E$44,Primitives!$C$46:$E$48,Primitives!$C$50:$E$52,Primitives!$C$54:$E$56,Primitives!$C$58:$E$60),$N32,W$13)) -> 1 | X32: =IF(AND($K32=Calc.Top, X$10=Calc.Left),"X",INDEX(CHOOSE(INDEX(MazeDef,$L32,X$11),Primitives!$C$2:$E$4,Primitives!$C$6:$E$8,Primitives!$C$10:$E$12,Primitives!$C$14:$E$16,Primitives!$C$18:$E$20,Primitives!$C$22:$E$24,Primitives!$C$26:$E$28,Primitives!$C$30:$E$32,Primitives!$C$34:$E$36,Primitives!$C$38:$E$40,Primitives!$C$42:$E$44,Primitives!$C$46:$E$48,Primitives!$C$50:$E$52,Primitives!$C$54:$E$56,Primitives!$C$58:$E$60),$N32,X$13)) -> 1 | Y32: =IF(AND($K32=Calc.Top, Y$10=Calc.Left),"X",INDEX(CHOOSE(INDEX(MazeDef,$L32,Y$11),Primitives!$C$2:$E$4,Primitives!$C$6:$E$8,Primitives!$C$10:$E$12,Primitives!$C$14:$E$16,Primitives!$C$18:$E$20,Primitives!$C$22:$E$24,Primitives!$C$26:$E$28,Primitives!$C$30:$E$32,Primitives!$C$34:$E$36,Primitives!$C$38:$E$40,Primitives!$C$42:$E$44,Primitives!$C$46:$E$48,Primitives!$C$50:$E$52,Primitives!$C$54:$E$56,Primitives!$C$58:$E$60),$N32,Y$13)) -> 0 | Z32: =IF(AND($K32=Calc.Top, Z$10=Calc.Left),"X",INDEX(CHOOSE(INDEX(MazeDef,$L32,Z$11),Primitives!$C$2:$E$4,Primitives!$C$6:$E$8,Primitives!$C$10:$E$12,Primitives!$C$14:$E$16,Primitives!$C$18:$E$20,Primitives!$C$22:$E$24,Primitives!$C$26:$E$28,Primitives!$C$30:$E$32,Primitives!$C$34:$E$36,Primitives!$C$38:$E$40,Primitives!$C$42:$E$44,Primitives!$C$46:$E$48,Primitives!$C$50:$E$52,Primitives!$C$54:$E$56,Primitives!$C$58:$E$60),$N32,Z$13)) -> 1 | AA32: =IF(AND($K32=Calc.Top, AA$10=Calc.Left),"X",INDEX(CHOOSE(INDEX(MazeDef,$L32,AA$11),Primitives!$C$2:$E$4,Primitives!$C$6:$E$8,Primitives!$C$10:$E$12,Primitives!$C$14:$E$16,Primitives!$C$18:$E$20,Primitives!$C$22:$E$24,Primitives!$C$26:$E$28,Primitives!$C$30:$E$32,Primitives!$C$34:$E$36,Primitives!$C$38:$E$40,Primitives!$C$42:$E$44,Primitives!$C$46:$E$48,Primitives!$C$50:$E$52,Primitives!$C$54:$E$56,Primitives!$C$58:$E$60),$N32,AA$13)) -> 1 | AB32: =IF(AND($K32=Calc.Top, AB$10=Calc.Left),"X",INDEX(CHOOSE(INDEX(MazeDef,$L32,AB$11),Primitives!$C$2:$E$4,Primitives!$C$6:$E$8,Primitives!$C$10:$E$12,Primitives!$C$14:$E$16,Primitives!$C$18:$E$20,Primitives!$C$22:$E$24,Primitives!$C$26:$E$28,Primitives!$C$30:$E$32,Primitives!$C$34:$E$36,Primitives!$C$38:$E$40,Primitives!$C$42:$E$44,Primitives!$C$46:$E$48,Primitives!$C$50:$E$52,Primitives!$C$54:$E$56,Primitives!$C$58:$E$60),$N32,AB$13)) -> 0 | AC32: =IF(AND($K32=Calc.Top, AC$10=Calc.Left),"X",INDEX(CHOOSE(INDEX(MazeDef,$L32,AC$11),Primitives!$C$2:$E$4,Primitives!$C$6:$E$8,Primitives!$C$10:$E$12,Primitives!$C$14:$E$16,Primitives!$C$18:$E$20,Primitives!$C$22:$E$24,Primitives!$C$26:$E$28,Primitives!$C$30:$E$32,Primitives!$C$34:$E$36,Primitives!$C$38:$E$40,Primitives!$C$42:$E$44,Primitives!$C$46:$E$48,Primitives!$C$50:$E$52,Primitives!$C$54:$E$56,Primitives!$C$58:$E$60),$N32,AC$13)) -> 1 | AD32: =IF(AND($K32=Calc.Top, AD$10=Calc.Left),"X",INDEX(CHOOSE(INDEX(MazeDef,$L32,AD$11),Primitives!$C$2:$E$4,Primitives!$C$6:$E$8,Primitives!$C$10:$E$12,Primitives!$C$14:$E$16,Primitives!$C$18:$E$20,Primitives!$C$22:$E$24,Primitives!$C$26:$E$28,Primitives!$C$30:$E$32,Primitives!$C$34:$E$36,Primitives!$C$38:$E$40,Primitives!$C$42:$E$44,Primitives!$C$46:$E$48,Primitives!$C$50:$E$52,Primitives!$C$54:$E$56,Primitives!$C$58:$E$60),$N32,AD$13)) -> 1 | AE32: =IF(AND($K32=Calc.Top, AE$10=Calc.Left),"X",INDEX(CHOOSE(INDEX(MazeDef,$L32,AE$11),Primitives!$C$2:$E$4,Primitives!$C$6:$E$8,Primitives!$C$10:$E$12,Primitives!$C$14:$E$16,Primitives!$C$18:$E$20,Primitives!$C$22:$E$24,Primitives!$C$26:$E$28,Primitives!$C$30:$E$32,Primitives!$C$34:$E$36,Primitives!$C$38:$E$40,Primitives!$C$42:$E$44,Primitives!$C$46:$E$48,Primitives!$C$50:$E$52,Primitives!$C$54:$E$56,Primitives!$C$58:$E$60),$N32,AE$13)) -> 1 | AF32: =IF(AND($K32=Calc.Top, AF$10=Calc.Left),"X",INDEX(CHOOSE(INDEX(MazeDef,$L32,AF$11),Primitives!$C$2:$E$4,Primitives!$C$6:$E$8,Primitives!$C$10:$E$12,Primitives!$C$14:$E$16,Primitives!$C$18:$E$20,Primitives!$C$22:$E$24,Primitives!$C$26:$E$28,Primitives!$C$30:$E$32,Primitives!$C$34:$E$36,Primitives!$C$38:$E$40,Primitives!$C$42:$E$44,Primitives!$C$46:$E$48,Primitives!$C$50:$E$52,Primitives!$C$54:$E$56,Primitives!$C$58:$E$60),$N32,AF$13)) -> 1 | AG32: =IF(AND($K32=Calc.Top, AG$10=Calc.Left),"X",INDEX(CHOOSE(INDEX(MazeDef,$L32,AG$11),Primitives!$C$2:$E$4,Primitives!$C$6:$E$8,Primitives!$C$10:$E$12,Primitives!$C$14:$E$16,Primitives!$C$18:$E$20,Primitives!$C$22:$E$24,Primitives!$C$26:$E$28,Primitives!$C$30:$E$32,Primitives!$C$34:$E$36,Primitives!$C$38:$E$40,Primitives!$C$42:$E$44,Primitives!$C$46:$E$48,Primitives!$C$50:$E$52,Primitives!$C$54:$E$56,Primitives!$C$58:$E$60),$N32,AG$13)) -> 1 | AH32: =IF(AND($K32=Calc.Top, AH$10=Calc.Left),"X",INDEX(CHOOSE(INDEX(MazeDef,$L32,AH$11),Primitives!$C$2:$E$4,Primitives!$C$6:$E$8,Primitives!$C$10:$E$12,Primitives!$C$14:$E$16,Primitives!$C$18:$E$20,Primitives!$C$22:$E$24,Primitives!$C$26:$E$28,Primitives!$C$30:$E$32,Primitives!$C$34:$E$36,Primitives!$C$38:$E$40,Primitives!$C$42:$E$44,Primitives!$C$46:$E$48,Primitives!$C$50:$E$52,Primitives!$C$54:$E$56,Primitives!$C$58:$E$60),$N32,AH$13)) -> 1 | AI32: =IF(AND($K32=Calc.Top, AI$10=Calc.Left),"X",INDEX(CHOOSE(INDEX(MazeDef,$L32,AI$11),Primitives!$C$2:$E$4,Primitives!$C$6:$E$8,Primitives!$C$10:$E$12,Primitives!$C$14:$E$16,Primitives!$C$18:$E$20,Primitives!$C$22:$E$24,Primitives!$C$26:$E$28,Primitives!$C$30:$E$32,Primitives!$C$34:$E$36,Primitives!$C$38:$E$40,Primitives!$C$42:$E$44,Primitives!$C$46:$E$48,Primitives!$C$50:$E$52,Primitives!$C$54:$E$56,Primitives!$C$58:$E$60),$N32,AI$13)) -> 1 | AJ32: =IF(AND($K32=Calc.Top, AJ$10=Calc.Left),"X",INDEX(CHOOSE(INDEX(MazeDef,$L32,AJ$11),Primitives!$C$2:$E$4,Primitives!$C$6:$E$8,Primitives!$C$10:$E$12,Primitives!$C$14:$E$16,Primitives!$C$18:$E$20,Primitives!$C$22:$E$24,Primitives!$C$26:$E$28,Primitives!$C$30:$E$32,Primitives!$C$34:$E$36,Primitives!$C$38:$E$40,Primitives!$C$42:$E$44,Primitives!$C$46:$E$48,Primitives!$C$50:$E$52,Primitives!$C$54:$E$56,Primitives!$C$58:$E$60),$N32,AJ$13)) -> 1 | AK32: =IF(AND($K32=Calc.Top, AK$10=Calc.Left),"X",INDEX(CHOOSE(INDEX(MazeDef,$L32,AK$11),Primitives!$C$2:$E$4,Primitives!$C$6:$E$8,Primitives!$C$10:$E$12,Primitives!$C$14:$E$16,Primitives!$C$18:$E$20,Primitives!$C$22:$E$24,Primitives!$C$26:$E$28,Primitives!$C$30:$E$32,Primitives!$C$34:$E$36,Primitives!$C$38:$E$40,Primitives!$C$42:$E$44,Primitives!$C$46:$E$48,Primitives!$C$50:$E$52,Primitives!$C$54:$E$56,Primitives!$C$58:$E$60),$N32,AK$13)) -> 0 | AL32: =IF(AND($K32=Calc.Top, AL$10=Calc.Left),"X",INDEX(CHOOSE(INDEX(MazeDef,$L32,AL$11),Primitives!$C$2:$E$4,Primitives!$C$6:$E$8,Primitives!$C$10:$E$12,Primitives!$C$14:$E$16,Primitives!$C$18:$E$20,Primitives!$C$22:$E$24,Primitives!$C$26:$E$28,Primitives!$C$30:$E$32,Primitives!$C$34:$E$36,Primitives!$C$38:$E$40,Primitives!$C$42:$E$44,Primitives!$C$46:$E$48,Primitives!$C$50:$E$52,Primitives!$C$54:$E$56,Primitives!$C$58:$E$60),$N32,AL$13)) -> 1 | AM32: =IF(AND($K32=Calc.Top, AM$10=Calc.Left),"X",INDEX(CHOOSE(INDEX(MazeDef,$L32,AM$11),Primitives!$C$2:$E$4,Primitives!$C$6:$E$8,Primitives!$C$10:$E$12,Primitives!$C$14:$E$16,Primitives!$C$18:$E$20,Primitives!$C$22:$E$24,Primitives!$C$26:$E$28,Primitives!$C$30:$E$32,Primitives!$C$34:$E$36,Primitives!$C$38:$E$40,Primitives!$C$42:$E$44,Primitives!$C$46:$E$48,Primitives!$C$50:$E$52,Primitives!$C$54:$E$56,Primitives!$C$58:$E$60),$N32,AM$13)) -> 1 | AN32: =IF(AND($K32=Calc.Top, AN$10=Calc.Left),"X",INDEX(CHOOSE(INDEX(MazeDef,$L32,AN$11),Primitives!$C$2:$E$4,Primitives!$C$6:$E$8,Primitives!$C$10:$E$12,Primitives!$C$14:$E$16,Primitives!$C$18:$E$20,Primitives!$C$22:$E$24,Primitives!$C$26:$E$28,Primitives!$C$30:$E$32,Primitives!$C$34:$E$36,Primitives!$C$38:$E$40,Primitives!$C$42:$E$44,Primitives!$C$46:$E$48,Primitives!$C$50:$E$52,Primitives!$C$54:$E$56,Primitives!$C$58:$E$60),$N32,AN$13)) -> 1 | AO32: =IF(AND($K32=Calc.Top, AO$10=Calc.Left),"X",INDEX(CHOOSE(INDEX(MazeDef,$L32,AO$11),Primitives!$C$2:$E$4,Primitives!$C$6:$E$8,Primitives!$C$10:$E$12,Primitives!$C$14:$E$16,Primitives!$C$18:$E$20,Primitives!$C$22:$E$24,Primitives!$C$26:$E$28,Primitives!$C$30:$E$32,Primitives!$C$34:$E$36,Primitives!$C$38:$E$40,Primitives!$C$42:$E$44,Primitives!$C$46:$E$48,Primitives!$C$50:$E$52,Primitives!$C$54:$E$56,Primitives!$C$58:$E$60),$N32,AO$13)) -> 1 | AP32: =IF(AND($K32=Calc.Top, AP$10=Calc.Left),"X",INDEX(CHOOSE(INDEX(MazeDef,$L32,AP$11),Primitives!$C$2:$E$4,Primitives!$C$6:$E$8,Primitives!$C$10:$E$12,Primitives!$C$14:$E$16,Primitives!$C$18:$E$20,Primitives!$C$22:$E$24,Primitives!$C$26:$E$28,Primitives!$C$30:$E$32,Primitives!$C$34:$E$36,Primitives!$C$38:$E$40,Primitives!$C$42:$E$44,Primitives!$C$46:$E$48,Primitives!$C$50:$E$52,Primitives!$C$54:$E$56,Primitives!$C$58:$E$60),$N32,AP$13)) -> 1 | AQ32: =IF(AND($K32=Calc.Top, AQ$10=Calc.Left),"X",INDEX(CHOOSE(INDEX(MazeDef,$L32,AQ$11),Primitives!$C$2:$E$4,Primitives!$C$6:$E$8,Primitives!$C$10:$E$12,Primitives!$C$14:$E$16,Primitives!$C$18:$E$20,Primitives!$C$22:$E$24,Primitives!$C$26:$E$28,Primitives!$C$30:$E$32,Primitives!$C$34:$E$36,Primitives!$C$38:$E$40,Primitives!$C$42:$E$44,Primitives!$C$46:$E$48,Primitives!$C$50:$E$52,Primitives!$C$54:$E$56,Primitives!$C$58:$E$60),$N32,AQ$13)) -> 1 | AR32: =IF(AND($K32=Calc.Top, AR$10=Calc.Left),"X",INDEX(CHOOSE(INDEX(MazeDef,$L32,AR$11),Primitives!$C$2:$E$4,Primitives!$C$6:$E$8,Primitives!$C$10:$E$12,Primitives!$C$14:$E$16,Primitives!$C$18:$E$20,Primitives!$C$22:$E$24,Primitives!$C$26:$E$28,Primitives!$C$30:$E$32,Primitives!$C$34:$E$36,Primitives!$C$38:$E$40,Primitives!$C$42:$E$44,Primitives!$C$46:$E$48,Primitives!$C$50:$E$52,Primitives!$C$54:$E$56,Primitives!$C$58:$E$60),$N32,AR$13)) -> 1
K33: 20 | L33: 7 | N33: 2 | O33: =IF(AND($K33=Calc.Top, O$10=Calc.Left),"X",INDEX(CHOOSE(INDEX(MazeDef,$L33,O$11),Primitives!$C$2:$E$4,Primitives!$C$6:$E$8,Primitives!$C$10:$E$12,Primitives!$C$14:$E$16,Primitives!$C$18:$E$20,Primitives!$C$22:$E$24,Primitives!$C$26:$E$28,Primitives!$C$30:$E$32,Primitives!$C$34:$E$36,Primitives!$C$38:$E$40,Primitives!$C$42:$E$44,Primitives!$C$46:$E$48,Primitives!$C$50:$E$52,Primitives!$C$54:$E$56,Primitives!$C$58:$E$60),$N33,O$13)) -> 1 | P33: =IF(AND($K33=Calc.Top, P$10=Calc.Left),"X",INDEX(CHOOSE(INDEX(MazeDef,$L33,P$11),Primitives!$C$2:$E$4,Primitives!$C$6:$E$8,Primitives!$C$10:$E$12,Primitives!$C$14:$E$16,Primitives!$C$18:$E$20,Primitives!$C$22:$E$24,Primitives!$C$26:$E$28,Primitives!$C$30:$E$32,Primitives!$C$34:$E$36,Primitives!$C$38:$E$40,Primitives!$C$42:$E$44,Primitives!$C$46:$E$48,Primitives!$C$50:$E$52,Primitives!$C$54:$E$56,Primitives!$C$58:$E$60),$N33,P$13)) -> 0 | Q33: =IF(AND($K33=Calc.Top, Q$10=Calc.Left),"X",INDEX(CHOOSE(INDEX(MazeDef,$L33,Q$11),Primitives!$C$2:$E$4,Primitives!$C$6:$E$8,Primitives!$C$10:$E$12,Primitives!$C$14:$E$16,Primitives!$C$18:$E$20,Primitives!$C$22:$E$24,Primitives!$C$26:$E$28,Primitives!$C$30:$E$32,Primitives!$C$34:$E$36,Primitives!$C$38:$E$40,Primitives!$C$42:$E$44,Primitives!$C$46:$E$48,Primitives!$C$50:$E$52,Primitives!$C$54:$E$56,Primitives!$C$58:$E$60),$N33,Q$13)) -> 1 | R33: =IF(AND($K33=Calc.Top, R$10=Calc.Left),"X",INDEX(CHOOSE(INDEX(MazeDef,$L33,R$11),Primitives!$C$2:$E$4,Primitives!$C$6:$E$8,Primitives!$C$10:$E$12,Primitives!$C$14:$E$16,Primitives!$C$18:$E$20,Primitives!$C$22:$E$24,Primitives!$C$26:$E$28,Primitives!$C$30:$E$32,Primitives!$C$34:$E$36,Primitives!$C$38:$E$40,Primitives!$C$42:$E$44,Primitives!$C$46:$E$48,Primitives!$C$50:$E$52,Primitives!$C$54:$E$56,Primitives!$C$58:$E$60),$N33,R$13)) -> 1 | S33: =IF(AND($K33=Calc.Top, S$10=Calc.Left),"X",INDEX(CHOOSE(INDEX(MazeDef,$L33,S$11),Primitives!$C$2:$E$4,Primitives!$C$6:$E$8,Primitives!$C$10:$E$12,Primitives!$C$14:$E$16,Primitives!$C$18:$E$20,Primitives!$C$22:$E$24,Primitives!$C$26:$E$28,Primitives!$C$30:$E$32,Primitives!$C$34:$E$36,Primitives!$C$38:$E$40,Primitives!$C$42:$E$44,Primitives!$C$46:$E$48,Primitives!$C$50:$E$52,Primitives!$C$54:$E$56,Primitives!$C$58:$E$60),$N33,S$13)) -> 0 | T33: =IF(AND($K33=Calc.Top, T$10=Calc.Left),"X",INDEX(CHOOSE(INDEX(MazeDef,$L33,T$11),Primitives!$C$2:$E$4,Primitives!$C$6:$E$8,Primitives!$C$10:$E$12,Primitives!$C$14:$E$16,Primitives!$C$18:$E$20,Primitives!$C$22:$E$24,Primitives!$C$26:$E$28,Primitives!$C$30:$E$32,Primitives!$C$34:$E$36,Primitives!$C$38:$E$40,Primitives!$C$42:$E$44,Primitives!$C$46:$E$48,Primitives!$C$50:$E$52,Primitives!$C$54:$E$56,Primitives!$C$58:$E$60),$N33,T$13)) -> 0 | U33: =IF(AND($K33=Calc.Top, U$10=Calc.Left),"X",INDEX(CHOOSE(INDEX(MazeDef,$L33,U$11),Primitives!$C$2:$E$4,Primitives!$C$6:$E$8,Primitives!$C$10:$E$12,Primitives!$C$14:$E$16,Primitives!$C$18:$E$20,Primitives!$C$22:$E$24,Primitives!$C$26:$E$28,Primitives!$C$30:$E$32,Primitives!$C$34:$E$36,Primitives!$C$38:$E$40,Primitives!$C$42:$E$44,Primitives!$C$46:$E$48,Primitives!$C$50:$E$52,Primitives!$C$54:$E$56,Primitives!$C$58:$E$60),$N33,U$13)) -> 0 | V33: =IF(AND($K33=Calc.Top, V$10=Calc.Left),"X",INDEX(CHOOSE(INDEX(MazeDef,$L33,V$11),Primitives!$C$2:$E$4,Primitives!$C$6:$E$8,Primitives!$C$10:$E$12,Primitives!$C$14:$E$16,Primitives!$C$18:$E$20,Primitives!$C$22:$E$24,Primitives!$C$26:$E$28,Primitives!$C$30:$E$32,Primitives!$C$34:$E$36,Primitives!$C$38:$E$40,Primitives!$C$42:$E$44,Primitives!$C$46:$E$48,Primitives!$C$50:$E$52,Primitives!$C$54:$E$56,Primitives!$C$58:$E$60),$N33,V$13)) -> 0 | W33: =IF(AND($K33=Calc.Top, W$10=Calc.Left),"X",INDEX(CHOOSE(INDEX(MazeDef,$L33,W$11),Primitives!$C$2:$E$4,Primitives!$C$6:$E$8,Primitives!$C$10:$E$12,Primitives!$C$14:$E$16,Primitives!$C$18:$E$20,Primitives!$C$22:$E$24,Primitives!$C$26:$E$28,Primitives!$C$30:$E$32,Primitives!$C$34:$E$36,Primitives!$C$38:$E$40,Primitives!$C$42:$E$44,Primitives!$C$46:$E$48,Primitives!$C$50:$E$52,Primitives!$C$54:$E$56,Primitives!$C$58:$E$60),$N33,W$13)) -> 1 | X33: =IF(AND($K33=Calc.Top, X$10=Calc.Left),"X",INDEX(CHOOSE(INDEX(MazeDef,$L33,X$11),Primitives!$C$2:$E$4,Primitives!$C$6:$E$8,Primitives!$C$10:$E$12,Primitives!$C$14:$E$16,Primitives!$C$18:$E$20,Primitives!$C$22:$E$24,Primitives!$C$26:$E$28,Primitives!$C$30:$E$32,Primitives!$C$34:$E$36,Primitives!$C$38:$E$40,Primitives!$C$42:$E$44,Primitives!$C$46:$E$48,Primitives!$C$50:$E$52,Primitives!$C$54:$E$56,Primitives!$C$58:$E$60),$N33,X$13)) -> 1 | Y33: =IF(AND($K33=Calc.Top, Y$10=Calc.Left),"X",INDEX(CHOOSE(INDEX(MazeDef,$L33,Y$11),Primitives!$C$2:$E$4,Primitives!$C$6:$E$8,Primitives!$C$10:$E$12,Primitives!$C$14:$E$16,Primitives!$C$18:$E$20,Primitives!$C$22:$E$24,Primitives!$C$26:$E$28,Primitives!$C$30:$E$32,Primitives!$C$34:$E$36,Primitives!$C$38:$E$40,Primitives!$C$42:$E$44,Primitives!$C$46:$E$48,Primitives!$C$50:$E$52,Primitives!$C$54:$E$56,Primitives!$C$58:$E$60),$N33,Y$13)) -> 0 | Z33: =IF(AND($K33=Calc.Top, Z$10=Calc.Left),"X",INDEX(CHOOSE(INDEX(MazeDef,$L33,Z$11),Primitives!$C$2:$E$4,Primitives!$C$6:$E$8,Primitives!$C$10:$E$12,Primitives!$C$14:$E$16,Primitives!$C$18:$E$20,Primitives!$C$22:$E$24,Primitives!$C$26:$E$28,Primitives!$C$30:$E$32,Primitives!$C$34:$E$36,Primitives!$C$38:$E$40,Primitives!$C$42:$E$44,Primitives!$C$46:$E$48,Primitives!$C$50:$E$52,Primitives!$C$54:$E$56,Primitives!$C$58:$E$60),$N33,Z$13)) -> 1 | AA33: =IF(AND($K33=Calc.Top, AA$10=Calc.Left),"X",INDEX(CHOOSE(INDEX(MazeDef,$L33,AA$11),Primitives!$C$2:$E$4,Primitives!$C$6:$E$8,Primitives!$C$10:$E$12,Primitives!$C$14:$E$16,Primitives!$C$18:$E$20,Primitives!$C$22:$E$24,Primitives!$C$26:$E$28,Primitives!$C$30:$E$32,Primitives!$C$34:$E$36,Primitives!$C$38:$E$40,Primitives!$C$42:$E$44,Primitives!$C$46:$E$48,Primitives!$C$50:$E$52,Primitives!$C$54:$E$56,Primitives!$C$58:$E$60),$N33,AA$13)) -> 1 | AB33: =IF(AND($K33=Calc.Top, AB$10=Calc.Left),"X",INDEX(CHOOSE(INDEX(MazeDef,$L33,AB$11),Primitives!$C$2:$E$4,Primitives!$C$6:$E$8,Primitives!$C$10:$E$12,Primitives!$C$14:$E$16,Primitives!$C$18:$E$20,Primitives!$C$22:$E$24,Primitives!$C$26:$E$28,Primitives!$C$30:$E$32,Primitives!$C$34:$E$36,Primitives!$C$38:$E$40,Primitives!$C$42:$E$44,Primitives!$C$46:$E$48,Primitives!$C$50:$E$52,Primitives!$C$54:$E$56,Primitives!$C$58:$E$60),$N33,AB$13)) -> 0 | AC33: =IF(AND($K33=Calc.Top, AC$10=Calc.Left),"X",INDEX(CHOOSE(INDEX(MazeDef,$L33,AC$11),Primitives!$C$2:$E$4,Primitives!$C$6:$E$8,Primitives!$C$10:$E$12,Primitives!$C$14:$E$16,Primitives!$C$18:$E$20,Primitives!$C$22:$E$24,Primitives!$C$26:$E$28,Primitives!$C$30:$E$32,Primitives!$C$34:$E$36,Primitives!$C$38:$E$40,Primitives!$C$42:$E$44,Primitives!$C$46:$E$48,Primitives!$C$50:$E$52,Primitives!$C$54:$E$56,Primitives!$C$58:$E$60),$N33,AC$13)) -> 0 | AD33: =IF(AND($K33=Calc.Top, AD$10=Calc.Left),"X",INDEX(CHOOSE(INDEX(MazeDef,$L33,AD$11),Primitives!$C$2:$E$4,Primitives!$C$6:$E$8,Primitives!$C$10:$E$12,Primitives!$C$14:$E$16,Primitives!$C$18:$E$20,Primitives!$C$22:$E$24,Primitives!$C$26:$E$28,Primitives!$C$30:$E$32,Primitives!$C$34:$E$36,Primitives!$C$38:$E$40,Primitives!$C$42:$E$44,Primitives!$C$46:$E$48,Primitives!$C$50:$E$52,Primitives!$C$54:$E$56,Primitives!$C$58:$E$60),$N33,AD$13)) -> 0 | AE33: =IF(AND($K33=Calc.Top, AE$10=Calc.Left),"X",INDEX(CHOOSE(INDEX(MazeDef,$L33,AE$11),Primitives!$C$2:$E$4,Primitives!$C$6:$E$8,Primitives!$C$10:$E$12,Primitives!$C$14:$E$16,Primitives!$C$18:$E$20,Primitives!$C$22:$E$24,Primitives!$C$26:$E$28,Primitives!$C$30:$E$32,Primitives!$C$34:$E$36,Primitives!$C$38:$E$40,Primitives!$C$42:$E$44,Primitives!$C$46:$E$48,Primitives!$C$50:$E$52,Primitives!$C$54:$E$56,Primitives!$C$58:$E$60),$N33,AE$13)) -> 0 | AF33: =IF(AND($K33=Calc.Top, AF$10=Calc.Left),"X",INDEX(CHOOSE(INDEX(MazeDef,$L33,AF$11),Primitives!$C$2:$E$4,Primitives!$C$6:$E$8,Primitives!$C$10:$E$12,Primitives!$C$14:$E$16,Primitives!$C$18:$E$20,Primitives!$C$22:$E$24,Primitives!$C$26:$E$28,Primitives!$C$30:$E$32,Primitives!$C$34:$E$36,Primitives!$C$38:$E$40,Primitives!$C$42:$E$44,Primitives!$C$46:$E$48,Primitives!$C$50:$E$52,Primitives!$C$54:$E$56,Primitives!$C$58:$E$60),$N33,AF$13)) -> 0 | AG33: =IF(AND($K33=Calc.Top, AG$10=Calc.Left),"X",INDEX(CHOOSE(INDEX(MazeDef,$L33,AG$11),Primitives!$C$2:$E$4,Primitives!$C$6:$E$8,Primitives!$C$10:$E$12,Primitives!$C$14:$E$16,Primitives!$C$18:$E$20,Primitives!$C$22:$E$24,Primitives!$C$26:$E$28,Primitives!$C$30:$E$32,Primitives!$C$34:$E$36,Primitives!$C$38:$E$40,Primitives!$C$42:$E$44,Primitives!$C$46:$E$48,Primitives!$C$50:$E$52,Primitives!$C$54:$E$56,Primitives!$C$58:$E$60),$N33,AG$13)) -> 0 | AH33: =IF(AND($K33=Calc.Top, AH$10=Calc.Left),"X",INDEX(CHOOSE(INDEX(MazeDef,$L33,AH$11),Primitives!$C$2:$E$4,Primitives!$C$6:$E$8,Primitives!$C$10:$E$12,Primitives!$C$14:$E$16,Primitives!$C$18:$E$20,Primitives!$C$22:$E$24,Primitives!$C$26:$E$28,Primitives!$C$30:$E$32,Primitives!$C$34:$E$36,Primitives!$C$38:$E$40,Primitives!$C$42:$E$44,Primitives!$C$46:$E$48,Primitives!$C$50:$E$52,Primitives!$C$54:$E$56,Primitives!$C$58:$E$60),$N33,AH$13)) -> 0 | AI33: =IF(AND($K33=Calc.Top, AI$10=Calc.Left),"X",INDEX(CHOOSE(INDEX(MazeDef,$L33,AI$11),Primitives!$C$2:$E$4,Primitives!$C$6:$E$8,Primitives!$C$10:$E$12,Primitives!$C$14:$E$16,Primitives!$C$18:$E$20,Primitives!$C$22:$E$24,Primitives!$C$26:$E$28,Primitives!$C$30:$E$32,Primitives!$C$34:$E$36,Primitives!$C$38:$E$40,Primitives!$C$42:$E$44,Primitives!$C$46:$E$48,Primitives!$C$50:$E$52,Primitives!$C$54:$E$56,Primitives!$C$58:$E$60),$N33,AI$13)) -> 1 | AJ33: =IF(AND($K33=Calc.Top, AJ$10=Calc.Left),"X",INDEX(CHOOSE(INDEX(MazeDef,$L33,AJ$11),Primitives!$C$2:$E$4,Primitives!$C$6:$E$8,Primitives!$C$10:$E$12,Primitives!$C$14:$E$16,Primitives!$C$18:$E$20,Primitives!$C$22:$E$24,Primitives!$C$26:$E$28,Primitives!$C$30:$E$32,Primitives!$C$34:$E$36,Primitives!$C$38:$E$40,Primitives!$C$42:$E$44,Primitives!$C$46:$E$48,Primitives!$C$50:$E$52,Primitives!$C$54:$E$56,Primitives!$C$58:$E$60),$N33,AJ$13)) -> 1 | AK33: =IF(AND($K33=Calc.Top, AK$10=Calc.Left),"X",INDEX(CHOOSE(INDEX(MazeDef,$L33,AK$11),Primitives!$C$2:$E$4,Primitives!$C$6:$E$8,Primitives!$C$10:$E$12,Primitives!$C$14:$E$16,Primitives!$C$18:$E$20,Primitives!$C$22:$E$24,Primitives!$C$26:$E$28,Primitives!$C$30:$E$32,Primitives!$C$34:$E$36,Primitives!$C$38:$E$40,Primitives!$C$42:$E$44,Primitives!$C$46:$E$48,Primitives!$C$50:$E$52,Primitives!$C$54:$E$56,Primitives!$C$58:$E$60),$N33,AK$13)) -> 0 | AL33: =IF(AND($K33=Calc.Top, AL$10=Calc.Left),"X",INDEX(CHOOSE(INDEX(MazeDef,$L33,AL$11),Primitives!$C$2:$E$4,Primitives!$C$6:$E$8,Primitives!$C$10:$E$12,Primitives!$C$14:$E$16,Primitives!$C$18:$E$20,Primitives!$C$22:$E$24,Primitives!$C$26:$E$28,Primitives!$C$30:$E$32,Primitives!$C$34:$E$36,Primitives!$C$38:$E$40,Primitives!$C$42:$E$44,Primitives!$C$46:$E$48,Primitives!$C$50:$E$52,Primitives!$C$54:$E$56,Primitives!$C$58:$E$60),$N33,AL$13)) -> 1 | AM33: =IF(AND($K33=Calc.Top, AM$10=Calc.Left),"X",INDEX(CHOOSE(INDEX(MazeDef,$L33,AM$11),Primitives!$C$2:$E$4,Primitives!$C$6:$E$8,Primitives!$C$10:$E$12,Primitives!$C$14:$E$16,Primitives!$C$18:$E$20,Primitives!$C$22:$E$24,Primitives!$C$26:$E$28,Primitives!$C$30:$E$32,Primitives!$C$34:$E$36,Primitives!$C$38:$E$40,Primitives!$C$42:$E$44,Primitives!$C$46:$E$48,Primitives!$C$50:$E$52,Primitives!$C$54:$E$56,Primitives!$C$58:$E$60),$N33,AM$13)) -> 1 | AN33: =IF(AND($K33=Calc.Top, AN$10=Calc.Left),"X",INDEX(CHOOSE(INDEX(MazeDef,$L33,AN$11),Primitives!$C$2:$E$4,Primitives!$C$6:$E$8,Primitives!$C$10:$E$12,Primitives!$C$14:$E$16,Primitives!$C$18:$E$20,Primitives!$C$22:$E$24,Primitives!$C$26:$E$28,Primitives!$C$30:$E$32,Primitives!$C$34:$E$36,Primitives!$C$38:$E$40,Primitives!$C$42:$E$44,Primitives!$C$46:$E$48,Primitives!$C$50:$E$52,Primitives!$C$54:$E$56,Primitives!$C$58:$E$60),$N33,AN$13)) -> 0 | AO33: =IF(AND($K33=Calc.Top, AO$10=Calc.Left),"X",INDEX(CHOOSE(INDEX(MazeDef,$L33,AO$11),Primitives!$C$2:$E$4,Primitives!$C$6:$E$8,Primitives!$C$10:$E$12,Primitives!$C$14:$E$16,Primitives!$C$18:$E$20,Primitives!$C$22:$E$24,Primitives!$C$26:$E$28,Primitives!$C$30:$E$32,Primitives!$C$34:$E$36,Primitives!$C$38:$E$40,Primitives!$C$42:$E$44,Primitives!$C$46:$E$48,Primitives!$C$50:$E$52,Primitives!$C$54:$E$56,Primitives!$C$58:$E$60),$N33,AO$13)) -> 0 | AP33: =IF(AND($K33=Calc.Top, AP$10=Calc.Left),"X",INDEX(CHOOSE(INDEX(MazeDef,$L33,AP$11),Primitives!$C$2:$E$4,Primitives!$C$6:$E$8,Primitives!$C$10:$E$12,Primitives!$C$14:$E$16,Primitives!$C$18:$E$20,Primitives!$C$22:$E$24,Primitives!$C$26:$E$28,Primitives!$C$30:$E$32,Primitives!$C$34:$E$36,Primitives!$C$38:$E$40,Primitives!$C$42:$E$44,Primitives!$C$46:$E$48,Primitives!$C$50:$E$52,Primitives!$C$54:$E$56,Primitives!$C$58:$E$60),$N33,AP$13)) -> 0 | AQ33: =IF(AND($K33=Calc.Top, AQ$10=Calc.Left),"X",INDEX(CHOOSE(INDEX(MazeDef,$L33,AQ$11),Primitives!$C$2:$E$4,Primitives!$C$6:$E$8,Primitives!$C$10:$E$12,Primitives!$C$14:$E$16,Primitives!$C$18:$E$20,Primitives!$C$22:$E$24,Primitives!$C$26:$E$28,Primitives!$C$30:$E$32,Primitives!$C$34:$E$36,Primitives!$C$38:$E$40,Primitives!$C$42:$E$44,Primitives!$C$46:$E$48,Primitives!$C$50:$E$52,Primitives!$C$54:$E$56,Primitives!$C$58:$E$60),$N33,AQ$13)) -> 0 | AR33: =IF(AND($K33=Calc.Top, AR$10=Calc.Left),"X",INDEX(CHOOSE(INDEX(MazeDef,$L33,AR$11),Primitives!$C$2:$E$4,Primitives!$C$6:$E$8,Primitives!$C$10:$E$12,Primitives!$C$14:$E$16,Primitives!$C$18:$E$20,Primitives!$C$22:$E$24,Primitives!$C$26:$E$28,Primitives!$C$30:$E$32,Primitives!$C$34:$E$36,Primitives!$C$38:$E$40,Primitives!$C$42:$E$44,Primitives!$C$46:$E$48,Primitives!$C$50:$E$52,Primitives!$C$54:$E$56,Primitives!$C$58:$E$60),$N33,AR$13)) -> 1
